Workbook

Sheet テストデータ
A1: ｶｰｿﾙ方向切り替え | E1: =IF(初期設定!$C14="","",初期設定!$C14) -> 1学期 中間テスト | N1: =IF(初期設定!$C15="","",初期設定!$C15) -> 1学期 期末テスト | W1: =IF(初期設定!$C16="","",初期設定!$C16) -> 2学期 中間テスト | AF1: =IF(初期設定!$C17="","",初期設定!$C17) -> 2学期 期末テスト | AO1: =IF(初期設定!$C18="","",初期設定!$C18) -> 3学期 期末テスト | AX1: =IF(初期設定!$C19="","",初期設定!$C19) ->  | BG1: =IF(初期設定!$C21="","","第1回 "&初期設定!$C21) -> 第1回 校内実力テスト | BL1: =IF(初期設定!$C21="","","第2回 "&初期設定!$C21) -> 第2回 校内実力テスト | BQ1: =IF(初期設定!$C21="","","第3回 "&初期設定!$C21) -> 第3回 校内実力テスト | BV1: =IF(初期設定!$C21="","","第4回 "&初期設定!$C21) -> 第4回 校内実力テスト | CA1: =IF(初期設定!$C21="","","第5回 "&初期設定!$C21) -> 第5回 校内実力テスト | CF1: =IF(初期設定!$C21="","","第6回 "&初期設定!$C21) -> 第6回 校内実力テスト | CK1: =IF(初期設定!$C21="","","第7回 "&初期設定!$C21) -> 第7回 校内実力テスト | CP1: =IF(初期設定!$C21="","","第8回 "&初期設定!$C21) -> 第8回 校内実力テスト
D2: 実施日→ | E2: 1/15 | N2: 2/10 | W2: 3/25 | AF2: 4/1 | AO2: 5/25 | AX2: 6/31
A3: ID | B3: class | C3: No. | D3: 氏名 | E3: =IF(初期設定!$C5="","",初期設定!$C5) -> 国語 | F3: =IF(初期設定!$C6="","",初期設定!$C6) -> 数学 | G3: =IF(初期設定!$C7="","",初期設定!$C7) -> 英語 | H3: =IF(初期設定!$C8="","",初期設定!$C8) -> 社会 | I3: =IF(初期設定!$C9="","",初期設定!$C9) -> 理科 | J3: =IF(初期設定!$C10="","",初期設定!$C10) -> 保体 | K3: =IF(初期設定!$C11="","",初期設定!$C11) -> 技家 | L3: =IF(初期設定!$C12="","",初期設定!$C12) -> 美術 | M3: =IF(初期設定!$C13="","",初期設定!$C13) -> 音楽 | N3: =IF(初期設定!$C5="","",初期設定!$C5) -> 国語 | O3: =IF(初期設定!$C6="","",初期設定!$C6) -> 数学 | P3: =IF(初期設定!$C7="","",初期設定!$C7) -> 英語 | Q3: =IF(初期設定!$C8="","",初期設定!$C8) -> 社会 | R3: =IF(初期設定!$C9="","",初期設定!$C9) -> 理科 | S3: =IF(初期設定!$C10="","",初期設定!$C10) -> 保体 | T3: =IF(初期設定!$C11="","",初期設定!$C11) -> 技家 | U3: =IF(初期設定!$C12="","",初期設定!$C12) -> 美術 | V3: =IF(初期設定!$C13="","",初期設定!$C13) -> 音楽 | W3: =IF(初期設定!$C5="","",初期設定!$C5) -> 国語 | X3: =IF(初期設定!$C6="","",初期設定!$C6) -> 数学 | Y3: =IF(初期設定!$C7="","",初期設定!$C7) -> 英語 | Z3: =IF(初期設定!$C8="","",初期設定!$C8) -> 社会 | AA3: =IF(初期設定!$C9="","",初期設定!$C9) -> 理科 | AB3: =IF(初期設定!$C10="","",初期設定!$C10) -> 保体 | AC3: =IF(初期設定!$C11="","",初期設定!$C11) -> 技家 | AD3: =IF(初期設定!$C12="","",初期設定!$C12) -> 美術 | AE3: =IF(初期設定!$C13="","",初期設定!$C13) -> 音楽 | AF3: =IF(初期設定!$C5="","",初期設定!$C5) -> 国語 | AG3: =IF(初期設定!$C6="","",初期設定!$C6) -> 数学 | AH3: =IF(初期設定!$C7="","",初期設定!$C7) -> 英語 | AI3: =IF(初期設定!$C8="","",初期設定!$C8) -> 社会 | AJ3: =IF(初期設定!$C9="","",初期設定!$C9) -> 理科 | AK3: =IF(初期設定!$C10="","",初期設定!$C10) -> 保体 | AL3: =IF(初期設定!$C11="","",初期設定!$C11) -> 技家 | AM3: =IF(初期設定!$C12="","",初期設定!$C12) -> 美術 | AN3: =IF(初期設定!$C13="","",初期設定!$C13) -> 音楽 | AO3: =IF(初期設定!$C5="","",初期設定!$C5) -> 国語 | AP3: =IF(初期設定!$C6="","",初期設定!$C6) -> 数学 | AQ3: =IF(初期設定!$C7="","",初期設定!$C7) -> 英語 | AR3: =IF(初期設定!$C8="","",初期設定!$C8) -> 社会 | AS3: =IF(初期設定!$C9="","",初期設定!$C9) -> 理科 | AT3: =IF(初期設定!$C10="","",初期設定!$C10) -> 保体 | AU3: =IF(初期設定!$C11="","",初期設定!$C11) -> 技家 | AV3: =IF(初期設定!$C12="","",初期設定!$C12) -> 美術 | AW3: =IF(初期設定!$C13="","",初期設定!$C13) -> 音楽 | AX3: =IF(初期設定!$C5="","",初期設定!$C5) -> 国語 | AY3: =IF(初期設定!$C6="","",初期設定!$C6) -> 数学 | AZ3: =IF(初期設定!$C7="","",初期設定!$C7) -> 英語 | BA3: =IF(初期設定!$C8="","",初期設定!$C8) -> 社会 | BB3: =IF(初期設定!$C9="","",初期設定!$C9) -> 理科 | BC3: =IF(初期設定!$C10="","",初期設定!$C10) -> 保体 | BD3: =IF(初期設定!$C11="","",初期設定!$C11) -> 技家 | BE3: =IF(初期設定!$C12="","",初期設定!$C12) -> 美術 | BF3: =IF(初期設定!$C13="","",初期設定!$C13) -> 音楽 | BG3: =IF(初期設定!$C22="","",初期設定!$C22) -> 国語 | BH3: =IF(初期設定!$C23="","",初期設定!$C23) -> 数学 | BI3: =IF(初期設定!$C24="","",初期設定!$C24) -> 英語 | BJ3: =IF(初期設定!$C25="","",初期設定!$C25) -> 社会 | BK3: =IF(初期設定!$C26="","",初期設定!$C26) -> 理科 | BL3: =IF(初期設定!$C22="","",初期設定!$C22) -> 国語 | BM3: =IF(初期設定!$C23="","",初期設定!$C23) -> 数学 | BN3: =IF(初期設定!$C24="","",初期設定!$C24) -> 英語 | BO3: =IF(初期設定!$C25="","",初期設定!$C25) -> 社会 | BP3: =IF(初期設定!$C26="","",初期設定!$C26) -> 理科 | BQ3: =IF(初期設定!$C22="","",初期設定!$C22) -> 国語 | BR3: =IF(初期設定!$C23="","",初期設定!$C23) -> 数学 | BS3: =IF(初期設定!$C24="","",初期設定!$C24) -> 英語 | BT3: =IF(初期設定!$C25="","",初期設定!$C25) -> 社会 | BU3: =IF(初期設定!$C26="","",初期設定!$C26) -> 理科 | BV3: =IF(初期設定!$C22="","",初期設定!$C22) -> 国語 | BW3: =IF(初期設定!$C23="","",初期設定!$C23) -> 数学 | BX3: =IF(初期設定!$C24="","",初期設定!$C24) -> 英語 | BY3: =IF(初期設定!$C25="","",初期設定!$C25) -> 社会 | BZ3: =IF(初期設定!$C26="","",初期設定!$C26) -> 理科 | CA3: =IF(初期設定!$C22="","",初期設定!$C22) -> 国語 | CB3: =IF(初期設定!$C23="","",初期設定!$C23) -> 数学 | CC3: =IF(初期設定!$C24="","",初期設定!$C24) -> 英語 | CD3: =IF(初期設定!$C25="","",初期設定!$C25) -> 社会 | CE3: =IF(初期設定!$C26="","",初期設定!$C26) -> 理科 | CF3: =IF(初期設定!$C22="","",初期設定!$C22) -> 国語 | CG3: =IF(初期設定!$C23="","",初期設定!$C23) -> 数学 | CH3: =IF(初期設定!$C24="","",初期設定!$C24) -> 英語 | CI3: =IF(初期設定!$C25="","",初期設定!$C25) -> 社会 | CJ3: =IF(初期設定!$C26="","",初期設定!$C26) -> 理科 | CK3: =IF(初期設定!$C22="","",初期設定!$C22) -> 国語 | CL3: =IF(初期設定!$C23="","",初期設定!$C23) -> 数学 | CM3: =IF(初期設定!$C24="","",初期設定!$C24) -> 英語 | CN3: =IF(初期設定!$C25="","",初期設定!$C25) -> 社会 | CO3: =IF(初期設定!$C26="","",初期設定!$C26) -> 理科 | CP3: =IF(初期設定!$C22="","",初期設定!$C22) -> 国語 | CQ3: =IF(初期設定!$C23="","",初期設定!$C23) -> 数学 | CR3: =IF(初期設定!$C24="","",初期設定!$C24) -> 英語 | CS3: =IF(初期設定!$C25="","",初期設定!$C25) -> 社会 | CT3: =IF(初期設定!$C26="","",初期設定!$C26) -> 理科
A4: 1 | B4: 1 | C4: 1 | D4: 鈴木A男 | E4: 77 | F4: 3 | G4: 41 | H4: 21 | I4: 88 | N4: 89 | O4: 36 | P4: 58 | Q4: 41 | R4: 92 | S4: 88 | T4: 53 | U4: 89 | V4: 90 | W4: 23 | X4: 89 | Y4: 36 | Z4: 58 | AA4: 41 | AF4: 41 | AG4: 82 | AH4: 89 | AI4: 92 | AJ4: 89 | AK4: 79 | AL4: 41 | BG4: 92 | BH4: 25 | BI4: 79 | BJ4: 44 | BK4: 9 | BL4: 79 | BN4: 24 | BP4: 79 | BR4: 52 | BT4: 79 | BU4: 11 | BV4: 25 | BW4: 79 | BX4: 9 | BY4: 52 | BZ4: 11 | CA4: 35 | CB4: 79 | CC4: 82 | CD4: 9 | CE4: 92 | CF4: 79 | CG4: 79 | CH4: 9 | CI4: 9 | CJ4: 11 | CL4: 79 | CN4: 9
A5: 2 | B5: 1 | C5: 2 | D5: 鈴木B男 | G5: 50 | N5: 38 | T5: 62 | U5: 95 | V5: 67 | W5: 82 | X5: 38 | AH5: 38 | AJ5: 38 | BG5: 91 | BH5: 21 | BI5: 12 | BJ5: 58 | BK5: 54 | BL5: 12 | BM5: 50 | BN5: 54 | BO5: 36 | BP5: 12 | BQ5: 40 | BR5: 50 | BS5: 70 | BT5: 12 | BU5: 60 | BV5: 21 | BW5: 12 | BX5: 54 | BZ5: 60 | CB5: 12 | CD5: 54 | CF5: 12 | CH5: 54 | CI5: 54 | CJ5: 60 | CK5: 50 | CL5: 12 | CM5: 36 | CN5: 54 | CO5: 45
A6: 3 | B6: 1 | C6: 3 | D6: 鈴木C男 | E6: 93 | F6: 41 | G6: 23 | H6: 48 | I6: 53 | N6: 51 | O6: 93 | P6: 41 | Q6: 23 | R6: 48 | S6: 53 | T6: 42 | U6: 92 | V6: 88 | W6: 83 | X6: 51 | Y6: 93 | Z6: 41 | AA6: 23 | AF6: 23 | AG6: 57 | AH6: 51 | AI6: 69 | AJ6: 51 | AK6: 58 | AL6: 23 | BG6: 69 | BH6: 65 | BI6: 58 | BJ6: 58 | BK6: 15 | BL6: 58 | BM6: 60 | BN6: 15 | BO6: 72 | BP6: 58 | BQ6: 80 | BR6: 15 | BS6: 53 | BT6: 58 | BU6: 83 | BV6: 65 | BW6: 58 | BX6: 15 | BY6: 62 | BZ6: 83 | CA6: 68 | CB6: 58 | CC6: 57 | CD6: 15 | CE6: 69 | CF6: 58 | CG6: 58 | CH6: 15 | CI6: 15 | CJ6: 83 | CK6: 60 | CL6: 58 | CM6: 72 | CN6: 15 | CO6: 80
A7: 4 | B7: 1 | C7: 4 | D7: 鈴木D男 | F7: 97 | G7: 27 | H7: 55 | I7: 56 | N7: 13 | O7: 39 | P7: 97 | Q7: 27 | R7: 55 | S7: 56 | T7: 31 | U7: 93 | V7: 31 | W7: 36 | X7: 13 | Y7: 39 | Z7: 97 | AA7: 27 | AF7: 27 | AG7: 49 | AH7: 13 | AI7: 46 | AJ7: 13 | AK7: 78 | AL7: 27 | BG7: 46 | BH7: 82 | BI7: 78 | BJ7: 52 | BK7: 54 | BL7: 78 | BM7: 42 | BN7: 54 | BO7: 56 | BP7: 78 | BQ7: 46 | BR7: 54 | BS7: 18 | BT7: 78 | BU7: 98 | BV7: 82 | BW7: 78 | BX7: 54 | BY7: 58 | BZ7: 98 | CA7: 77 | CB7: 78 | CC7: 49 | CD7: 54 | CE7: 46 | CF7: 78 | CG7: 78 | CH7: 54 | CI7: 54 | CJ7: 98 | CK7: 42 | CL7: 78 | CM7: 56 | CN7: 54 | CO7: 46
A8: 5 | B8: 1 | C8: 5 | D8: 鈴木E男 | E8: 98 | F8: 47 | G8: 98 | H8: 96 | N8: 91 | P8: 47 | Q8: 98 | R8: 96 | T8: 64 | U8: 88 | V8: 64 | W8: 97 | X8: 91 | Z8: 47 | AA8: 98 | AF8: 98 | AG8: 21 | AH8: 91 | AI8: 12 | AJ8: 91 | AK8: 33 | AL8: 98 | BG8: 12 | BH8: 54 | BI8: 33 | BJ8: 56 | BK8: 85 | BL8: 33 | BM8: 19 | BN8: 85 | BO8: 19 | BP8: 33 | BQ8: 82 | BR8: 85 | BS8: 56 | BT8: 33 | BU8: 50 | BV8: 54 | BW8: 33 | BX8: 85 | BY8: 38 | BZ8: 50 | CA8: 98 | CB8: 33 | CC8: 21 | CD8: 85 | CE8: 12 | CF8: 33 | CG8: 33 | CH8: 85 | CI8: 85 | CJ8: 50 | CK8: 19 | CL8: 33 | CM8: 19 | CN8: 85 | CO8: 82
A9: 6 | B9: 1 | C9: 6 | D9: 鈴木F男 | E9: 27 | F9: 14 | G9: 87 | H9: 54 | I9: 71 | N9: 48 | O9: 27 | P9: 14 | Q9: 87 | R9: 54 | S9: 71 | T9: 53 | U9: 14 | V9: 98 | W9: 58 | X9: 48 | Y9: 27 | Z9: 14 | AA9: 87 | AF9: 87 | AG9: 14 | AH9: 48 | AI9: 31 | AJ9: 48 | AK9: 64 | AL9: 87 | BG9: 31 | BH9: 66 | BI9: 64 | BJ9: 96 | BK9: 74 | BL9: 64 | BM9: 66 | BN9: 74 | BO9: 73 | BP9: 64 | BQ9: 12 | BR9: 74 | BS9: 12 | BT9: 64 | BU9: 12 | BV9: 66 | BW9: 64 | BX9: 74 | BY9: 86 | BZ9: 12 | CA9: 69 | CB9: 64 | CC9: 14 | CD9: 74 | CE9: 31 | CF9: 64 | CG9: 64 | CH9: 74 | CI9: 74 | CJ9: 12 | CK9: 66 | CL9: 64 | CM9: 73 | CN9: 74 | CO9: 12
A10: 7 | B10: 2 | C10: 1 | D10: 鈴木G男 | E10: 71 | F10: 38 | G10: 82 | H10: 47 | I10: 63 | N10: 78 | O10: 72 | P10: 38 | Q10: 82 | R10: 47 | S10: 63 | T10: 24 | U10: 62 | V10: 69 | W10: 36 | X10: 78 | Y10: 72 | Z10: 38 | AA10: 82 | AF10: 82 | AG10: 11 | AH10: 78 | AI10: 26 | AJ10: 78 | AK10: 27 | AL10: 82 | BG10: 26 | BH10: 98 | BI10: 27 | BJ10: 52 | BK10: 25 | BL10: 27 | BM10: 94 | BN10: 25 | BO10: 97 | BP10: 27 | BQ10: 35 | BR10: 25 | BS10: 41 | BT10: 27 | BU10: 52 | BV10: 98 | BW10: 27 | BX10: 25 | BY10: 55 | BZ10: 52 | CA10: 72 | CB10: 27 | CC10: 11 | CD10: 25 | CE10: 26 | CF10: 27 | CG10: 27 | CH10: 25 | CI10: 25 | CJ10: 52 | CK10: 94 | CL10: 27 | CM10: 97 | CN10: 25 | CO10: 35
A11: 8 | B11: 2 | C11: 2 | D11: 鈴木H男 | E11: 79 | F11: 52 | G11: 69 | H11: 54 | I11: 10 | N11: 52 | O11: 79 | P11: 52 | Q11: 69 | R11: 54 | S11: 10 | T11: 64 | U11: 21 | V11: 66 | W11: 10 | X11: 52 | Y11: 79 | Z11: 52 | AA11: 69 | AF11: 69 | AG11: 56 | AH11: 52 | AI11: 21 | AJ11: 52 | AK11: 11 | AL11: 69 | BG11: 21 | BH11: 100 | BI11: 11 | BJ11: 74 | BK11: 3 | BL11: 11 | BM11: 95 | BN11: 3 | BO11: 55 | BP11: 11 | BQ11: 25 | BR11: 9 | BS11: 27 | BT11: 11 | BU11: 98 | BV11: 100 | BW11: 11 | BX11: 3 | BY11: 52 | BZ11: 98 | CA11: 86 | CB11: 11 | CC11: 56 | CD11: 3 | CE11: 21 | CF11: 11 | CG11: 11 | CH11: 3 | CI11: 3 | CJ11: 98 | CK11: 95 | CL11: 11 | CM11: 55 | CN11: 3 | CO11: 25
A12: 9 | B12: 2 | C12: 3 | D12: 鈴木I男 | E12: 57 | F12: 93 | G12: 67 | I12: 92 | N12: 93 | O12: 57 | P12: 93 | Q12: 67 | S12: 92 | T12: 59 | U12: 79 | V12: 40 | W12: 69 | X12: 93 | Y12: 57 | Z12: 93 | AA12: 67 | AF12: 67 | AG12: 57 | AH12: 93 | AI12: 64 | AJ12: 93 | AK12: 49 | AL12: 67 | BG12: 64 | BH12: 25 | BI12: 49 | BJ12: 25 | BK12: 48 | BL12: 49 | BM12: 86 | BN12: 48 | BO12: 68 | BP12: 49 | BQ12: 32 | BR12: 48 | BS12: 98 | BT12: 49 | BU12: 74 | BV12: 25 | BW12: 49 | BX12: 48 | BY12: 58 | BZ12: 74 | CA12: 42 | CB12: 49 | CC12: 57 | CD12: 48 | CE12: 64 | CF12: 49 | CG12: 49 | CH12: 48 | CI12: 48 | CJ12: 74 | CK12: 86 | CL12: 49 | CM12: 68 | CN12: 48 | CO12: 32
A13: 10 | B13: 2 | C13: 4 | D13: 鈴木J男 | E13: 29 | F13: 82 | G13: 10 | H13: 39 | I13: 67 | N13: 77 | O13: 29 | P13: 82 | Q13: 10 | R13: 39 | S13: 67 | T13: 85 | U13: 93 | V13: 37 | W13: 33 | X13: 77 | Y13: 29 | Z13: 82 | AA13: 10 | AF13: 10 | AG13: 93 | AH13: 77 | AI13: 23 | AJ13: 77 | AK13: 51 | AL13: 10 | BG13: 23 | BH13: 23 | BI13: 51 | BJ13: 14 | BK13: 85 | BL13: 51 | BM13: 33 | BN13: 85 | BO13: 92 | BP13: 51 | BQ13: 73 | BR13: 85 | BS13: 69 | BT13: 51 | BU13: 75 | BV13: 23 | BW13: 51 | BX13: 85 | BY13: 75 | BZ13: 75 | CA13: 80 | CB13: 51 | CC13: 93 | CD13: 85 | CE13: 23 | CF13: 51 | CG13: 51 | CH13: 85 | CI13: 85 | CJ13: 75 | CK13: 33 | CL13: 51 | CM13: 92 | CN13: 85 | CO13: 73
A14: 11 | B14: 2 | C14: 5 | D14: 鈴木K男 | E14: 45 | F14: 65 | G14: 26 | H14: 89 | I14: 43 | N14: 89 | O14: 45 | P14: 65 | Q14: 26 | R14: 89 | S14: 43 | T14: 81 | U14: 52 | V14: 37 | W14: 95 | X14: 89 | Y14: 45 | Z14: 65 | AA14: 26 | AF14: 26 | AG14: 70 | AH14: 89 | AI14: 85 | AJ14: 89 | AK14: 72 | AL14: 26 | BG14: 85 | BH14: 65 | BI14: 72 | BJ14: 55 | BK14: 74 | BL14: 72 | BM14: 83 | BN14: 74 | BO14: 28 | BP14: 72 | BQ14: 49 | BR14: 74 | BS14: 76 | BT14: 72 | BU14: 31 | BV14: 65 | BW14: 72 | BX14: 74 | BY14: 58 | BZ14: 31 | CA14: 80 | CB14: 72 | CC14: 70 | CD14: 74 | CE14: 85 | CF14: 72 | CG14: 72 | CH14: 74 | CI14: 74 | CJ14: 31 | CK14: 83 | CL14: 72 | CM14: 28 | CN14: 74 | CO14: 49
A15: 12 | B15: 2 | C15: 6 | D15: 鈴木L男 | E15: 59 | F15: 27 | G15: 29 | H15: 47 | I15: 91 | N15: 24 | O15: 59 | P15: 27 | Q15: 29 | R15: 47 | S15: 91 | T15: 93 | U15: 32 | V15: 16 | W15: 89 | X15: 24 | Y15: 59 | Z15: 27 | AA15: 29 | AF15: 29 | AG15: 14 | AH15: 24 | AI15: 33 | AJ15: 24 | AK15: 58 | AL15: 29 | BG15: 33 | BH15: 88 | BI15: 58 | BJ15: 45 | BK15: 2 | BL15: 58 | BM15: 24 | BN15: 2 | BO15: 48 | BP15: 58 | BQ15: 48 | BR15: 75 | BS15: 57 | BT15: 58 | BU15: 52 | BV15: 88 | BW15: 58 | BX15: 2 | BY15: 36 | BZ15: 52 | CA15: 54 | CB15: 58 | CC15: 14 | CD15: 2 | CE15: 33 | CF15: 58 | CG15: 58 | CH15: 2 | CI15: 2 | CJ15: 52 | CK15: 24 | CL15: 58 | CM15: 48 | CN15: 2 | CO15: 48
A16: 13 | B16: 3 | C16: 1 | D16: 鈴木M男 | E16: 75 | F16: 14 | G16: 24 | H16: 96 | I16: 85 | N16: 96 | O16: 75 | P16: 14 | Q16: 24 | R16: 96 | S16: 85 | T16: 26 | U16: 44 | V16: 19 | W16: 90 | X16: 96 | Y16: 75 | Z16: 14 | AA16: 24 | AF16: 24 | AG16: 79 | AH16: 96 | AI16: 30 | AJ16: 96 | AK16: 18 | AL16: 24 | BG16: 30 | BH16: 87 | BI16: 18 | BJ16: 87 | BK16: 65 | BL16: 18 | BM16: 81 | BN16: 65 | BO16: 21 | BP16: 18 | BQ16: 67 | BR16: 65 | BS16: 77 | BT16: 18 | BU16: 22 | BV16: 87 | BW16: 18 | BX16: 65 | BY16: 24 | BZ16: 22 | CA16: 92 | CB16: 18 | CC16: 79 | CD16: 65 | CE16: 30 | CF16: 18 | CG16: 18 | CH16: 65 | CI16: 65 | CJ16: 22 | CK16: 81 | CL16: 18 | CM16: 21 | CN16: 65 | CO16: 67
A17: 14 | B17: 3 | C17: 2 | D17: 鈴木N男 | E17: 29 | F17: 67 | G17: 21 | H17: 83 | I17: 49 | N17: 60 | O17: 29 | P17: 67 | Q17: 21 | R17: 83 | S17: 49 | T17: 41 | U17: 53 | V17: 94 | W17: 39 | X17: 60 | Y17: 29 | Z17: 67 | AA17: 21 | AF17: 21 | AG17: 65 | AH17: 60 | AI17: 57 | AJ17: 60 | AK17: 16 | AL17: 21 | BG17: 57 | BH17: 74 | BI17: 16 | BJ17: 54 | BK17: 85 | BL17: 16 | BM17: 83 | BN17: 85 | BO17: 94 | BP17: 16 | BQ17: 46 | BR17: 85 | BS17: 35 | BT17: 16 | BU17: 54 | BV17: 74 | BW17: 16 | BX17: 85 | BY17: 60 | BZ17: 54 | CA17: 92 | CB17: 16 | CC17: 65 | CD17: 85 | CE17: 57 | CF17: 16 | CG17: 16 | CH17: 85 | CI17: 85 | CJ17: 54 | CK17: 83 | CL17: 16 | CM17: 94 | CN17: 85 | CO17: 46
A18: 15 | B18: 3 | C18: 3 | D18: 鈴木O男 | E18: 86 | F18: 68 | G18: 97 | H18: 12 | I18: 60 | N18: 99 | O18: 86 | P18: 68 | Q18: 97 | R18: 12 | S18: 60 | T18: 22 | U18: 87 | V18: 90 | W18: 75 | X18: 99 | Y18: 86 | Z18: 68 | AA18: 97 | AF18: 97 | AG18: 80 | AH18: 99 | AI18: 30 | AJ18: 99 | AK18: 41 | AL18: 97 | BG18: 30 | BH18: 44 | BI18: 41 | BJ18: 54 | BK18: 24 | BL18: 41 | BM18: 33 | BN18: 24 | BO18: 93 | BP18: 41 | BQ18: 17 | BR18: 24 | BS18: 35 | BT18: 41 | BU18: 19 | BV18: 44 | BW18: 41 | BX18: 24 | BY18: 40 | BZ18: 19 | CA18: 38 | CB18: 41 | CC18: 80 | CD18: 24 | CE18: 30 | CF18: 41 | CG18: 41 | CH18: 24 | CI18: 24 | CJ18: 19 | CK18: 33 | CL18: 41 | CM18: 93 | CN18: 24 | CO18: 17
A19: 16 | B19: 3 | C19: 4 | D19: 鈴木P男 | E19: 15 | F19: 82 | G19: 67 | H19: 45 | I19: 80 | N19: 46 | O19: 15 | P19: 82 | Q19: 67 | R19: 45 | S19: 80 | T19: 43 | U19: 27 | V19: 20 | W19: 82 | X19: 46 | Y19: 15 | Z19: 82 | AA19: 67 | AF19: 67 | AG19: 81 | AH19: 46 | AI19: 84 | AJ19: 46 | AK19: 35 | AL19: 67 | BG19: 84 | BH19: 51 | BI19: 35 | BJ19: 54 | BK19: 12 | BL19: 35 | BM19: 82 | BN19: 12 | BO19: 26 | BP19: 35 | BQ19: 57 | BR19: 12 | BS19: 87 | BT19: 35 | BU19: 29 | BV19: 51 | BW19: 35 | BX19: 12 | BY19: 42 | BZ19: 29 | CA19: 37 | CB19: 35 | CC19: 81 | CD19: 12 | CE19: 84 | CF19: 35 | CG19: 35 | CH19: 12 | CI19: 12 | CJ19: 29 | CK19: 82 | CL19: 35 | CM19: 26 | CN19: 12 | CO19: 57
A20: 17 | B20: 3 | C20: 5 | D20: 鈴木Q男 | E20: 83 | F20: 52 | G20: 80 | H20: 90 | I20: 18 | N20: 76 | O20: 83 | P20: 52 | Q20: 80 | R20: 90 | S20: 18 | T20: 60 | U20: 51 | V20: 86 | W20: 57 | X20: 76 | Y20: 83 | Z20: 52 | AA20: 80 | AF20: 80 | AG20: 63 | AH20: 76 | AI20: 59 | AJ20: 76 | AK20: 25 | AL20: 80 | BG20: 59 | BH20: 15 | BI20: 25 | BJ20: 85 | BK20: 32 | BL20: 25 | BM20: 29 | BN20: 32 | BO20: 47 | BP20: 25 | BQ20: 48 | BR20: 32 | BS20: 21 | BT20: 25 | BU20: 99 | BV20: 15 | BW20: 25 | BX20: 32 | BY20: 80 | BZ20: 99 | CA20: 40 | CB20: 25 | CC20: 63 | CD20: 32 | CE20: 59 | CF20: 25 | CG20: 25 | CH20: 32 | CI20: 32 | CJ20: 99 | CK20: 29 | CL20: 25 | CM20: 47 | CN20: 32 | CO20: 48
A21: 18 | B21: 3 | C21: 6 | D21: 鈴木R男 | E21: 37 | F21: 94 | G21: 88 | H21: 70 | I21: 27 | N21: 94 | O21: 37 | P21: 94 | Q21: 88 | R21: 70 | S21: 27 | T21: 31 | U21: 82 | V21: 38 | W21: 48 | X21: 94 | Y21: 37 | Z21: 94 | AA21: 88 | AF21: 88 | AG21: 61 | AH21: 94 | AI21: 78 | AJ21: 94 | AK21: 36 | AL21: 88 | BH21: 54 | BI21: 36 | BJ21: 64 | BK21: 45 | BL21: 36 | BM21: 79 | BN21: 45 | BO21: 61 | BP21: 36 | BQ21: 31 | BR21: 45 | BS21: 39 | BT21: 36 | BU21: 42 | BV21: 54 | BW21: 36 | BX21: 45 | BY21: 85 | BZ21: 42 | CA21: 28 | CB21: 36 | CC21: 61 | CD21: 45 | CE21: 78 | CF21: 36 | CG21: 36 | CH21: 45 | CI21: 45 | CJ21: 42 | CK21: 79 | CL21: 36 | CM21: 61 | CN21: 45 | CO21: 31
A22: 19 | B22: 3 | C22: 7 | D22: 鈴木S男 | E22: 80 | F22: 40 | G22: 36 | H22: 75 | I22: 90 | O22: 80 | P22: 40 | Q22: 36 | R22: 75 | S22: 90 | T22: 74 | U22: 60 | V22: 23 | W22: 70 | X22: 97 | Y22: 80 | Z22: 40 | AA22: 36 | AF22: 36 | AG22: 76 | AH22: 97 | AI22: 27 | AJ22: 97 | AK22: 46 | AL22: 36 | BG22: 27 | BH22: 25 | BI22: 46 | BJ22: 21 | BK22: 21 | BL22: 46 | BM22: 84 | BN22: 21 | BO22: 81 | BP22: 46 | BQ22: 68 | BR22: 21 | BS22: 83 | BT22: 46 | BU22: 49 | BV22: 25 | BW22: 46 | BX22: 21 | BY22: 75 | BZ22: 49 | CA22: 92 | CB22: 46 | CC22: 76 | CD22: 21 | CE22: 27 | CF22: 46 | CG22: 46 | CH22: 21 | CI22: 21 | CJ22: 49 | CK22: 84 | CL22: 46 | CM22: 81 | CN22: 21 | CO22: 68
A23: 20 | B23: 3 | C23: 8 | D23: 鈴木T男 | E23: 94 | F23: 29 | G23: 41 | H23: 79 | I23: 36 | N23: 54 | O23: 94 | P23: 29 | Q23: 41 | R23: 79 | S23: 36 | T23: 33 | U23: 42 | V23: 39 | W23: 58 | X23: 46 | Y23: 94 | Z23: 29 | AA23: 41 | AF23: 41 | AG23: 45 | AH23: 46 | AI23: 23 | AJ23: 46 | AK23: 45 | AL23: 41 | BG23: 23 | BH23: 21 | BI23: 45 | BJ23: 11 | BK23: 66 | BL23: 45 | BM23: 99 | BN23: 66 | BO23: 55 | BP23: 45 | BQ23: 55 | BR23: 66 | BS23: 57 | BT23: 45 | BU23: 11 | BV23: 21 | BW23: 45 | BX23: 66 | BY23: 75 | BZ23: 11 | CA23: 41 | CB23: 45 | CC23: 45 | CD23: 66 | CE23: 23 | CF23: 45 | CG23: 45 | CH23: 66 | CI23: 66 | CJ23: 11 | CK23: 99 | CL23: 45 | CM23: 55 | CN23: 66 | CO23: 55
A24: 21
A25: 22
A26: 23
A27: 24
A28: 25
A29: 26
A30: 27
A31: 28
A32: 29
A33: 30
A34: 31
A35: 32
A36: 33
A37: 34
A38: 35
A39: 36
A40: 37
A41: 38
A42: 39
A43: 40
A44: 41
A45: 42
A46: 43
A47: 44
A48: 45
A49: 46
A50: 47
A51: 48
A52: 49
A53: 50
A54: 51
A55: 52
A56: 53
A57: 54
A58: 55
A59: 56
A60: 57
A61: 58
A62: 59
A63: 60
A64: 61
A65: 62
A66: 63
A67: 64
A68: 65
A69: 66
A70: 67
A71: 68
A72: 69
A73: 70
A74: 71
A75: 72
A76: 73
A77: 74
A78: 75
A79: 76
A80: 77
A81: 78
A82: 79
A83: 80
A84: 81
A85: 82
A86: 83
A87: 84
A88: 85
A89: 86
A90: 87
A91: 88
A92: 89
A93: 90
A94: 91
A95: 92
A96: 93
A97: 94
A98: 95
A99: 96
A100: 97
A101: 98
A102: 99
A103: 100
A104: 101
A105: 102
A106: 103
A107: 104
A108: 105
A109: 106
A110: 107
A111: 108
A112: 109
A113: 110
A114: 111
A115: 112
A116: 113
A117: 114
A118: 115
A119: 116
A120: 117
A121: 118
A122: 119
A123: 120
A124: 121
A125: 122
A126: 123
A127: 124
A128: 125
A129: 126
A130: 127
A131: 128
A132: 129
A133: 130
A134: 131
A135: 132
A136: 133
A137: 134
A138: 135
A139: 136
A140: 137
A141: 138
A142: 139
A143: 140
A144: 141
A145: 142
A146: 143
A147: 144
A148: 145
A149: 146
A150: 147
A151: 148
A152: 149
A153: 150
A154: 151
A155: 152
A156: 153
A157: 154
A158: 155
A159: 156
A160: 157
A161: 158
A162: 159
A163: 160
A164: 161
A165: 162
A166: 163
A167: 164
A168: 165
A169: 166
A170: 167
A171: 168
A172: 169
A173: 170
A174: 171
A175: 172
A176: 173
A177: 174
A178: 175
A179: 176
A180: 177
A181: 178
A182: 179
A183: 180
A184: 181
A185: 182
A186: 183
A187: 184
A188: 185
A189: 186
A190: 187
A191: 188
A192: 189
A193: 190
A194: 191
A195: 192
A196: 193
A197: 194
A198: 195
A199: 196
A200: 197
... 303 more rows

Sheet 成績表1
B1: =IF(初期設定!C2="","",初期設定!C2) -> 20xx年 | E1: ID: | F1: 4 | Q1: =初期設定!C1 -> 微風中学校
B2: 1学期 期末テスト | K2: 学年 | M2: クラス | O2: 番号 | Q2: 氏名
K3: =IF(初期設定!$C3="","",初期設定!$C3) -> 3学年 | M3: =VLOOKUP($F$1,INDIRECT("テストデータ!$A$4:$CT$503"),2,FALSE) -> 1 | O3: =VLOOKUP($F$1,INDIRECT("テストデータ!$A$4:$CT$503"),3,FALSE) -> 4 | Q3: =VLOOKUP($F$1,INDIRECT("テストデータ!$A$4:$CT$503"),4,FALSE) -> 鈴木D男
B4: =VLOOKUP($B$2,初期設定!$C$14:$D$19,2,FALSE) -> 2
E5: =IF(初期設定!$C$5="","",初期設定!$C$5) -> 国語 | F5: =IF(初期設定!$C$6="","",初期設定!$C$6) -> 数学 | G5: =IF(初期設定!$C$7="","",初期設定!$C$7) -> 英語 | H5: =IF(初期設定!$C$8="","",初期設定!$C$8) -> 社会 | I5: =IF(初期設定!$C$9="","",初期設定!$C$9) -> 理科 | J5: =IF(初期設定!$C$10="","",初期設定!$C$10) -> 保体 | K5: =IF(初期設定!$C$11="","",初期設定!$C$11) -> 技家 | L5: =IF(初期設定!$C$12="","",初期設定!$C$12) -> 美術 | M5: =IF(初期設定!$C$13="","",初期設定!$C$13) -> 音楽
C6: 得点 | E6: =IF(VLOOKUP($F$1,INDIRECT("テストデータ!$A$4:$CT$503"),9*$B$4-4,FALSE)="","-",VLOOKUP($F$1,INDIRECT("テストデータ!$A$4:$CT$503"),9*$B$4-4,FALSE)) -> 13 | F6: =IF(VLOOKUP($F$1,INDIRECT("テストデータ!$A$4:$CT$503"),9*$B$4-3,FALSE)="","-",VLOOKUP($F$1,INDIRECT("テストデータ!$A$4:$CT$503"),9*$B$4-3,FALSE)) -> 39 | G6: =IF(VLOOKUP($F$1,INDIRECT("テストデータ!$A$4:$CT$503"),9*$B$4-2,FALSE)="","-",VLOOKUP($F$1,INDIRECT("テストデータ!$A$4:$CT$503"),9*$B$4-2,FALSE)) -> 97 | H6: =IF(VLOOKUP($F$1,INDIRECT("テストデータ!$A$4:$CT$503"),9*$B$4-1,FALSE)="","-",VLOOKUP($F$1,INDIRECT("テストデータ!$A$4:$CT$503"),9*$B$4-1,FALSE)) -> 27 | I6: =IF(VLOOKUP($F$1,INDIRECT("テストデータ!$A$4:$CT$503"),9*$B$4,FALSE)="","-",VLOOKUP($F$1,INDIRECT("テストデータ!$A$4:$CT$503"),9*$B$4,FALSE)) -> 55 | J6: =IF(VLOOKUP($F$1,INDIRECT("テストデータ!$A$4:$CT$503"),9*$B$4+1,FALSE)="","-",VLOOKUP($F$1,INDIRECT("テストデータ!$A$4:$CT$503"),9*$B$4+1,FALSE)) -> 56 | K6: =IF(VLOOKUP($F$1,INDIRECT("テストデータ!$A$4:$CT$503"),9*$B$4+2,FALSE)="","-",VLOOKUP($F$1,INDIRECT("テストデータ!$A$4:$CT$503"),9*$B$4+2,FALSE)) -> 31
C7: 平均点 | E7: =IF(SUM((OFFSET(テストデータ!$E$3,1,9*$B$4-9):OFFSET(テストデータ!$E$3,500,9*$B4-9)))=0,NA(),AVERAGEA(OFFSET(テストデータ!$E$3,1,9*$B$4-9):OFFSET(テストデータ!$E$3,500,9*$B4-9))) -> 66.73684211 | F7: =IF(SUM(OFFSET(テストデータ!$E$3,1,9*$B$4-8):OFFSET(テストデータ!$E$3,500,9*$B4-8))=0,NA(),AVERAGEA(OFFSET(テストデータ!$E$3,1,9*$B$4-8):OFFSET(テストデータ!$E$3,500,9*$B4-8))) -> 57.5 | G7: =IF(SUM(OFFSET(テストデータ!$E$3,1,9*$B$4-7):OFFSET(テストデータ!$E$3,500,9*$B4-7))=0,NA(),AVERAGEA(OFFSET(テストデータ!$E$3,1,9*$B$4-7):OFFSET(テストデータ!$E$3,500,9*$B4-7))) -> 55.78947368 | H7: =IF(SUM(OFFSET(テストデータ!$E$3,1,9*$B$4-6):OFFSET(テストデータ!$E$3,500,9*$B4-6))=0,NA(),AVERAGEA(OFFSET(テストデータ!$E$3,1,9*$B$4-6):OFFSET(テストデータ!$E$3,500,9*$B4-6))) -> 53.31578947 | I7: =IF(SUM(OFFSET(テストデータ!$E$3,1,9*$B$4-5):OFFSET(テストデータ!$E$3,500,9*$B4-5))=0,NA(),AVERAGEA(OFFSET(テストデータ!$E$3,1,9*$B$4-5):OFFSET(テストデータ!$E$3,500,9*$B4-5))) -> 65.05555556 | J7: =AVERAGEA(OFFSET(テストデータ!$E$3,1,9*$B$4-4):OFFSET(テストデータ!$E$3,500,9*$B4-4)) -> 59.94444444 | K7: =AVERAGEA(OFFSET(テストデータ!$E$3,1,9*$B$4-3):OFFSET(テストデータ!$E$3,500,9*$B4-3)) -> 52.05
C8: クラス順位 | E8: =IF(E6="-","",SUMPRODUCT((OFFSET(テストデータ!$B$3,1,0):OFFSET(テストデータ!$B$3,500,0)=$M$3)*(OFFSET(テストデータ!$E$3,1,9*$B$4-9):OFFSET(テストデータ!$E$3,500,9*$B$4-9)>E6))+1) -> 6 | F8: =IF(F6="-","",SUMPRODUCT((OFFSET(テストデータ!$B$3,1,0):OFFSET(テストデータ!$B$3,500,0)=$M$3)*(OFFSET(テストデータ!$E$3,1,9*$B$4-8):OFFSET(テストデータ!$E$3,500,9*$B$4-8)>F6))+1) -> 2 | G8: =IF(G6="-","",SUMPRODUCT((OFFSET(テストデータ!$B$3,1,0):OFFSET(テストデータ!$B$3,500,0)=$M$3)*(OFFSET(テストデータ!$E$3,1,9*$B$4-7):OFFSET(テストデータ!$E$3,500,9*$B$4-7)>G6))+1) -> 1 | H8: =IF(H6="-","",SUMPRODUCT((OFFSET(テストデータ!$B$3,1,0):OFFSET(テストデータ!$B$3,500,0)=$M$3)*(OFFSET(テストデータ!$E$3,1,9*$B$4-6):OFFSET(テストデータ!$E$3,500,9*$B$4-6)>H6))+1) -> 4 | I8: =IF(I6="-","",SUMPRODUCT((OFFSET(テストデータ!$B$3,1,0):OFFSET(テストデータ!$B$3,500,0)=$M$3)*(OFFSET(テストデータ!$E$3,1,9*$B$4-5):OFFSET(テストデータ!$E$3,500,9*$B$4-5)>I6))+1) -> 3 | J8: =IF(J6="-","",SUMPRODUCT((OFFSET(テストデータ!$B$3,1,0):OFFSET(テストデータ!$B$3,500,0)=$M$3)*(OFFSET(テストデータ!$E$3,1,9*$B$4-4):OFFSET(テストデータ!$E$3,500,9*$B$4-4)>J6))+1) -> 3 | K8: =IF(K6="-","",SUMPRODUCT((OFFSET(テストデータ!$B$3,1,0):OFFSET(テストデータ!$B$3,500,0)=$M$3)*(OFFSET(テストデータ!$E$3,1,9*$B$4-3):OFFSET(テストデータ!$E$3,500,9*$B$4-3)>K6))+1) -> 6
C9: 校内順位 | E9: =RANK(E6,OFFSET(テストデータ!$E$3,1,9*$B$4-9):OFFSET(テストデータ!$E$3,500,9*$B$4-9)) -> 19 | F9: =RANK(F6,OFFSET(テストデータ!$E$3,1,9*$B$4-8):OFFSET(テストデータ!$E$3,500,9*$B$4-8)) -> 12 | G9: =RANK(G6,OFFSET(テストデータ!$E$3,1,9*$B$4-7):OFFSET(テストデータ!$E$3,500,9*$B$4-7)) -> 1 | H9: =RANK(H6,OFFSET(テストデータ!$E$3,1,9*$B$4-6):OFFSET(テストデータ!$E$3,500,9*$B$4-6)) -> 14 | I9: =RANK(I6,OFFSET(テストデータ!$E$3,1,9*$B$4-5):OFFSET(テストデータ!$E$3,500,9*$B$4-5)) -> 10 | J9: =RANK(J6,OFFSET(テストデータ!$E$3,1,9*$B$4-4):OFFSET(テストデータ!$E$3,500,9*$B$4-4)) -> 11 | K9: =RANK(K6,OFFSET(テストデータ!$E$3,1,9*$B$4-3):OFFSET(テストデータ!$E$3,500,9*$B$4-3)) -> 16
E11: 得点 | G11: 平均点 | I11: クラス順位 | K11: 校内順位
C12: 3科目 | E12: =IF(SUM($E$6:$G$6)=0,"",SUM($E$6:$G$6)) -> 149 | G12: =AVERAGEIF(初期設定!$N$3:$N$502,"<>0") -> 168.15 | I12: =IF(E12="","",(SUMPRODUCT((INDIRECT("テストデータ!$B$4"):INDIRECT("テストデータ!$B$503")=$M$3)*((初期設定!$N$3:'初期設定'!$N$502)>E12))+1&" 位")) -> 3 位 | K12: =COUNTIF(初期設定!$N$3:$N$502,"<>0")&" 人中 "&RANK($E$12,初期設定!$N$3:$N$502)&" 位" -> 20 人中 14 位
C14: 5科目 | E14: =IF(SUM($E$6:$I$6)=0,"",SUM($E$6:$I$6)) -> 231 | G14: =AVERAGEIF(初期設定!$O$3:$O$502,"<>0") -> 277.35 | I14: =IF(E14="","",SUMPRODUCT((INDIRECT("テストデータ!$B$4"):INDIRECT("テストデータ!$B$503")=$M$3)*((初期設定!$O$3:'初期設定'!$O$502)>E14))+1&" 位") -> 4 位 | K14: =COUNTIF(初期設定!$O$3:$O$502,"<>0")& "人中 "&RANK($E$14,初期設定!$O$3:$O$502)&" 位" -> 20人中 16 位
C18: テスト名 | G18: =IF(初期設定!$C$5="","",初期設定!$C$5) -> 国語 | H18: =IF(初期設定!$C$6="","",初期設定!$C$6) -> 数学 | I18: =IF(初期設定!$C$7="","",初期設定!$C$7) -> 英語 | J18: =IF(初期設定!$C$8="","",初期設定!$C$8) -> 社会 | K18: =IF(初期設定!$C$9="","",初期設定!$C$9) -> 理科 | L18: 3科 | M18: 5科
C19: =IF(初期設定!$C14="","",初期設定!$C14) -> 1学期 中間テスト | F19: 得点 | G19: =NA() ->  | H19: =NA() ->  | I19: =NA() ->  | J19: =NA() ->  | K19: =NA() ->  | L19: =NA() ->  | M19: =NA() -> 
F20: 平均 | G20: =NA() ->  | H20: =NA() ->  | I20: =NA() ->  | J20: =NA() ->  | K20: =NA() ->  | L20: =NA() ->  | M20: =NA() -> 
C21: =IF(初期設定!$C15="","",初期設定!$C15) -> 1学期 期末テスト | F21: 得点 | G21: =IF(VLOOKUP($F$1,INDIRECT("テストデータ!$A$4:$CT$503"),9*2-4,FALSE)="","",VLOOKUP($F$1,INDIRECT("テストデータ!$A$4:$CT$503"),9*2-4,FALSE)) -> 13 | H21: =IF(VLOOKUP($F$1,INDIRECT("テストデータ!$A$4:$CT$503"),9*2-3,FALSE)="","",VLOOKUP($F$1,INDIRECT("テストデータ!$A$4:$CT$503"),9*2-3,FALSE)) -> 39 | I21: =IF(VLOOKUP($F$1,INDIRECT("テストデータ!$A$4:$CT$503"),9*2-2,FALSE)="","",VLOOKUP($F$1,INDIRECT("テストデータ!$A$4:$CT$503"),9*2-2,FALSE)) -> 97 | J21: =IF(VLOOKUP($F$1,INDIRECT("テストデータ!$A$4:$CT$503"),9*2-1,FALSE)="","",VLOOKUP($F$1,INDIRECT("テストデータ!$A$4:$CT$503"),9*2-1,FALSE)) -> 27 | K21: =IF(VLOOKUP($F$1,INDIRECT("テストデータ!$A$4:$CT$503"),9*2,FALSE)="","",VLOOKUP($F$1,INDIRECT("テストデータ!$A$4:$CT$503"),9*2,FALSE)) -> 55 | L21: =IF(SUM($G21:$I21)=0,NA(),SUM($G21:$I21)) -> 149 | M21: =IF(SUM($G21:$K21)=0,NA(),SUM($G21:$K21)) -> 231
F22: 平均 | G22: =AVERAGEA(OFFSET(テストデータ!$E$3,1,9*2-9):OFFSET(テストデータ!$E$3,500,9*2-9)) -> 66.73684211 | H22: =AVERAGEA(OFFSET(テストデータ!$E$3,1,9*2-8):OFFSET(テストデータ!$E$3,500,9*2-8)) -> 57.5 | I22: =AVERAGEA(OFFSET(テストデータ!$E$3,1,9*2-7):OFFSET(テストデータ!$E$3,500,9*2-7)) -> 55.78947368 | J22: =AVERAGEA(OFFSET(テストデータ!$E$3,1,9*2-6):OFFSET(テストデータ!$E$3,500,9*2-6)) -> 53.31578947 | K22: =AVERAGEA(OFFSET(テストデータ!$E$3,1,9*2-5):OFFSET(テストデータ!$E$3,500,9*2-5)) -> 65.05555556 | L22: =IF(SUM(初期設定!$R$3:$R$502)=0,NA(),AVERAGEIF(初期設定!$R$3:$R$502,"<>0")) -> 168.15 | M22: =IF(SUM(初期設定!$S$3:$S$502)=0,NA(),AVERAGEIF(初期設定!$S$3:$S$502,"<>0")) -> 277.35
C23: =IF(初期設定!$C16="","",初期設定!$C16) -> 2学期 中間テスト | F23: 得点 | G23: =IF(VLOOKUP($F$1,INDIRECT("テストデータ!$A$4:$CT$503"),9*3-4,FALSE)="","",VLOOKUP($F$1,INDIRECT("テストデータ!$A$4:$CT$503"),9*3-4,FALSE)) -> 36 | H23: =IF(VLOOKUP($F$1,INDIRECT("テストデータ!$A$4:$CT$503"),9*3-3,FALSE)="","",VLOOKUP($F$1,INDIRECT("テストデータ!$A$4:$CT$503"),9*3-3,FALSE)) -> 13 | I23: =IF(VLOOKUP($F$1,INDIRECT("テストデータ!$A$4:$CT$503"),9*3-2,FALSE)="","",VLOOKUP($F$1,INDIRECT("テストデータ!$A$4:$CT$503"),9*3-2,FALSE)) -> 39 | J23: =IF(VLOOKUP($F$1,INDIRECT("テストデータ!$A$4:$CT$503"),9*3-1,FALSE)="","",VLOOKUP($F$1,INDIRECT("テストデータ!$A$4:$CT$503"),9*3-1,FALSE)) -> 97 | K23: =IF(VLOOKUP($F$1,INDIRECT("テストデータ!$A$4:$CT$503"),9*3,FALSE)="","",VLOOKUP($F$1,INDIRECT("テストデータ!$A$4:$CT$503"),9*3,FALSE)) -> 27 | L23: =IF(SUM($G23:$I23)=0,NA(),SUM($G23:$I23)) -> 88 | M23: =IF(SUM($G23:$K23)=0,NA(),SUM($G23:$K23)) -> 212
F24: 平均 | G24: =AVERAGEA(OFFSET(テストデータ!$E$3,1,9*3-9):OFFSET(テストデータ!$E$3,500,9*3-9)) -> 61.5 | H24: =AVERAGEA(OFFSET(テストデータ!$E$3,1,9*3-8):OFFSET(テストデータ!$E$3,500,9*3-8)) -> 67.85 | I24: =AVERAGEA(OFFSET(テストデータ!$E$3,1,9*3-7):OFFSET(テストデータ!$E$3,500,9*3-7)) -> 57.5 | J24: =AVERAGEA(OFFSET(テストデータ!$E$3,1,9*3-6):OFFSET(テストデータ!$E$3,500,9*3-6)) -> 55.78947368 | K24: =AVERAGEA(OFFSET(テストデータ!$E$3,1,9*3-5):OFFSET(テストデータ!$E$3,500,9*3-5)) -> 53.31578947 | L24: =IF(SUM(初期設定!$T$3:$T$502)=0,NA(),AVERAGEIF(初期設定!$T$3:$T$502,"<>0")) -> 181.1 | M24: =IF(SUM(初期設定!$U$3:$U$502)=0,NA(),AVERAGEIF(初期設定!$U$3:$U$502,"<>0")) -> 284.75
C25: =IF(初期設定!$C17="","",初期設定!$C17) -> 2学期 期末テスト | F25: 得点 | G25: =IF(VLOOKUP($F$1,INDIRECT("テストデータ!$A$4:$CT$503"),9*4-4,FALSE)="","",VLOOKUP($F$1,INDIRECT("テストデータ!$A$4:$CT$503"),9*4-4,FALSE)) -> 27 | H25: =IF(VLOOKUP($F$1,INDIRECT("テストデータ!$A$4:$CT$503"),9*4-3,FALSE)="","",VLOOKUP($F$1,INDIRECT("テストデータ!$A$4:$CT$503"),9*4-3,FALSE)) -> 49 | I25: =IF(VLOOKUP($F$1,INDIRECT("テストデータ!$A$4:$CT$503"),9*4-2,FALSE)="","",VLOOKUP($F$1,INDIRECT("テストデータ!$A$4:$CT$503"),9*4-2,FALSE)) -> 13 | J25: =IF(VLOOKUP($F$1,INDIRECT("テストデータ!$A$4:$CT$503"),9*4-1,FALSE)="","",VLOOKUP($F$1,INDIRECT("テストデータ!$A$4:$CT$503"),9*4-1,FALSE)) -> 46 | K25: =IF(VLOOKUP($F$1,INDIRECT("テストデータ!$A$4:$CT$503"),9*4,FALSE)="","",VLOOKUP($F$1,INDIRECT("テストデータ!$A$4:$CT$503"),9*4,FALSE)) -> 13 | L25: =IF(SUM($G25:$I25)=0,NA(),SUM($G25:$I25)) -> 89 | M25: =IF(SUM($G25:$K25)=0,NA(),SUM($G25:$K25)) -> 148
F26: 平均 | G26: =AVERAGEA(OFFSET(テストデータ!$E$3,1,9*4-9):OFFSET(テストデータ!$E$3,500,9*4-9)) -> 53.31578947 | H26: =AVERAGEA(OFFSET(テストデータ!$E$3,1,9*4-8):OFFSET(テストデータ!$E$3,500,9*4-8)) -> 56.52631579 | I26: =AVERAGEA(OFFSET(テストデータ!$E$3,1,9*4-7):OFFSET(テストデータ!$E$3,500,9*4-7)) -> 67.85 | J26: =AVERAGEA(OFFSET(テストデータ!$E$3,1,9*4-6):OFFSET(テストデータ!$E$3,500,9*4-6)) -> 46.84210526 | K26: =AVERAGEA(OFFSET(テストデータ!$E$3,1,9*4-5):OFFSET(テストデータ!$E$3,500,9*4-5)) -> 67.85 | L26: =IF(SUM(初期設定!$V$3:$V$502)=0,NA(),AVERAGEIF(初期設定!$V$3:$V$502,"<>0")) -> 172.2 | M26: =IF(SUM(初期設定!$W$3:$W$502)=0,NA(),AVERAGEIF(初期設定!$W$3:$W$502,"<>0")) -> 284.55
C27: =IF(初期設定!$C18="","",初期設定!$C18) -> 3学期 期末テスト | F27: 得点 | G27: =IF(VLOOKUP($F$1,INDIRECT("テストデータ!$A$4:$CT$503"),9*5-4,FALSE)="","",VLOOKUP($F$1,INDIRECT("テストデータ!$A$4:$CT$503"),9*5-4,FALSE)) ->  | H27: =IF(VLOOKUP($F$1,INDIRECT("テストデータ!$A$4:$CT$503"),9*5-3,FALSE)="","",VLOOKUP($F$1,INDIRECT("テストデータ!$A$4:$CT$503"),9*5-3,FALSE)) ->  | I27: =IF(VLOOKUP($F$1,INDIRECT("テストデータ!$A$4:$CT$503"),9*5-2,FALSE)="","",VLOOKUP($F$1,INDIRECT("テストデータ!$A$4:$CT$503"),9*5-2,FALSE)) ->  | J27: =IF(VLOOKUP($F$1,INDIRECT("テストデータ!$A$4:$CT$503"),9*5-1,FALSE)="","",VLOOKUP($F$1,INDIRECT("テストデータ!$A$4:$CT$503"),9*5-1,FALSE)) ->  | K27: =IF(VLOOKUP($F$1,INDIRECT("テストデータ!$A$4:$CT$503"),9*5,FALSE)="","",VLOOKUP($F$1,INDIRECT("テストデータ!$A$4:$CT$503"),9*5,FALSE)) ->  | L27: =IF(SUM($G27:$I27)=0,NA(),SUM($G27:$I27)) ->  | M27: =IF(SUM($G27:$K27)=0,NA(),SUM($G27:$K27)) -> 
F28: 平均 | G28: =AVERAGEA(OFFSET(テストデータ!$E$3,1,9*5-9):OFFSET(テストデータ!$E$3,500,9*5-9)) ->  | H28: =AVERAGEA(OFFSET(テストデータ!$E$3,1,9*5-8):OFFSET(テストデータ!$E$3,500,9*5-8)) ->  | I28: =AVERAGEA(OFFSET(テストデータ!$E$3,1,9*5-7):OFFSET(テストデータ!$E$3,500,9*5-7)) ->  | J28: =AVERAGEA(OFFSET(テストデータ!$E$3,1,9*5-6):OFFSET(テストデータ!$E$3,500,9*5-6)) ->  | K28: =AVERAGEA(OFFSET(テストデータ!$E$3,1,9*5-5):OFFSET(テストデータ!$E$3,500,9*5-5)) ->  | L28: =IF(SUM(初期設定!$X$3:$X$502)=0,NA(),AVERAGEIF(初期設定!$X$3:$X$502,"<>0")) ->  | M28: =IF(SUM(初期設定!$Y$3:$Y$502)=0,NA(),AVERAGEIF(初期設定!$Y$3:$Y$502,"<>0")) -> 
C29: =IF(初期設定!$C19="","",初期設定!$C19) ->  | F29: 得点 | G29: =IF(VLOOKUP($F$1,INDIRECT("テストデータ!$A$4:$CT$503"),9*6-4,FALSE)="","",VLOOKUP($F$1,INDIRECT("テストデータ!$A$4:$CT$503"),9*6-4,FALSE)) ->  | H29: =IF(VLOOKUP($F$1,INDIRECT("テストデータ!$A$4:$CT$503"),9*6-3,FALSE)="","",VLOOKUP($F$1,INDIRECT("テストデータ!$A$4:$CT$503"),9*6-3,FALSE)) ->  | I29: =IF(VLOOKUP($F$1,INDIRECT("テストデータ!$A$4:$CT$503"),9*6-2,FALSE)="","",VLOOKUP($F$1,INDIRECT("テストデータ!$A$4:$CT$503"),9*6-2,FALSE)) ->  | J29: =IF(VLOOKUP($F$1,INDIRECT("テストデータ!$A$4:$CT$503"),9*6-1,FALSE)="","",VLOOKUP($F$1,INDIRECT("テストデータ!$A$4:$CT$503"),9*6-1,FALSE)) ->  | K29: =IF(VLOOKUP($F$1,INDIRECT("テストデータ!$A$4:$CT$503"),9*6,FALSE)="","",VLOOKUP($F$1,INDIRECT("テストデータ!$A$4:$CT$503"),9*6,FALSE)) ->  | L29: =IF(SUM($G29:$I29)=0,NA(),SUM($G29:$I29)) ->  | M29: =IF(SUM($G29:$K29)=0,NA(),SUM($G29:$K29)) -> 
F30: 平均 | G30: =AVERAGEA(OFFSET(テストデータ!$E$3,1,9*6-9):OFFSET(テストデータ!$E$3,500,9*6-9)) ->  | H30: =AVERAGEA(OFFSET(テストデータ!$E$3,1,9*6-8):OFFSET(テストデータ!$E$3,500,9*6-8)) ->  | I30: =AVERAGEA(OFFSET(テストデータ!$E$3,1,9*6-7):OFFSET(テストデータ!$E$3,500,9*6-7)) ->  | J30: =AVERAGEA(OFFSET(テストデータ!$E$3,1,9*6-6):OFFSET(テストデータ!$E$3,500,9*6-6)) ->  | K30: =AVERAGEA(OFFSET(テストデータ!$E$3,1,9*6-5):OFFSET(テストデータ!$E$3,500,9*6-5)) ->  | L30: =IF(SUM(初期設定!$Z$3:$Z$502)=0,NA(),AVERAGEIF(初期設定!$Z$3:$Z$502,"<>0")) ->  | M30: =IF(SUM(初期設定!$AA$3:$AA$502)=0,NA(),AVERAGEIF(初期設定!$AA$3:$AA$502,"<>0")) -> 

Sheet 成績表2
B1: =IF(初期設定!C2="","",初期設定!C2) -> 20xx年 | E1: ID: | F1: 1 | Q1: =初期設定!C1 -> 微風中学校
B2: 第3回 校内実力テスト | K2: 学年 | M2: クラス | O2: 番号 | Q2: 氏名
K3: =IF(初期設定!$C3="","",初期設定!$C3) -> 3学年 | M3: =VLOOKUP($F$1,INDIRECT("テストデータ!$A$4:$CT$503"),2,FALSE) -> 1 | O3: =VLOOKUP($F$1,INDIRECT("テストデータ!$A$4:$CT$503"),3,FALSE) -> 1 | Q3: =VLOOKUP($F$1,INDIRECT("テストデータ!$A$4:$CT$503"),4,FALSE) -> 鈴木A男
B4: =VLOOKUP($B$2,初期設定!$E$44:$G$74,3,FALSE) -> 3
E5: =IF(初期設定!$C$22="","",初期設定!$C$22) -> 国語 | F5: =IF(初期設定!$C$23="","",初期設定!$C$23) -> 数学 | G5: =IF(初期設定!$C$24="","",初期設定!$C$24) -> 英語 | H5: =IF(初期設定!$C$25="","",初期設定!$C$25) -> 社会 | I5: =IF(初期設定!$C$26="","",初期設定!$C$26) -> 理科 | J5: 3科目 | L5: 5科目
C6: 得点 | E6: =IF(VLOOKUP($F$1,INDIRECT("テストデータ!$A$4:$CT$503"),5*$B$4+54,FALSE)="","-",VLOOKUP($F$1,INDIRECT("テストデータ!$A$4:$CT$503"),5*$B$4+54,FALSE)) -> - | F6: =IF(VLOOKUP($F$1,INDIRECT("テストデータ!$A$4:$CT$503"),5*$B$4+55,FALSE)="","-",VLOOKUP($F$1,INDIRECT("テストデータ!$A$4:$CT$503"),5*$B$4+55,FALSE)) -> 52 | G6: =IF(VLOOKUP($F$1,INDIRECT("テストデータ!$A$4:$CT$503"),5*$B$4+56,FALSE)="","-",VLOOKUP($F$1,INDIRECT("テストデータ!$A$4:$CT$503"),5*$B$4+56,FALSE)) -> - | H6: =IF(VLOOKUP($F$1,INDIRECT("テストデータ!$A$4:$CT$503"),5*$B$4+57,FALSE)="","-",VLOOKUP($F$1,INDIRECT("テストデータ!$A$4:$CT$503"),5*$B$4+57,FALSE)) -> 79 | I6: =IF(VLOOKUP($F$1,INDIRECT("テストデータ!$A$4:$CT$503"),5*$B$4+58,FALSE)="","-",VLOOKUP($F$1,INDIRECT("テストデータ!$A$4:$CT$503"),5*$B$4+58,FALSE)) -> 11 | J6: =IF(SUM($E$6:$G$6)=0,"",SUM($E$6:$G$6)) -> 52 | L6: =IF(SUM($E$6:$I$6)=0,"",SUM($E$6:$I$6)) -> 142
C7: 平均点 | E7: =IF(SUM((OFFSET(テストデータ!$BG$3,1,5*$B$4-5):OFFSET(テストデータ!$BG$3,500,5*$B4-5)))=0,NA(),AVERAGEA(OFFSET(テストデータ!$BG$3,1,5*$B$4-5):OFFSET(テストデータ!$BG$3,500,5*$B4-5))) -> 47.94736842 | F7: =IF(SUM(OFFSET(テストデータ!$BG$3,1,5*$B$4-4):OFFSET(テストデータ!$BG$3,500,5*$B4-4))=0,NA(),AVERAGEA(OFFSET(テストデータ!$BG$3,1,5*$B$4-4):OFFSET(テストデータ!$BG$3,500,5*$B4-4))) -> 49.8 | G7: =IF(SUM(OFFSET(テストデータ!$BG$3,1,5*$B$4-3):OFFSET(テストデータ!$BG$3,500,5*$B4-3))=0,NA(),AVERAGEA(OFFSET(テストデータ!$BG$3,1,5*$B$4-3):OFFSET(テストデータ!$BG$3,500,5*$B4-3))) -> 53.21052632 | H7: =IF(SUM(OFFSET(テストデータ!$BG$3,1,5*$B$4-2):OFFSET(テストデータ!$BG$3,500,5*$B4-2))=0,NA(),AVERAGEA(OFFSET(テストデータ!$BG$3,1,5*$B$4-2):OFFSET(テストデータ!$BG$3,500,5*$B4-2))) -> 42.7 | I7: =IF(SUM(OFFSET(テストデータ!$BG$3,1,5*$B$4-1):OFFSET(テストデータ!$BG$3,500,5*$B4-1))=0,NA(),AVERAGEA(OFFSET(テストデータ!$BG$3,1,5*$B$4-1):OFFSET(テストデータ!$BG$3,500,5*$B4-1))) -> 51.05 | J7: =AVERAGEIF(OFFSET(初期設定!$AB$3,0,2*$B$4-2):OFFSET(初期設定!$AB$502,0,2*$B$4-2),"<>0") -> 145.9 | L7: =AVERAGEIF(OFFSET(初期設定!$AC$3,0,2*$B$4-2):OFFSET(初期設定!$AC$502,0,2*$B$4-2),"<>0") -> 239.65
C8: クラス順位 | E8: =IF(E6="-","",SUMPRODUCT((INDIRECT("テストデータ!$B$4"):INDIRECT("テストデータ!$B$503")=$M$3)*(OFFSET(テストデータ!$BG$3,1,5*$B$4-5):OFFSET(テストデータ!$BG$3,500,5*$B$4-5)>E6))+1)&"位" -> 位 | F8: =IF(F6="-","",SUMPRODUCT((INDIRECT("テストデータ!$B$4"):INDIRECT("テストデータ!$B$503")=$M$3)*(OFFSET(テストデータ!$BG$3,1,5*$B$4-4):OFFSET(テストデータ!$BG$3,500,5*$B$4-4)>F6))+1)&"位" -> 4位 | G8: =IF(G6="-","",SUMPRODUCT((INDIRECT("テストデータ!$B$4"):INDIRECT("テストデータ!$B$503")=$M$3)*(OFFSET(テストデータ!$BG$3,1,5*$B$4-3):OFFSET(テストデータ!$BG$3,500,5*$B$4-3)>G6))+1)&"位" -> 位 | H8: =IF(H6="-","",SUMPRODUCT((INDIRECT("テストデータ!$B$4"):INDIRECT("テストデータ!$B$503")=$M$3)*(OFFSET(テストデータ!$BG$3,1,5*$B$4-2):OFFSET(テストデータ!$BG$3,500,5*$B$4-2)>H6))+1)&"位" -> 1位 | I8: =IF(I6="-","",SUMPRODUCT((INDIRECT("テストデータ!$B$4"):INDIRECT("テストデータ!$B$503")=$M$3)*(OFFSET(テストデータ!$BG$3,1,5*$B$4-1):OFFSET(テストデータ!$BG$3,500,5*$B$4-1)>I6))+1)&"位" -> 6位 | J8: =IF($J$6="","",(SUMPRODUCT((INDIRECT("テストデータ!$B$4"):INDIRECT("テストデータ!$B$503")=$M$3)*((OFFSET(初期設定!$AB$3,0,2*$B$4-2):OFFSET(初期設定!$AB$502,0,2*$B$4-2))>$J$6))+1&" 位")) -> 6 位 | L8: =IF($L$6="","",(SUMPRODUCT((INDIRECT("テストデータ!$B$4"):INDIRECT("テストデータ!$B$503")=$M$3)*((OFFSET(初期設定!$AC$3,0,2*$B$4-2):OFFSET(初期設定!$AC$502,0,2*$B$4-2))>$L$6))+1&" 位")) -> 6 位
C9: 校内順位 | E9: =RANK(E6,OFFSET(テストデータ!$BG$3,1,5*$B$4-5):OFFSET(テストデータ!$BG$3,500,5*$B$4-5))&"位" ->  | F9: =RANK(F6,OFFSET(テストデータ!$BG$3,1,5*$B$4-4):OFFSET(テストデータ!$BG$3,500,5*$B$4-4))&"位" -> 10位 | G9: =RANK(G6,OFFSET(テストデータ!$BG$3,1,5*$B$4-3):OFFSET(テストデータ!$BG$3,500,5*$B$4-3))&"位" ->  | H9: =RANK(H6,OFFSET(テストデータ!$BG$3,1,5*$B$4-2):OFFSET(テストデータ!$BG$3,500,5*$B$4-2))&"位" -> 1位 | I9: =RANK(I6,OFFSET(テストデータ!$BG$3,1,5*$B$4-1):OFFSET(テストデータ!$BG$3,500,5*$B$4-1))&"位" -> 19位 | J9: =RANK($J$6,OFFSET(初期設定!$AB$3,0,2*B4-2):OFFSET(初期設定!$AB$502,0,2*B4-2))&"位/"&COUNTIF(OFFSET(初期設定!$AB$3,0,2*B4-2):OFFSET(初期設定!$AB$502,0,2*B4-2),"<>0")&"中" -> 20位/20中 | L9: =RANK($L$6,OFFSET(初期設定!$AC$3,0,2*B4-2):OFFSET(初期設定!$AC$502,0,2*B4-2))&"位/"&COUNTIF(OFFSET(初期設定!$AC$3,0,2*B4-2):OFFSET(初期設定!$AC$502,0,2*B4-2),"<>0")&"中" -> 19位/20中
C12: =IF(初期設定!$C21="","",初期設定!$C21) -> 校内実力テスト | G12: =IF(初期設定!$C$22="","",初期設定!$C$22) -> 国語 | H12: =IF(初期設定!$C$23="","",初期設定!$C$23) -> 数学 | I12: =IF(初期設定!$C$24="","",初期設定!$C$24) -> 英語 | J12: =IF(初期設定!$C$25="","",初期設定!$C$25) -> 社会 | K12: =IF(初期設定!$C$26="","",初期設定!$C$26) -> 理科 | L12: 3科 | M12: 5科
C13: 第1回 | E13: 得点 | G13: =NA() ->  | H13: =NA() ->  | I13: =NA() ->  | J13: =NA() ->  | K13: =NA() ->  | L13: =NA() ->  | M13: =NA() -> 
E14: 平均 | G14: =NA() ->  | H14: =NA() ->  | I14: =NA() ->  | J14: =NA() ->  | K14: =NA() ->  | L14: =NA() ->  | M14: =NA() -> 
C15: 第2回 | E15: 得点 | G15: =IF(VLOOKUP($F$1,INDIRECT("テストデータ!$A$4:$CT$503"),5*2+54,FALSE)="","",VLOOKUP($F$1,INDIRECT("テストデータ!$A$4:$CT$503"),5*2+54,FALSE)) -> 79 | H15: =IF(VLOOKUP($F$1,INDIRECT("テストデータ!$A$4:$CT$503"),5*2+55,FALSE)="","",VLOOKUP($F$1,INDIRECT("テストデータ!$A$4:$CT$503"),5*2+55,FALSE)) ->  | I15: =IF(VLOOKUP($F$1,INDIRECT("テストデータ!$A$4:$CT$503"),5*2+56,FALSE)="","",VLOOKUP($F$1,INDIRECT("テストデータ!$A$4:$CT$503"),5*2+56,FALSE)) -> 24 | J15: =IF(VLOOKUP($F$1,INDIRECT("テストデータ!$A$4:$CT$503"),5*2+57,FALSE)="","",VLOOKUP($F$1,INDIRECT("テストデータ!$A$4:$CT$503"),5*2+57,FALSE)) ->  | K15: =IF(VLOOKUP($F$1,INDIRECT("テストデータ!$A$4:$CT$503"),5*2+58,FALSE)="","",VLOOKUP($F$1,INDIRECT("テストデータ!$A$4:$CT$503"),5*2+58,FALSE)) -> 79 | L15: =IF(SUM($G15:$I15)=0,NA(),SUM($G15:$I15)) -> 103 | M15: =IF(SUM($G15:$K15)=0,NA(),SUM($G15:$K15)) -> 182
E16: 平均 | G16: =AVERAGEA(OFFSET(テストデータ!$E$3,1,5*1+54):OFFSET(テストデータ!$E$3,500,5*1+54)) -> 42.7 | H16: =AVERAGEA(OFFSET(テストデータ!$E$3,1,5*1+55):OFFSET(テストデータ!$E$3,500,5*1+55)) -> 64.31578947 | I16: =AVERAGEA(OFFSET(テストデータ!$E$3,1,5*1+56):OFFSET(テストデータ!$E$3,500,5*1+56)) -> 44.65 | J16: =AVERAGEA(OFFSET(テストデータ!$E$3,1,5*1+57):OFFSET(テストデータ!$E$3,500,5*1+57)) -> 59.05263158 | K16: =AVERAGEA(OFFSET(テストデータ!$E$3,1,5*1+58):OFFSET(テストデータ!$E$3,500,5*1+58)) -> 42.7 | L16: =IF(SUM(初期設定!$AD$3:$AD$502)=0,NA(),AVERAGEIF(初期設定!$AD$3:$AD$502,"<>0")) -> 148.45 | M16: =IF(SUM(初期設定!$AE$3:$AE$502)=0,NA(),AVERAGEIF(初期設定!$AE$3:$AE$502,"<>0")) -> 247.25
C17: 第3回 | E17: 得点 | G17: =IF(VLOOKUP($F$1,INDIRECT("テストデータ!$A$4:$CT$503"),5*3+54,FALSE)="","",VLOOKUP($F$1,INDIRECT("テストデータ!$A$4:$CT$503"),5*3+54,FALSE)) ->  | H17: =IF(VLOOKUP($F$1,INDIRECT("テストデータ!$A$4:$CT$503"),5*3+55,FALSE)="","",VLOOKUP($F$1,INDIRECT("テストデータ!$A$4:$CT$503"),5*3+55,FALSE)) -> 52 | I17: =IF(VLOOKUP($F$1,INDIRECT("テストデータ!$A$4:$CT$503"),5*3+56,FALSE)="","",VLOOKUP($F$1,INDIRECT("テストデータ!$A$4:$CT$503"),5*3+56,FALSE)) ->  | J17: =IF(VLOOKUP($F$1,INDIRECT("テストデータ!$A$4:$CT$503"),5*3+57,FALSE)="","",VLOOKUP($F$1,INDIRECT("テストデータ!$A$4:$CT$503"),5*3+57,FALSE)) -> 79 | K17: =IF(VLOOKUP($F$1,INDIRECT("テストデータ!$A$4:$CT$503"),5*3+58,FALSE)="","",VLOOKUP($F$1,INDIRECT("テストデータ!$A$4:$CT$503"),5*3+58,FALSE)) -> 11 | L17: =IF(SUM($G17:$I17)=0,NA(),SUM($G17:$I17)) -> 52 | M17: =IF(SUM($G17:$K17)=0,NA(),SUM($G17:$K17)) -> 142
E18: 平均 | G18: =AVERAGEA(OFFSET(テストデータ!$E$3,1,5*2+54):OFFSET(テストデータ!$E$3,500,5*2+54)) -> 47.94736842 | H18: =AVERAGEA(OFFSET(テストデータ!$E$3,1,5*2+55):OFFSET(テストデータ!$E$3,500,5*2+55)) -> 49.8 | I18: =AVERAGEA(OFFSET(テストデータ!$E$3,1,5*2+56):OFFSET(テストデータ!$E$3,500,5*2+56)) -> 53.21052632 | J18: =AVERAGEA(OFFSET(テストデータ!$E$3,1,5*2+57):OFFSET(テストデータ!$E$3,500,5*2+57)) -> 42.7 | K18: =AVERAGEA(OFFSET(テストデータ!$E$3,1,5*2+58):OFFSET(テストデータ!$E$3,500,5*2+58)) -> 51.05 | L18: =IF(SUM(初期設定!$AF$3:$AF$502)=0,NA(),AVERAGEIF(初期設定!$AF$3:$AF$502,"<>0")) -> 145.9 | M18: =IF(SUM(初期設定!$AG$3:$AG$502)=0,NA(),AVERAGEIF(初期設定!$AG$3:$AG$502,"<>0")) -> 239.65
C19: 第4回 | E19: 得点 | G19: =IF(VLOOKUP($F$1,INDIRECT("テストデータ!$A$4:$CT$503"),5*4+54,FALSE)="","",VLOOKUP($F$1,INDIRECT("テストデータ!$A$4:$CT$503"),5*4+54,FALSE)) -> 25 | H19: =IF(VLOOKUP($F$1,INDIRECT("テストデータ!$A$4:$CT$503"),5*4+55,FALSE)="","",VLOOKUP($F$1,INDIRECT("テストデータ!$A$4:$CT$503"),5*4+55,FALSE)) -> 79 | I19: =IF(VLOOKUP($F$1,INDIRECT("テストデータ!$A$4:$CT$503"),5*4+56,FALSE)="","",VLOOKUP($F$1,INDIRECT("テストデータ!$A$4:$CT$503"),5*4+56,FALSE)) -> 9 | J19: =IF(VLOOKUP($F$1,INDIRECT("テストデータ!$A$4:$CT$503"),5*4+57,FALSE)="","",VLOOKUP($F$1,INDIRECT("テストデータ!$A$4:$CT$503"),5*4+57,FALSE)) -> 52 | K19: =IF(VLOOKUP($F$1,INDIRECT("テストデータ!$A$4:$CT$503"),5*4+58,FALSE)="","",VLOOKUP($F$1,INDIRECT("テストデータ!$A$4:$CT$503"),5*4+58,FALSE)) -> 11 | L19: =IF(SUM($G19:$I19)=0,NA(),SUM($G19:$I19)) -> 113 | M19: =IF(SUM($G19:$K19)=0,NA(),SUM($G19:$K19)) -> 176
E20: 平均 | G20: =AVERAGEA(OFFSET(テストデータ!$E$3,1,5*3+54):OFFSET(テストデータ!$E$3,500,5*3+54)) -> 54.15 | H20: =AVERAGEA(OFFSET(テストデータ!$E$3,1,5*3+55):OFFSET(テストデータ!$E$3,500,5*3+55)) -> 42.7 | I20: =AVERAGEA(OFFSET(テストデータ!$E$3,1,5*3+56):OFFSET(テストデータ!$E$3,500,5*3+56)) -> 43.9 | J20: =AVERAGEA(OFFSET(テストデータ!$E$3,1,5*3+57):OFFSET(テストデータ!$E$3,500,5*3+57)) -> 58.47368421 | K20: =AVERAGEA(OFFSET(テストデータ!$E$3,1,5*3+58):OFFSET(テストデータ!$E$3,500,5*3+58)) -> 51.05 | L20: =IF(SUM(初期設定!$AH$3:$AH$502)=0,NA(),AVERAGEIF(初期設定!$AH$3:$AH$502,"<>0")) -> 140.75 | M20: =IF(SUM(初期設定!$AI$3:$AI$502)=0,NA(),AVERAGEIF(初期設定!$AI$3:$AI$502,"<>0")) -> 247.35
C21: 第5回 | E21: 得点 | G21: =IF(VLOOKUP($F$1,INDIRECT("テストデータ!$A$4:$CT$503"),5*5+54,FALSE)="","",VLOOKUP($F$1,INDIRECT("テストデータ!$A$4:$CT$503"),5*5+54,FALSE)) -> 35 | H21: =IF(VLOOKUP($F$1,INDIRECT("テストデータ!$A$4:$CT$503"),5*5+55,FALSE)="","",VLOOKUP($F$1,INDIRECT("テストデータ!$A$4:$CT$503"),5*5+55,FALSE)) -> 79 | I21: =IF(VLOOKUP($F$1,INDIRECT("テストデータ!$A$4:$CT$503"),5*5+56,FALSE)="","",VLOOKUP($F$1,INDIRECT("テストデータ!$A$4:$CT$503"),5*5+56,FALSE)) -> 82 | J21: =IF(VLOOKUP($F$1,INDIRECT("テストデータ!$A$4:$CT$503"),5*5+57,FALSE)="","",VLOOKUP($F$1,INDIRECT("テストデータ!$A$4:$CT$503"),5*5+57,FALSE)) -> 9 | K21: =IF(VLOOKUP($F$1,INDIRECT("テストデータ!$A$4:$CT$503"),5*5+58,FALSE)="","",VLOOKUP($F$1,INDIRECT("テストデータ!$A$4:$CT$503"),5*5+58,FALSE)) -> 92 | L21: =IF(SUM($G21:$I21)=0,NA(),SUM($G21:$I21)) -> 196 | M21: =IF(SUM($G21:$K21)=0,NA(),SUM($G21:$K21)) -> 297
E22: 平均 | G22: =AVERAGEA(OFFSET(テストデータ!$E$3,1,5*4+54):OFFSET(テストデータ!$E$3,500,5*4+54)) -> 64.26315789 | H22: =AVERAGEA(OFFSET(テストデータ!$E$3,1,5*4+55):OFFSET(テストデータ!$E$3,500,5*4+55)) -> 42.7 | I22: =AVERAGEA(OFFSET(テストデータ!$E$3,1,5*4+56):OFFSET(テストデータ!$E$3,500,5*4+56)) -> 56.52631579 | J22: =AVERAGEA(OFFSET(テストデータ!$E$3,1,5*4+57):OFFSET(テストデータ!$E$3,500,5*4+57)) -> 43.9 | K22: =AVERAGEA(OFFSET(テストデータ!$E$3,1,5*4+58):OFFSET(テストデータ!$E$3,500,5*4+58)) -> 46.84210526 | L22: =IF(SUM(初期設定!$AJ$3:$AJ$502)=0,NA(),AVERAGEIF(初期設定!$AJ$3:$AJ$502,"<>0")) -> 157.45 | M22: =IF(SUM(初期設定!$AK$3:$AK$502)=0,NA(),AVERAGEIF(初期設定!$AK$3:$AK$502,"<>0")) -> 245.85
C23: 第6回 | E23: 得点 | G23: =IF(VLOOKUP($F$1,INDIRECT("テストデータ!$A$4:$CT$503"),5*6+54,FALSE)="","",VLOOKUP($F$1,INDIRECT("テストデータ!$A$4:$CT$503"),5*6+54,FALSE)) -> 79 | H23: =IF(VLOOKUP($F$1,INDIRECT("テストデータ!$A$4:$CT$503"),5*6+55,FALSE)="","",VLOOKUP($F$1,INDIRECT("テストデータ!$A$4:$CT$503"),5*6+55,FALSE)) -> 79 | I23: =IF(VLOOKUP($F$1,INDIRECT("テストデータ!$A$4:$CT$503"),5*6+56,FALSE)="","",VLOOKUP($F$1,INDIRECT("テストデータ!$A$4:$CT$503"),5*6+56,FALSE)) -> 9 | J23: =IF(VLOOKUP($F$1,INDIRECT("テストデータ!$A$4:$CT$503"),5*6+57,FALSE)="","",VLOOKUP($F$1,INDIRECT("テストデータ!$A$4:$CT$503"),5*6+57,FALSE)) -> 9 | K23: =IF(VLOOKUP($F$1,INDIRECT("テストデータ!$A$4:$CT$503"),5*6+58,FALSE)="","",VLOOKUP($F$1,INDIRECT("テストデータ!$A$4:$CT$503"),5*6+58,FALSE)) -> 11 | L23: =IF(SUM($G23:$I23)=0,NA(),SUM($G23:$I23)) -> 167 | M23: =IF(SUM($G23:$K23)=0,NA(),SUM($G23:$K23)) -> 187
E24: 平均 | G24: =AVERAGEA(OFFSET(テストデータ!$E$3,1,5*5+54):OFFSET(テストデータ!$E$3,500,5*5+54)) -> 42.7 | H24: =AVERAGEA(OFFSET(テストデータ!$E$3,1,5*5+55):OFFSET(テストデータ!$E$3,500,5*5+55)) -> 44.31578947 | I24: =AVERAGEA(OFFSET(テストデータ!$E$3,1,5*5+56):OFFSET(テストデータ!$E$3,500,5*5+56)) -> 43.9 | J24: =AVERAGEA(OFFSET(テストデータ!$E$3,1,5*5+57):OFFSET(テストデータ!$E$3,500,5*5+57)) -> 43.9 | K24: =AVERAGEA(OFFSET(テストデータ!$E$3,1,5*5+58):OFFSET(テストデータ!$E$3,500,5*5+58)) -> 51.05 | L24: =IF(SUM(初期設定!$AL$3:$AL$502)=0,NA(),AVERAGEIF(初期設定!$AL$3:$AL$502,"<>0")) -> 128.7 | M24: =IF(SUM(初期設定!$AM$3:$AM$502)=0,NA(),AVERAGEIF(初期設定!$AM$3:$AM$502,"<>0")) -> 223.65
C25: 第7回 | E25: 得点 | G25: =IF(VLOOKUP($F$1,INDIRECT("テストデータ!$A$4:$CT$503"),5*7+54,FALSE)="","",VLOOKUP($F$1,INDIRECT("テストデータ!$A$4:$CT$503"),5*7+54,FALSE)) ->  | H25: =IF(VLOOKUP($F$1,INDIRECT("テストデータ!$A$4:$CT$503"),5*7+55,FALSE)="","",VLOOKUP($F$1,INDIRECT("テストデータ!$A$4:$CT$503"),5*7+55,FALSE)) -> 79 | I25: =IF(VLOOKUP($F$1,INDIRECT("テストデータ!$A$4:$CT$503"),5*7+56,FALSE)="","",VLOOKUP($F$1,INDIRECT("テストデータ!$A$4:$CT$503"),5*7+56,FALSE)) ->  | J25: =IF(VLOOKUP($F$1,INDIRECT("テストデータ!$A$4:$CT$503"),5*7+57,FALSE)="","",VLOOKUP($F$1,INDIRECT("テストデータ!$A$4:$CT$503"),5*7+57,FALSE)) -> 9 | K25: =IF(VLOOKUP($F$1,INDIRECT("テストデータ!$A$4:$CT$503"),5*7+58,FALSE)="","",VLOOKUP($F$1,INDIRECT("テストデータ!$A$4:$CT$503"),5*7+58,FALSE)) ->  | L25: =IF(SUM($G25:$I25)=0,NA(),SUM($G25:$I25)) -> 79 | M25: =IF(SUM($G25:$K25)=0,NA(),SUM($G25:$K25)) -> 88
E26: 平均 | G26: =AVERAGEA(OFFSET(テストデータ!$E$3,1,5*6+54):OFFSET(テストデータ!$E$3,500,5*6+54)) -> 64.31578947 | H26: =AVERAGEA(OFFSET(テストデータ!$E$3,1,5*6+55):OFFSET(テストデータ!$E$3,500,5*6+55)) -> 42.7 | I26: =AVERAGEA(OFFSET(テストデータ!$E$3,1,5*6+56):OFFSET(テストデータ!$E$3,500,5*6+56)) -> 59.05263158 | J26: =AVERAGEA(OFFSET(テストデータ!$E$3,1,5*6+57):OFFSET(テストデータ!$E$3,500,5*6+57)) -> 43.9 | K26: =AVERAGEA(OFFSET(テストデータ!$E$3,1,5*6+58):OFFSET(テストデータ!$E$3,500,5*6+58)) -> 48.21052632 | L26: =IF(SUM(初期設定!$AN$3:$AN$502)=0,NA(),AVERAGEIF(初期設定!$AN$3:$AN$502,"<>0")) -> 159.9 | M26: =IF(SUM(初期設定!$AO$3:$AO$502)=0,NA(),AVERAGEIF(初期設定!$AO$3:$AO$502,"<>0")) -> 249.6
C27: 第8回 | E27: 得点 | G27: =IF(VLOOKUP($F$1,INDIRECT("テストデータ!$A$4:$CT$503"),5*8+54,FALSE)="","",VLOOKUP($F$1,INDIRECT("テストデータ!$A$4:$CT$503"),5*8+54,FALSE)) ->  | H27: =IF(VLOOKUP($F$1,INDIRECT("テストデータ!$A$4:$CT$503"),5*8+55,FALSE)="","",VLOOKUP($F$1,INDIRECT("テストデータ!$A$4:$CT$503"),5*8+55,FALSE)) ->  | I27: =IF(VLOOKUP($F$1,INDIRECT("テストデータ!$A$4:$CT$503"),5*8+56,FALSE)="","",VLOOKUP($F$1,INDIRECT("テストデータ!$A$4:$CT$503"),5*8+56,FALSE)) ->  | J27: =IF(VLOOKUP($F$1,INDIRECT("テストデータ!$A$4:$CT$503"),5*8+57,FALSE)="","",VLOOKUP($F$1,INDIRECT("テストデータ!$A$4:$CT$503"),5*8+57,FALSE)) ->  | K27: =IF(VLOOKUP($F$1,INDIRECT("テストデータ!$A$4:$CT$503"),5*8+58,FALSE)="","",VLOOKUP($F$1,INDIRECT("テストデータ!$A$4:$CT$503"),5*8+58,FALSE)) ->  | L27: =IF(SUM($G27:$I27)=0,NA(),SUM($G27:$I27)) ->  | M27: =IF(SUM($G27:$K27)=0,NA(),SUM($G27:$K27)) -> 
E28: 平均 | G28: =AVERAGEA(OFFSET(テストデータ!$E$3,1,5*7+54):OFFSET(テストデータ!$E$3,500,5*7+54)) ->  | H28: =AVERAGEA(OFFSET(テストデータ!$E$3,1,5*7+55):OFFSET(テストデータ!$E$3,500,5*7+55)) ->  | I28: =AVERAGEA(OFFSET(テストデータ!$E$3,1,5*7+56):OFFSET(テストデータ!$E$3,500,5*7+56)) ->  | J28: =AVERAGEA(OFFSET(テストデータ!$E$3,1,5*7+57):OFFSET(テストデータ!$E$3,500,5*7+57)) ->  | K28: =AVERAGEA(OFFSET(テストデータ!$E$3,1,5*7+58):OFFSET(テストデータ!$E$3,500,5*7+58)) ->  | L28: =IF(SUM(初期設定!$AP$3:$AP$502)=0,NA(),AVERAGEIF(初期設定!$AP$3:$AP$502,"<>0")) ->  | M28: =IF(SUM(初期設定!$AQ$3:$AQ$502)=0,NA(),AVERAGEIF(初期設定!$AQ$3:$AQ$502,"<>0")) -> 

Sheet 定期テスト集計
B2: =IF(初期設定!$C20="","",初期設定!$C20) -> 
B3: テスト名： | D3: 1学期 期末テスト | E3: 科目： | F3: 5科目 | G3: クラス： | H3: 1
B5: class | C5: No. | D5: 氏名 | E5: 得点 | F5: 順位 | H5: 平均点 | I5: 233.8点
B6: 1 | C6: 1 | D6: 鈴木A男 | E6: 316 | F6: =IF(E6="","",RANK(E6,$E$6:$E$505)) -> 2 | H6: クラス別平均点
B7: 1 | C7: 2 | D7: 鈴木B男 | E7: 38 | F7: =IF(E7="","",RANK(E7,$E$6:$E$505)) -> 6
B8: 1 | C8: 3 | D8: 鈴木C男 | E8: 256 | F8: 3
B9: 1 | C9: 4 | D9: 鈴木D男 | E9: 231 | F9: 4
B10: 1 | C10: 5 | D10: 鈴木E男 | E10: 332 | F10: 1
B11: 1 | C11: 6 | D11: 鈴木F男 | E11: 230 | F11: 5
F71: =IF(E71="","",RANK(E71,$E$6:$E$505)) -> 
F135: =IF(E135="","",RANK(E135,$E$6:$E$505)) -> 
F199: =IF(E199="","",RANK(E199,$E$6:$E$505)) -> 
F263: =IF(E263="","",RANK(E263,$E$6:$E$505)) -> 
F327: =IF(E327="","",RANK(E327,$E$6:$E$505)) -> 
F391: =IF(E391="","",RANK(E391,$E$6:$E$505)) -> 
F455: =IF(E455="","",RANK(E455,$E$6:$E$505)) -> 

Sheet 実力テスト集計
B2: =IF(初期設定!C21="","",初期設定!C21) -> 校内実力テスト
B3: 実施： | D3: 第1回 | E3: 科目： | F3: 国語 | G3: クラス： | H3: 全クラス
B5: class | C5: No. | D5: 氏名 | E5: 得点 | F5: 順位 | H5: 平均点： | I5: 47.5点
B6: 1 | C6: 1 | D6: 鈴木A男 | E6: 92 | F6: =IF(E6="","",RANK(E6,$E$6:$E$505)) -> 1 | H6: クラス別平均点
B7: 1 | C7: 2 | D7: 鈴木B男 | E7: 91 | F7: =IF(E7="","",RANK(E7,$E$6:$E$505)) -> 2 | H7: 1： | I7: 56.8点
B8: 1 | C8: 3 | D8: 鈴木C男 | E8: 69 | F8: 5 | H8: 2： | I8: 42点
B9: 1 | C9: 4 | D9: 鈴木D男 | E9: 46 | F9: 9 | H9: 3： | I9: 44.3点
B10: 1 | C10: 5 | D10: 鈴木E男 | E10: 12 | F10: 19
B11: 1 | C11: 6 | D11: 鈴木F男 | E11: 31 | F11: 11
B12: 2 | C12: 1 | D12: 鈴木G男 | E12: 26 | F12: 15
B13: 2 | C13: 2 | D13: 鈴木H男 | E13: 21 | F13: 18
B14: 2 | C14: 3 | D14: 鈴木I男 | E14: 64 | F14: 6
B15: 2 | C15: 4 | D15: 鈴木J男 | E15: 23 | F15: 16
B16: 2 | C16: 5 | D16: 鈴木K男 | E16: 85 | F16: 3
B17: 2 | C17: 6 | D17: 鈴木L男 | E17: 33 | F17: 10
B18: 3 | C18: 1 | D18: 鈴木M男 | E18: 30 | F18: 12
B19: 3 | C19: 2 | D19: 鈴木N男 | E19: 57 | F19: 8
B20: 3 | C20: 3 | D20: 鈴木O男 | E20: 30 | F20: 12
B21: 3 | C21: 4 | D21: 鈴木P男 | E21: 84 | F21: 4
B22: 3 | C22: 5 | D22: 鈴木Q男 | E22: 59 | F22: 7
B23: 3 | C23: 6 | D23: 鈴木R男
B24: 3 | C24: 7 | D24: 鈴木S男 | E24: 27 | F24: 14
B25: 3 | C25: 8 | D25: 鈴木T男 | E25: 23 | F25: 16
F71: =IF(E71="","",RANK(E71,$E$6:$E$505)) -> 
F135: =IF(E135="","",RANK(E135,$E$6:$E$505)) -> 
F199: =IF(E199="","",RANK(E199,$E$6:$E$505)) -> 
F263: =IF(E263="","",RANK(E263,$E$6:$E$505)) -> 
F327: =IF(E327="","",RANK(E327,$E$6:$E$505)) -> 
F391: =IF(E391="","",RANK(E391,$E$6:$E$505)) -> 
F455: =IF(E455="","",RANK(E455,$E$6:$E$505)) -> 

Sheet 連続印刷
A2: ID | B2: class/No | C2: 氏名 | E2: ●名簿の表示
A3: 1 | B3: 1/1 | C3: 鈴木A男
A4: 2 | B4: 1/2 | C4: 鈴木B男 | E4: 印刷するclass： | I4: 1 | K4: →
A5: 3 | B5: 1/3 | C5: 鈴木C男
A6: 4 | B6: 1/4 | C6: 鈴木D男 | E6: ●範囲指定印刷
A7: 5 | B7: 1/5 | C7: 鈴木E男
A8: 6 | B8: 1/6 | C8: 鈴木F男 | E8: 成績表1 | H8: を印刷する
E9: from | G9: to
F10: ～ | H10: →
E11: ↑ | G11: ↑
E12: ID番号を指定してください(半角)
E14: ●番号指定印刷
J16: →
E17: ↑ | F17: ↑ | G17: ↑ | H17: ↑ | I17: ↑
E18: ID番号を指定してください(半角)

Sheet 初期設定
B1: 学校名 | C1: 微風中学校
B2: 本年度 | C2: 20xx年 | N2: 定期-3現 | O2: 定期1-5現 | P2: 定期1-3 | Q2: 定期1-5 | R2: 定期2-3 | S2: 定期2-5 | T2: 定期3-3 | U2: 定期3-5 | V2: 定期4-3 | W2: 定期4-5 | X2: 定期5-3 | Y2: 定期5-5 | Z2: 定期6-3 | AA2: 定期6-5 | AB2: 実力1 3科 | AC2: 実力1 5科 | AD2: 実力2 3科 | AE2: 実力2 5科 | AF2: 実力3 3科 | AG2: 実力3 5科 | AH2: 実力4 3科 | AI2: 実力4 5科 | AJ2: 実力5 3科 | AK2: 実力5 5科 | AL2: 実力6 3科 | AM2: 実力6 5科 | AN2: 実力7 3科 | AO2: 実力7 5科 | AP2: 実力8 3科 | AQ2: 実力8 5科
B3: 学年 | C3: 3学年 | N3: =SUM(OFFSET(テストデータ!$E3,1,9*成績表1!$B$4-9):OFFSET(テストデータ!$G3,1,9*成績表1!$B$4-9)) -> 183 | O3: =SUM(OFFSET(テストデータ!$E3,1,9*成績表1!$B$4-9):OFFSET(テストデータ!I3,1,9*成績表1!$B$4-9)) -> 316 | P3: =SUM(OFFSET(テストデータ!E3,1,0):OFFSET(テストデータ!G3,1,0)) -> 121 | Q3: =SUM(OFFSET(テストデータ!E3,1,0):OFFSET(テストデータ!I3,1,0)) -> 230 | R3: =SUM(OFFSET(テストデータ!N3,1,0):OFFSET(テストデータ!P3,1,0)) -> 183 | S3: =SUM(OFFSET(テストデータ!N3,1,0):OFFSET(テストデータ!R3,1,0)) -> 316 | T3: =SUM(OFFSET(テストデータ!W3,1,0):OFFSET(テストデータ!Y3,1,0)) -> 148 | U3: =SUM(OFFSET(テストデータ!W3,1,0):OFFSET(テストデータ!AA3,1,0)) -> 247 | V3: =SUM(OFFSET(テストデータ!AF3,1,0):OFFSET(テストデータ!AH3,1,0)) -> 212 | W3: =SUM(OFFSET(テストデータ!AF3,1,0):OFFSET(テストデータ!AJ3,1,0)) -> 393 | X3: =SUM(OFFSET(テストデータ!AO3,1,0):OFFSET(テストデータ!AQ3,1,0)) -> 0 | Y3: =SUM(OFFSET(テストデータ!AO3,1,0):OFFSET(テストデータ!AS3,1,0)) -> 0 | Z3: =SUM(OFFSET(テストデータ!AX3,1,0):OFFSET(テストデータ!AZ3,1,0)) -> 0 | AA3: =SUM(OFFSET(テストデータ!AX3,1,0):OFFSET(テストデータ!BB3,1,0)) -> 0 | AB3: =SUM(OFFSET(テストデータ!BG3,1,0):OFFSET(テストデータ!BI3,1,0)) -> 196 | AC3: =SUM(OFFSET(テストデータ!BG3,1,0):OFFSET(テストデータ!BK3,1,0)) -> 249 | AD3: =SUM(OFFSET(テストデータ!BL3,1,0):OFFSET(テストデータ!BN3,1,0)) -> 103 | AE3: =SUM(OFFSET(テストデータ!BL3,1,0):OFFSET(テストデータ!BP3,1,0)) -> 182 | AF3: =SUM(OFFSET(テストデータ!BQ3,1,0):OFFSET(テストデータ!BS3,1,0)) -> 52 | AG3: =SUM(OFFSET(テストデータ!BQ3,1,0):OFFSET(テストデータ!BU3,1,0)) -> 142 | AH3: =SUM(OFFSET(テストデータ!BV3,1,0):OFFSET(テストデータ!BX3,1,0)) -> 113 | AI3: =SUM(OFFSET(テストデータ!BV3,1,0):OFFSET(テストデータ!BZ3,1,0)) -> 176 | AJ3: =SUM(OFFSET(テストデータ!CA3,1,0):OFFSET(テストデータ!CC3,1,0)) -> 196 | AK3: =SUM(OFFSET(テストデータ!CA3,1,0):OFFSET(テストデータ!CE3,1,0)) -> 297 | AL3: =SUM(OFFSET(テストデータ!CF3,1,0):OFFSET(テストデータ!CH3,1,0)) -> 167 | AM3: =SUM(OFFSET(テストデータ!CF3,1,0):OFFSET(テストデータ!CJ3,1,0)) -> 187 | AN3: =SUM(OFFSET(テストデータ!CK3,1,0):OFFSET(テストデータ!CM3,1,0)) -> 79 | AO3: =SUM(OFFSET(テストデータ!CK3,1,0):OFFSET(テストデータ!CO3,1,0)) -> 88 | AP3: =SUM(OFFSET(テストデータ!CP3,1,0):OFFSET(テストデータ!CR3,1,0)) -> 0 | AQ3: =SUM(OFFSET(テストデータ!CP3,1,0):OFFSET(テストデータ!CT3,1,0)) -> 0
B4: 定期テスト | N4: =SUM(OFFSET(テストデータ!$E3,2,9*成績表1!$B$4-9):OFFSET(テストデータ!$G3,2,9*成績表1!$B$4-9)) -> 38 | O4: =SUM(OFFSET(テストデータ!$E3,2,9*成績表1!$B$4-9):OFFSET(テストデータ!I3,2,9*成績表1!$B$4-9)) -> 38 | P4: =SUM(OFFSET(テストデータ!E3,2,0):OFFSET(テストデータ!G3,2,0)) -> 50 | Q4: =SUM(OFFSET(テストデータ!E3,2,0):OFFSET(テストデータ!I3,2,0)) -> 50 | R4: =SUM(OFFSET(テストデータ!N3,2,0):OFFSET(テストデータ!P3,2,0)) -> 38 | S4: =SUM(OFFSET(テストデータ!N3,2,0):OFFSET(テストデータ!R3,2,0)) -> 38 | T4: =SUM(OFFSET(テストデータ!W3,2,0):OFFSET(テストデータ!Y3,2,0)) -> 120 | U4: =SUM(OFFSET(テストデータ!W3,2,0):OFFSET(テストデータ!AA3,2,0)) -> 120 | V4: =SUM(OFFSET(テストデータ!AF3,2,0):OFFSET(テストデータ!AH3,2,0)) -> 38 | W4: =SUM(OFFSET(テストデータ!AF3,2,0):OFFSET(テストデータ!AJ3,2,0)) -> 76 | X4: =SUM(OFFSET(テストデータ!AO3,2,0):OFFSET(テストデータ!AQ3,2,0)) -> 0 | Y4: =SUM(OFFSET(テストデータ!AO3,2,0):OFFSET(テストデータ!AS3,2,0)) -> 0 | Z4: =SUM(OFFSET(テストデータ!AX3,2,0):OFFSET(テストデータ!AZ3,2,0)) -> 0 | AA4: =SUM(OFFSET(テストデータ!AX3,2,0):OFFSET(テストデータ!BB3,2,0)) -> 0 | AB4: =SUM(OFFSET(テストデータ!BG3,2,0):OFFSET(テストデータ!BI3,2,0)) -> 124 | AC4: =SUM(OFFSET(テストデータ!BG3,2,0):OFFSET(テストデータ!BK3,2,0)) -> 236 | AD4: =SUM(OFFSET(テストデータ!BL3,2,0):OFFSET(テストデータ!BN3,2,0)) -> 116 | AE4: =SUM(OFFSET(テストデータ!BL3,2,0):OFFSET(テストデータ!BP3,2,0)) -> 164 | AF4: =SUM(OFFSET(テストデータ!BQ3,2,0):OFFSET(テストデータ!BS3,2,0)) -> 160 | AG4: =SUM(OFFSET(テストデータ!BQ3,2,0):OFFSET(テストデータ!BU3,2,0)) -> 232 | AH4: =SUM(OFFSET(テストデータ!BV3,2,0):OFFSET(テストデータ!BX3,2,0)) -> 87 | AI4: =SUM(OFFSET(テストデータ!BV3,2,0):OFFSET(テストデータ!BZ3,2,0)) -> 147 | AJ4: =SUM(OFFSET(テストデータ!CA3,2,0):OFFSET(テストデータ!CC3,2,0)) -> 12 | AK4: =SUM(OFFSET(テストデータ!CA3,2,0):OFFSET(テストデータ!CE3,2,0)) -> 66 | AL4: =SUM(OFFSET(テストデータ!CF3,2,0):OFFSET(テストデータ!CH3,2,0)) -> 66 | AM4: =SUM(OFFSET(テストデータ!CF3,2,0):OFFSET(テストデータ!CJ3,2,0)) -> 180 | AN4: =SUM(OFFSET(テストデータ!CK3,2,0):OFFSET(テストデータ!CM3,2,0)) -> 98 | AO4: =SUM(OFFSET(テストデータ!CK3,2,0):OFFSET(テストデータ!CO3,2,0)) -> 197 | AP4: =SUM(OFFSET(テストデータ!CP3,2,0):OFFSET(テストデータ!CR3,2,0)) -> 0 | AQ4: =SUM(OFFSET(テストデータ!CP3,2,0):OFFSET(テストデータ!CT3,2,0)) -> 0
B5: 科目1 | C5: 国語 | N5: =SUM(OFFSET(テストデータ!$E3,3,9*成績表1!$B$4-9):OFFSET(テストデータ!$G3,3,9*成績表1!$B$4-9)) -> 185 | O5: =SUM(OFFSET(テストデータ!$E3,3,9*成績表1!$B$4-9):OFFSET(テストデータ!I3,3,9*成績表1!$B$4-9)) -> 256 | P5: =SUM(OFFSET(テストデータ!E3,3,0):OFFSET(テストデータ!G3,3,0)) -> 157 | Q5: =SUM(OFFSET(テストデータ!E3,3,0):OFFSET(テストデータ!I3,3,0)) -> 258 | R5: =SUM(OFFSET(テストデータ!N3,3,0):OFFSET(テストデータ!P3,3,0)) -> 185 | S5: =SUM(OFFSET(テストデータ!N3,3,0):OFFSET(テストデータ!R3,3,0)) -> 256 | T5: =SUM(OFFSET(テストデータ!W3,3,0):OFFSET(テストデータ!Y3,3,0)) -> 227 | U5: =SUM(OFFSET(テストデータ!W3,3,0):OFFSET(テストデータ!AA3,3,0)) -> 291 | V5: =SUM(OFFSET(テストデータ!AF3,3,0):OFFSET(テストデータ!AH3,3,0)) -> 131 | W5: =SUM(OFFSET(テストデータ!AF3,3,0):OFFSET(テストデータ!AJ3,3,0)) -> 251 | X5: =SUM(OFFSET(テストデータ!AO3,3,0):OFFSET(テストデータ!AQ3,3,0)) -> 0 | Y5: =SUM(OFFSET(テストデータ!AO3,3,0):OFFSET(テストデータ!AS3,3,0)) -> 0 | Z5: =SUM(OFFSET(テストデータ!AX3,3,0):OFFSET(テストデータ!AZ3,3,0)) -> 0 | AA5: =SUM(OFFSET(テストデータ!AX3,3,0):OFFSET(テストデータ!BB3,3,0)) -> 0 | AB5: =SUM(OFFSET(テストデータ!BG3,3,0):OFFSET(テストデータ!BI3,3,0)) -> 192 | AC5: =SUM(OFFSET(テストデータ!BG3,3,0):OFFSET(テストデータ!BK3,3,0)) -> 265 | AD5: =SUM(OFFSET(テストデータ!BL3,3,0):OFFSET(テストデータ!BN3,3,0)) -> 133 | AE5: =SUM(OFFSET(テストデータ!BL3,3,0):OFFSET(テストデータ!BP3,3,0)) -> 263 | AF5: =SUM(OFFSET(テストデータ!BQ3,3,0):OFFSET(テストデータ!BS3,3,0)) -> 148 | AG5: =SUM(OFFSET(テストデータ!BQ3,3,0):OFFSET(テストデータ!BU3,3,0)) -> 289 | AH5: =SUM(OFFSET(テストデータ!BV3,3,0):OFFSET(テストデータ!BX3,3,0)) -> 138 | AI5: =SUM(OFFSET(テストデータ!BV3,3,0):OFFSET(テストデータ!BZ3,3,0)) -> 283 | AJ5: =SUM(OFFSET(テストデータ!CA3,3,0):OFFSET(テストデータ!CC3,3,0)) -> 183 | AK5: =SUM(OFFSET(テストデータ!CA3,3,0):OFFSET(テストデータ!CE3,3,0)) -> 267 | AL5: =SUM(OFFSET(テストデータ!CF3,3,0):OFFSET(テストデータ!CH3,3,0)) -> 131 | AM5: =SUM(OFFSET(テストデータ!CF3,3,0):OFFSET(テストデータ!CJ3,3,0)) -> 229 | AN5: =SUM(OFFSET(テストデータ!CK3,3,0):OFFSET(テストデータ!CM3,3,0)) -> 190 | AO5: =SUM(OFFSET(テストデータ!CK3,3,0):OFFSET(テストデータ!CO3,3,0)) -> 285 | AP5: =SUM(OFFSET(テストデータ!CP3,3,0):OFFSET(テストデータ!CR3,3,0)) -> 0 | AQ5: =SUM(OFFSET(テストデータ!CP3,3,0):OFFSET(テストデータ!CT3,3,0)) -> 0
B6: 科目2 | C6: 数学 | N6: =SUM(OFFSET(テストデータ!$E3,4,9*成績表1!$B$4-9):OFFSET(テストデータ!$G3,4,9*成績表1!$B$4-9)) -> 149 | O6: =SUM(OFFSET(テストデータ!$E3,4,9*成績表1!$B$4-9):OFFSET(テストデータ!I3,4,9*成績表1!$B$4-9)) -> 231 | P6: =SUM(OFFSET(テストデータ!E3,4,0):OFFSET(テストデータ!G3,4,0)) -> 124 | Q6: =SUM(OFFSET(テストデータ!E3,4,0):OFFSET(テストデータ!I3,4,0)) -> 235 | R6: =SUM(OFFSET(テストデータ!N3,4,0):OFFSET(テストデータ!P3,4,0)) -> 149 | S6: =SUM(OFFSET(テストデータ!N3,4,0):OFFSET(テストデータ!R3,4,0)) -> 231 | T6: =SUM(OFFSET(テストデータ!W3,4,0):OFFSET(テストデータ!Y3,4,0)) -> 88 | U6: =SUM(OFFSET(テストデータ!W3,4,0):OFFSET(テストデータ!AA3,4,0)) -> 212 | V6: =SUM(OFFSET(テストデータ!AF3,4,0):OFFSET(テストデータ!AH3,4,0)) -> 89 | W6: =SUM(OFFSET(テストデータ!AF3,4,0):OFFSET(テストデータ!AJ3,4,0)) -> 148 | X6: =SUM(OFFSET(テストデータ!AO3,4,0):OFFSET(テストデータ!AQ3,4,0)) -> 0 | Y6: =SUM(OFFSET(テストデータ!AO3,4,0):OFFSET(テストデータ!AS3,4,0)) -> 0 | Z6: =SUM(OFFSET(テストデータ!AX3,4,0):OFFSET(テストデータ!AZ3,4,0)) -> 0 | AA6: =SUM(OFFSET(テストデータ!AX3,4,0):OFFSET(テストデータ!BB3,4,0)) -> 0 | AB6: =SUM(OFFSET(テストデータ!BG3,4,0):OFFSET(テストデータ!BI3,4,0)) -> 206 | AC6: =SUM(OFFSET(テストデータ!BG3,4,0):OFFSET(テストデータ!BK3,4,0)) -> 312 | AD6: =SUM(OFFSET(テストデータ!BL3,4,0):OFFSET(テストデータ!BN3,4,0)) -> 174 | AE6: =SUM(OFFSET(テストデータ!BL3,4,0):OFFSET(テストデータ!BP3,4,0)) -> 308 | AF6: =SUM(OFFSET(テストデータ!BQ3,4,0):OFFSET(テストデータ!BS3,4,0)) -> 118 | AG6: =SUM(OFFSET(テストデータ!BQ3,4,0):OFFSET(テストデータ!BU3,4,0)) -> 294 | AH6: =SUM(OFFSET(テストデータ!BV3,4,0):OFFSET(テストデータ!BX3,4,0)) -> 214 | AI6: =SUM(OFFSET(テストデータ!BV3,4,0):OFFSET(テストデータ!BZ3,4,0)) -> 370 | AJ6: =SUM(OFFSET(テストデータ!CA3,4,0):OFFSET(テストデータ!CC3,4,0)) -> 204 | AK6: =SUM(OFFSET(テストデータ!CA3,4,0):OFFSET(テストデータ!CE3,4,0)) -> 304 | AL6: =SUM(OFFSET(テストデータ!CF3,4,0):OFFSET(テストデータ!CH3,4,0)) -> 210 | AM6: =SUM(OFFSET(テストデータ!CF3,4,0):OFFSET(テストデータ!CJ3,4,0)) -> 362 | AN6: =SUM(OFFSET(テストデータ!CK3,4,0):OFFSET(テストデータ!CM3,4,0)) -> 176 | AO6: =SUM(OFFSET(テストデータ!CK3,4,0):OFFSET(テストデータ!CO3,4,0)) -> 276 | AP6: =SUM(OFFSET(テストデータ!CP3,4,0):OFFSET(テストデータ!CR3,4,0)) -> 0 | AQ6: =SUM(OFFSET(テストデータ!CP3,4,0):OFFSET(テストデータ!CT3,4,0)) -> 0
B7: 科目3 | C7: 英語 | N7: =SUM(OFFSET(テストデータ!$E3,5,9*成績表1!$B$4-9):OFFSET(テストデータ!$G3,5,9*成績表1!$B$4-9)) -> 138 | O7: =SUM(OFFSET(テストデータ!$E3,5,9*成績表1!$B$4-9):OFFSET(テストデータ!I3,5,9*成績表1!$B$4-9)) -> 332 | P7: =SUM(OFFSET(テストデータ!E3,5,0):OFFSET(テストデータ!G3,5,0)) -> 243 | Q7: =SUM(OFFSET(テストデータ!E3,5,0):OFFSET(テストデータ!I3,5,0)) -> 339 | R7: =SUM(OFFSET(テストデータ!N3,5,0):OFFSET(テストデータ!P3,5,0)) -> 138 | S7: =SUM(OFFSET(テストデータ!N3,5,0):OFFSET(テストデータ!R3,5,0)) -> 332 | T7: =SUM(OFFSET(テストデータ!W3,5,0):OFFSET(テストデータ!Y3,5,0)) -> 188 | U7: =SUM(OFFSET(テストデータ!W3,5,0):OFFSET(テストデータ!AA3,5,0)) -> 333 | V7: =SUM(OFFSET(テストデータ!AF3,5,0):OFFSET(テストデータ!AH3,5,0)) -> 210 | W7: =SUM(OFFSET(テストデータ!AF3,5,0):OFFSET(テストデータ!AJ3,5,0)) -> 313 | X7: =SUM(OFFSET(テストデータ!AO3,5,0):OFFSET(テストデータ!AQ3,5,0)) -> 0 | Y7: =SUM(OFFSET(テストデータ!AO3,5,0):OFFSET(テストデータ!AS3,5,0)) -> 0 | Z7: =SUM(OFFSET(テストデータ!AX3,5,0):OFFSET(テストデータ!AZ3,5,0)) -> 0 | AA7: =SUM(OFFSET(テストデータ!AX3,5,0):OFFSET(テストデータ!BB3,5,0)) -> 0 | AB7: =SUM(OFFSET(テストデータ!BG3,5,0):OFFSET(テストデータ!BI3,5,0)) -> 99 | AC7: =SUM(OFFSET(テストデータ!BG3,5,0):OFFSET(テストデータ!BK3,5,0)) -> 240 | AD7: =SUM(OFFSET(テストデータ!BL3,5,0):OFFSET(テストデータ!BN3,5,0)) -> 137 | AE7: =SUM(OFFSET(テストデータ!BL3,5,0):OFFSET(テストデータ!BP3,5,0)) -> 189 | AF7: =SUM(OFFSET(テストデータ!BQ3,5,0):OFFSET(テストデータ!BS3,5,0)) -> 223 | AG7: =SUM(OFFSET(テストデータ!BQ3,5,0):OFFSET(テストデータ!BU3,5,0)) -> 306 | AH7: =SUM(OFFSET(テストデータ!BV3,5,0):OFFSET(テストデータ!BX3,5,0)) -> 172 | AI7: =SUM(OFFSET(テストデータ!BV3,5,0):OFFSET(テストデータ!BZ3,5,0)) -> 260 | AJ7: =SUM(OFFSET(テストデータ!CA3,5,0):OFFSET(テストデータ!CC3,5,0)) -> 152 | AK7: =SUM(OFFSET(テストデータ!CA3,5,0):OFFSET(テストデータ!CE3,5,0)) -> 249 | AL7: =SUM(OFFSET(テストデータ!CF3,5,0):OFFSET(テストデータ!CH3,5,0)) -> 151 | AM7: =SUM(OFFSET(テストデータ!CF3,5,0):OFFSET(テストデータ!CJ3,5,0)) -> 286 | AN7: =SUM(OFFSET(テストデータ!CK3,5,0):OFFSET(テストデータ!CM3,5,0)) -> 71 | AO7: =SUM(OFFSET(テストデータ!CK3,5,0):OFFSET(テストデータ!CO3,5,0)) -> 238 | AP7: =SUM(OFFSET(テストデータ!CP3,5,0):OFFSET(テストデータ!CR3,5,0)) -> 0 | AQ7: =SUM(OFFSET(テストデータ!CP3,5,0):OFFSET(テストデータ!CT3,5,0)) -> 0
B8: 科目4 | C8: 社会 | N8: =SUM(OFFSET(テストデータ!$E3,6,9*成績表1!$B$4-9):OFFSET(テストデータ!$G3,6,9*成績表1!$B$4-9)) -> 89 | O8: =SUM(OFFSET(テストデータ!$E3,6,9*成績表1!$B$4-9):OFFSET(テストデータ!I3,6,9*成績表1!$B$4-9)) -> 230 | P8: =SUM(OFFSET(テストデータ!E3,6,0):OFFSET(テストデータ!G3,6,0)) -> 128 | Q8: =SUM(OFFSET(テストデータ!E3,6,0):OFFSET(テストデータ!I3,6,0)) -> 253 | R8: =SUM(OFFSET(テストデータ!N3,6,0):OFFSET(テストデータ!P3,6,0)) -> 89 | S8: =SUM(OFFSET(テストデータ!N3,6,0):OFFSET(テストデータ!R3,6,0)) -> 230 | T8: =SUM(OFFSET(テストデータ!W3,6,0):OFFSET(テストデータ!Y3,6,0)) -> 133 | U8: =SUM(OFFSET(テストデータ!W3,6,0):OFFSET(テストデータ!AA3,6,0)) -> 234 | V8: =SUM(OFFSET(テストデータ!AF3,6,0):OFFSET(テストデータ!AH3,6,0)) -> 149 | W8: =SUM(OFFSET(テストデータ!AF3,6,0):OFFSET(テストデータ!AJ3,6,0)) -> 228 | X8: =SUM(OFFSET(テストデータ!AO3,6,0):OFFSET(テストデータ!AQ3,6,0)) -> 0 | Y8: =SUM(OFFSET(テストデータ!AO3,6,0):OFFSET(テストデータ!AS3,6,0)) -> 0 | Z8: =SUM(OFFSET(テストデータ!AX3,6,0):OFFSET(テストデータ!AZ3,6,0)) -> 0 | AA8: =SUM(OFFSET(テストデータ!AX3,6,0):OFFSET(テストデータ!BB3,6,0)) -> 0 | AB8: =SUM(OFFSET(テストデータ!BG3,6,0):OFFSET(テストデータ!BI3,6,0)) -> 161 | AC8: =SUM(OFFSET(テストデータ!BG3,6,0):OFFSET(テストデータ!BK3,6,0)) -> 331 | AD8: =SUM(OFFSET(テストデータ!BL3,6,0):OFFSET(テストデータ!BN3,6,0)) -> 204 | AE8: =SUM(OFFSET(テストデータ!BL3,6,0):OFFSET(テストデータ!BP3,6,0)) -> 341 | AF8: =SUM(OFFSET(テストデータ!BQ3,6,0):OFFSET(テストデータ!BS3,6,0)) -> 98 | AG8: =SUM(OFFSET(テストデータ!BQ3,6,0):OFFSET(テストデータ!BU3,6,0)) -> 174 | AH8: =SUM(OFFSET(テストデータ!BV3,6,0):OFFSET(テストデータ!BX3,6,0)) -> 204 | AI8: =SUM(OFFSET(テストデータ!BV3,6,0):OFFSET(テストデータ!BZ3,6,0)) -> 302 | AJ8: =SUM(OFFSET(テストデータ!CA3,6,0):OFFSET(テストデータ!CC3,6,0)) -> 147 | AK8: =SUM(OFFSET(テストデータ!CA3,6,0):OFFSET(テストデータ!CE3,6,0)) -> 252 | AL8: =SUM(OFFSET(テストデータ!CF3,6,0):OFFSET(テストデータ!CH3,6,0)) -> 202 | AM8: =SUM(OFFSET(テストデータ!CF3,6,0):OFFSET(テストデータ!CJ3,6,0)) -> 288 | AN8: =SUM(OFFSET(テストデータ!CK3,6,0):OFFSET(テストデータ!CM3,6,0)) -> 203 | AO8: =SUM(OFFSET(テストデータ!CK3,6,0):OFFSET(テストデータ!CO3,6,0)) -> 289 | AP8: =SUM(OFFSET(テストデータ!CP3,6,0):OFFSET(テストデータ!CR3,6,0)) -> 0 | AQ8: =SUM(OFFSET(テストデータ!CP3,6,0):OFFSET(テストデータ!CT3,6,0)) -> 0
B9: 科目5 | C9: 理科 | N9: =SUM(OFFSET(テストデータ!$E3,7,9*成績表1!$B$4-9):OFFSET(テストデータ!$G3,7,9*成績表1!$B$4-9)) -> 188 | O9: =SUM(OFFSET(テストデータ!$E3,7,9*成績表1!$B$4-9):OFFSET(テストデータ!I3,7,9*成績表1!$B$4-9)) -> 317 | P9: =SUM(OFFSET(テストデータ!E3,7,0):OFFSET(テストデータ!G3,7,0)) -> 191 | Q9: =SUM(OFFSET(テストデータ!E3,7,0):OFFSET(テストデータ!I3,7,0)) -> 301 | R9: =SUM(OFFSET(テストデータ!N3,7,0):OFFSET(テストデータ!P3,7,0)) -> 188 | S9: =SUM(OFFSET(テストデータ!N3,7,0):OFFSET(テストデータ!R3,7,0)) -> 317 | T9: =SUM(OFFSET(テストデータ!W3,7,0):OFFSET(テストデータ!Y3,7,0)) -> 186 | U9: =SUM(OFFSET(テストデータ!W3,7,0):OFFSET(テストデータ!AA3,7,0)) -> 306 | V9: =SUM(OFFSET(テストデータ!AF3,7,0):OFFSET(テストデータ!AH3,7,0)) -> 171 | W9: =SUM(OFFSET(テストデータ!AF3,7,0):OFFSET(テストデータ!AJ3,7,0)) -> 275 | X9: =SUM(OFFSET(テストデータ!AO3,7,0):OFFSET(テストデータ!AQ3,7,0)) -> 0 | Y9: =SUM(OFFSET(テストデータ!AO3,7,0):OFFSET(テストデータ!AS3,7,0)) -> 0 | Z9: =SUM(OFFSET(テストデータ!AX3,7,0):OFFSET(テストデータ!AZ3,7,0)) -> 0 | AA9: =SUM(OFFSET(テストデータ!AX3,7,0):OFFSET(テストデータ!BB3,7,0)) -> 0 | AB9: =SUM(OFFSET(テストデータ!BG3,7,0):OFFSET(テストデータ!BI3,7,0)) -> 151 | AC9: =SUM(OFFSET(テストデータ!BG3,7,0):OFFSET(テストデータ!BK3,7,0)) -> 228 | AD9: =SUM(OFFSET(テストデータ!BL3,7,0):OFFSET(テストデータ!BN3,7,0)) -> 146 | AE9: =SUM(OFFSET(テストデータ!BL3,7,0):OFFSET(テストデータ!BP3,7,0)) -> 270 | AF9: =SUM(OFFSET(テストデータ!BQ3,7,0):OFFSET(テストデータ!BS3,7,0)) -> 101 | AG9: =SUM(OFFSET(テストデータ!BQ3,7,0):OFFSET(テストデータ!BU3,7,0)) -> 180 | AH9: =SUM(OFFSET(テストデータ!BV3,7,0):OFFSET(テストデータ!BX3,7,0)) -> 150 | AI9: =SUM(OFFSET(テストデータ!BV3,7,0):OFFSET(テストデータ!BZ3,7,0)) -> 257 | AJ9: =SUM(OFFSET(テストデータ!CA3,7,0):OFFSET(テストデータ!CC3,7,0)) -> 110 | AK9: =SUM(OFFSET(テストデータ!CA3,7,0):OFFSET(テストデータ!CE3,7,0)) -> 161 | AL9: =SUM(OFFSET(テストデータ!CF3,7,0):OFFSET(テストデータ!CH3,7,0)) -> 79 | AM9: =SUM(OFFSET(テストデータ!CF3,7,0):OFFSET(テストデータ!CJ3,7,0)) -> 156 | AN9: =SUM(OFFSET(テストデータ!CK3,7,0):OFFSET(テストデータ!CM3,7,0)) -> 218 | AO9: =SUM(OFFSET(テストデータ!CK3,7,0):OFFSET(テストデータ!CO3,7,0)) -> 278 | AP9: =SUM(OFFSET(テストデータ!CP3,7,0):OFFSET(テストデータ!CR3,7,0)) -> 0 | AQ9: =SUM(OFFSET(テストデータ!CP3,7,0):OFFSET(テストデータ!CT3,7,0)) -> 0
B10: 科目6 | C10: 保体 | N10: =SUM(OFFSET(テストデータ!$E3,8,9*成績表1!$B$4-9):OFFSET(テストデータ!$G3,8,9*成績表1!$B$4-9)) -> 183 | O10: =SUM(OFFSET(テストデータ!$E3,8,9*成績表1!$B$4-9):OFFSET(テストデータ!I3,8,9*成績表1!$B$4-9)) -> 306 | P10: =SUM(OFFSET(テストデータ!E3,8,0):OFFSET(テストデータ!G3,8,0)) -> 200 | Q10: =SUM(OFFSET(テストデータ!E3,8,0):OFFSET(テストデータ!I3,8,0)) -> 264 | R10: =SUM(OFFSET(テストデータ!N3,8,0):OFFSET(テストデータ!P3,8,0)) -> 183 | S10: =SUM(OFFSET(テストデータ!N3,8,0):OFFSET(テストデータ!R3,8,0)) -> 306 | T10: =SUM(OFFSET(テストデータ!W3,8,0):OFFSET(テストデータ!Y3,8,0)) -> 141 | U10: =SUM(OFFSET(テストデータ!W3,8,0):OFFSET(テストデータ!AA3,8,0)) -> 262 | V10: =SUM(OFFSET(テストデータ!AF3,8,0):OFFSET(テストデータ!AH3,8,0)) -> 177 | W10: =SUM(OFFSET(テストデータ!AF3,8,0):OFFSET(テストデータ!AJ3,8,0)) -> 250 | X10: =SUM(OFFSET(テストデータ!AO3,8,0):OFFSET(テストデータ!AQ3,8,0)) -> 0 | Y10: =SUM(OFFSET(テストデータ!AO3,8,0):OFFSET(テストデータ!AS3,8,0)) -> 0 | Z10: =SUM(OFFSET(テストデータ!AX3,8,0):OFFSET(テストデータ!AZ3,8,0)) -> 0 | AA10: =SUM(OFFSET(テストデータ!AX3,8,0):OFFSET(テストデータ!BB3,8,0)) -> 0 | AB10: =SUM(OFFSET(テストデータ!BG3,8,0):OFFSET(テストデータ!BI3,8,0)) -> 132 | AC10: =SUM(OFFSET(テストデータ!BG3,8,0):OFFSET(テストデータ!BK3,8,0)) -> 209 | AD10: =SUM(OFFSET(テストデータ!BL3,8,0):OFFSET(テストデータ!BN3,8,0)) -> 109 | AE10: =SUM(OFFSET(テストデータ!BL3,8,0):OFFSET(テストデータ!BP3,8,0)) -> 175 | AF10: =SUM(OFFSET(テストデータ!BQ3,8,0):OFFSET(テストデータ!BS3,8,0)) -> 61 | AG10: =SUM(OFFSET(テストデータ!BQ3,8,0):OFFSET(テストデータ!BU3,8,0)) -> 170 | AH10: =SUM(OFFSET(テストデータ!BV3,8,0):OFFSET(テストデータ!BX3,8,0)) -> 114 | AI10: =SUM(OFFSET(テストデータ!BV3,8,0):OFFSET(テストデータ!BZ3,8,0)) -> 264 | AJ10: =SUM(OFFSET(テストデータ!CA3,8,0):OFFSET(テストデータ!CC3,8,0)) -> 153 | AK10: =SUM(OFFSET(テストデータ!CA3,8,0):OFFSET(テストデータ!CE3,8,0)) -> 177 | AL10: =SUM(OFFSET(テストデータ!CF3,8,0):OFFSET(テストデータ!CH3,8,0)) -> 25 | AM10: =SUM(OFFSET(テストデータ!CF3,8,0):OFFSET(テストデータ!CJ3,8,0)) -> 126 | AN10: =SUM(OFFSET(テストデータ!CK3,8,0):OFFSET(テストデータ!CM3,8,0)) -> 161 | AO10: =SUM(OFFSET(テストデータ!CK3,8,0):OFFSET(テストデータ!CO3,8,0)) -> 189 | AP10: =SUM(OFFSET(テストデータ!CP3,8,0):OFFSET(テストデータ!CR3,8,0)) -> 0 | AQ10: =SUM(OFFSET(テストデータ!CP3,8,0):OFFSET(テストデータ!CT3,8,0)) -> 0
B11: 科目7 | C11: 技家 | N11: =SUM(OFFSET(テストデータ!$E3,9,9*成績表1!$B$4-9):OFFSET(テストデータ!$G3,9,9*成績表1!$B$4-9)) -> 243 | O11: =SUM(OFFSET(テストデータ!$E3,9,9*成績表1!$B$4-9):OFFSET(テストデータ!I3,9,9*成績表1!$B$4-9)) -> 310 | P11: =SUM(OFFSET(テストデータ!E3,9,0):OFFSET(テストデータ!G3,9,0)) -> 217 | Q11: =SUM(OFFSET(テストデータ!E3,9,0):OFFSET(テストデータ!I3,9,0)) -> 309 | R11: =SUM(OFFSET(テストデータ!N3,9,0):OFFSET(テストデータ!P3,9,0)) -> 243 | S11: =SUM(OFFSET(テストデータ!N3,9,0):OFFSET(テストデータ!R3,9,0)) -> 310 | T11: =SUM(OFFSET(テストデータ!W3,9,0):OFFSET(テストデータ!Y3,9,0)) -> 219 | U11: =SUM(OFFSET(テストデータ!W3,9,0):OFFSET(テストデータ!AA3,9,0)) -> 379 | V11: =SUM(OFFSET(テストデータ!AF3,9,0):OFFSET(テストデータ!AH3,9,0)) -> 217 | W11: =SUM(OFFSET(テストデータ!AF3,9,0):OFFSET(テストデータ!AJ3,9,0)) -> 374 | X11: =SUM(OFFSET(テストデータ!AO3,9,0):OFFSET(テストデータ!AQ3,9,0)) -> 0 | Y11: =SUM(OFFSET(テストデータ!AO3,9,0):OFFSET(テストデータ!AS3,9,0)) -> 0 | Z11: =SUM(OFFSET(テストデータ!AX3,9,0):OFFSET(テストデータ!AZ3,9,0)) -> 0 | AA11: =SUM(OFFSET(テストデータ!AX3,9,0):OFFSET(テストデータ!BB3,9,0)) -> 0 | AB11: =SUM(OFFSET(テストデータ!BG3,9,0):OFFSET(テストデータ!BI3,9,0)) -> 138 | AC11: =SUM(OFFSET(テストデータ!BG3,9,0):OFFSET(テストデータ!BK3,9,0)) -> 211 | AD11: =SUM(OFFSET(テストデータ!BL3,9,0):OFFSET(テストデータ!BN3,9,0)) -> 183 | AE11: =SUM(OFFSET(テストデータ!BL3,9,0):OFFSET(テストデータ!BP3,9,0)) -> 300 | AF11: =SUM(OFFSET(テストデータ!BQ3,9,0):OFFSET(テストデータ!BS3,9,0)) -> 178 | AG11: =SUM(OFFSET(テストデータ!BQ3,9,0):OFFSET(テストデータ!BU3,9,0)) -> 301 | AH11: =SUM(OFFSET(テストデータ!BV3,9,0):OFFSET(テストデータ!BX3,9,0)) -> 122 | AI11: =SUM(OFFSET(テストデータ!BV3,9,0):OFFSET(テストデータ!BZ3,9,0)) -> 254 | AJ11: =SUM(OFFSET(テストデータ!CA3,9,0):OFFSET(テストデータ!CC3,9,0)) -> 148 | AK11: =SUM(OFFSET(テストデータ!CA3,9,0):OFFSET(テストデータ!CE3,9,0)) -> 260 | AL11: =SUM(OFFSET(テストデータ!CF3,9,0):OFFSET(テストデータ!CH3,9,0)) -> 146 | AM11: =SUM(OFFSET(テストデータ!CF3,9,0):OFFSET(テストデータ!CJ3,9,0)) -> 268 | AN11: =SUM(OFFSET(テストデータ!CK3,9,0):OFFSET(テストデータ!CM3,9,0)) -> 203 | AO11: =SUM(OFFSET(テストデータ!CK3,9,0):OFFSET(テストデータ!CO3,9,0)) -> 283 | AP11: =SUM(OFFSET(テストデータ!CP3,9,0):OFFSET(テストデータ!CR3,9,0)) -> 0 | AQ11: =SUM(OFFSET(テストデータ!CP3,9,0):OFFSET(テストデータ!CT3,9,0)) -> 0
B12: 科目8 | C12: 美術 | N12: =SUM(OFFSET(テストデータ!$E3,10,9*成績表1!$B$4-9):OFFSET(テストデータ!$G3,10,9*成績表1!$B$4-9)) -> 188 | O12: =SUM(OFFSET(テストデータ!$E3,10,9*成績表1!$B$4-9):OFFSET(テストデータ!I3,10,9*成績表1!$B$4-9)) -> 237 | P12: =SUM(OFFSET(テストデータ!E3,10,0):OFFSET(テストデータ!G3,10,0)) -> 121 | Q12: =SUM(OFFSET(テストデータ!E3,10,0):OFFSET(テストデータ!I3,10,0)) -> 227 | R12: =SUM(OFFSET(テストデータ!N3,10,0):OFFSET(テストデータ!P3,10,0)) -> 188 | S12: =SUM(OFFSET(テストデータ!N3,10,0):OFFSET(テストデータ!R3,10,0)) -> 237 | T12: =SUM(OFFSET(テストデータ!W3,10,0):OFFSET(テストデータ!Y3,10,0)) -> 139 | U12: =SUM(OFFSET(テストデータ!W3,10,0):OFFSET(テストデータ!AA3,10,0)) -> 231 | V12: =SUM(OFFSET(テストデータ!AF3,10,0):OFFSET(テストデータ!AH3,10,0)) -> 180 | W12: =SUM(OFFSET(テストデータ!AF3,10,0):OFFSET(テストデータ!AJ3,10,0)) -> 280 | X12: =SUM(OFFSET(テストデータ!AO3,10,0):OFFSET(テストデータ!AQ3,10,0)) -> 0 | Y12: =SUM(OFFSET(テストデータ!AO3,10,0):OFFSET(テストデータ!AS3,10,0)) -> 0 | Z12: =SUM(OFFSET(テストデータ!AX3,10,0):OFFSET(テストデータ!AZ3,10,0)) -> 0 | AA12: =SUM(OFFSET(テストデータ!AX3,10,0):OFFSET(テストデータ!BB3,10,0)) -> 0 | AB12: =SUM(OFFSET(テストデータ!BG3,10,0):OFFSET(テストデータ!BI3,10,0)) -> 97 | AC12: =SUM(OFFSET(テストデータ!BG3,10,0):OFFSET(テストデータ!BK3,10,0)) -> 196 | AD12: =SUM(OFFSET(テストデータ!BL3,10,0):OFFSET(テストデータ!BN3,10,0)) -> 169 | AE12: =SUM(OFFSET(テストデータ!BL3,10,0):OFFSET(テストデータ!BP3,10,0)) -> 312 | AF12: =SUM(OFFSET(テストデータ!BQ3,10,0):OFFSET(テストデータ!BS3,10,0)) -> 227 | AG12: =SUM(OFFSET(テストデータ!BQ3,10,0):OFFSET(テストデータ!BU3,10,0)) -> 353 | AH12: =SUM(OFFSET(テストデータ!BV3,10,0):OFFSET(テストデータ!BX3,10,0)) -> 159 | AI12: =SUM(OFFSET(テストデータ!BV3,10,0):OFFSET(テストデータ!BZ3,10,0)) -> 309 | AJ12: =SUM(OFFSET(テストデータ!CA3,10,0):OFFSET(テストデータ!CC3,10,0)) -> 224 | AK12: =SUM(OFFSET(テストデータ!CA3,10,0):OFFSET(テストデータ!CE3,10,0)) -> 332 | AL12: =SUM(OFFSET(テストデータ!CF3,10,0):OFFSET(テストデータ!CH3,10,0)) -> 187 | AM12: =SUM(OFFSET(テストデータ!CF3,10,0):OFFSET(テストデータ!CJ3,10,0)) -> 347 | AN12: =SUM(OFFSET(テストデータ!CK3,10,0):OFFSET(テストデータ!CM3,10,0)) -> 176 | AO12: =SUM(OFFSET(テストデータ!CK3,10,0):OFFSET(テストデータ!CO3,10,0)) -> 334 | AP12: =SUM(OFFSET(テストデータ!CP3,10,0):OFFSET(テストデータ!CR3,10,0)) -> 0 | AQ12: =SUM(OFFSET(テストデータ!CP3,10,0):OFFSET(テストデータ!CT3,10,0)) -> 0
B13: 科目9 | C13: 音楽 | N13: =SUM(OFFSET(テストデータ!$E3,11,9*成績表1!$B$4-9):OFFSET(テストデータ!$G3,11,9*成績表1!$B$4-9)) -> 199 | O13: =SUM(OFFSET(テストデータ!$E3,11,9*成績表1!$B$4-9):OFFSET(テストデータ!I3,11,9*成績表1!$B$4-9)) -> 314 | P13: =SUM(OFFSET(テストデータ!E3,11,0):OFFSET(テストデータ!G3,11,0)) -> 136 | Q13: =SUM(OFFSET(テストデータ!E3,11,0):OFFSET(テストデータ!I3,11,0)) -> 268 | R13: =SUM(OFFSET(テストデータ!N3,11,0):OFFSET(テストデータ!P3,11,0)) -> 199 | S13: =SUM(OFFSET(テストデータ!N3,11,0):OFFSET(テストデータ!R3,11,0)) -> 314 | T13: =SUM(OFFSET(テストデータ!W3,11,0):OFFSET(テストデータ!Y3,11,0)) -> 229 | U13: =SUM(OFFSET(テストデータ!W3,11,0):OFFSET(テストデータ!AA3,11,0)) -> 320 | V13: =SUM(OFFSET(テストデータ!AF3,11,0):OFFSET(テストデータ!AH3,11,0)) -> 185 | W13: =SUM(OFFSET(テストデータ!AF3,11,0):OFFSET(テストデータ!AJ3,11,0)) -> 359 | X13: =SUM(OFFSET(テストデータ!AO3,11,0):OFFSET(テストデータ!AQ3,11,0)) -> 0 | Y13: =SUM(OFFSET(テストデータ!AO3,11,0):OFFSET(テストデータ!AS3,11,0)) -> 0 | Z13: =SUM(OFFSET(テストデータ!AX3,11,0):OFFSET(テストデータ!AZ3,11,0)) -> 0 | AA13: =SUM(OFFSET(テストデータ!AX3,11,0):OFFSET(テストデータ!BB3,11,0)) -> 0 | AB13: =SUM(OFFSET(テストデータ!BG3,11,0):OFFSET(テストデータ!BI3,11,0)) -> 222 | AC13: =SUM(OFFSET(テストデータ!BG3,11,0):OFFSET(テストデータ!BK3,11,0)) -> 351 | AD13: =SUM(OFFSET(テストデータ!BL3,11,0):OFFSET(テストデータ!BN3,11,0)) -> 229 | AE13: =SUM(OFFSET(テストデータ!BL3,11,0):OFFSET(テストデータ!BP3,11,0)) -> 329 | AF13: =SUM(OFFSET(テストデータ!BQ3,11,0):OFFSET(テストデータ!BS3,11,0)) -> 199 | AG13: =SUM(OFFSET(テストデータ!BQ3,11,0):OFFSET(テストデータ!BU3,11,0)) -> 302 | AH13: =SUM(OFFSET(テストデータ!BV3,11,0):OFFSET(テストデータ!BX3,11,0)) -> 211 | AI13: =SUM(OFFSET(テストデータ!BV3,11,0):OFFSET(テストデータ!BZ3,11,0)) -> 300 | AJ13: =SUM(OFFSET(テストデータ!CA3,11,0):OFFSET(テストデータ!CC3,11,0)) -> 222 | AK13: =SUM(OFFSET(テストデータ!CA3,11,0):OFFSET(テストデータ!CE3,11,0)) -> 381 | AL13: =SUM(OFFSET(テストデータ!CF3,11,0):OFFSET(テストデータ!CH3,11,0)) -> 218 | AM13: =SUM(OFFSET(テストデータ!CF3,11,0):OFFSET(テストデータ!CJ3,11,0)) -> 323 | AN13: =SUM(OFFSET(テストデータ!CK3,11,0):OFFSET(テストデータ!CM3,11,0)) -> 183 | AO13: =SUM(OFFSET(テストデータ!CK3,11,0):OFFSET(テストデータ!CO3,11,0)) -> 306 | AP13: =SUM(OFFSET(テストデータ!CP3,11,0):OFFSET(テストデータ!CR3,11,0)) -> 0 | AQ13: =SUM(OFFSET(テストデータ!CP3,11,0):OFFSET(テストデータ!CT3,11,0)) -> 0
B14: 定期テスト名1 | C14: 1学期 中間テスト | D14: 1 | G14: =IF(C5="","",C5) -> 国語 | H14: =IF(C22="","",C22) -> 国語 | N14: =SUM(OFFSET(テストデータ!$E3,12,9*成績表1!$B$4-9):OFFSET(テストデータ!$G3,12,9*成績表1!$B$4-9)) -> 110 | O14: =SUM(OFFSET(テストデータ!$E3,12,9*成績表1!$B$4-9):OFFSET(テストデータ!I3,12,9*成績表1!$B$4-9)) -> 186 | P14: =SUM(OFFSET(テストデータ!E3,12,0):OFFSET(テストデータ!G3,12,0)) -> 115 | Q14: =SUM(OFFSET(テストデータ!E3,12,0):OFFSET(テストデータ!I3,12,0)) -> 253 | R14: =SUM(OFFSET(テストデータ!N3,12,0):OFFSET(テストデータ!P3,12,0)) -> 110 | S14: =SUM(OFFSET(テストデータ!N3,12,0):OFFSET(テストデータ!R3,12,0)) -> 186 | T14: =SUM(OFFSET(テストデータ!W3,12,0):OFFSET(テストデータ!Y3,12,0)) -> 172 | U14: =SUM(OFFSET(テストデータ!W3,12,0):OFFSET(テストデータ!AA3,12,0)) -> 228 | V14: =SUM(OFFSET(テストデータ!AF3,12,0):OFFSET(テストデータ!AH3,12,0)) -> 67 | W14: =SUM(OFFSET(テストデータ!AF3,12,0):OFFSET(テストデータ!AJ3,12,0)) -> 124 | X14: =SUM(OFFSET(テストデータ!AO3,12,0):OFFSET(テストデータ!AQ3,12,0)) -> 0 | Y14: =SUM(OFFSET(テストデータ!AO3,12,0):OFFSET(テストデータ!AS3,12,0)) -> 0 | Z14: =SUM(OFFSET(テストデータ!AX3,12,0):OFFSET(テストデータ!AZ3,12,0)) -> 0 | AA14: =SUM(OFFSET(テストデータ!AX3,12,0):OFFSET(テストデータ!BB3,12,0)) -> 0 | AB14: =SUM(OFFSET(テストデータ!BG3,12,0):OFFSET(テストデータ!BI3,12,0)) -> 179 | AC14: =SUM(OFFSET(テストデータ!BG3,12,0):OFFSET(テストデータ!BK3,12,0)) -> 226 | AD14: =SUM(OFFSET(テストデータ!BL3,12,0):OFFSET(テストデータ!BN3,12,0)) -> 84 | AE14: =SUM(OFFSET(テストデータ!BL3,12,0):OFFSET(テストデータ!BP3,12,0)) -> 190 | AF14: =SUM(OFFSET(テストデータ!BQ3,12,0):OFFSET(テストデータ!BS3,12,0)) -> 180 | AG14: =SUM(OFFSET(テストデータ!BQ3,12,0):OFFSET(テストデータ!BU3,12,0)) -> 290 | AH14: =SUM(OFFSET(テストデータ!BV3,12,0):OFFSET(テストデータ!BX3,12,0)) -> 148 | AI14: =SUM(OFFSET(テストデータ!BV3,12,0):OFFSET(テストデータ!BZ3,12,0)) -> 236 | AJ14: =SUM(OFFSET(テストデータ!CA3,12,0):OFFSET(テストデータ!CC3,12,0)) -> 126 | AK14: =SUM(OFFSET(テストデータ!CA3,12,0):OFFSET(テストデータ!CE3,12,0)) -> 161 | AL14: =SUM(OFFSET(テストデータ!CF3,12,0):OFFSET(テストデータ!CH3,12,0)) -> 118 | AM14: =SUM(OFFSET(テストデータ!CF3,12,0):OFFSET(テストデータ!CJ3,12,0)) -> 172 | AN14: =SUM(OFFSET(テストデータ!CK3,12,0):OFFSET(テストデータ!CM3,12,0)) -> 130 | AO14: =SUM(OFFSET(テストデータ!CK3,12,0):OFFSET(テストデータ!CO3,12,0)) -> 180 | AP14: =SUM(OFFSET(テストデータ!CP3,12,0):OFFSET(テストデータ!CR3,12,0)) -> 0 | AQ14: =SUM(OFFSET(テストデータ!CP3,12,0):OFFSET(テストデータ!CT3,12,0)) -> 0
B15: 定期テスト名2 | C15: 1学期 期末テスト | D15: 2 | G15: =IF(C6="","",C6) -> 数学 | H15: =IF(C23="","",C23) -> 数学 | N15: =SUM(OFFSET(テストデータ!$E3,13,9*成績表1!$B$4-9):OFFSET(テストデータ!$G3,13,9*成績表1!$B$4-9)) -> 185 | O15: =SUM(OFFSET(テストデータ!$E3,13,9*成績表1!$B$4-9):OFFSET(テストデータ!I3,13,9*成績表1!$B$4-9)) -> 305 | P15: =SUM(OFFSET(テストデータ!E3,13,0):OFFSET(テストデータ!G3,13,0)) -> 113 | Q15: =SUM(OFFSET(テストデータ!E3,13,0):OFFSET(テストデータ!I3,13,0)) -> 294 | R15: =SUM(OFFSET(テストデータ!N3,13,0):OFFSET(テストデータ!P3,13,0)) -> 185 | S15: =SUM(OFFSET(テストデータ!N3,13,0):OFFSET(テストデータ!R3,13,0)) -> 305 | T15: =SUM(OFFSET(テストデータ!W3,13,0):OFFSET(テストデータ!Y3,13,0)) -> 261 | U15: =SUM(OFFSET(テストデータ!W3,13,0):OFFSET(テストデータ!AA3,13,0)) -> 299 | V15: =SUM(OFFSET(テストデータ!AF3,13,0):OFFSET(テストデータ!AH3,13,0)) -> 199 | W15: =SUM(OFFSET(テストデータ!AF3,13,0):OFFSET(テストデータ!AJ3,13,0)) -> 325 | X15: =SUM(OFFSET(テストデータ!AO3,13,0):OFFSET(テストデータ!AQ3,13,0)) -> 0 | Y15: =SUM(OFFSET(テストデータ!AO3,13,0):OFFSET(テストデータ!AS3,13,0)) -> 0 | Z15: =SUM(OFFSET(テストデータ!AX3,13,0):OFFSET(テストデータ!AZ3,13,0)) -> 0 | AA15: =SUM(OFFSET(テストデータ!AX3,13,0):OFFSET(テストデータ!BB3,13,0)) -> 0 | AB15: =SUM(OFFSET(テストデータ!BG3,13,0):OFFSET(テストデータ!BI3,13,0)) -> 135 | AC15: =SUM(OFFSET(テストデータ!BG3,13,0):OFFSET(テストデータ!BK3,13,0)) -> 287 | AD15: =SUM(OFFSET(テストデータ!BL3,13,0):OFFSET(テストデータ!BN3,13,0)) -> 164 | AE15: =SUM(OFFSET(テストデータ!BL3,13,0):OFFSET(テストデータ!BP3,13,0)) -> 203 | AF15: =SUM(OFFSET(テストデータ!BQ3,13,0):OFFSET(テストデータ!BS3,13,0)) -> 209 | AG15: =SUM(OFFSET(テストデータ!BQ3,13,0):OFFSET(テストデータ!BU3,13,0)) -> 249 | AH15: =SUM(OFFSET(テストデータ!BV3,13,0):OFFSET(テストデータ!BX3,13,0)) -> 170 | AI15: =SUM(OFFSET(テストデータ!BV3,13,0):OFFSET(テストデータ!BZ3,13,0)) -> 216 | AJ15: =SUM(OFFSET(テストデータ!CA3,13,0):OFFSET(テストデータ!CC3,13,0)) -> 189 | AK15: =SUM(OFFSET(テストデータ!CA3,13,0):OFFSET(テストデータ!CE3,13,0)) -> 284 | AL15: =SUM(OFFSET(テストデータ!CF3,13,0):OFFSET(テストデータ!CH3,13,0)) -> 101 | AM15: =SUM(OFFSET(テストデータ!CF3,13,0):OFFSET(テストデータ!CJ3,13,0)) -> 188 | AN15: =SUM(OFFSET(テストデータ!CK3,13,0):OFFSET(テストデータ!CM3,13,0)) -> 120 | AO15: =SUM(OFFSET(テストデータ!CK3,13,0):OFFSET(テストデータ!CO3,13,0)) -> 252 | AP15: =SUM(OFFSET(テストデータ!CP3,13,0):OFFSET(テストデータ!CR3,13,0)) -> 0 | AQ15: =SUM(OFFSET(テストデータ!CP3,13,0):OFFSET(テストデータ!CT3,13,0)) -> 0
B16: 定期テスト名3 | C16: 2学期 中間テスト | D16: 3 | G16: 英語 | H16: 英語 | N16: =SUM(OFFSET(テストデータ!$E3,14,9*成績表1!$B$4-9):OFFSET(テストデータ!$G3,14,9*成績表1!$B$4-9)) -> 156 | O16: =SUM(OFFSET(テストデータ!$E3,14,9*成績表1!$B$4-9):OFFSET(テストデータ!I3,14,9*成績表1!$B$4-9)) -> 260 | P16: =SUM(OFFSET(テストデータ!E3,14,0):OFFSET(テストデータ!G3,14,0)) -> 117 | Q16: =SUM(OFFSET(テストデータ!E3,14,0):OFFSET(テストデータ!I3,14,0)) -> 249 | R16: =SUM(OFFSET(テストデータ!N3,14,0):OFFSET(テストデータ!P3,14,0)) -> 156 | S16: =SUM(OFFSET(テストデータ!N3,14,0):OFFSET(テストデータ!R3,14,0)) -> 260 | T16: =SUM(OFFSET(テストデータ!W3,14,0):OFFSET(テストデータ!Y3,14,0)) -> 128 | U16: =SUM(OFFSET(テストデータ!W3,14,0):OFFSET(テストデータ!AA3,14,0)) -> 216 | V16: =SUM(OFFSET(テストデータ!AF3,14,0):OFFSET(テストデータ!AH3,14,0)) -> 146 | W16: =SUM(OFFSET(テストデータ!AF3,14,0):OFFSET(テストデータ!AJ3,14,0)) -> 263 | X16: =SUM(OFFSET(テストデータ!AO3,14,0):OFFSET(テストデータ!AQ3,14,0)) -> 0 | Y16: =SUM(OFFSET(テストデータ!AO3,14,0):OFFSET(テストデータ!AS3,14,0)) -> 0 | Z16: =SUM(OFFSET(テストデータ!AX3,14,0):OFFSET(テストデータ!AZ3,14,0)) -> 0 | AA16: =SUM(OFFSET(テストデータ!AX3,14,0):OFFSET(テストデータ!BB3,14,0)) -> 0 | AB16: =SUM(OFFSET(テストデータ!BG3,14,0):OFFSET(テストデータ!BI3,14,0)) -> 147 | AC16: =SUM(OFFSET(テストデータ!BG3,14,0):OFFSET(テストデータ!BK3,14,0)) -> 286 | AD16: =SUM(OFFSET(テストデータ!BL3,14,0):OFFSET(テストデータ!BN3,14,0)) -> 184 | AE16: =SUM(OFFSET(テストデータ!BL3,14,0):OFFSET(テストデータ!BP3,14,0)) -> 294 | AF16: =SUM(OFFSET(テストデータ!BQ3,14,0):OFFSET(テストデータ!BS3,14,0)) -> 166 | AG16: =SUM(OFFSET(テストデータ!BQ3,14,0):OFFSET(テストデータ!BU3,14,0)) -> 236 | AH16: =SUM(OFFSET(テストデータ!BV3,14,0):OFFSET(テストデータ!BX3,14,0)) -> 175 | AI16: =SUM(OFFSET(テストデータ!BV3,14,0):OFFSET(テストデータ!BZ3,14,0)) -> 289 | AJ16: =SUM(OFFSET(テストデータ!CA3,14,0):OFFSET(テストデータ!CC3,14,0)) -> 173 | AK16: =SUM(OFFSET(テストデータ!CA3,14,0):OFFSET(テストデータ!CE3,14,0)) -> 315 | AL16: =SUM(OFFSET(テストデータ!CF3,14,0):OFFSET(テストデータ!CH3,14,0)) -> 117 | AM16: =SUM(OFFSET(テストデータ!CF3,14,0):OFFSET(テストデータ!CJ3,14,0)) -> 256 | AN16: =SUM(OFFSET(テストデータ!CK3,14,0):OFFSET(テストデータ!CM3,14,0)) -> 193 | AO16: =SUM(OFFSET(テストデータ!CK3,14,0):OFFSET(テストデータ!CO3,14,0)) -> 324 | AP16: =SUM(OFFSET(テストデータ!CP3,14,0):OFFSET(テストデータ!CR3,14,0)) -> 0 | AQ16: =SUM(OFFSET(テストデータ!CP3,14,0):OFFSET(テストデータ!CT3,14,0)) -> 0
B17: 定期テスト名4 | C17: 2学期 期末テスト | D17: 4 | G17: 社会 | H17: 社会 | N17: =SUM(OFFSET(テストデータ!$E3,15,9*成績表1!$B$4-9):OFFSET(テストデータ!$G3,15,9*成績表1!$B$4-9)) -> 253 | O17: =SUM(OFFSET(テストデータ!$E3,15,9*成績表1!$B$4-9):OFFSET(テストデータ!I3,15,9*成績表1!$B$4-9)) -> 362 | P17: =SUM(OFFSET(テストデータ!E3,15,0):OFFSET(テストデータ!G3,15,0)) -> 251 | Q17: =SUM(OFFSET(テストデータ!E3,15,0):OFFSET(テストデータ!I3,15,0)) -> 323 | R17: =SUM(OFFSET(テストデータ!N3,15,0):OFFSET(テストデータ!P3,15,0)) -> 253 | S17: =SUM(OFFSET(テストデータ!N3,15,0):OFFSET(テストデータ!R3,15,0)) -> 362 | T17: =SUM(OFFSET(テストデータ!W3,15,0):OFFSET(テストデータ!Y3,15,0)) -> 260 | U17: =SUM(OFFSET(テストデータ!W3,15,0):OFFSET(テストデータ!AA3,15,0)) -> 425 | V17: =SUM(OFFSET(テストデータ!AF3,15,0):OFFSET(テストデータ!AH3,15,0)) -> 276 | W17: =SUM(OFFSET(テストデータ!AF3,15,0):OFFSET(テストデータ!AJ3,15,0)) -> 405 | X17: =SUM(OFFSET(テストデータ!AO3,15,0):OFFSET(テストデータ!AQ3,15,0)) -> 0 | Y17: =SUM(OFFSET(テストデータ!AO3,15,0):OFFSET(テストデータ!AS3,15,0)) -> 0 | Z17: =SUM(OFFSET(テストデータ!AX3,15,0):OFFSET(テストデータ!AZ3,15,0)) -> 0 | AA17: =SUM(OFFSET(テストデータ!AX3,15,0):OFFSET(テストデータ!BB3,15,0)) -> 0 | AB17: =SUM(OFFSET(テストデータ!BG3,15,0):OFFSET(テストデータ!BI3,15,0)) -> 115 | AC17: =SUM(OFFSET(テストデータ!BG3,15,0):OFFSET(テストデータ!BK3,15,0)) -> 193 | AD17: =SUM(OFFSET(テストデータ!BL3,15,0):OFFSET(テストデータ!BN3,15,0)) -> 98 | AE17: =SUM(OFFSET(テストデータ!BL3,15,0):OFFSET(テストデータ!BP3,15,0)) -> 232 | AF17: =SUM(OFFSET(テストデータ!BQ3,15,0):OFFSET(テストデータ!BS3,15,0)) -> 76 | AG17: =SUM(OFFSET(テストデータ!BQ3,15,0):OFFSET(テストデータ!BU3,15,0)) -> 136 | AH17: =SUM(OFFSET(テストデータ!BV3,15,0):OFFSET(テストデータ!BX3,15,0)) -> 109 | AI17: =SUM(OFFSET(テストデータ!BV3,15,0):OFFSET(テストデータ!BZ3,15,0)) -> 168 | AJ17: =SUM(OFFSET(テストデータ!CA3,15,0):OFFSET(テストデータ!CC3,15,0)) -> 159 | AK17: =SUM(OFFSET(テストデータ!CA3,15,0):OFFSET(テストデータ!CE3,15,0)) -> 213 | AL17: =SUM(OFFSET(テストデータ!CF3,15,0):OFFSET(テストデータ!CH3,15,0)) -> 106 | AM17: =SUM(OFFSET(テストデータ!CF3,15,0):OFFSET(テストデータ!CJ3,15,0)) -> 149 | AN17: =SUM(OFFSET(テストデータ!CK3,15,0):OFFSET(テストデータ!CM3,15,0)) -> 167 | AO17: =SUM(OFFSET(テストデータ!CK3,15,0):OFFSET(テストデータ!CO3,15,0)) -> 208 | AP17: =SUM(OFFSET(テストデータ!CP3,15,0):OFFSET(テストデータ!CR3,15,0)) -> 0 | AQ17: =SUM(OFFSET(テストデータ!CP3,15,0):OFFSET(テストデータ!CT3,15,0)) -> 0
B18: 定期テスト名5 | C18: 3学期 期末テスト | D18: 5 | G18: 理科 | H18: 理科 | N18: =SUM(OFFSET(テストデータ!$E3,16,9*成績表1!$B$4-9):OFFSET(テストデータ!$G3,16,9*成績表1!$B$4-9)) -> 143 | O18: =SUM(OFFSET(テストデータ!$E3,16,9*成績表1!$B$4-9):OFFSET(テストデータ!I3,16,9*成績表1!$B$4-9)) -> 255 | P18: =SUM(OFFSET(テストデータ!E3,16,0):OFFSET(テストデータ!G3,16,0)) -> 164 | Q18: =SUM(OFFSET(テストデータ!E3,16,0):OFFSET(テストデータ!I3,16,0)) -> 289 | R18: =SUM(OFFSET(テストデータ!N3,16,0):OFFSET(テストデータ!P3,16,0)) -> 143 | S18: =SUM(OFFSET(テストデータ!N3,16,0):OFFSET(テストデータ!R3,16,0)) -> 255 | T18: =SUM(OFFSET(テストデータ!W3,16,0):OFFSET(テストデータ!Y3,16,0)) -> 143 | U18: =SUM(OFFSET(テストデータ!W3,16,0):OFFSET(テストデータ!AA3,16,0)) -> 292 | V18: =SUM(OFFSET(テストデータ!AF3,16,0):OFFSET(テストデータ!AH3,16,0)) -> 194 | W18: =SUM(OFFSET(テストデータ!AF3,16,0):OFFSET(テストデータ!AJ3,16,0)) -> 324 | X18: =SUM(OFFSET(テストデータ!AO3,16,0):OFFSET(テストデータ!AQ3,16,0)) -> 0 | Y18: =SUM(OFFSET(テストデータ!AO3,16,0):OFFSET(テストデータ!AS3,16,0)) -> 0 | Z18: =SUM(OFFSET(テストデータ!AX3,16,0):OFFSET(テストデータ!AZ3,16,0)) -> 0 | AA18: =SUM(OFFSET(テストデータ!AX3,16,0):OFFSET(テストデータ!BB3,16,0)) -> 0 | AB18: =SUM(OFFSET(テストデータ!BG3,16,0):OFFSET(テストデータ!BI3,16,0)) -> 170 | AC18: =SUM(OFFSET(テストデータ!BG3,16,0):OFFSET(テストデータ!BK3,16,0)) -> 236 | AD18: =SUM(OFFSET(テストデータ!BL3,16,0):OFFSET(テストデータ!BN3,16,0)) -> 129 | AE18: =SUM(OFFSET(テストデータ!BL3,16,0):OFFSET(テストデータ!BP3,16,0)) -> 190 | AF18: =SUM(OFFSET(テストデータ!BQ3,16,0):OFFSET(テストデータ!BS3,16,0)) -> 156 | AG18: =SUM(OFFSET(テストデータ!BQ3,16,0):OFFSET(テストデータ!BU3,16,0)) -> 220 | AH18: =SUM(OFFSET(テストデータ!BV3,16,0):OFFSET(テストデータ!BX3,16,0)) -> 98 | AI18: =SUM(OFFSET(テストデータ!BV3,16,0):OFFSET(テストデータ!BZ3,16,0)) -> 169 | AJ18: =SUM(OFFSET(テストデータ!CA3,16,0):OFFSET(テストデータ!CC3,16,0)) -> 153 | AK18: =SUM(OFFSET(テストデータ!CA3,16,0):OFFSET(テストデータ!CE3,16,0)) -> 249 | AL18: =SUM(OFFSET(テストデータ!CF3,16,0):OFFSET(テストデータ!CH3,16,0)) -> 82 | AM18: =SUM(OFFSET(テストデータ!CF3,16,0):OFFSET(テストデータ!CJ3,16,0)) -> 123 | AN18: =SUM(OFFSET(テストデータ!CK3,16,0):OFFSET(テストデータ!CM3,16,0)) -> 143 | AO18: =SUM(OFFSET(テストデータ!CK3,16,0):OFFSET(テストデータ!CO3,16,0)) -> 212 | AP18: =SUM(OFFSET(テストデータ!CP3,16,0):OFFSET(テストデータ!CR3,16,0)) -> 0 | AQ18: =SUM(OFFSET(テストデータ!CP3,16,0):OFFSET(テストデータ!CT3,16,0)) -> 0
B19: 定期テスト名6 | D19: 6 | G19: 3科目 | H19: 3科目 | N19: =SUM(OFFSET(テストデータ!$E3,17,9*成績表1!$B$4-9):OFFSET(テストデータ!$G3,17,9*成績表1!$B$4-9)) -> 211 | O19: =SUM(OFFSET(テストデータ!$E3,17,9*成績表1!$B$4-9):OFFSET(テストデータ!I3,17,9*成績表1!$B$4-9)) -> 381 | P19: =SUM(OFFSET(テストデータ!E3,17,0):OFFSET(テストデータ!G3,17,0)) -> 215 | Q19: =SUM(OFFSET(テストデータ!E3,17,0):OFFSET(テストデータ!I3,17,0)) -> 323 | R19: =SUM(OFFSET(テストデータ!N3,17,0):OFFSET(テストデータ!P3,17,0)) -> 211 | S19: =SUM(OFFSET(テストデータ!N3,17,0):OFFSET(テストデータ!R3,17,0)) -> 381 | T19: =SUM(OFFSET(テストデータ!W3,17,0):OFFSET(テストデータ!Y3,17,0)) -> 216 | U19: =SUM(OFFSET(テストデータ!W3,17,0):OFFSET(テストデータ!AA3,17,0)) -> 348 | V19: =SUM(OFFSET(テストデータ!AF3,17,0):OFFSET(テストデータ!AH3,17,0)) -> 219 | W19: =SUM(OFFSET(テストデータ!AF3,17,0):OFFSET(テストデータ!AJ3,17,0)) -> 354 | X19: =SUM(OFFSET(テストデータ!AO3,17,0):OFFSET(テストデータ!AQ3,17,0)) -> 0 | Y19: =SUM(OFFSET(テストデータ!AO3,17,0):OFFSET(テストデータ!AS3,17,0)) -> 0 | Z19: =SUM(OFFSET(テストデータ!AX3,17,0):OFFSET(テストデータ!AZ3,17,0)) -> 0 | AA19: =SUM(OFFSET(テストデータ!AX3,17,0):OFFSET(テストデータ!BB3,17,0)) -> 0 | AB19: =SUM(OFFSET(テストデータ!BG3,17,0):OFFSET(テストデータ!BI3,17,0)) -> 99 | AC19: =SUM(OFFSET(テストデータ!BG3,17,0):OFFSET(テストデータ!BK3,17,0)) -> 216 | AD19: =SUM(OFFSET(テストデータ!BL3,17,0):OFFSET(テストデータ!BN3,17,0)) -> 86 | AE19: =SUM(OFFSET(テストデータ!BL3,17,0):OFFSET(テストデータ!BP3,17,0)) -> 158 | AF19: =SUM(OFFSET(テストデータ!BQ3,17,0):OFFSET(テストデータ!BS3,17,0)) -> 101 | AG19: =SUM(OFFSET(テストデータ!BQ3,17,0):OFFSET(テストデータ!BU3,17,0)) -> 225 | AH19: =SUM(OFFSET(テストデータ!BV3,17,0):OFFSET(テストデータ!BX3,17,0)) -> 72 | AI19: =SUM(OFFSET(テストデータ!BV3,17,0):OFFSET(テストデータ!BZ3,17,0)) -> 251 | AJ19: =SUM(OFFSET(テストデータ!CA3,17,0):OFFSET(テストデータ!CC3,17,0)) -> 128 | AK19: =SUM(OFFSET(テストデータ!CA3,17,0):OFFSET(テストデータ!CE3,17,0)) -> 219 | AL19: =SUM(OFFSET(テストデータ!CF3,17,0):OFFSET(テストデータ!CH3,17,0)) -> 82 | AM19: =SUM(OFFSET(テストデータ!CF3,17,0):OFFSET(テストデータ!CJ3,17,0)) -> 213 | AN19: =SUM(OFFSET(テストデータ!CK3,17,0):OFFSET(テストデータ!CM3,17,0)) -> 101 | AO19: =SUM(OFFSET(テストデータ!CK3,17,0):OFFSET(テストデータ!CO3,17,0)) -> 181 | AP19: =SUM(OFFSET(テストデータ!CP3,17,0):OFFSET(テストデータ!CR3,17,0)) -> 0 | AQ19: =SUM(OFFSET(テストデータ!CP3,17,0):OFFSET(テストデータ!CT3,17,0)) -> 0
B20: 実力テスト名 | G20: 5科目 | H20: 5科目 | N20: =SUM(OFFSET(テストデータ!$E3,18,9*成績表1!$B$4-9):OFFSET(テストデータ!$G3,18,9*成績表1!$B$4-9)) -> 225 | O20: =SUM(OFFSET(テストデータ!$E3,18,9*成績表1!$B$4-9):OFFSET(テストデータ!I3,18,9*成績表1!$B$4-9)) -> 383 | P20: =SUM(OFFSET(テストデータ!E3,18,0):OFFSET(テストデータ!G3,18,0)) -> 219 | Q20: =SUM(OFFSET(テストデータ!E3,18,0):OFFSET(テストデータ!I3,18,0)) -> 316 | R20: =SUM(OFFSET(テストデータ!N3,18,0):OFFSET(テストデータ!P3,18,0)) -> 225 | S20: =SUM(OFFSET(テストデータ!N3,18,0):OFFSET(テストデータ!R3,18,0)) -> 383 | T20: =SUM(OFFSET(テストデータ!W3,18,0):OFFSET(テストデータ!Y3,18,0)) -> 179 | U20: =SUM(OFFSET(テストデータ!W3,18,0):OFFSET(テストデータ!AA3,18,0)) -> 361 | V20: =SUM(OFFSET(テストデータ!AF3,18,0):OFFSET(テストデータ!AH3,18,0)) -> 243 | W20: =SUM(OFFSET(テストデータ!AF3,18,0):OFFSET(テストデータ!AJ3,18,0)) -> 415 | X20: =SUM(OFFSET(テストデータ!AO3,18,0):OFFSET(テストデータ!AQ3,18,0)) -> 0 | Y20: =SUM(OFFSET(テストデータ!AO3,18,0):OFFSET(テストデータ!AS3,18,0)) -> 0 | Z20: =SUM(OFFSET(テストデータ!AX3,18,0):OFFSET(テストデータ!AZ3,18,0)) -> 0 | AA20: =SUM(OFFSET(テストデータ!AX3,18,0):OFFSET(テストデータ!BB3,18,0)) -> 0 | AB20: =SUM(OFFSET(テストデータ!BG3,18,0):OFFSET(テストデータ!BI3,18,0)) -> 90 | AC20: =SUM(OFFSET(テストデータ!BG3,18,0):OFFSET(テストデータ!BK3,18,0)) -> 199 | AD20: =SUM(OFFSET(テストデータ!BL3,18,0):OFFSET(テストデータ!BN3,18,0)) -> 160 | AE20: =SUM(OFFSET(テストデータ!BL3,18,0):OFFSET(テストデータ!BP3,18,0)) -> 257 | AF20: =SUM(OFFSET(テストデータ!BQ3,18,0):OFFSET(テストデータ!BS3,18,0)) -> 115 | AG20: =SUM(OFFSET(テストデータ!BQ3,18,0):OFFSET(テストデータ!BU3,18,0)) -> 193 | AH20: =SUM(OFFSET(テストデータ!BV3,18,0):OFFSET(テストデータ!BX3,18,0)) -> 135 | AI20: =SUM(OFFSET(テストデータ!BV3,18,0):OFFSET(テストデータ!BZ3,18,0)) -> 262 | AJ20: =SUM(OFFSET(テストデータ!CA3,18,0):OFFSET(テストデータ!CC3,18,0)) -> 125 | AK20: =SUM(OFFSET(テストデータ!CA3,18,0):OFFSET(テストデータ!CE3,18,0)) -> 248 | AL20: =SUM(OFFSET(テストデータ!CF3,18,0):OFFSET(テストデータ!CH3,18,0)) -> 117 | AM20: =SUM(OFFSET(テストデータ!CF3,18,0):OFFSET(テストデータ!CJ3,18,0)) -> 204 | AN20: =SUM(OFFSET(テストデータ!CK3,18,0):OFFSET(テストデータ!CM3,18,0)) -> 176 | AO20: =SUM(OFFSET(テストデータ!CK3,18,0):OFFSET(テストデータ!CO3,18,0)) -> 252 | AP20: =SUM(OFFSET(テストデータ!CP3,18,0):OFFSET(テストデータ!CR3,18,0)) -> 0 | AQ20: =SUM(OFFSET(テストデータ!CP3,18,0):OFFSET(テストデータ!CT3,18,0)) -> 0
B21: テスト名 | C21: 校内実力テスト | G21: =IF(C10="","",C10) -> 保体 | N21: =SUM(OFFSET(テストデータ!$E3,19,9*成績表1!$B$4-9):OFFSET(テストデータ!$G3,19,9*成績表1!$B$4-9)) -> 120 | O21: =SUM(OFFSET(テストデータ!$E3,19,9*成績表1!$B$4-9):OFFSET(テストデータ!I3,19,9*成績表1!$B$4-9)) -> 231 | P21: =SUM(OFFSET(テストデータ!E3,19,0):OFFSET(テストデータ!G3,19,0)) -> 156 | Q21: =SUM(OFFSET(テストデータ!E3,19,0):OFFSET(テストデータ!I3,19,0)) -> 321 | R21: =SUM(OFFSET(テストデータ!N3,19,0):OFFSET(テストデータ!P3,19,0)) -> 120 | S21: =SUM(OFFSET(テストデータ!N3,19,0):OFFSET(テストデータ!R3,19,0)) -> 231 | T21: =SUM(OFFSET(テストデータ!W3,19,0):OFFSET(テストデータ!Y3,19,0)) -> 247 | U21: =SUM(OFFSET(テストデータ!W3,19,0):OFFSET(テストデータ!AA3,19,0)) -> 323 | V21: =SUM(OFFSET(テストデータ!AF3,19,0):OFFSET(テストデータ!AH3,19,0)) -> 209 | W21: =SUM(OFFSET(テストデータ!AF3,19,0):OFFSET(テストデータ!AJ3,19,0)) -> 333 | X21: =SUM(OFFSET(テストデータ!AO3,19,0):OFFSET(テストデータ!AQ3,19,0)) -> 0 | Y21: =SUM(OFFSET(テストデータ!AO3,19,0):OFFSET(テストデータ!AS3,19,0)) -> 0 | Z21: =SUM(OFFSET(テストデータ!AX3,19,0):OFFSET(テストデータ!AZ3,19,0)) -> 0 | AA21: =SUM(OFFSET(テストデータ!AX3,19,0):OFFSET(テストデータ!BB3,19,0)) -> 0 | AB21: =SUM(OFFSET(テストデータ!BG3,19,0):OFFSET(テストデータ!BI3,19,0)) -> 98 | AC21: =SUM(OFFSET(テストデータ!BG3,19,0):OFFSET(テストデータ!BK3,19,0)) -> 140 | AD21: =SUM(OFFSET(テストデータ!BL3,19,0):OFFSET(テストデータ!BN3,19,0)) -> 151 | AE21: =SUM(OFFSET(テストデータ!BL3,19,0):OFFSET(テストデータ!BP3,19,0)) -> 278 | AF21: =SUM(OFFSET(テストデータ!BQ3,19,0):OFFSET(テストデータ!BS3,19,0)) -> 172 | AG21: =SUM(OFFSET(テストデータ!BQ3,19,0):OFFSET(テストデータ!BU3,19,0)) -> 267 | AH21: =SUM(OFFSET(テストデータ!BV3,19,0):OFFSET(テストデータ!BX3,19,0)) -> 92 | AI21: =SUM(OFFSET(テストデータ!BV3,19,0):OFFSET(テストデータ!BZ3,19,0)) -> 216 | AJ21: =SUM(OFFSET(テストデータ!CA3,19,0):OFFSET(テストデータ!CC3,19,0)) -> 214 | AK21: =SUM(OFFSET(テストデータ!CA3,19,0):OFFSET(テストデータ!CE3,19,0)) -> 262 | AL21: =SUM(OFFSET(テストデータ!CF3,19,0):OFFSET(テストデータ!CH3,19,0)) -> 113 | AM21: =SUM(OFFSET(テストデータ!CF3,19,0):OFFSET(テストデータ!CJ3,19,0)) -> 183 | AN21: =SUM(OFFSET(テストデータ!CK3,19,0):OFFSET(テストデータ!CM3,19,0)) -> 211 | AO21: =SUM(OFFSET(テストデータ!CK3,19,0):OFFSET(テストデータ!CO3,19,0)) -> 300 | AP21: =SUM(OFFSET(テストデータ!CP3,19,0):OFFSET(テストデータ!CR3,19,0)) -> 0 | AQ21: =SUM(OFFSET(テストデータ!CP3,19,0):OFFSET(テストデータ!CT3,19,0)) -> 0
B22: 科目1 | C22: 国語 | G22: =IF(C11="","",C11) -> 技家 | N22: =SUM(OFFSET(テストデータ!$E3,20,9*成績表1!$B$4-9):OFFSET(テストデータ!$G3,20,9*成績表1!$B$4-9)) -> 177 | O22: =SUM(OFFSET(テストデータ!$E3,20,9*成績表1!$B$4-9):OFFSET(テストデータ!I3,20,9*成績表1!$B$4-9)) -> 297 | P22: =SUM(OFFSET(テストデータ!E3,20,0):OFFSET(テストデータ!G3,20,0)) -> 164 | Q22: =SUM(OFFSET(テストデータ!E3,20,0):OFFSET(テストデータ!I3,20,0)) -> 279 | R22: =SUM(OFFSET(テストデータ!N3,20,0):OFFSET(テストデータ!P3,20,0)) -> 177 | S22: =SUM(OFFSET(テストデータ!N3,20,0):OFFSET(テストデータ!R3,20,0)) -> 297 | T22: =SUM(OFFSET(テストデータ!W3,20,0):OFFSET(テストデータ!Y3,20,0)) -> 198 | U22: =SUM(OFFSET(テストデータ!W3,20,0):OFFSET(テストデータ!AA3,20,0)) -> 268 | V22: =SUM(OFFSET(テストデータ!AF3,20,0):OFFSET(テストデータ!AH3,20,0)) -> 132 | W22: =SUM(OFFSET(テストデータ!AF3,20,0):OFFSET(テストデータ!AJ3,20,0)) -> 201 | X22: =SUM(OFFSET(テストデータ!AO3,20,0):OFFSET(テストデータ!AQ3,20,0)) -> 0 | Y22: =SUM(OFFSET(テストデータ!AO3,20,0):OFFSET(テストデータ!AS3,20,0)) -> 0 | Z22: =SUM(OFFSET(テストデータ!AX3,20,0):OFFSET(テストデータ!AZ3,20,0)) -> 0 | AA22: =SUM(OFFSET(テストデータ!AX3,20,0):OFFSET(テストデータ!BB3,20,0)) -> 0 | AB22: =SUM(OFFSET(テストデータ!BG3,20,0):OFFSET(テストデータ!BI3,20,0)) -> 89 | AC22: =SUM(OFFSET(テストデータ!BG3,20,0):OFFSET(テストデータ!BK3,20,0)) -> 166 | AD22: =SUM(OFFSET(テストデータ!BL3,20,0):OFFSET(テストデータ!BN3,20,0)) -> 210 | AE22: =SUM(OFFSET(テストデータ!BL3,20,0):OFFSET(テストデータ!BP3,20,0)) -> 310 | AF22: =SUM(OFFSET(テストデータ!BQ3,20,0):OFFSET(テストデータ!BS3,20,0)) -> 178 | AG22: =SUM(OFFSET(テストデータ!BQ3,20,0):OFFSET(テストデータ!BU3,20,0)) -> 234 | AH22: =SUM(OFFSET(テストデータ!BV3,20,0):OFFSET(テストデータ!BX3,20,0)) -> 132 | AI22: =SUM(OFFSET(テストデータ!BV3,20,0):OFFSET(テストデータ!BZ3,20,0)) -> 218 | AJ22: =SUM(OFFSET(テストデータ!CA3,20,0):OFFSET(テストデータ!CC3,20,0)) -> 131 | AK22: =SUM(OFFSET(テストデータ!CA3,20,0):OFFSET(テストデータ!CE3,20,0)) -> 220 | AL22: =SUM(OFFSET(テストデータ!CF3,20,0):OFFSET(テストデータ!CH3,20,0)) -> 156 | AM22: =SUM(OFFSET(テストデータ!CF3,20,0):OFFSET(テストデータ!CJ3,20,0)) -> 233 | AN22: =SUM(OFFSET(テストデータ!CK3,20,0):OFFSET(テストデータ!CM3,20,0)) -> 199 | AO22: =SUM(OFFSET(テストデータ!CK3,20,0):OFFSET(テストデータ!CO3,20,0)) -> 320 | AP22: =SUM(OFFSET(テストデータ!CP3,20,0):OFFSET(テストデータ!CR3,20,0)) -> 0 | AQ22: =SUM(OFFSET(テストデータ!CP3,20,0):OFFSET(テストデータ!CT3,20,0)) -> 0
B23: 科目2 | C23: 数学 | G23: 美術 | N23: =SUM(OFFSET(テストデータ!$E3,21,9*成績表1!$B$4-9):OFFSET(テストデータ!$G3,21,9*成績表1!$B$4-9)) -> 0 | O23: =SUM(OFFSET(テストデータ!$E3,21,9*成績表1!$B$4-9):OFFSET(テストデータ!I3,21,9*成績表1!$B$4-9)) -> 0 | P23: =SUM(OFFSET(テストデータ!E3,21,0):OFFSET(テストデータ!G3,21,0)) -> 0 | Q23: =SUM(OFFSET(テストデータ!E3,21,0):OFFSET(テストデータ!I3,21,0)) -> 0 | R23: =SUM(OFFSET(テストデータ!N3,21,0):OFFSET(テストデータ!P3,21,0)) -> 0 | S23: =SUM(OFFSET(テストデータ!N3,21,0):OFFSET(テストデータ!R3,21,0)) -> 0 | T23: =SUM(OFFSET(テストデータ!W3,21,0):OFFSET(テストデータ!Y3,21,0)) -> 0 | U23: =SUM(OFFSET(テストデータ!W3,21,0):OFFSET(テストデータ!AA3,21,0)) -> 0 | V23: =SUM(OFFSET(テストデータ!AF3,21,0):OFFSET(テストデータ!AH3,21,0)) -> 0 | W23: =SUM(OFFSET(テストデータ!AF3,21,0):OFFSET(テストデータ!AJ3,21,0)) -> 0 | X23: =SUM(OFFSET(テストデータ!AO3,21,0):OFFSET(テストデータ!AQ3,21,0)) -> 0 | Y23: =SUM(OFFSET(テストデータ!AO3,21,0):OFFSET(テストデータ!AS3,21,0)) -> 0 | Z23: =SUM(OFFSET(テストデータ!AX3,21,0):OFFSET(テストデータ!AZ3,21,0)) -> 0 | AA23: =SUM(OFFSET(テストデータ!AX3,21,0):OFFSET(テストデータ!BB3,21,0)) -> 0 | AB23: =SUM(OFFSET(テストデータ!BG3,21,0):OFFSET(テストデータ!BI3,21,0)) -> 0 | AC23: =SUM(OFFSET(テストデータ!BG3,21,0):OFFSET(テストデータ!BK3,21,0)) -> 0 | AD23: =SUM(OFFSET(テストデータ!BL3,21,0):OFFSET(テストデータ!BN3,21,0)) -> 0 | AE23: =SUM(OFFSET(テストデータ!BL3,21,0):OFFSET(テストデータ!BP3,21,0)) -> 0 | AF23: =SUM(OFFSET(テストデータ!BQ3,21,0):OFFSET(テストデータ!BS3,21,0)) -> 0 | AG23: =SUM(OFFSET(テストデータ!BQ3,21,0):OFFSET(テストデータ!BU3,21,0)) -> 0 | AH23: =SUM(OFFSET(テストデータ!BV3,21,0):OFFSET(テストデータ!BX3,21,0)) -> 0 | AI23: =SUM(OFFSET(テストデータ!BV3,21,0):OFFSET(テストデータ!BZ3,21,0)) -> 0 | AJ23: =SUM(OFFSET(テストデータ!CA3,21,0):OFFSET(テストデータ!CC3,21,0)) -> 0 | AK23: =SUM(OFFSET(テストデータ!CA3,21,0):OFFSET(テストデータ!CE3,21,0)) -> 0 | AL23: =SUM(OFFSET(テストデータ!CF3,21,0):OFFSET(テストデータ!CH3,21,0)) -> 0 | AM23: =SUM(OFFSET(テストデータ!CF3,21,0):OFFSET(テストデータ!CJ3,21,0)) -> 0 | AN23: =SUM(OFFSET(テストデータ!CK3,21,0):OFFSET(テストデータ!CM3,21,0)) -> 0 | AO23: =SUM(OFFSET(テストデータ!CK3,21,0):OFFSET(テストデータ!CO3,21,0)) -> 0 | AP23: =SUM(OFFSET(テストデータ!CP3,21,0):OFFSET(テストデータ!CR3,21,0)) -> 0 | AQ23: =SUM(OFFSET(テストデータ!CP3,21,0):OFFSET(テストデータ!CT3,21,0)) -> 0
B24: 科目3 | C24: 英語 | G24: 音楽 | N24: =SUM(OFFSET(テストデータ!$E3,22,9*成績表1!$B$4-9):OFFSET(テストデータ!$G3,22,9*成績表1!$B$4-9)) -> 0 | O24: =SUM(OFFSET(テストデータ!$E3,22,9*成績表1!$B$4-9):OFFSET(テストデータ!I3,22,9*成績表1!$B$4-9)) -> 0 | P24: =SUM(OFFSET(テストデータ!E3,22,0):OFFSET(テストデータ!G3,22,0)) -> 0 | Q24: =SUM(OFFSET(テストデータ!E3,22,0):OFFSET(テストデータ!I3,22,0)) -> 0 | R24: =SUM(OFFSET(テストデータ!N3,22,0):OFFSET(テストデータ!P3,22,0)) -> 0 | S24: =SUM(OFFSET(テストデータ!N3,22,0):OFFSET(テストデータ!R3,22,0)) -> 0 | T24: =SUM(OFFSET(テストデータ!W3,22,0):OFFSET(テストデータ!Y3,22,0)) -> 0 | U24: =SUM(OFFSET(テストデータ!W3,22,0):OFFSET(テストデータ!AA3,22,0)) -> 0 | V24: =SUM(OFFSET(テストデータ!AF3,22,0):OFFSET(テストデータ!AH3,22,0)) -> 0 | W24: =SUM(OFFSET(テストデータ!AF3,22,0):OFFSET(テストデータ!AJ3,22,0)) -> 0 | X24: =SUM(OFFSET(テストデータ!AO3,22,0):OFFSET(テストデータ!AQ3,22,0)) -> 0 | Y24: =SUM(OFFSET(テストデータ!AO3,22,0):OFFSET(テストデータ!AS3,22,0)) -> 0 | Z24: =SUM(OFFSET(テストデータ!AX3,22,0):OFFSET(テストデータ!AZ3,22,0)) -> 0 | AA24: =SUM(OFFSET(テストデータ!AX3,22,0):OFFSET(テストデータ!BB3,22,0)) -> 0 | AB24: =SUM(OFFSET(テストデータ!BG3,22,0):OFFSET(テストデータ!BI3,22,0)) -> 0 | AC24: =SUM(OFFSET(テストデータ!BG3,22,0):OFFSET(テストデータ!BK3,22,0)) -> 0 | AD24: =SUM(OFFSET(テストデータ!BL3,22,0):OFFSET(テストデータ!BN3,22,0)) -> 0 | AE24: =SUM(OFFSET(テストデータ!BL3,22,0):OFFSET(テストデータ!BP3,22,0)) -> 0 | AF24: =SUM(OFFSET(テストデータ!BQ3,22,0):OFFSET(テストデータ!BS3,22,0)) -> 0 | AG24: =SUM(OFFSET(テストデータ!BQ3,22,0):OFFSET(テストデータ!BU3,22,0)) -> 0 | AH24: =SUM(OFFSET(テストデータ!BV3,22,0):OFFSET(テストデータ!BX3,22,0)) -> 0 | AI24: =SUM(OFFSET(テストデータ!BV3,22,0):OFFSET(テストデータ!BZ3,22,0)) -> 0 | AJ24: =SUM(OFFSET(テストデータ!CA3,22,0):OFFSET(テストデータ!CC3,22,0)) -> 0 | AK24: =SUM(OFFSET(テストデータ!CA3,22,0):OFFSET(テストデータ!CE3,22,0)) -> 0 | AL24: =SUM(OFFSET(テストデータ!CF3,22,0):OFFSET(テストデータ!CH3,22,0)) -> 0 | AM24: =SUM(OFFSET(テストデータ!CF3,22,0):OFFSET(テストデータ!CJ3,22,0)) -> 0 | AN24: =SUM(OFFSET(テストデータ!CK3,22,0):OFFSET(テストデータ!CM3,22,0)) -> 0 | AO24: =SUM(OFFSET(テストデータ!CK3,22,0):OFFSET(テストデータ!CO3,22,0)) -> 0 | AP24: =SUM(OFFSET(テストデータ!CP3,22,0):OFFSET(テストデータ!CR3,22,0)) -> 0 | AQ24: =SUM(OFFSET(テストデータ!CP3,22,0):OFFSET(テストデータ!CT3,22,0)) -> 0
B25: 科目4 | C25: 社会 | N25: =SUM(OFFSET(テストデータ!$E3,23,9*成績表1!$B$4-9):OFFSET(テストデータ!$G3,23,9*成績表1!$B$4-9)) -> 0 | O25: =SUM(OFFSET(テストデータ!$E3,23,9*成績表1!$B$4-9):OFFSET(テストデータ!I3,23,9*成績表1!$B$4-9)) -> 0 | P25: =SUM(OFFSET(テストデータ!E3,23,0):OFFSET(テストデータ!G3,23,0)) -> 0 | Q25: =SUM(OFFSET(テストデータ!E3,23,0):OFFSET(テストデータ!I3,23,0)) -> 0 | R25: =SUM(OFFSET(テストデータ!N3,23,0):OFFSET(テストデータ!P3,23,0)) -> 0 | S25: =SUM(OFFSET(テストデータ!N3,23,0):OFFSET(テストデータ!R3,23,0)) -> 0 | T25: =SUM(OFFSET(テストデータ!W3,23,0):OFFSET(テストデータ!Y3,23,0)) -> 0 | U25: =SUM(OFFSET(テストデータ!W3,23,0):OFFSET(テストデータ!AA3,23,0)) -> 0 | V25: =SUM(OFFSET(テストデータ!AF3,23,0):OFFSET(テストデータ!AH3,23,0)) -> 0 | W25: =SUM(OFFSET(テストデータ!AF3,23,0):OFFSET(テストデータ!AJ3,23,0)) -> 0 | X25: =SUM(OFFSET(テストデータ!AO3,23,0):OFFSET(テストデータ!AQ3,23,0)) -> 0 | Y25: =SUM(OFFSET(テストデータ!AO3,23,0):OFFSET(テストデータ!AS3,23,0)) -> 0 | Z25: =SUM(OFFSET(テストデータ!AX3,23,0):OFFSET(テストデータ!AZ3,23,0)) -> 0 | AA25: =SUM(OFFSET(テストデータ!AX3,23,0):OFFSET(テストデータ!BB3,23,0)) -> 0 | AB25: =SUM(OFFSET(テストデータ!BG3,23,0):OFFSET(テストデータ!BI3,23,0)) -> 0 | AC25: =SUM(OFFSET(テストデータ!BG3,23,0):OFFSET(テストデータ!BK3,23,0)) -> 0 | AD25: =SUM(OFFSET(テストデータ!BL3,23,0):OFFSET(テストデータ!BN3,23,0)) -> 0 | AE25: =SUM(OFFSET(テストデータ!BL3,23,0):OFFSET(テストデータ!BP3,23,0)) -> 0 | AF25: =SUM(OFFSET(テストデータ!BQ3,23,0):OFFSET(テストデータ!BS3,23,0)) -> 0 | AG25: =SUM(OFFSET(テストデータ!BQ3,23,0):OFFSET(テストデータ!BU3,23,0)) -> 0 | AH25: =SUM(OFFSET(テストデータ!BV3,23,0):OFFSET(テストデータ!BX3,23,0)) -> 0 | AI25: =SUM(OFFSET(テストデータ!BV3,23,0):OFFSET(テストデータ!BZ3,23,0)) -> 0 | AJ25: =SUM(OFFSET(テストデータ!CA3,23,0):OFFSET(テストデータ!CC3,23,0)) -> 0 | AK25: =SUM(OFFSET(テストデータ!CA3,23,0):OFFSET(テストデータ!CE3,23,0)) -> 0 | AL25: =SUM(OFFSET(テストデータ!CF3,23,0):OFFSET(テストデータ!CH3,23,0)) -> 0 | AM25: =SUM(OFFSET(テストデータ!CF3,23,0):OFFSET(テストデータ!CJ3,23,0)) -> 0 | AN25: =SUM(OFFSET(テストデータ!CK3,23,0):OFFSET(テストデータ!CM3,23,0)) -> 0 | AO25: =SUM(OFFSET(テストデータ!CK3,23,0):OFFSET(テストデータ!CO3,23,0)) -> 0 | AP25: =SUM(OFFSET(テストデータ!CP3,23,0):OFFSET(テストデータ!CR3,23,0)) -> 0 | AQ25: =SUM(OFFSET(テストデータ!CP3,23,0):OFFSET(テストデータ!CT3,23,0)) -> 0
B26: 科目5 | C26: 理科 | N26: =SUM(OFFSET(テストデータ!$E3,24,9*成績表1!$B$4-9):OFFSET(テストデータ!$G3,24,9*成績表1!$B$4-9)) -> 0 | O26: =SUM(OFFSET(テストデータ!$E3,24,9*成績表1!$B$4-9):OFFSET(テストデータ!I3,24,9*成績表1!$B$4-9)) -> 0 | P26: =SUM(OFFSET(テストデータ!E3,24,0):OFFSET(テストデータ!G3,24,0)) -> 0 | Q26: =SUM(OFFSET(テストデータ!E3,24,0):OFFSET(テストデータ!I3,24,0)) -> 0 | R26: =SUM(OFFSET(テストデータ!N3,24,0):OFFSET(テストデータ!P3,24,0)) -> 0 | S26: =SUM(OFFSET(テストデータ!N3,24,0):OFFSET(テストデータ!R3,24,0)) -> 0 | T26: =SUM(OFFSET(テストデータ!W3,24,0):OFFSET(テストデータ!Y3,24,0)) -> 0 | U26: =SUM(OFFSET(テストデータ!W3,24,0):OFFSET(テストデータ!AA3,24,0)) -> 0 | V26: =SUM(OFFSET(テストデータ!AF3,24,0):OFFSET(テストデータ!AH3,24,0)) -> 0 | W26: =SUM(OFFSET(テストデータ!AF3,24,0):OFFSET(テストデータ!AJ3,24,0)) -> 0 | X26: =SUM(OFFSET(テストデータ!AO3,24,0):OFFSET(テストデータ!AQ3,24,0)) -> 0 | Y26: =SUM(OFFSET(テストデータ!AO3,24,0):OFFSET(テストデータ!AS3,24,0)) -> 0 | Z26: =SUM(OFFSET(テストデータ!AX3,24,0):OFFSET(テストデータ!AZ3,24,0)) -> 0 | AA26: =SUM(OFFSET(テストデータ!AX3,24,0):OFFSET(テストデータ!BB3,24,0)) -> 0 | AB26: =SUM(OFFSET(テストデータ!BG3,24,0):OFFSET(テストデータ!BI3,24,0)) -> 0 | AC26: =SUM(OFFSET(テストデータ!BG3,24,0):OFFSET(テストデータ!BK3,24,0)) -> 0 | AD26: =SUM(OFFSET(テストデータ!BL3,24,0):OFFSET(テストデータ!BN3,24,0)) -> 0 | AE26: =SUM(OFFSET(テストデータ!BL3,24,0):OFFSET(テストデータ!BP3,24,0)) -> 0 | AF26: =SUM(OFFSET(テストデータ!BQ3,24,0):OFFSET(テストデータ!BS3,24,0)) -> 0 | AG26: =SUM(OFFSET(テストデータ!BQ3,24,0):OFFSET(テストデータ!BU3,24,0)) -> 0 | AH26: =SUM(OFFSET(テストデータ!BV3,24,0):OFFSET(テストデータ!BX3,24,0)) -> 0 | AI26: =SUM(OFFSET(テストデータ!BV3,24,0):OFFSET(テストデータ!BZ3,24,0)) -> 0 | AJ26: =SUM(OFFSET(テストデータ!CA3,24,0):OFFSET(テストデータ!CC3,24,0)) -> 0 | AK26: =SUM(OFFSET(テストデータ!CA3,24,0):OFFSET(テストデータ!CE3,24,0)) -> 0 | AL26: =SUM(OFFSET(テストデータ!CF3,24,0):OFFSET(テストデータ!CH3,24,0)) -> 0 | AM26: =SUM(OFFSET(テストデータ!CF3,24,0):OFFSET(テストデータ!CJ3,24,0)) -> 0 | AN26: =SUM(OFFSET(テストデータ!CK3,24,0):OFFSET(テストデータ!CM3,24,0)) -> 0 | AO26: =SUM(OFFSET(テストデータ!CK3,24,0):OFFSET(テストデータ!CO3,24,0)) -> 0 | AP26: =SUM(OFFSET(テストデータ!CP3,24,0):OFFSET(テストデータ!CR3,24,0)) -> 0 | AQ26: =SUM(OFFSET(テストデータ!CP3,24,0):OFFSET(テストデータ!CT3,24,0)) -> 0
B27: クラス名 | C27: 全クラス | N27: =SUM(OFFSET(テストデータ!$E3,25,9*成績表1!$B$4-9):OFFSET(テストデータ!$G3,25,9*成績表1!$B$4-9)) -> 0 | O27: =SUM(OFFSET(テストデータ!$E3,25,9*成績表1!$B$4-9):OFFSET(テストデータ!I3,25,9*成績表1!$B$4-9)) -> 0 | P27: =SUM(OFFSET(テストデータ!E3,25,0):OFFSET(テストデータ!G3,25,0)) -> 0 | Q27: =SUM(OFFSET(テストデータ!E3,25,0):OFFSET(テストデータ!I3,25,0)) -> 0 | R27: =SUM(OFFSET(テストデータ!N3,25,0):OFFSET(テストデータ!P3,25,0)) -> 0 | S27: =SUM(OFFSET(テストデータ!N3,25,0):OFFSET(テストデータ!R3,25,0)) -> 0 | T27: =SUM(OFFSET(テストデータ!W3,25,0):OFFSET(テストデータ!Y3,25,0)) -> 0 | U27: =SUM(OFFSET(テストデータ!W3,25,0):OFFSET(テストデータ!AA3,25,0)) -> 0 | V27: =SUM(OFFSET(テストデータ!AF3,25,0):OFFSET(テストデータ!AH3,25,0)) -> 0 | W27: =SUM(OFFSET(テストデータ!AF3,25,0):OFFSET(テストデータ!AJ3,25,0)) -> 0 | X27: =SUM(OFFSET(テストデータ!AO3,25,0):OFFSET(テストデータ!AQ3,25,0)) -> 0 | Y27: =SUM(OFFSET(テストデータ!AO3,25,0):OFFSET(テストデータ!AS3,25,0)) -> 0 | Z27: =SUM(OFFSET(テストデータ!AX3,25,0):OFFSET(テストデータ!AZ3,25,0)) -> 0 | AA27: =SUM(OFFSET(テストデータ!AX3,25,0):OFFSET(テストデータ!BB3,25,0)) -> 0 | AB27: =SUM(OFFSET(テストデータ!BG3,25,0):OFFSET(テストデータ!BI3,25,0)) -> 0 | AC27: =SUM(OFFSET(テストデータ!BG3,25,0):OFFSET(テストデータ!BK3,25,0)) -> 0 | AD27: =SUM(OFFSET(テストデータ!BL3,25,0):OFFSET(テストデータ!BN3,25,0)) -> 0 | AE27: =SUM(OFFSET(テストデータ!BL3,25,0):OFFSET(テストデータ!BP3,25,0)) -> 0 | AF27: =SUM(OFFSET(テストデータ!BQ3,25,0):OFFSET(テストデータ!BS3,25,0)) -> 0 | AG27: =SUM(OFFSET(テストデータ!BQ3,25,0):OFFSET(テストデータ!BU3,25,0)) -> 0 | AH27: =SUM(OFFSET(テストデータ!BV3,25,0):OFFSET(テストデータ!BX3,25,0)) -> 0 | AI27: =SUM(OFFSET(テストデータ!BV3,25,0):OFFSET(テストデータ!BZ3,25,0)) -> 0 | AJ27: =SUM(OFFSET(テストデータ!CA3,25,0):OFFSET(テストデータ!CC3,25,0)) -> 0 | AK27: =SUM(OFFSET(テストデータ!CA3,25,0):OFFSET(テストデータ!CE3,25,0)) -> 0 | AL27: =SUM(OFFSET(テストデータ!CF3,25,0):OFFSET(テストデータ!CH3,25,0)) -> 0 | AM27: =SUM(OFFSET(テストデータ!CF3,25,0):OFFSET(テストデータ!CJ3,25,0)) -> 0 | AN27: =SUM(OFFSET(テストデータ!CK3,25,0):OFFSET(テストデータ!CM3,25,0)) -> 0 | AO27: =SUM(OFFSET(テストデータ!CK3,25,0):OFFSET(テストデータ!CO3,25,0)) -> 0 | AP27: =SUM(OFFSET(テストデータ!CP3,25,0):OFFSET(テストデータ!CR3,25,0)) -> 0 | AQ27: =SUM(OFFSET(テストデータ!CP3,25,0):OFFSET(テストデータ!CT3,25,0)) -> 0
B28: クラス1 | C28: 1 | N28: =SUM(OFFSET(テストデータ!$E3,26,9*成績表1!$B$4-9):OFFSET(テストデータ!$G3,26,9*成績表1!$B$4-9)) -> 0 | O28: =SUM(OFFSET(テストデータ!$E3,26,9*成績表1!$B$4-9):OFFSET(テストデータ!I3,26,9*成績表1!$B$4-9)) -> 0 | P28: =SUM(OFFSET(テストデータ!E3,26,0):OFFSET(テストデータ!G3,26,0)) -> 0 | Q28: =SUM(OFFSET(テストデータ!E3,26,0):OFFSET(テストデータ!I3,26,0)) -> 0 | R28: =SUM(OFFSET(テストデータ!N3,26,0):OFFSET(テストデータ!P3,26,0)) -> 0 | S28: =SUM(OFFSET(テストデータ!N3,26,0):OFFSET(テストデータ!R3,26,0)) -> 0 | T28: =SUM(OFFSET(テストデータ!W3,26,0):OFFSET(テストデータ!Y3,26,0)) -> 0 | U28: =SUM(OFFSET(テストデータ!W3,26,0):OFFSET(テストデータ!AA3,26,0)) -> 0 | V28: =SUM(OFFSET(テストデータ!AF3,26,0):OFFSET(テストデータ!AH3,26,0)) -> 0 | W28: =SUM(OFFSET(テストデータ!AF3,26,0):OFFSET(テストデータ!AJ3,26,0)) -> 0 | X28: =SUM(OFFSET(テストデータ!AO3,26,0):OFFSET(テストデータ!AQ3,26,0)) -> 0 | Y28: =SUM(OFFSET(テストデータ!AO3,26,0):OFFSET(テストデータ!AS3,26,0)) -> 0 | Z28: =SUM(OFFSET(テストデータ!AX3,26,0):OFFSET(テストデータ!AZ3,26,0)) -> 0 | AA28: =SUM(OFFSET(テストデータ!AX3,26,0):OFFSET(テストデータ!BB3,26,0)) -> 0 | AB28: =SUM(OFFSET(テストデータ!BG3,26,0):OFFSET(テストデータ!BI3,26,0)) -> 0 | AC28: =SUM(OFFSET(テストデータ!BG3,26,0):OFFSET(テストデータ!BK3,26,0)) -> 0 | AD28: =SUM(OFFSET(テストデータ!BL3,26,0):OFFSET(テストデータ!BN3,26,0)) -> 0 | AE28: =SUM(OFFSET(テストデータ!BL3,26,0):OFFSET(テストデータ!BP3,26,0)) -> 0 | AF28: =SUM(OFFSET(テストデータ!BQ3,26,0):OFFSET(テストデータ!BS3,26,0)) -> 0 | AG28: =SUM(OFFSET(テストデータ!BQ3,26,0):OFFSET(テストデータ!BU3,26,0)) -> 0 | AH28: =SUM(OFFSET(テストデータ!BV3,26,0):OFFSET(テストデータ!BX3,26,0)) -> 0 | AI28: =SUM(OFFSET(テストデータ!BV3,26,0):OFFSET(テストデータ!BZ3,26,0)) -> 0 | AJ28: =SUM(OFFSET(テストデータ!CA3,26,0):OFFSET(テストデータ!CC3,26,0)) -> 0 | AK28: =SUM(OFFSET(テストデータ!CA3,26,0):OFFSET(テストデータ!CE3,26,0)) -> 0 | AL28: =SUM(OFFSET(テストデータ!CF3,26,0):OFFSET(テストデータ!CH3,26,0)) -> 0 | AM28: =SUM(OFFSET(テストデータ!CF3,26,0):OFFSET(テストデータ!CJ3,26,0)) -> 0 | AN28: =SUM(OFFSET(テストデータ!CK3,26,0):OFFSET(テストデータ!CM3,26,0)) -> 0 | AO28: =SUM(OFFSET(テストデータ!CK3,26,0):OFFSET(テストデータ!CO3,26,0)) -> 0 | AP28: =SUM(OFFSET(テストデータ!CP3,26,0):OFFSET(テストデータ!CR3,26,0)) -> 0 | AQ28: =SUM(OFFSET(テストデータ!CP3,26,0):OFFSET(テストデータ!CT3,26,0)) -> 0
B29: クラス2 | C29: 2 | N29: =SUM(OFFSET(テストデータ!$E3,27,9*成績表1!$B$4-9):OFFSET(テストデータ!$G3,27,9*成績表1!$B$4-9)) -> 0 | O29: =SUM(OFFSET(テストデータ!$E3,27,9*成績表1!$B$4-9):OFFSET(テストデータ!I3,27,9*成績表1!$B$4-9)) -> 0 | P29: =SUM(OFFSET(テストデータ!E3,27,0):OFFSET(テストデータ!G3,27,0)) -> 0 | Q29: =SUM(OFFSET(テストデータ!E3,27,0):OFFSET(テストデータ!I3,27,0)) -> 0 | R29: =SUM(OFFSET(テストデータ!N3,27,0):OFFSET(テストデータ!P3,27,0)) -> 0 | S29: =SUM(OFFSET(テストデータ!N3,27,0):OFFSET(テストデータ!R3,27,0)) -> 0 | T29: =SUM(OFFSET(テストデータ!W3,27,0):OFFSET(テストデータ!Y3,27,0)) -> 0 | U29: =SUM(OFFSET(テストデータ!W3,27,0):OFFSET(テストデータ!AA3,27,0)) -> 0 | V29: =SUM(OFFSET(テストデータ!AF3,27,0):OFFSET(テストデータ!AH3,27,0)) -> 0 | W29: =SUM(OFFSET(テストデータ!AF3,27,0):OFFSET(テストデータ!AJ3,27,0)) -> 0 | X29: =SUM(OFFSET(テストデータ!AO3,27,0):OFFSET(テストデータ!AQ3,27,0)) -> 0 | Y29: =SUM(OFFSET(テストデータ!AO3,27,0):OFFSET(テストデータ!AS3,27,0)) -> 0 | Z29: =SUM(OFFSET(テストデータ!AX3,27,0):OFFSET(テストデータ!AZ3,27,0)) -> 0 | AA29: =SUM(OFFSET(テストデータ!AX3,27,0):OFFSET(テストデータ!BB3,27,0)) -> 0 | AB29: =SUM(OFFSET(テストデータ!BG3,27,0):OFFSET(テストデータ!BI3,27,0)) -> 0 | AC29: =SUM(OFFSET(テストデータ!BG3,27,0):OFFSET(テストデータ!BK3,27,0)) -> 0 | AD29: =SUM(OFFSET(テストデータ!BL3,27,0):OFFSET(テストデータ!BN3,27,0)) -> 0 | AE29: =SUM(OFFSET(テストデータ!BL3,27,0):OFFSET(テストデータ!BP3,27,0)) -> 0 | AF29: =SUM(OFFSET(テストデータ!BQ3,27,0):OFFSET(テストデータ!BS3,27,0)) -> 0 | AG29: =SUM(OFFSET(テストデータ!BQ3,27,0):OFFSET(テストデータ!BU3,27,0)) -> 0 | AH29: =SUM(OFFSET(テストデータ!BV3,27,0):OFFSET(テストデータ!BX3,27,0)) -> 0 | AI29: =SUM(OFFSET(テストデータ!BV3,27,0):OFFSET(テストデータ!BZ3,27,0)) -> 0 | AJ29: =SUM(OFFSET(テストデータ!CA3,27,0):OFFSET(テストデータ!CC3,27,0)) -> 0 | AK29: =SUM(OFFSET(テストデータ!CA3,27,0):OFFSET(テストデータ!CE3,27,0)) -> 0 | AL29: =SUM(OFFSET(テストデータ!CF3,27,0):OFFSET(テストデータ!CH3,27,0)) -> 0 | AM29: =SUM(OFFSET(テストデータ!CF3,27,0):OFFSET(テストデータ!CJ3,27,0)) -> 0 | AN29: =SUM(OFFSET(テストデータ!CK3,27,0):OFFSET(テストデータ!CM3,27,0)) -> 0 | AO29: =SUM(OFFSET(テストデータ!CK3,27,0):OFFSET(テストデータ!CO3,27,0)) -> 0 | AP29: =SUM(OFFSET(テストデータ!CP3,27,0):OFFSET(テストデータ!CR3,27,0)) -> 0 | AQ29: =SUM(OFFSET(テストデータ!CP3,27,0):OFFSET(テストデータ!CT3,27,0)) -> 0
B30: クラス3 | C30: 3 | N30: =SUM(OFFSET(テストデータ!$E3,28,9*成績表1!$B$4-9):OFFSET(テストデータ!$G3,28,9*成績表1!$B$4-9)) -> 0 | O30: =SUM(OFFSET(テストデータ!$E3,28,9*成績表1!$B$4-9):OFFSET(テストデータ!I3,28,9*成績表1!$B$4-9)) -> 0 | P30: =SUM(OFFSET(テストデータ!E3,28,0):OFFSET(テストデータ!G3,28,0)) -> 0 | Q30: =SUM(OFFSET(テストデータ!E3,28,0):OFFSET(テストデータ!I3,28,0)) -> 0 | R30: =SUM(OFFSET(テストデータ!N3,28,0):OFFSET(テストデータ!P3,28,0)) -> 0 | S30: =SUM(OFFSET(テストデータ!N3,28,0):OFFSET(テストデータ!R3,28,0)) -> 0 | T30: =SUM(OFFSET(テストデータ!W3,28,0):OFFSET(テストデータ!Y3,28,0)) -> 0 | U30: =SUM(OFFSET(テストデータ!W3,28,0):OFFSET(テストデータ!AA3,28,0)) -> 0 | V30: =SUM(OFFSET(テストデータ!AF3,28,0):OFFSET(テストデータ!AH3,28,0)) -> 0 | W30: =SUM(OFFSET(テストデータ!AF3,28,0):OFFSET(テストデータ!AJ3,28,0)) -> 0 | X30: =SUM(OFFSET(テストデータ!AO3,28,0):OFFSET(テストデータ!AQ3,28,0)) -> 0 | Y30: =SUM(OFFSET(テストデータ!AO3,28,0):OFFSET(テストデータ!AS3,28,0)) -> 0 | Z30: =SUM(OFFSET(テストデータ!AX3,28,0):OFFSET(テストデータ!AZ3,28,0)) -> 0 | AA30: =SUM(OFFSET(テストデータ!AX3,28,0):OFFSET(テストデータ!BB3,28,0)) -> 0 | AB30: =SUM(OFFSET(テストデータ!BG3,28,0):OFFSET(テストデータ!BI3,28,0)) -> 0 | AC30: =SUM(OFFSET(テストデータ!BG3,28,0):OFFSET(テストデータ!BK3,28,0)) -> 0 | AD30: =SUM(OFFSET(テストデータ!BL3,28,0):OFFSET(テストデータ!BN3,28,0)) -> 0 | AE30: =SUM(OFFSET(テストデータ!BL3,28,0):OFFSET(テストデータ!BP3,28,0)) -> 0 | AF30: =SUM(OFFSET(テストデータ!BQ3,28,0):OFFSET(テストデータ!BS3,28,0)) -> 0 | AG30: =SUM(OFFSET(テストデータ!BQ3,28,0):OFFSET(テストデータ!BU3,28,0)) -> 0 | AH30: =SUM(OFFSET(テストデータ!BV3,28,0):OFFSET(テストデータ!BX3,28,0)) -> 0 | AI30: =SUM(OFFSET(テストデータ!BV3,28,0):OFFSET(テストデータ!BZ3,28,0)) -> 0 | AJ30: =SUM(OFFSET(テストデータ!CA3,28,0):OFFSET(テストデータ!CC3,28,0)) -> 0 | AK30: =SUM(OFFSET(テストデータ!CA3,28,0):OFFSET(テストデータ!CE3,28,0)) -> 0 | AL30: =SUM(OFFSET(テストデータ!CF3,28,0):OFFSET(テストデータ!CH3,28,0)) -> 0 | AM30: =SUM(OFFSET(テストデータ!CF3,28,0):OFFSET(テストデータ!CJ3,28,0)) -> 0 | AN30: =SUM(OFFSET(テストデータ!CK3,28,0):OFFSET(テストデータ!CM3,28,0)) -> 0 | AO30: =SUM(OFFSET(テストデータ!CK3,28,0):OFFSET(テストデータ!CO3,28,0)) -> 0 | AP30: =SUM(OFFSET(テストデータ!CP3,28,0):OFFSET(テストデータ!CR3,28,0)) -> 0 | AQ30: =SUM(OFFSET(テストデータ!CP3,28,0):OFFSET(テストデータ!CT3,28,0)) -> 0
B31: クラス4 | N31: =SUM(OFFSET(テストデータ!$E3,29,9*成績表1!$B$4-9):OFFSET(テストデータ!$G3,29,9*成績表1!$B$4-9)) -> 0 | O31: =SUM(OFFSET(テストデータ!$E3,29,9*成績表1!$B$4-9):OFFSET(テストデータ!I3,29,9*成績表1!$B$4-9)) -> 0 | P31: =SUM(OFFSET(テストデータ!E3,29,0):OFFSET(テストデータ!G3,29,0)) -> 0 | Q31: =SUM(OFFSET(テストデータ!E3,29,0):OFFSET(テストデータ!I3,29,0)) -> 0 | R31: =SUM(OFFSET(テストデータ!N3,29,0):OFFSET(テストデータ!P3,29,0)) -> 0 | S31: =SUM(OFFSET(テストデータ!N3,29,0):OFFSET(テストデータ!R3,29,0)) -> 0 | T31: =SUM(OFFSET(テストデータ!W3,29,0):OFFSET(テストデータ!Y3,29,0)) -> 0 | U31: =SUM(OFFSET(テストデータ!W3,29,0):OFFSET(テストデータ!AA3,29,0)) -> 0 | V31: =SUM(OFFSET(テストデータ!AF3,29,0):OFFSET(テストデータ!AH3,29,0)) -> 0 | W31: =SUM(OFFSET(テストデータ!AF3,29,0):OFFSET(テストデータ!AJ3,29,0)) -> 0 | X31: =SUM(OFFSET(テストデータ!AO3,29,0):OFFSET(テストデータ!AQ3,29,0)) -> 0 | Y31: =SUM(OFFSET(テストデータ!AO3,29,0):OFFSET(テストデータ!AS3,29,0)) -> 0 | Z31: =SUM(OFFSET(テストデータ!AX3,29,0):OFFSET(テストデータ!AZ3,29,0)) -> 0 | AA31: =SUM(OFFSET(テストデータ!AX3,29,0):OFFSET(テストデータ!BB3,29,0)) -> 0 | AB31: =SUM(OFFSET(テストデータ!BG3,29,0):OFFSET(テストデータ!BI3,29,0)) -> 0 | AC31: =SUM(OFFSET(テストデータ!BG3,29,0):OFFSET(テストデータ!BK3,29,0)) -> 0 | AD31: =SUM(OFFSET(テストデータ!BL3,29,0):OFFSET(テストデータ!BN3,29,0)) -> 0 | AE31: =SUM(OFFSET(テストデータ!BL3,29,0):OFFSET(テストデータ!BP3,29,0)) -> 0 | AF31: =SUM(OFFSET(テストデータ!BQ3,29,0):OFFSET(テストデータ!BS3,29,0)) -> 0 | AG31: =SUM(OFFSET(テストデータ!BQ3,29,0):OFFSET(テストデータ!BU3,29,0)) -> 0 | AH31: =SUM(OFFSET(テストデータ!BV3,29,0):OFFSET(テストデータ!BX3,29,0)) -> 0 | AI31: =SUM(OFFSET(テストデータ!BV3,29,0):OFFSET(テストデータ!BZ3,29,0)) -> 0 | AJ31: =SUM(OFFSET(テストデータ!CA3,29,0):OFFSET(テストデータ!CC3,29,0)) -> 0 | AK31: =SUM(OFFSET(テストデータ!CA3,29,0):OFFSET(テストデータ!CE3,29,0)) -> 0 | AL31: =SUM(OFFSET(テストデータ!CF3,29,0):OFFSET(テストデータ!CH3,29,0)) -> 0 | AM31: =SUM(OFFSET(テストデータ!CF3,29,0):OFFSET(テストデータ!CJ3,29,0)) -> 0 | AN31: =SUM(OFFSET(テストデータ!CK3,29,0):OFFSET(テストデータ!CM3,29,0)) -> 0 | AO31: =SUM(OFFSET(テストデータ!CK3,29,0):OFFSET(テストデータ!CO3,29,0)) -> 0 | AP31: =SUM(OFFSET(テストデータ!CP3,29,0):OFFSET(テストデータ!CR3,29,0)) -> 0 | AQ31: =SUM(OFFSET(テストデータ!CP3,29,0):OFFSET(テストデータ!CT3,29,0)) -> 0
B32: クラス5 | N32: =SUM(OFFSET(テストデータ!$E3,30,9*成績表1!$B$4-9):OFFSET(テストデータ!$G3,30,9*成績表1!$B$4-9)) -> 0 | O32: =SUM(OFFSET(テストデータ!$E3,30,9*成績表1!$B$4-9):OFFSET(テストデータ!I3,30,9*成績表1!$B$4-9)) -> 0 | P32: =SUM(OFFSET(テストデータ!E3,30,0):OFFSET(テストデータ!G3,30,0)) -> 0 | Q32: =SUM(OFFSET(テストデータ!E3,30,0):OFFSET(テストデータ!I3,30,0)) -> 0 | R32: =SUM(OFFSET(テストデータ!N3,30,0):OFFSET(テストデータ!P3,30,0)) -> 0 | S32: =SUM(OFFSET(テストデータ!N3,30,0):OFFSET(テストデータ!R3,30,0)) -> 0 | T32: =SUM(OFFSET(テストデータ!W3,30,0):OFFSET(テストデータ!Y3,30,0)) -> 0 | U32: =SUM(OFFSET(テストデータ!W3,30,0):OFFSET(テストデータ!AA3,30,0)) -> 0 | V32: =SUM(OFFSET(テストデータ!AF3,30,0):OFFSET(テストデータ!AH3,30,0)) -> 0 | W32: =SUM(OFFSET(テストデータ!AF3,30,0):OFFSET(テストデータ!AJ3,30,0)) -> 0 | X32: =SUM(OFFSET(テストデータ!AO3,30,0):OFFSET(テストデータ!AQ3,30,0)) -> 0 | Y32: =SUM(OFFSET(テストデータ!AO3,30,0):OFFSET(テストデータ!AS3,30,0)) -> 0 | Z32: =SUM(OFFSET(テストデータ!AX3,30,0):OFFSET(テストデータ!AZ3,30,0)) -> 0 | AA32: =SUM(OFFSET(テストデータ!AX3,30,0):OFFSET(テストデータ!BB3,30,0)) -> 0 | AB32: =SUM(OFFSET(テストデータ!BG3,30,0):OFFSET(テストデータ!BI3,30,0)) -> 0 | AC32: =SUM(OFFSET(テストデータ!BG3,30,0):OFFSET(テストデータ!BK3,30,0)) -> 0 | AD32: =SUM(OFFSET(テストデータ!BL3,30,0):OFFSET(テストデータ!BN3,30,0)) -> 0 | AE32: =SUM(OFFSET(テストデータ!BL3,30,0):OFFSET(テストデータ!BP3,30,0)) -> 0 | AF32: =SUM(OFFSET(テストデータ!BQ3,30,0):OFFSET(テストデータ!BS3,30,0)) -> 0 | AG32: =SUM(OFFSET(テストデータ!BQ3,30,0):OFFSET(テストデータ!BU3,30,0)) -> 0 | AH32: =SUM(OFFSET(テストデータ!BV3,30,0):OFFSET(テストデータ!BX3,30,0)) -> 0 | AI32: =SUM(OFFSET(テストデータ!BV3,30,0):OFFSET(テストデータ!BZ3,30,0)) -> 0 | AJ32: =SUM(OFFSET(テストデータ!CA3,30,0):OFFSET(テストデータ!CC3,30,0)) -> 0 | AK32: =SUM(OFFSET(テストデータ!CA3,30,0):OFFSET(テストデータ!CE3,30,0)) -> 0 | AL32: =SUM(OFFSET(テストデータ!CF3,30,0):OFFSET(テストデータ!CH3,30,0)) -> 0 | AM32: =SUM(OFFSET(テストデータ!CF3,30,0):OFFSET(テストデータ!CJ3,30,0)) -> 0 | AN32: =SUM(OFFSET(テストデータ!CK3,30,0):OFFSET(テストデータ!CM3,30,0)) -> 0 | AO32: =SUM(OFFSET(テストデータ!CK3,30,0):OFFSET(テストデータ!CO3,30,0)) -> 0 | AP32: =SUM(OFFSET(テストデータ!CP3,30,0):OFFSET(テストデータ!CR3,30,0)) -> 0 | AQ32: =SUM(OFFSET(テストデータ!CP3,30,0):OFFSET(テストデータ!CT3,30,0)) -> 0
B33: クラス6 | N33: =SUM(OFFSET(テストデータ!$E3,31,9*成績表1!$B$4-9):OFFSET(テストデータ!$G3,31,9*成績表1!$B$4-9)) -> 0 | O33: =SUM(OFFSET(テストデータ!$E3,31,9*成績表1!$B$4-9):OFFSET(テストデータ!I3,31,9*成績表1!$B$4-9)) -> 0 | P33: =SUM(OFFSET(テストデータ!E3,31,0):OFFSET(テストデータ!G3,31,0)) -> 0 | Q33: =SUM(OFFSET(テストデータ!E3,31,0):OFFSET(テストデータ!I3,31,0)) -> 0 | R33: =SUM(OFFSET(テストデータ!N3,31,0):OFFSET(テストデータ!P3,31,0)) -> 0 | S33: =SUM(OFFSET(テストデータ!N3,31,0):OFFSET(テストデータ!R3,31,0)) -> 0 | T33: =SUM(OFFSET(テストデータ!W3,31,0):OFFSET(テストデータ!Y3,31,0)) -> 0 | U33: =SUM(OFFSET(テストデータ!W3,31,0):OFFSET(テストデータ!AA3,31,0)) -> 0 | V33: =SUM(OFFSET(テストデータ!AF3,31,0):OFFSET(テストデータ!AH3,31,0)) -> 0 | W33: =SUM(OFFSET(テストデータ!AF3,31,0):OFFSET(テストデータ!AJ3,31,0)) -> 0 | X33: =SUM(OFFSET(テストデータ!AO3,31,0):OFFSET(テストデータ!AQ3,31,0)) -> 0 | Y33: =SUM(OFFSET(テストデータ!AO3,31,0):OFFSET(テストデータ!AS3,31,0)) -> 0 | Z33: =SUM(OFFSET(テストデータ!AX3,31,0):OFFSET(テストデータ!AZ3,31,0)) -> 0 | AA33: =SUM(OFFSET(テストデータ!AX3,31,0):OFFSET(テストデータ!BB3,31,0)) -> 0 | AB33: =SUM(OFFSET(テストデータ!BG3,31,0):OFFSET(テストデータ!BI3,31,0)) -> 0 | AC33: =SUM(OFFSET(テストデータ!BG3,31,0):OFFSET(テストデータ!BK3,31,0)) -> 0 | AD33: =SUM(OFFSET(テストデータ!BL3,31,0):OFFSET(テストデータ!BN3,31,0)) -> 0 | AE33: =SUM(OFFSET(テストデータ!BL3,31,0):OFFSET(テストデータ!BP3,31,0)) -> 0 | AF33: =SUM(OFFSET(テストデータ!BQ3,31,0):OFFSET(テストデータ!BS3,31,0)) -> 0 | AG33: =SUM(OFFSET(テストデータ!BQ3,31,0):OFFSET(テストデータ!BU3,31,0)) -> 0 | AH33: =SUM(OFFSET(テストデータ!BV3,31,0):OFFSET(テストデータ!BX3,31,0)) -> 0 | AI33: =SUM(OFFSET(テストデータ!BV3,31,0):OFFSET(テストデータ!BZ3,31,0)) -> 0 | AJ33: =SUM(OFFSET(テストデータ!CA3,31,0):OFFSET(テストデータ!CC3,31,0)) -> 0 | AK33: =SUM(OFFSET(テストデータ!CA3,31,0):OFFSET(テストデータ!CE3,31,0)) -> 0 | AL33: =SUM(OFFSET(テストデータ!CF3,31,0):OFFSET(テストデータ!CH3,31,0)) -> 0 | AM33: =SUM(OFFSET(テストデータ!CF3,31,0):OFFSET(テストデータ!CJ3,31,0)) -> 0 | AN33: =SUM(OFFSET(テストデータ!CK3,31,0):OFFSET(テストデータ!CM3,31,0)) -> 0 | AO33: =SUM(OFFSET(テストデータ!CK3,31,0):OFFSET(テストデータ!CO3,31,0)) -> 0 | AP33: =SUM(OFFSET(テストデータ!CP3,31,0):OFFSET(テストデータ!CR3,31,0)) -> 0 | AQ33: =SUM(OFFSET(テストデータ!CP3,31,0):OFFSET(テストデータ!CT3,31,0)) -> 0
B34: クラス7 | N34: =SUM(OFFSET(テストデータ!$E3,32,9*成績表1!$B$4-9):OFFSET(テストデータ!$G3,32,9*成績表1!$B$4-9)) -> 0 | O34: =SUM(OFFSET(テストデータ!$E3,32,9*成績表1!$B$4-9):OFFSET(テストデータ!I3,32,9*成績表1!$B$4-9)) -> 0 | P34: =SUM(OFFSET(テストデータ!E3,32,0):OFFSET(テストデータ!G3,32,0)) -> 0 | Q34: =SUM(OFFSET(テストデータ!E3,32,0):OFFSET(テストデータ!I3,32,0)) -> 0 | R34: =SUM(OFFSET(テストデータ!N3,32,0):OFFSET(テストデータ!P3,32,0)) -> 0 | S34: =SUM(OFFSET(テストデータ!N3,32,0):OFFSET(テストデータ!R3,32,0)) -> 0 | T34: =SUM(OFFSET(テストデータ!W3,32,0):OFFSET(テストデータ!Y3,32,0)) -> 0 | U34: =SUM(OFFSET(テストデータ!W3,32,0):OFFSET(テストデータ!AA3,32,0)) -> 0 | V34: =SUM(OFFSET(テストデータ!AF3,32,0):OFFSET(テストデータ!AH3,32,0)) -> 0 | W34: =SUM(OFFSET(テストデータ!AF3,32,0):OFFSET(テストデータ!AJ3,32,0)) -> 0 | X34: =SUM(OFFSET(テストデータ!AO3,32,0):OFFSET(テストデータ!AQ3,32,0)) -> 0 | Y34: =SUM(OFFSET(テストデータ!AO3,32,0):OFFSET(テストデータ!AS3,32,0)) -> 0 | Z34: =SUM(OFFSET(テストデータ!AX3,32,0):OFFSET(テストデータ!AZ3,32,0)) -> 0 | AA34: =SUM(OFFSET(テストデータ!AX3,32,0):OFFSET(テストデータ!BB3,32,0)) -> 0 | AB34: =SUM(OFFSET(テストデータ!BG3,32,0):OFFSET(テストデータ!BI3,32,0)) -> 0 | AC34: =SUM(OFFSET(テストデータ!BG3,32,0):OFFSET(テストデータ!BK3,32,0)) -> 0 | AD34: =SUM(OFFSET(テストデータ!BL3,32,0):OFFSET(テストデータ!BN3,32,0)) -> 0 | AE34: =SUM(OFFSET(テストデータ!BL3,32,0):OFFSET(テストデータ!BP3,32,0)) -> 0 | AF34: =SUM(OFFSET(テストデータ!BQ3,32,0):OFFSET(テストデータ!BS3,32,0)) -> 0 | AG34: =SUM(OFFSET(テストデータ!BQ3,32,0):OFFSET(テストデータ!BU3,32,0)) -> 0 | AH34: =SUM(OFFSET(テストデータ!BV3,32,0):OFFSET(テストデータ!BX3,32,0)) -> 0 | AI34: =SUM(OFFSET(テストデータ!BV3,32,0):OFFSET(テストデータ!BZ3,32,0)) -> 0 | AJ34: =SUM(OFFSET(テストデータ!CA3,32,0):OFFSET(テストデータ!CC3,32,0)) -> 0 | AK34: =SUM(OFFSET(テストデータ!CA3,32,0):OFFSET(テストデータ!CE3,32,0)) -> 0 | AL34: =SUM(OFFSET(テストデータ!CF3,32,0):OFFSET(テストデータ!CH3,32,0)) -> 0 | AM34: =SUM(OFFSET(テストデータ!CF3,32,0):OFFSET(テストデータ!CJ3,32,0)) -> 0 | AN34: =SUM(OFFSET(テストデータ!CK3,32,0):OFFSET(テストデータ!CM3,32,0)) -> 0 | AO34: =SUM(OFFSET(テストデータ!CK3,32,0):OFFSET(テストデータ!CO3,32,0)) -> 0 | AP34: =SUM(OFFSET(テストデータ!CP3,32,0):OFFSET(テストデータ!CR3,32,0)) -> 0 | AQ34: =SUM(OFFSET(テストデータ!CP3,32,0):OFFSET(テストデータ!CT3,32,0)) -> 0
B35: クラス8 | N35: =SUM(OFFSET(テストデータ!$E3,33,9*成績表1!$B$4-9):OFFSET(テストデータ!$G3,33,9*成績表1!$B$4-9)) -> 0 | O35: =SUM(OFFSET(テストデータ!$E3,33,9*成績表1!$B$4-9):OFFSET(テストデータ!I3,33,9*成績表1!$B$4-9)) -> 0 | P35: =SUM(OFFSET(テストデータ!E3,33,0):OFFSET(テストデータ!G3,33,0)) -> 0 | Q35: =SUM(OFFSET(テストデータ!E3,33,0):OFFSET(テストデータ!I3,33,0)) -> 0 | R35: =SUM(OFFSET(テストデータ!N3,33,0):OFFSET(テストデータ!P3,33,0)) -> 0 | S35: =SUM(OFFSET(テストデータ!N3,33,0):OFFSET(テストデータ!R3,33,0)) -> 0 | T35: =SUM(OFFSET(テストデータ!W3,33,0):OFFSET(テストデータ!Y3,33,0)) -> 0 | U35: =SUM(OFFSET(テストデータ!W3,33,0):OFFSET(テストデータ!AA3,33,0)) -> 0 | V35: =SUM(OFFSET(テストデータ!AF3,33,0):OFFSET(テストデータ!AH3,33,0)) -> 0 | W35: =SUM(OFFSET(テストデータ!AF3,33,0):OFFSET(テストデータ!AJ3,33,0)) -> 0 | X35: =SUM(OFFSET(テストデータ!AO3,33,0):OFFSET(テストデータ!AQ3,33,0)) -> 0 | Y35: =SUM(OFFSET(テストデータ!AO3,33,0):OFFSET(テストデータ!AS3,33,0)) -> 0 | Z35: =SUM(OFFSET(テストデータ!AX3,33,0):OFFSET(テストデータ!AZ3,33,0)) -> 0 | AA35: =SUM(OFFSET(テストデータ!AX3,33,0):OFFSET(テストデータ!BB3,33,0)) -> 0 | AB35: =SUM(OFFSET(テストデータ!BG3,33,0):OFFSET(テストデータ!BI3,33,0)) -> 0 | AC35: =SUM(OFFSET(テストデータ!BG3,33,0):OFFSET(テストデータ!BK3,33,0)) -> 0 | AD35: =SUM(OFFSET(テストデータ!BL3,33,0):OFFSET(テストデータ!BN3,33,0)) -> 0 | AE35: =SUM(OFFSET(テストデータ!BL3,33,0):OFFSET(テストデータ!BP3,33,0)) -> 0 | AF35: =SUM(OFFSET(テストデータ!BQ3,33,0):OFFSET(テストデータ!BS3,33,0)) -> 0 | AG35: =SUM(OFFSET(テストデータ!BQ3,33,0):OFFSET(テストデータ!BU3,33,0)) -> 0 | AH35: =SUM(OFFSET(テストデータ!BV3,33,0):OFFSET(テストデータ!BX3,33,0)) -> 0 | AI35: =SUM(OFFSET(テストデータ!BV3,33,0):OFFSET(テストデータ!BZ3,33,0)) -> 0 | AJ35: =SUM(OFFSET(テストデータ!CA3,33,0):OFFSET(テストデータ!CC3,33,0)) -> 0 | AK35: =SUM(OFFSET(テストデータ!CA3,33,0):OFFSET(テストデータ!CE3,33,0)) -> 0 | AL35: =SUM(OFFSET(テストデータ!CF3,33,0):OFFSET(テストデータ!CH3,33,0)) -> 0 | AM35: =SUM(OFFSET(テストデータ!CF3,33,0):OFFSET(テストデータ!CJ3,33,0)) -> 0 | AN35: =SUM(OFFSET(テストデータ!CK3,33,0):OFFSET(テストデータ!CM3,33,0)) -> 0 | AO35: =SUM(OFFSET(テストデータ!CK3,33,0):OFFSET(テストデータ!CO3,33,0)) -> 0 | AP35: =SUM(OFFSET(テストデータ!CP3,33,0):OFFSET(テストデータ!CR3,33,0)) -> 0 | AQ35: =SUM(OFFSET(テストデータ!CP3,33,0):OFFSET(テストデータ!CT3,33,0)) -> 0
B36: クラス9 | N36: =SUM(OFFSET(テストデータ!$E3,34,9*成績表1!$B$4-9):OFFSET(テストデータ!$G3,34,9*成績表1!$B$4-9)) -> 0 | O36: =SUM(OFFSET(テストデータ!$E3,34,9*成績表1!$B$4-9):OFFSET(テストデータ!I3,34,9*成績表1!$B$4-9)) -> 0 | P36: =SUM(OFFSET(テストデータ!E3,34,0):OFFSET(テストデータ!G3,34,0)) -> 0 | Q36: =SUM(OFFSET(テストデータ!E3,34,0):OFFSET(テストデータ!I3,34,0)) -> 0 | R36: =SUM(OFFSET(テストデータ!N3,34,0):OFFSET(テストデータ!P3,34,0)) -> 0 | S36: =SUM(OFFSET(テストデータ!N3,34,0):OFFSET(テストデータ!R3,34,0)) -> 0 | T36: =SUM(OFFSET(テストデータ!W3,34,0):OFFSET(テストデータ!Y3,34,0)) -> 0 | U36: =SUM(OFFSET(テストデータ!W3,34,0):OFFSET(テストデータ!AA3,34,0)) -> 0 | V36: =SUM(OFFSET(テストデータ!AF3,34,0):OFFSET(テストデータ!AH3,34,0)) -> 0 | W36: =SUM(OFFSET(テストデータ!AF3,34,0):OFFSET(テストデータ!AJ3,34,0)) -> 0 | X36: =SUM(OFFSET(テストデータ!AO3,34,0):OFFSET(テストデータ!AQ3,34,0)) -> 0 | Y36: =SUM(OFFSET(テストデータ!AO3,34,0):OFFSET(テストデータ!AS3,34,0)) -> 0 | Z36: =SUM(OFFSET(テストデータ!AX3,34,0):OFFSET(テストデータ!AZ3,34,0)) -> 0 | AA36: =SUM(OFFSET(テストデータ!AX3,34,0):OFFSET(テストデータ!BB3,34,0)) -> 0 | AB36: =SUM(OFFSET(テストデータ!BG3,34,0):OFFSET(テストデータ!BI3,34,0)) -> 0 | AC36: =SUM(OFFSET(テストデータ!BG3,34,0):OFFSET(テストデータ!BK3,34,0)) -> 0 | AD36: =SUM(OFFSET(テストデータ!BL3,34,0):OFFSET(テストデータ!BN3,34,0)) -> 0 | AE36: =SUM(OFFSET(テストデータ!BL3,34,0):OFFSET(テストデータ!BP3,34,0)) -> 0 | AF36: =SUM(OFFSET(テストデータ!BQ3,34,0):OFFSET(テストデータ!BS3,34,0)) -> 0 | AG36: =SUM(OFFSET(テストデータ!BQ3,34,0):OFFSET(テストデータ!BU3,34,0)) -> 0 | AH36: =SUM(OFFSET(テストデータ!BV3,34,0):OFFSET(テストデータ!BX3,34,0)) -> 0 | AI36: =SUM(OFFSET(テストデータ!BV3,34,0):OFFSET(テストデータ!BZ3,34,0)) -> 0 | AJ36: =SUM(OFFSET(テストデータ!CA3,34,0):OFFSET(テストデータ!CC3,34,0)) -> 0 | AK36: =SUM(OFFSET(テストデータ!CA3,34,0):OFFSET(テストデータ!CE3,34,0)) -> 0 | AL36: =SUM(OFFSET(テストデータ!CF3,34,0):OFFSET(テストデータ!CH3,34,0)) -> 0 | AM36: =SUM(OFFSET(テストデータ!CF3,34,0):OFFSET(テストデータ!CJ3,34,0)) -> 0 | AN36: =SUM(OFFSET(テストデータ!CK3,34,0):OFFSET(テストデータ!CM3,34,0)) -> 0 | AO36: =SUM(OFFSET(テストデータ!CK3,34,0):OFFSET(テストデータ!CO3,34,0)) -> 0 | AP36: =SUM(OFFSET(テストデータ!CP3,34,0):OFFSET(テストデータ!CR3,34,0)) -> 0 | AQ36: =SUM(OFFSET(テストデータ!CP3,34,0):OFFSET(テストデータ!CT3,34,0)) -> 0
B37: クラス10 | N37: =SUM(OFFSET(テストデータ!$E3,35,9*成績表1!$B$4-9):OFFSET(テストデータ!$G3,35,9*成績表1!$B$4-9)) -> 0 | O37: =SUM(OFFSET(テストデータ!$E3,35,9*成績表1!$B$4-9):OFFSET(テストデータ!I3,35,9*成績表1!$B$4-9)) -> 0 | P37: =SUM(OFFSET(テストデータ!E3,35,0):OFFSET(テストデータ!G3,35,0)) -> 0 | Q37: =SUM(OFFSET(テストデータ!E3,35,0):OFFSET(テストデータ!I3,35,0)) -> 0 | R37: =SUM(OFFSET(テストデータ!N3,35,0):OFFSET(テストデータ!P3,35,0)) -> 0 | S37: =SUM(OFFSET(テストデータ!N3,35,0):OFFSET(テストデータ!R3,35,0)) -> 0 | T37: =SUM(OFFSET(テストデータ!W3,35,0):OFFSET(テストデータ!Y3,35,0)) -> 0 | U37: =SUM(OFFSET(テストデータ!W3,35,0):OFFSET(テストデータ!AA3,35,0)) -> 0 | V37: =SUM(OFFSET(テストデータ!AF3,35,0):OFFSET(テストデータ!AH3,35,0)) -> 0 | W37: =SUM(OFFSET(テストデータ!AF3,35,0):OFFSET(テストデータ!AJ3,35,0)) -> 0 | X37: =SUM(OFFSET(テストデータ!AO3,35,0):OFFSET(テストデータ!AQ3,35,0)) -> 0 | Y37: =SUM(OFFSET(テストデータ!AO3,35,0):OFFSET(テストデータ!AS3,35,0)) -> 0 | Z37: =SUM(OFFSET(テストデータ!AX3,35,0):OFFSET(テストデータ!AZ3,35,0)) -> 0 | AA37: =SUM(OFFSET(テストデータ!AX3,35,0):OFFSET(テストデータ!BB3,35,0)) -> 0 | AB37: =SUM(OFFSET(テストデータ!BG3,35,0):OFFSET(テストデータ!BI3,35,0)) -> 0 | AC37: =SUM(OFFSET(テストデータ!BG3,35,0):OFFSET(テストデータ!BK3,35,0)) -> 0 | AD37: =SUM(OFFSET(テストデータ!BL3,35,0):OFFSET(テストデータ!BN3,35,0)) -> 0 | AE37: =SUM(OFFSET(テストデータ!BL3,35,0):OFFSET(テストデータ!BP3,35,0)) -> 0 | AF37: =SUM(OFFSET(テストデータ!BQ3,35,0):OFFSET(テストデータ!BS3,35,0)) -> 0 | AG37: =SUM(OFFSET(テストデータ!BQ3,35,0):OFFSET(テストデータ!BU3,35,0)) -> 0 | AH37: =SUM(OFFSET(テストデータ!BV3,35,0):OFFSET(テストデータ!BX3,35,0)) -> 0 | AI37: =SUM(OFFSET(テストデータ!BV3,35,0):OFFSET(テストデータ!BZ3,35,0)) -> 0 | AJ37: =SUM(OFFSET(テストデータ!CA3,35,0):OFFSET(テストデータ!CC3,35,0)) -> 0 | AK37: =SUM(OFFSET(テストデータ!CA3,35,0):OFFSET(テストデータ!CE3,35,0)) -> 0 | AL37: =SUM(OFFSET(テストデータ!CF3,35,0):OFFSET(テストデータ!CH3,35,0)) -> 0 | AM37: =SUM(OFFSET(テストデータ!CF3,35,0):OFFSET(テストデータ!CJ3,35,0)) -> 0 | AN37: =SUM(OFFSET(テストデータ!CK3,35,0):OFFSET(テストデータ!CM3,35,0)) -> 0 | AO37: =SUM(OFFSET(テストデータ!CK3,35,0):OFFSET(テストデータ!CO3,35,0)) -> 0 | AP37: =SUM(OFFSET(テストデータ!CP3,35,0):OFFSET(テストデータ!CR3,35,0)) -> 0 | AQ37: =SUM(OFFSET(テストデータ!CP3,35,0):OFFSET(テストデータ!CT3,35,0)) -> 0
B38: クラス11 | N38: =SUM(OFFSET(テストデータ!$E3,36,9*成績表1!$B$4-9):OFFSET(テストデータ!$G3,36,9*成績表1!$B$4-9)) -> 0 | O38: =SUM(OFFSET(テストデータ!$E3,36,9*成績表1!$B$4-9):OFFSET(テストデータ!I3,36,9*成績表1!$B$4-9)) -> 0 | P38: =SUM(OFFSET(テストデータ!E3,36,0):OFFSET(テストデータ!G3,36,0)) -> 0 | Q38: =SUM(OFFSET(テストデータ!E3,36,0):OFFSET(テストデータ!I3,36,0)) -> 0 | R38: =SUM(OFFSET(テストデータ!N3,36,0):OFFSET(テストデータ!P3,36,0)) -> 0 | S38: =SUM(OFFSET(テストデータ!N3,36,0):OFFSET(テストデータ!R3,36,0)) -> 0 | T38: =SUM(OFFSET(テストデータ!W3,36,0):OFFSET(テストデータ!Y3,36,0)) -> 0 | U38: =SUM(OFFSET(テストデータ!W3,36,0):OFFSET(テストデータ!AA3,36,0)) -> 0 | V38: =SUM(OFFSET(テストデータ!AF3,36,0):OFFSET(テストデータ!AH3,36,0)) -> 0 | W38: =SUM(OFFSET(テストデータ!AF3,36,0):OFFSET(テストデータ!AJ3,36,0)) -> 0 | X38: =SUM(OFFSET(テストデータ!AO3,36,0):OFFSET(テストデータ!AQ3,36,0)) -> 0 | Y38: =SUM(OFFSET(テストデータ!AO3,36,0):OFFSET(テストデータ!AS3,36,0)) -> 0 | Z38: =SUM(OFFSET(テストデータ!AX3,36,0):OFFSET(テストデータ!AZ3,36,0)) -> 0 | AA38: =SUM(OFFSET(テストデータ!AX3,36,0):OFFSET(テストデータ!BB3,36,0)) -> 0 | AB38: =SUM(OFFSET(テストデータ!BG3,36,0):OFFSET(テストデータ!BI3,36,0)) -> 0 | AC38: =SUM(OFFSET(テストデータ!BG3,36,0):OFFSET(テストデータ!BK3,36,0)) -> 0 | AD38: =SUM(OFFSET(テストデータ!BL3,36,0):OFFSET(テストデータ!BN3,36,0)) -> 0 | AE38: =SUM(OFFSET(テストデータ!BL3,36,0):OFFSET(テストデータ!BP3,36,0)) -> 0 | AF38: =SUM(OFFSET(テストデータ!BQ3,36,0):OFFSET(テストデータ!BS3,36,0)) -> 0 | AG38: =SUM(OFFSET(テストデータ!BQ3,36,0):OFFSET(テストデータ!BU3,36,0)) -> 0 | AH38: =SUM(OFFSET(テストデータ!BV3,36,0):OFFSET(テストデータ!BX3,36,0)) -> 0 | AI38: =SUM(OFFSET(テストデータ!BV3,36,0):OFFSET(テストデータ!BZ3,36,0)) -> 0 | AJ38: =SUM(OFFSET(テストデータ!CA3,36,0):OFFSET(テストデータ!CC3,36,0)) -> 0 | AK38: =SUM(OFFSET(テストデータ!CA3,36,0):OFFSET(テストデータ!CE3,36,0)) -> 0 | AL38: =SUM(OFFSET(テストデータ!CF3,36,0):OFFSET(テストデータ!CH3,36,0)) -> 0 | AM38: =SUM(OFFSET(テストデータ!CF3,36,0):OFFSET(テストデータ!CJ3,36,0)) -> 0 | AN38: =SUM(OFFSET(テストデータ!CK3,36,0):OFFSET(テストデータ!CM3,36,0)) -> 0 | AO38: =SUM(OFFSET(テストデータ!CK3,36,0):OFFSET(テストデータ!CO3,36,0)) -> 0 | AP38: =SUM(OFFSET(テストデータ!CP3,36,0):OFFSET(テストデータ!CR3,36,0)) -> 0 | AQ38: =SUM(OFFSET(テストデータ!CP3,36,0):OFFSET(テストデータ!CT3,36,0)) -> 0
B39: クラス12 | N39: =SUM(OFFSET(テストデータ!$E3,37,9*成績表1!$B$4-9):OFFSET(テストデータ!$G3,37,9*成績表1!$B$4-9)) -> 0 | O39: =SUM(OFFSET(テストデータ!$E3,37,9*成績表1!$B$4-9):OFFSET(テストデータ!I3,37,9*成績表1!$B$4-9)) -> 0 | P39: =SUM(OFFSET(テストデータ!E3,37,0):OFFSET(テストデータ!G3,37,0)) -> 0 | Q39: =SUM(OFFSET(テストデータ!E3,37,0):OFFSET(テストデータ!I3,37,0)) -> 0 | R39: =SUM(OFFSET(テストデータ!N3,37,0):OFFSET(テストデータ!P3,37,0)) -> 0 | S39: =SUM(OFFSET(テストデータ!N3,37,0):OFFSET(テストデータ!R3,37,0)) -> 0 | T39: =SUM(OFFSET(テストデータ!W3,37,0):OFFSET(テストデータ!Y3,37,0)) -> 0 | U39: =SUM(OFFSET(テストデータ!W3,37,0):OFFSET(テストデータ!AA3,37,0)) -> 0 | V39: =SUM(OFFSET(テストデータ!AF3,37,0):OFFSET(テストデータ!AH3,37,0)) -> 0 | W39: =SUM(OFFSET(テストデータ!AF3,37,0):OFFSET(テストデータ!AJ3,37,0)) -> 0 | X39: =SUM(OFFSET(テストデータ!AO3,37,0):OFFSET(テストデータ!AQ3,37,0)) -> 0 | Y39: =SUM(OFFSET(テストデータ!AO3,37,0):OFFSET(テストデータ!AS3,37,0)) -> 0 | Z39: =SUM(OFFSET(テストデータ!AX3,37,0):OFFSET(テストデータ!AZ3,37,0)) -> 0 | AA39: =SUM(OFFSET(テストデータ!AX3,37,0):OFFSET(テストデータ!BB3,37,0)) -> 0 | AB39: =SUM(OFFSET(テストデータ!BG3,37,0):OFFSET(テストデータ!BI3,37,0)) -> 0 | AC39: =SUM(OFFSET(テストデータ!BG3,37,0):OFFSET(テストデータ!BK3,37,0)) -> 0 | AD39: =SUM(OFFSET(テストデータ!BL3,37,0):OFFSET(テストデータ!BN3,37,0)) -> 0 | AE39: =SUM(OFFSET(テストデータ!BL3,37,0):OFFSET(テストデータ!BP3,37,0)) -> 0 | AF39: =SUM(OFFSET(テストデータ!BQ3,37,0):OFFSET(テストデータ!BS3,37,0)) -> 0 | AG39: =SUM(OFFSET(テストデータ!BQ3,37,0):OFFSET(テストデータ!BU3,37,0)) -> 0 | AH39: =SUM(OFFSET(テストデータ!BV3,37,0):OFFSET(テストデータ!BX3,37,0)) -> 0 | AI39: =SUM(OFFSET(テストデータ!BV3,37,0):OFFSET(テストデータ!BZ3,37,0)) -> 0 | AJ39: =SUM(OFFSET(テストデータ!CA3,37,0):OFFSET(テストデータ!CC3,37,0)) -> 0 | AK39: =SUM(OFFSET(テストデータ!CA3,37,0):OFFSET(テストデータ!CE3,37,0)) -> 0 | AL39: =SUM(OFFSET(テストデータ!CF3,37,0):OFFSET(テストデータ!CH3,37,0)) -> 0 | AM39: =SUM(OFFSET(テストデータ!CF3,37,0):OFFSET(テストデータ!CJ3,37,0)) -> 0 | AN39: =SUM(OFFSET(テストデータ!CK3,37,0):OFFSET(テストデータ!CM3,37,0)) -> 0 | AO39: =SUM(OFFSET(テストデータ!CK3,37,0):OFFSET(テストデータ!CO3,37,0)) -> 0 | AP39: =SUM(OFFSET(テストデータ!CP3,37,0):OFFSET(テストデータ!CR3,37,0)) -> 0 | AQ39: =SUM(OFFSET(テストデータ!CP3,37,0):OFFSET(テストデータ!CT3,37,0)) -> 0
N40: =SUM(OFFSET(テストデータ!$E3,38,9*成績表1!$B$4-9):OFFSET(テストデータ!$G3,38,9*成績表1!$B$4-9)) -> 0 | O40: =SUM(OFFSET(テストデータ!$E3,38,9*成績表1!$B$4-9):OFFSET(テストデータ!I3,38,9*成績表1!$B$4-9)) -> 0 | P40: =SUM(OFFSET(テストデータ!E3,38,0):OFFSET(テストデータ!G3,38,0)) -> 0 | Q40: =SUM(OFFSET(テストデータ!E3,38,0):OFFSET(テストデータ!I3,38,0)) -> 0 | R40: =SUM(OFFSET(テストデータ!N3,38,0):OFFSET(テストデータ!P3,38,0)) -> 0 | S40: =SUM(OFFSET(テストデータ!N3,38,0):OFFSET(テストデータ!R3,38,0)) -> 0 | T40: =SUM(OFFSET(テストデータ!W3,38,0):OFFSET(テストデータ!Y3,38,0)) -> 0 | U40: =SUM(OFFSET(テストデータ!W3,38,0):OFFSET(テストデータ!AA3,38,0)) -> 0 | V40: =SUM(OFFSET(テストデータ!AF3,38,0):OFFSET(テストデータ!AH3,38,0)) -> 0 | W40: =SUM(OFFSET(テストデータ!AF3,38,0):OFFSET(テストデータ!AJ3,38,0)) -> 0 | X40: =SUM(OFFSET(テストデータ!AO3,38,0):OFFSET(テストデータ!AQ3,38,0)) -> 0 | Y40: =SUM(OFFSET(テストデータ!AO3,38,0):OFFSET(テストデータ!AS3,38,0)) -> 0 | Z40: =SUM(OFFSET(テストデータ!AX3,38,0):OFFSET(テストデータ!AZ3,38,0)) -> 0 | AA40: =SUM(OFFSET(テストデータ!AX3,38,0):OFFSET(テストデータ!BB3,38,0)) -> 0 | AB40: =SUM(OFFSET(テストデータ!BG3,38,0):OFFSET(テストデータ!BI3,38,0)) -> 0 | AC40: =SUM(OFFSET(テストデータ!BG3,38,0):OFFSET(テストデータ!BK3,38,0)) -> 0 | AD40: =SUM(OFFSET(テストデータ!BL3,38,0):OFFSET(テストデータ!BN3,38,0)) -> 0 | AE40: =SUM(OFFSET(テストデータ!BL3,38,0):OFFSET(テストデータ!BP3,38,0)) -> 0 | AF40: =SUM(OFFSET(テストデータ!BQ3,38,0):OFFSET(テストデータ!BS3,38,0)) -> 0 | AG40: =SUM(OFFSET(テストデータ!BQ3,38,0):OFFSET(テストデータ!BU3,38,0)) -> 0 | AH40: =SUM(OFFSET(テストデータ!BV3,38,0):OFFSET(テストデータ!BX3,38,0)) -> 0 | AI40: =SUM(OFFSET(テストデータ!BV3,38,0):OFFSET(テストデータ!BZ3,38,0)) -> 0 | AJ40: =SUM(OFFSET(テストデータ!CA3,38,0):OFFSET(テストデータ!CC3,38,0)) -> 0 | AK40: =SUM(OFFSET(テストデータ!CA3,38,0):OFFSET(テストデータ!CE3,38,0)) -> 0 | AL40: =SUM(OFFSET(テストデータ!CF3,38,0):OFFSET(テストデータ!CH3,38,0)) -> 0 | AM40: =SUM(OFFSET(テストデータ!CF3,38,0):OFFSET(テストデータ!CJ3,38,0)) -> 0 | AN40: =SUM(OFFSET(テストデータ!CK3,38,0):OFFSET(テストデータ!CM3,38,0)) -> 0 | AO40: =SUM(OFFSET(テストデータ!CK3,38,0):OFFSET(テストデータ!CO3,38,0)) -> 0 | AP40: =SUM(OFFSET(テストデータ!CP3,38,0):OFFSET(テストデータ!CR3,38,0)) -> 0 | AQ40: =SUM(OFFSET(テストデータ!CP3,38,0):OFFSET(テストデータ!CT3,38,0)) -> 0
N41: =SUM(OFFSET(テストデータ!$E3,39,9*成績表1!$B$4-9):OFFSET(テストデータ!$G3,39,9*成績表1!$B$4-9)) -> 0 | O41: =SUM(OFFSET(テストデータ!$E3,39,9*成績表1!$B$4-9):OFFSET(テストデータ!I3,39,9*成績表1!$B$4-9)) -> 0 | P41: =SUM(OFFSET(テストデータ!E3,39,0):OFFSET(テストデータ!G3,39,0)) -> 0 | Q41: =SUM(OFFSET(テストデータ!E3,39,0):OFFSET(テストデータ!I3,39,0)) -> 0 | R41: =SUM(OFFSET(テストデータ!N3,39,0):OFFSET(テストデータ!P3,39,0)) -> 0 | S41: =SUM(OFFSET(テストデータ!N3,39,0):OFFSET(テストデータ!R3,39,0)) -> 0 | T41: =SUM(OFFSET(テストデータ!W3,39,0):OFFSET(テストデータ!Y3,39,0)) -> 0 | U41: =SUM(OFFSET(テストデータ!W3,39,0):OFFSET(テストデータ!AA3,39,0)) -> 0 | V41: =SUM(OFFSET(テストデータ!AF3,39,0):OFFSET(テストデータ!AH3,39,0)) -> 0 | W41: =SUM(OFFSET(テストデータ!AF3,39,0):OFFSET(テストデータ!AJ3,39,0)) -> 0 | X41: =SUM(OFFSET(テストデータ!AO3,39,0):OFFSET(テストデータ!AQ3,39,0)) -> 0 | Y41: =SUM(OFFSET(テストデータ!AO3,39,0):OFFSET(テストデータ!AS3,39,0)) -> 0 | Z41: =SUM(OFFSET(テストデータ!AX3,39,0):OFFSET(テストデータ!AZ3,39,0)) -> 0 | AA41: =SUM(OFFSET(テストデータ!AX3,39,0):OFFSET(テストデータ!BB3,39,0)) -> 0 | AB41: =SUM(OFFSET(テストデータ!BG3,39,0):OFFSET(テストデータ!BI3,39,0)) -> 0 | AC41: =SUM(OFFSET(テストデータ!BG3,39,0):OFFSET(テストデータ!BK3,39,0)) -> 0 | AD41: =SUM(OFFSET(テストデータ!BL3,39,0):OFFSET(テストデータ!BN3,39,0)) -> 0 | AE41: =SUM(OFFSET(テストデータ!BL3,39,0):OFFSET(テストデータ!BP3,39,0)) -> 0 | AF41: =SUM(OFFSET(テストデータ!BQ3,39,0):OFFSET(テストデータ!BS3,39,0)) -> 0 | AG41: =SUM(OFFSET(テストデータ!BQ3,39,0):OFFSET(テストデータ!BU3,39,0)) -> 0 | AH41: =SUM(OFFSET(テストデータ!BV3,39,0):OFFSET(テストデータ!BX3,39,0)) -> 0 | AI41: =SUM(OFFSET(テストデータ!BV3,39,0):OFFSET(テストデータ!BZ3,39,0)) -> 0 | AJ41: =SUM(OFFSET(テストデータ!CA3,39,0):OFFSET(テストデータ!CC3,39,0)) -> 0 | AK41: =SUM(OFFSET(テストデータ!CA3,39,0):OFFSET(テストデータ!CE3,39,0)) -> 0 | AL41: =SUM(OFFSET(テストデータ!CF3,39,0):OFFSET(テストデータ!CH3,39,0)) -> 0 | AM41: =SUM(OFFSET(テストデータ!CF3,39,0):OFFSET(テストデータ!CJ3,39,0)) -> 0 | AN41: =SUM(OFFSET(テストデータ!CK3,39,0):OFFSET(テストデータ!CM3,39,0)) -> 0 | AO41: =SUM(OFFSET(テストデータ!CK3,39,0):OFFSET(テストデータ!CO3,39,0)) -> 0 | AP41: =SUM(OFFSET(テストデータ!CP3,39,0):OFFSET(テストデータ!CR3,39,0)) -> 0 | AQ41: =SUM(OFFSET(テストデータ!CP3,39,0):OFFSET(テストデータ!CT3,39,0)) -> 0
N42: =SUM(OFFSET(テストデータ!$E3,40,9*成績表1!$B$4-9):OFFSET(テストデータ!$G3,40,9*成績表1!$B$4-9)) -> 0 | O42: =SUM(OFFSET(テストデータ!$E3,40,9*成績表1!$B$4-9):OFFSET(テストデータ!I3,40,9*成績表1!$B$4-9)) -> 0 | P42: =SUM(OFFSET(テストデータ!E3,40,0):OFFSET(テストデータ!G3,40,0)) -> 0 | Q42: =SUM(OFFSET(テストデータ!E3,40,0):OFFSET(テストデータ!I3,40,0)) -> 0 | R42: =SUM(OFFSET(テストデータ!N3,40,0):OFFSET(テストデータ!P3,40,0)) -> 0 | S42: =SUM(OFFSET(テストデータ!N3,40,0):OFFSET(テストデータ!R3,40,0)) -> 0 | T42: =SUM(OFFSET(テストデータ!W3,40,0):OFFSET(テストデータ!Y3,40,0)) -> 0 | U42: =SUM(OFFSET(テストデータ!W3,40,0):OFFSET(テストデータ!AA3,40,0)) -> 0 | V42: =SUM(OFFSET(テストデータ!AF3,40,0):OFFSET(テストデータ!AH3,40,0)) -> 0 | W42: =SUM(OFFSET(テストデータ!AF3,40,0):OFFSET(テストデータ!AJ3,40,0)) -> 0 | X42: =SUM(OFFSET(テストデータ!AO3,40,0):OFFSET(テストデータ!AQ3,40,0)) -> 0 | Y42: =SUM(OFFSET(テストデータ!AO3,40,0):OFFSET(テストデータ!AS3,40,0)) -> 0 | Z42: =SUM(OFFSET(テストデータ!AX3,40,0):OFFSET(テストデータ!AZ3,40,0)) -> 0 | AA42: =SUM(OFFSET(テストデータ!AX3,40,0):OFFSET(テストデータ!BB3,40,0)) -> 0 | AB42: =SUM(OFFSET(テストデータ!BG3,40,0):OFFSET(テストデータ!BI3,40,0)) -> 0 | AC42: =SUM(OFFSET(テストデータ!BG3,40,0):OFFSET(テストデータ!BK3,40,0)) -> 0 | AD42: =SUM(OFFSET(テストデータ!BL3,40,0):OFFSET(テストデータ!BN3,40,0)) -> 0 | AE42: =SUM(OFFSET(テストデータ!BL3,40,0):OFFSET(テストデータ!BP3,40,0)) -> 0 | AF42: =SUM(OFFSET(テストデータ!BQ3,40,0):OFFSET(テストデータ!BS3,40,0)) -> 0 | AG42: =SUM(OFFSET(テストデータ!BQ3,40,0):OFFSET(テストデータ!BU3,40,0)) -> 0 | AH42: =SUM(OFFSET(テストデータ!BV3,40,0):OFFSET(テストデータ!BX3,40,0)) -> 0 | AI42: =SUM(OFFSET(テストデータ!BV3,40,0):OFFSET(テストデータ!BZ3,40,0)) -> 0 | AJ42: =SUM(OFFSET(テストデータ!CA3,40,0):OFFSET(テストデータ!CC3,40,0)) -> 0 | AK42: =SUM(OFFSET(テストデータ!CA3,40,0):OFFSET(テストデータ!CE3,40,0)) -> 0 | AL42: =SUM(OFFSET(テストデータ!CF3,40,0):OFFSET(テストデータ!CH3,40,0)) -> 0 | AM42: =SUM(OFFSET(テストデータ!CF3,40,0):OFFSET(テストデータ!CJ3,40,0)) -> 0 | AN42: =SUM(OFFSET(テストデータ!CK3,40,0):OFFSET(テストデータ!CM3,40,0)) -> 0 | AO42: =SUM(OFFSET(テストデータ!CK3,40,0):OFFSET(テストデータ!CO3,40,0)) -> 0 | AP42: =SUM(OFFSET(テストデータ!CP3,40,0):OFFSET(テストデータ!CR3,40,0)) -> 0 | AQ42: =SUM(OFFSET(テストデータ!CP3,40,0):OFFSET(テストデータ!CT3,40,0)) -> 0
N43: =SUM(OFFSET(テストデータ!$E3,41,9*成績表1!$B$4-9):OFFSET(テストデータ!$G3,41,9*成績表1!$B$4-9)) -> 0 | O43: =SUM(OFFSET(テストデータ!$E3,41,9*成績表1!$B$4-9):OFFSET(テストデータ!I3,41,9*成績表1!$B$4-9)) -> 0 | P43: =SUM(OFFSET(テストデータ!E3,41,0):OFFSET(テストデータ!G3,41,0)) -> 0 | Q43: =SUM(OFFSET(テストデータ!E3,41,0):OFFSET(テストデータ!I3,41,0)) -> 0 | R43: =SUM(OFFSET(テストデータ!N3,41,0):OFFSET(テストデータ!P3,41,0)) -> 0 | S43: =SUM(OFFSET(テストデータ!N3,41,0):OFFSET(テストデータ!R3,41,0)) -> 0 | T43: =SUM(OFFSET(テストデータ!W3,41,0):OFFSET(テストデータ!Y3,41,0)) -> 0 | U43: =SUM(OFFSET(テストデータ!W3,41,0):OFFSET(テストデータ!AA3,41,0)) -> 0 | V43: =SUM(OFFSET(テストデータ!AF3,41,0):OFFSET(テストデータ!AH3,41,0)) -> 0 | W43: =SUM(OFFSET(テストデータ!AF3,41,0):OFFSET(テストデータ!AJ3,41,0)) -> 0 | X43: =SUM(OFFSET(テストデータ!AO3,41,0):OFFSET(テストデータ!AQ3,41,0)) -> 0 | Y43: =SUM(OFFSET(テストデータ!AO3,41,0):OFFSET(テストデータ!AS3,41,0)) -> 0 | Z43: =SUM(OFFSET(テストデータ!AX3,41,0):OFFSET(テストデータ!AZ3,41,0)) -> 0 | AA43: =SUM(OFFSET(テストデータ!AX3,41,0):OFFSET(テストデータ!BB3,41,0)) -> 0 | AB43: =SUM(OFFSET(テストデータ!BG3,41,0):OFFSET(テストデータ!BI3,41,0)) -> 0 | AC43: =SUM(OFFSET(テストデータ!BG3,41,0):OFFSET(テストデータ!BK3,41,0)) -> 0 | AD43: =SUM(OFFSET(テストデータ!BL3,41,0):OFFSET(テストデータ!BN3,41,0)) -> 0 | AE43: =SUM(OFFSET(テストデータ!BL3,41,0):OFFSET(テストデータ!BP3,41,0)) -> 0 | AF43: =SUM(OFFSET(テストデータ!BQ3,41,0):OFFSET(テストデータ!BS3,41,0)) -> 0 | AG43: =SUM(OFFSET(テストデータ!BQ3,41,0):OFFSET(テストデータ!BU3,41,0)) -> 0 | AH43: =SUM(OFFSET(テストデータ!BV3,41,0):OFFSET(テストデータ!BX3,41,0)) -> 0 | AI43: =SUM(OFFSET(テストデータ!BV3,41,0):OFFSET(テストデータ!BZ3,41,0)) -> 0 | AJ43: =SUM(OFFSET(テストデータ!CA3,41,0):OFFSET(テストデータ!CC3,41,0)) -> 0 | AK43: =SUM(OFFSET(テストデータ!CA3,41,0):OFFSET(テストデータ!CE3,41,0)) -> 0 | AL43: =SUM(OFFSET(テストデータ!CF3,41,0):OFFSET(テストデータ!CH3,41,0)) -> 0 | AM43: =SUM(OFFSET(テストデータ!CF3,41,0):OFFSET(テストデータ!CJ3,41,0)) -> 0 | AN43: =SUM(OFFSET(テストデータ!CK3,41,0):OFFSET(テストデータ!CM3,41,0)) -> 0 | AO43: =SUM(OFFSET(テストデータ!CK3,41,0):OFFSET(テストデータ!CO3,41,0)) -> 0 | AP43: =SUM(OFFSET(テストデータ!CP3,41,0):OFFSET(テストデータ!CR3,41,0)) -> 0 | AQ43: =SUM(OFFSET(テストデータ!CP3,41,0):OFFSET(テストデータ!CT3,41,0)) -> 0
N44: =SUM(OFFSET(テストデータ!$E3,42,9*成績表1!$B$4-9):OFFSET(テストデータ!$G3,42,9*成績表1!$B$4-9)) -> 0 | O44: =SUM(OFFSET(テストデータ!$E3,42,9*成績表1!$B$4-9):OFFSET(テストデータ!I3,42,9*成績表1!$B$4-9)) -> 0 | P44: =SUM(OFFSET(テストデータ!E3,42,0):OFFSET(テストデータ!G3,42,0)) -> 0 | Q44: =SUM(OFFSET(テストデータ!E3,42,0):OFFSET(テストデータ!I3,42,0)) -> 0 | R44: =SUM(OFFSET(テストデータ!N3,42,0):OFFSET(テストデータ!P3,42,0)) -> 0 | S44: =SUM(OFFSET(テストデータ!N3,42,0):OFFSET(テストデータ!R3,42,0)) -> 0 | T44: =SUM(OFFSET(テストデータ!W3,42,0):OFFSET(テストデータ!Y3,42,0)) -> 0 | U44: =SUM(OFFSET(テストデータ!W3,42,0):OFFSET(テストデータ!AA3,42,0)) -> 0 | V44: =SUM(OFFSET(テストデータ!AF3,42,0):OFFSET(テストデータ!AH3,42,0)) -> 0 | W44: =SUM(OFFSET(テストデータ!AF3,42,0):OFFSET(テストデータ!AJ3,42,0)) -> 0 | X44: =SUM(OFFSET(テストデータ!AO3,42,0):OFFSET(テストデータ!AQ3,42,0)) -> 0 | Y44: =SUM(OFFSET(テストデータ!AO3,42,0):OFFSET(テストデータ!AS3,42,0)) -> 0 | Z44: =SUM(OFFSET(テストデータ!AX3,42,0):OFFSET(テストデータ!AZ3,42,0)) -> 0 | AA44: =SUM(OFFSET(テストデータ!AX3,42,0):OFFSET(テストデータ!BB3,42,0)) -> 0 | AB44: =SUM(OFFSET(テストデータ!BG3,42,0):OFFSET(テストデータ!BI3,42,0)) -> 0 | AC44: =SUM(OFFSET(テストデータ!BG3,42,0):OFFSET(テストデータ!BK3,42,0)) -> 0 | AD44: =SUM(OFFSET(テストデータ!BL3,42,0):OFFSET(テストデータ!BN3,42,0)) -> 0 | AE44: =SUM(OFFSET(テストデータ!BL3,42,0):OFFSET(テストデータ!BP3,42,0)) -> 0 | AF44: =SUM(OFFSET(テストデータ!BQ3,42,0):OFFSET(テストデータ!BS3,42,0)) -> 0 | AG44: =SUM(OFFSET(テストデータ!BQ3,42,0):OFFSET(テストデータ!BU3,42,0)) -> 0 | AH44: =SUM(OFFSET(テストデータ!BV3,42,0):OFFSET(テストデータ!BX3,42,0)) -> 0 | AI44: =SUM(OFFSET(テストデータ!BV3,42,0):OFFSET(テストデータ!BZ3,42,0)) -> 0 | AJ44: =SUM(OFFSET(テストデータ!CA3,42,0):OFFSET(テストデータ!CC3,42,0)) -> 0 | AK44: =SUM(OFFSET(テストデータ!CA3,42,0):OFFSET(テストデータ!CE3,42,0)) -> 0 | AL44: =SUM(OFFSET(テストデータ!CF3,42,0):OFFSET(テストデータ!CH3,42,0)) -> 0 | AM44: =SUM(OFFSET(テストデータ!CF3,42,0):OFFSET(テストデータ!CJ3,42,0)) -> 0 | AN44: =SUM(OFFSET(テストデータ!CK3,42,0):OFFSET(テストデータ!CM3,42,0)) -> 0 | AO44: =SUM(OFFSET(テストデータ!CK3,42,0):OFFSET(テストデータ!CO3,42,0)) -> 0 | AP44: =SUM(OFFSET(テストデータ!CP3,42,0):OFFSET(テストデータ!CR3,42,0)) -> 0 | AQ44: =SUM(OFFSET(テストデータ!CP3,42,0):OFFSET(テストデータ!CT3,42,0)) -> 0
N45: =SUM(OFFSET(テストデータ!$E3,43,9*成績表1!$B$4-9):OFFSET(テストデータ!$G3,43,9*成績表1!$B$4-9)) -> 0 | O45: =SUM(OFFSET(テストデータ!$E3,43,9*成績表1!$B$4-9):OFFSET(テストデータ!I3,43,9*成績表1!$B$4-9)) -> 0 | P45: =SUM(OFFSET(テストデータ!E3,43,0):OFFSET(テストデータ!G3,43,0)) -> 0 | Q45: =SUM(OFFSET(テストデータ!E3,43,0):OFFSET(テストデータ!I3,43,0)) -> 0 | R45: =SUM(OFFSET(テストデータ!N3,43,0):OFFSET(テストデータ!P3,43,0)) -> 0 | S45: =SUM(OFFSET(テストデータ!N3,43,0):OFFSET(テストデータ!R3,43,0)) -> 0 | T45: =SUM(OFFSET(テストデータ!W3,43,0):OFFSET(テストデータ!Y3,43,0)) -> 0 | U45: =SUM(OFFSET(テストデータ!W3,43,0):OFFSET(テストデータ!AA3,43,0)) -> 0 | V45: =SUM(OFFSET(テストデータ!AF3,43,0):OFFSET(テストデータ!AH3,43,0)) -> 0 | W45: =SUM(OFFSET(テストデータ!AF3,43,0):OFFSET(テストデータ!AJ3,43,0)) -> 0 | X45: =SUM(OFFSET(テストデータ!AO3,43,0):OFFSET(テストデータ!AQ3,43,0)) -> 0 | Y45: =SUM(OFFSET(テストデータ!AO3,43,0):OFFSET(テストデータ!AS3,43,0)) -> 0 | Z45: =SUM(OFFSET(テストデータ!AX3,43,0):OFFSET(テストデータ!AZ3,43,0)) -> 0 | AA45: =SUM(OFFSET(テストデータ!AX3,43,0):OFFSET(テストデータ!BB3,43,0)) -> 0 | AB45: =SUM(OFFSET(テストデータ!BG3,43,0):OFFSET(テストデータ!BI3,43,0)) -> 0 | AC45: =SUM(OFFSET(テストデータ!BG3,43,0):OFFSET(テストデータ!BK3,43,0)) -> 0 | AD45: =SUM(OFFSET(テストデータ!BL3,43,0):OFFSET(テストデータ!BN3,43,0)) -> 0 | AE45: =SUM(OFFSET(テストデータ!BL3,43,0):OFFSET(テストデータ!BP3,43,0)) -> 0 | AF45: =SUM(OFFSET(テストデータ!BQ3,43,0):OFFSET(テストデータ!BS3,43,0)) -> 0 | AG45: =SUM(OFFSET(テストデータ!BQ3,43,0):OFFSET(テストデータ!BU3,43,0)) -> 0 | AH45: =SUM(OFFSET(テストデータ!BV3,43,0):OFFSET(テストデータ!BX3,43,0)) -> 0 | AI45: =SUM(OFFSET(テストデータ!BV3,43,0):OFFSET(テストデータ!BZ3,43,0)) -> 0 | AJ45: =SUM(OFFSET(テストデータ!CA3,43,0):OFFSET(テストデータ!CC3,43,0)) -> 0 | AK45: =SUM(OFFSET(テストデータ!CA3,43,0):OFFSET(テストデータ!CE3,43,0)) -> 0 | AL45: =SUM(OFFSET(テストデータ!CF3,43,0):OFFSET(テストデータ!CH3,43,0)) -> 0 | AM45: =SUM(OFFSET(テストデータ!CF3,43,0):OFFSET(テストデータ!CJ3,43,0)) -> 0 | AN45: =SUM(OFFSET(テストデータ!CK3,43,0):OFFSET(テストデータ!CM3,43,0)) -> 0 | AO45: =SUM(OFFSET(テストデータ!CK3,43,0):OFFSET(テストデータ!CO3,43,0)) -> 0 | AP45: =SUM(OFFSET(テストデータ!CP3,43,0):OFFSET(テストデータ!CR3,43,0)) -> 0 | AQ45: =SUM(OFFSET(テストデータ!CP3,43,0):OFFSET(テストデータ!CT3,43,0)) -> 0
N46: =SUM(OFFSET(テストデータ!$E3,44,9*成績表1!$B$4-9):OFFSET(テストデータ!$G3,44,9*成績表1!$B$4-9)) -> 0 | O46: =SUM(OFFSET(テストデータ!$E3,44,9*成績表1!$B$4-9):OFFSET(テストデータ!I3,44,9*成績表1!$B$4-9)) -> 0 | P46: =SUM(OFFSET(テストデータ!E3,44,0):OFFSET(テストデータ!G3,44,0)) -> 0 | Q46: =SUM(OFFSET(テストデータ!E3,44,0):OFFSET(テストデータ!I3,44,0)) -> 0 | R46: =SUM(OFFSET(テストデータ!N3,44,0):OFFSET(テストデータ!P3,44,0)) -> 0 | S46: =SUM(OFFSET(テストデータ!N3,44,0):OFFSET(テストデータ!R3,44,0)) -> 0 | T46: =SUM(OFFSET(テストデータ!W3,44,0):OFFSET(テストデータ!Y3,44,0)) -> 0 | U46: =SUM(OFFSET(テストデータ!W3,44,0):OFFSET(テストデータ!AA3,44,0)) -> 0 | V46: =SUM(OFFSET(テストデータ!AF3,44,0):OFFSET(テストデータ!AH3,44,0)) -> 0 | W46: =SUM(OFFSET(テストデータ!AF3,44,0):OFFSET(テストデータ!AJ3,44,0)) -> 0 | X46: =SUM(OFFSET(テストデータ!AO3,44,0):OFFSET(テストデータ!AQ3,44,0)) -> 0 | Y46: =SUM(OFFSET(テストデータ!AO3,44,0):OFFSET(テストデータ!AS3,44,0)) -> 0 | Z46: =SUM(OFFSET(テストデータ!AX3,44,0):OFFSET(テストデータ!AZ3,44,0)) -> 0 | AA46: =SUM(OFFSET(テストデータ!AX3,44,0):OFFSET(テストデータ!BB3,44,0)) -> 0 | AB46: =SUM(OFFSET(テストデータ!BG3,44,0):OFFSET(テストデータ!BI3,44,0)) -> 0 | AC46: =SUM(OFFSET(テストデータ!BG3,44,0):OFFSET(テストデータ!BK3,44,0)) -> 0 | AD46: =SUM(OFFSET(テストデータ!BL3,44,0):OFFSET(テストデータ!BN3,44,0)) -> 0 | AE46: =SUM(OFFSET(テストデータ!BL3,44,0):OFFSET(テストデータ!BP3,44,0)) -> 0 | AF46: =SUM(OFFSET(テストデータ!BQ3,44,0):OFFSET(テストデータ!BS3,44,0)) -> 0 | AG46: =SUM(OFFSET(テストデータ!BQ3,44,0):OFFSET(テストデータ!BU3,44,0)) -> 0 | AH46: =SUM(OFFSET(テストデータ!BV3,44,0):OFFSET(テストデータ!BX3,44,0)) -> 0 | AI46: =SUM(OFFSET(テストデータ!BV3,44,0):OFFSET(テストデータ!BZ3,44,0)) -> 0 | AJ46: =SUM(OFFSET(テストデータ!CA3,44,0):OFFSET(テストデータ!CC3,44,0)) -> 0 | AK46: =SUM(OFFSET(テストデータ!CA3,44,0):OFFSET(テストデータ!CE3,44,0)) -> 0 | AL46: =SUM(OFFSET(テストデータ!CF3,44,0):OFFSET(テストデータ!CH3,44,0)) -> 0 | AM46: =SUM(OFFSET(テストデータ!CF3,44,0):OFFSET(テストデータ!CJ3,44,0)) -> 0 | AN46: =SUM(OFFSET(テストデータ!CK3,44,0):OFFSET(テストデータ!CM3,44,0)) -> 0 | AO46: =SUM(OFFSET(テストデータ!CK3,44,0):OFFSET(テストデータ!CO3,44,0)) -> 0 | AP46: =SUM(OFFSET(テストデータ!CP3,44,0):OFFSET(テストデータ!CR3,44,0)) -> 0 | AQ46: =SUM(OFFSET(テストデータ!CP3,44,0):OFFSET(テストデータ!CT3,44,0)) -> 0
N47: =SUM(OFFSET(テストデータ!$E3,45,9*成績表1!$B$4-9):OFFSET(テストデータ!$G3,45,9*成績表1!$B$4-9)) -> 0 | O47: =SUM(OFFSET(テストデータ!$E3,45,9*成績表1!$B$4-9):OFFSET(テストデータ!I3,45,9*成績表1!$B$4-9)) -> 0 | P47: =SUM(OFFSET(テストデータ!E3,45,0):OFFSET(テストデータ!G3,45,0)) -> 0 | Q47: =SUM(OFFSET(テストデータ!E3,45,0):OFFSET(テストデータ!I3,45,0)) -> 0 | R47: =SUM(OFFSET(テストデータ!N3,45,0):OFFSET(テストデータ!P3,45,0)) -> 0 | S47: =SUM(OFFSET(テストデータ!N3,45,0):OFFSET(テストデータ!R3,45,0)) -> 0 | T47: =SUM(OFFSET(テストデータ!W3,45,0):OFFSET(テストデータ!Y3,45,0)) -> 0 | U47: =SUM(OFFSET(テストデータ!W3,45,0):OFFSET(テストデータ!AA3,45,0)) -> 0 | V47: =SUM(OFFSET(テストデータ!AF3,45,0):OFFSET(テストデータ!AH3,45,0)) -> 0 | W47: =SUM(OFFSET(テストデータ!AF3,45,0):OFFSET(テストデータ!AJ3,45,0)) -> 0 | X47: =SUM(OFFSET(テストデータ!AO3,45,0):OFFSET(テストデータ!AQ3,45,0)) -> 0 | Y47: =SUM(OFFSET(テストデータ!AO3,45,0):OFFSET(テストデータ!AS3,45,0)) -> 0 | Z47: =SUM(OFFSET(テストデータ!AX3,45,0):OFFSET(テストデータ!AZ3,45,0)) -> 0 | AA47: =SUM(OFFSET(テストデータ!AX3,45,0):OFFSET(テストデータ!BB3,45,0)) -> 0 | AB47: =SUM(OFFSET(テストデータ!BG3,45,0):OFFSET(テストデータ!BI3,45,0)) -> 0 | AC47: =SUM(OFFSET(テストデータ!BG3,45,0):OFFSET(テストデータ!BK3,45,0)) -> 0 | AD47: =SUM(OFFSET(テストデータ!BL3,45,0):OFFSET(テストデータ!BN3,45,0)) -> 0 | AE47: =SUM(OFFSET(テストデータ!BL3,45,0):OFFSET(テストデータ!BP3,45,0)) -> 0 | AF47: =SUM(OFFSET(テストデータ!BQ3,45,0):OFFSET(テストデータ!BS3,45,0)) -> 0 | AG47: =SUM(OFFSET(テストデータ!BQ3,45,0):OFFSET(テストデータ!BU3,45,0)) -> 0 | AH47: =SUM(OFFSET(テストデータ!BV3,45,0):OFFSET(テストデータ!BX3,45,0)) -> 0 | AI47: =SUM(OFFSET(テストデータ!BV3,45,0):OFFSET(テストデータ!BZ3,45,0)) -> 0 | AJ47: =SUM(OFFSET(テストデータ!CA3,45,0):OFFSET(テストデータ!CC3,45,0)) -> 0 | AK47: =SUM(OFFSET(テストデータ!CA3,45,0):OFFSET(テストデータ!CE3,45,0)) -> 0 | AL47: =SUM(OFFSET(テストデータ!CF3,45,0):OFFSET(テストデータ!CH3,45,0)) -> 0 | AM47: =SUM(OFFSET(テストデータ!CF3,45,0):OFFSET(テストデータ!CJ3,45,0)) -> 0 | AN47: =SUM(OFFSET(テストデータ!CK3,45,0):OFFSET(テストデータ!CM3,45,0)) -> 0 | AO47: =SUM(OFFSET(テストデータ!CK3,45,0):OFFSET(テストデータ!CO3,45,0)) -> 0 | AP47: =SUM(OFFSET(テストデータ!CP3,45,0):OFFSET(テストデータ!CR3,45,0)) -> 0 | AQ47: =SUM(OFFSET(テストデータ!CP3,45,0):OFFSET(テストデータ!CT3,45,0)) -> 0
N48: =SUM(OFFSET(テストデータ!$E3,46,9*成績表1!$B$4-9):OFFSET(テストデータ!$G3,46,9*成績表1!$B$4-9)) -> 0 | O48: =SUM(OFFSET(テストデータ!$E3,46,9*成績表1!$B$4-9):OFFSET(テストデータ!I3,46,9*成績表1!$B$4-9)) -> 0 | P48: =SUM(OFFSET(テストデータ!E3,46,0):OFFSET(テストデータ!G3,46,0)) -> 0 | Q48: =SUM(OFFSET(テストデータ!E3,46,0):OFFSET(テストデータ!I3,46,0)) -> 0 | R48: =SUM(OFFSET(テストデータ!N3,46,0):OFFSET(テストデータ!P3,46,0)) -> 0 | S48: =SUM(OFFSET(テストデータ!N3,46,0):OFFSET(テストデータ!R3,46,0)) -> 0 | T48: =SUM(OFFSET(テストデータ!W3,46,0):OFFSET(テストデータ!Y3,46,0)) -> 0 | U48: =SUM(OFFSET(テストデータ!W3,46,0):OFFSET(テストデータ!AA3,46,0)) -> 0 | V48: =SUM(OFFSET(テストデータ!AF3,46,0):OFFSET(テストデータ!AH3,46,0)) -> 0 | W48: =SUM(OFFSET(テストデータ!AF3,46,0):OFFSET(テストデータ!AJ3,46,0)) -> 0 | X48: =SUM(OFFSET(テストデータ!AO3,46,0):OFFSET(テストデータ!AQ3,46,0)) -> 0 | Y48: =SUM(OFFSET(テストデータ!AO3,46,0):OFFSET(テストデータ!AS3,46,0)) -> 0 | Z48: =SUM(OFFSET(テストデータ!AX3,46,0):OFFSET(テストデータ!AZ3,46,0)) -> 0 | AA48: =SUM(OFFSET(テストデータ!AX3,46,0):OFFSET(テストデータ!BB3,46,0)) -> 0 | AB48: =SUM(OFFSET(テストデータ!BG3,46,0):OFFSET(テストデータ!BI3,46,0)) -> 0 | AC48: =SUM(OFFSET(テストデータ!BG3,46,0):OFFSET(テストデータ!BK3,46,0)) -> 0 | AD48: =SUM(OFFSET(テストデータ!BL3,46,0):OFFSET(テストデータ!BN3,46,0)) -> 0 | AE48: =SUM(OFFSET(テストデータ!BL3,46,0):OFFSET(テストデータ!BP3,46,0)) -> 0 | AF48: =SUM(OFFSET(テストデータ!BQ3,46,0):OFFSET(テストデータ!BS3,46,0)) -> 0 | AG48: =SUM(OFFSET(テストデータ!BQ3,46,0):OFFSET(テストデータ!BU3,46,0)) -> 0 | AH48: =SUM(OFFSET(テストデータ!BV3,46,0):OFFSET(テストデータ!BX3,46,0)) -> 0 | AI48: =SUM(OFFSET(テストデータ!BV3,46,0):OFFSET(テストデータ!BZ3,46,0)) -> 0 | AJ48: =SUM(OFFSET(テストデータ!CA3,46,0):OFFSET(テストデータ!CC3,46,0)) -> 0 | AK48: =SUM(OFFSET(テストデータ!CA3,46,0):OFFSET(テストデータ!CE3,46,0)) -> 0 | AL48: =SUM(OFFSET(テストデータ!CF3,46,0):OFFSET(テストデータ!CH3,46,0)) -> 0 | AM48: =SUM(OFFSET(テストデータ!CF3,46,0):OFFSET(テストデータ!CJ3,46,0)) -> 0 | AN48: =SUM(OFFSET(テストデータ!CK3,46,0):OFFSET(テストデータ!CM3,46,0)) -> 0 | AO48: =SUM(OFFSET(テストデータ!CK3,46,0):OFFSET(テストデータ!CO3,46,0)) -> 0 | AP48: =SUM(OFFSET(テストデータ!CP3,46,0):OFFSET(テストデータ!CR3,46,0)) -> 0 | AQ48: =SUM(OFFSET(テストデータ!CP3,46,0):OFFSET(テストデータ!CT3,46,0)) -> 0
N49: =SUM(OFFSET(テストデータ!$E3,47,9*成績表1!$B$4-9):OFFSET(テストデータ!$G3,47,9*成績表1!$B$4-9)) -> 0 | O49: =SUM(OFFSET(テストデータ!$E3,47,9*成績表1!$B$4-9):OFFSET(テストデータ!I3,47,9*成績表1!$B$4-9)) -> 0 | P49: =SUM(OFFSET(テストデータ!E3,47,0):OFFSET(テストデータ!G3,47,0)) -> 0 | Q49: =SUM(OFFSET(テストデータ!E3,47,0):OFFSET(テストデータ!I3,47,0)) -> 0 | R49: =SUM(OFFSET(テストデータ!N3,47,0):OFFSET(テストデータ!P3,47,0)) -> 0 | S49: =SUM(OFFSET(テストデータ!N3,47,0):OFFSET(テストデータ!R3,47,0)) -> 0 | T49: =SUM(OFFSET(テストデータ!W3,47,0):OFFSET(テストデータ!Y3,47,0)) -> 0 | U49: =SUM(OFFSET(テストデータ!W3,47,0):OFFSET(テストデータ!AA3,47,0)) -> 0 | V49: =SUM(OFFSET(テストデータ!AF3,47,0):OFFSET(テストデータ!AH3,47,0)) -> 0 | W49: =SUM(OFFSET(テストデータ!AF3,47,0):OFFSET(テストデータ!AJ3,47,0)) -> 0 | X49: =SUM(OFFSET(テストデータ!AO3,47,0):OFFSET(テストデータ!AQ3,47,0)) -> 0 | Y49: =SUM(OFFSET(テストデータ!AO3,47,0):OFFSET(テストデータ!AS3,47,0)) -> 0 | Z49: =SUM(OFFSET(テストデータ!AX3,47,0):OFFSET(テストデータ!AZ3,47,0)) -> 0 | AA49: =SUM(OFFSET(テストデータ!AX3,47,0):OFFSET(テストデータ!BB3,47,0)) -> 0 | AB49: =SUM(OFFSET(テストデータ!BG3,47,0):OFFSET(テストデータ!BI3,47,0)) -> 0 | AC49: =SUM(OFFSET(テストデータ!BG3,47,0):OFFSET(テストデータ!BK3,47,0)) -> 0 | AD49: =SUM(OFFSET(テストデータ!BL3,47,0):OFFSET(テストデータ!BN3,47,0)) -> 0 | AE49: =SUM(OFFSET(テストデータ!BL3,47,0):OFFSET(テストデータ!BP3,47,0)) -> 0 | AF49: =SUM(OFFSET(テストデータ!BQ3,47,0):OFFSET(テストデータ!BS3,47,0)) -> 0 | AG49: =SUM(OFFSET(テストデータ!BQ3,47,0):OFFSET(テストデータ!BU3,47,0)) -> 0 | AH49: =SUM(OFFSET(テストデータ!BV3,47,0):OFFSET(テストデータ!BX3,47,0)) -> 0 | AI49: =SUM(OFFSET(テストデータ!BV3,47,0):OFFSET(テストデータ!BZ3,47,0)) -> 0 | AJ49: =SUM(OFFSET(テストデータ!CA3,47,0):OFFSET(テストデータ!CC3,47,0)) -> 0 | AK49: =SUM(OFFSET(テストデータ!CA3,47,0):OFFSET(テストデータ!CE3,47,0)) -> 0 | AL49: =SUM(OFFSET(テストデータ!CF3,47,0):OFFSET(テストデータ!CH3,47,0)) -> 0 | AM49: =SUM(OFFSET(テストデータ!CF3,47,0):OFFSET(テストデータ!CJ3,47,0)) -> 0 | AN49: =SUM(OFFSET(テストデータ!CK3,47,0):OFFSET(テストデータ!CM3,47,0)) -> 0 | AO49: =SUM(OFFSET(テストデータ!CK3,47,0):OFFSET(テストデータ!CO3,47,0)) -> 0 | AP49: =SUM(OFFSET(テストデータ!CP3,47,0):OFFSET(テストデータ!CR3,47,0)) -> 0 | AQ49: =SUM(OFFSET(テストデータ!CP3,47,0):OFFSET(テストデータ!CT3,47,0)) -> 0
N50: =SUM(OFFSET(テストデータ!$E3,48,9*成績表1!$B$4-9):OFFSET(テストデータ!$G3,48,9*成績表1!$B$4-9)) -> 0 | O50: =SUM(OFFSET(テストデータ!$E3,48,9*成績表1!$B$4-9):OFFSET(テストデータ!I3,48,9*成績表1!$B$4-9)) -> 0 | P50: =SUM(OFFSET(テストデータ!E3,48,0):OFFSET(テストデータ!G3,48,0)) -> 0 | Q50: =SUM(OFFSET(テストデータ!E3,48,0):OFFSET(テストデータ!I3,48,0)) -> 0 | R50: =SUM(OFFSET(テストデータ!N3,48,0):OFFSET(テストデータ!P3,48,0)) -> 0 | S50: =SUM(OFFSET(テストデータ!N3,48,0):OFFSET(テストデータ!R3,48,0)) -> 0 | T50: =SUM(OFFSET(テストデータ!W3,48,0):OFFSET(テストデータ!Y3,48,0)) -> 0 | U50: =SUM(OFFSET(テストデータ!W3,48,0):OFFSET(テストデータ!AA3,48,0)) -> 0 | V50: =SUM(OFFSET(テストデータ!AF3,48,0):OFFSET(テストデータ!AH3,48,0)) -> 0 | W50: =SUM(OFFSET(テストデータ!AF3,48,0):OFFSET(テストデータ!AJ3,48,0)) -> 0 | X50: =SUM(OFFSET(テストデータ!AO3,48,0):OFFSET(テストデータ!AQ3,48,0)) -> 0 | Y50: =SUM(OFFSET(テストデータ!AO3,48,0):OFFSET(テストデータ!AS3,48,0)) -> 0 | Z50: =SUM(OFFSET(テストデータ!AX3,48,0):OFFSET(テストデータ!AZ3,48,0)) -> 0 | AA50: =SUM(OFFSET(テストデータ!AX3,48,0):OFFSET(テストデータ!BB3,48,0)) -> 0 | AB50: =SUM(OFFSET(テストデータ!BG3,48,0):OFFSET(テストデータ!BI3,48,0)) -> 0 | AC50: =SUM(OFFSET(テストデータ!BG3,48,0):OFFSET(テストデータ!BK3,48,0)) -> 0 | AD50: =SUM(OFFSET(テストデータ!BL3,48,0):OFFSET(テストデータ!BN3,48,0)) -> 0 | AE50: =SUM(OFFSET(テストデータ!BL3,48,0):OFFSET(テストデータ!BP3,48,0)) -> 0 | AF50: =SUM(OFFSET(テストデータ!BQ3,48,0):OFFSET(テストデータ!BS3,48,0)) -> 0 | AG50: =SUM(OFFSET(テストデータ!BQ3,48,0):OFFSET(テストデータ!BU3,48,0)) -> 0 | AH50: =SUM(OFFSET(テストデータ!BV3,48,0):OFFSET(テストデータ!BX3,48,0)) -> 0 | AI50: =SUM(OFFSET(テストデータ!BV3,48,0):OFFSET(テストデータ!BZ3,48,0)) -> 0 | AJ50: =SUM(OFFSET(テストデータ!CA3,48,0):OFFSET(テストデータ!CC3,48,0)) -> 0 | AK50: =SUM(OFFSET(テストデータ!CA3,48,0):OFFSET(テストデータ!CE3,48,0)) -> 0 | AL50: =SUM(OFFSET(テストデータ!CF3,48,0):OFFSET(テストデータ!CH3,48,0)) -> 0 | AM50: =SUM(OFFSET(テストデータ!CF3,48,0):OFFSET(テストデータ!CJ3,48,0)) -> 0 | AN50: =SUM(OFFSET(テストデータ!CK3,48,0):OFFSET(テストデータ!CM3,48,0)) -> 0 | AO50: =SUM(OFFSET(テストデータ!CK3,48,0):OFFSET(テストデータ!CO3,48,0)) -> 0 | AP50: =SUM(OFFSET(テストデータ!CP3,48,0):OFFSET(テストデータ!CR3,48,0)) -> 0 | AQ50: =SUM(OFFSET(テストデータ!CP3,48,0):OFFSET(テストデータ!CT3,48,0)) -> 0
N51: =SUM(OFFSET(テストデータ!$E3,49,9*成績表1!$B$4-9):OFFSET(テストデータ!$G3,49,9*成績表1!$B$4-9)) -> 0 | O51: =SUM(OFFSET(テストデータ!$E3,49,9*成績表1!$B$4-9):OFFSET(テストデータ!I3,49,9*成績表1!$B$4-9)) -> 0 | P51: =SUM(OFFSET(テストデータ!E3,49,0):OFFSET(テストデータ!G3,49,0)) -> 0 | Q51: =SUM(OFFSET(テストデータ!E3,49,0):OFFSET(テストデータ!I3,49,0)) -> 0 | R51: =SUM(OFFSET(テストデータ!N3,49,0):OFFSET(テストデータ!P3,49,0)) -> 0 | S51: =SUM(OFFSET(テストデータ!N3,49,0):OFFSET(テストデータ!R3,49,0)) -> 0 | T51: =SUM(OFFSET(テストデータ!W3,49,0):OFFSET(テストデータ!Y3,49,0)) -> 0 | U51: =SUM(OFFSET(テストデータ!W3,49,0):OFFSET(テストデータ!AA3,49,0)) -> 0 | V51: =SUM(OFFSET(テストデータ!AF3,49,0):OFFSET(テストデータ!AH3,49,0)) -> 0 | W51: =SUM(OFFSET(テストデータ!AF3,49,0):OFFSET(テストデータ!AJ3,49,0)) -> 0 | X51: =SUM(OFFSET(テストデータ!AO3,49,0):OFFSET(テストデータ!AQ3,49,0)) -> 0 | Y51: =SUM(OFFSET(テストデータ!AO3,49,0):OFFSET(テストデータ!AS3,49,0)) -> 0 | Z51: =SUM(OFFSET(テストデータ!AX3,49,0):OFFSET(テストデータ!AZ3,49,0)) -> 0 | AA51: =SUM(OFFSET(テストデータ!AX3,49,0):OFFSET(テストデータ!BB3,49,0)) -> 0 | AB51: =SUM(OFFSET(テストデータ!BG3,49,0):OFFSET(テストデータ!BI3,49,0)) -> 0 | AC51: =SUM(OFFSET(テストデータ!BG3,49,0):OFFSET(テストデータ!BK3,49,0)) -> 0 | AD51: =SUM(OFFSET(テストデータ!BL3,49,0):OFFSET(テストデータ!BN3,49,0)) -> 0 | AE51: =SUM(OFFSET(テストデータ!BL3,49,0):OFFSET(テストデータ!BP3,49,0)) -> 0 | AF51: =SUM(OFFSET(テストデータ!BQ3,49,0):OFFSET(テストデータ!BS3,49,0)) -> 0 | AG51: =SUM(OFFSET(テストデータ!BQ3,49,0):OFFSET(テストデータ!BU3,49,0)) -> 0 | AH51: =SUM(OFFSET(テストデータ!BV3,49,0):OFFSET(テストデータ!BX3,49,0)) -> 0 | AI51: =SUM(OFFSET(テストデータ!BV3,49,0):OFFSET(テストデータ!BZ3,49,0)) -> 0 | AJ51: =SUM(OFFSET(テストデータ!CA3,49,0):OFFSET(テストデータ!CC3,49,0)) -> 0 | AK51: =SUM(OFFSET(テストデータ!CA3,49,0):OFFSET(テストデータ!CE3,49,0)) -> 0 | AL51: =SUM(OFFSET(テストデータ!CF3,49,0):OFFSET(テストデータ!CH3,49,0)) -> 0 | AM51: =SUM(OFFSET(テストデータ!CF3,49,0):OFFSET(テストデータ!CJ3,49,0)) -> 0 | AN51: =SUM(OFFSET(テストデータ!CK3,49,0):OFFSET(テストデータ!CM3,49,0)) -> 0 | AO51: =SUM(OFFSET(テストデータ!CK3,49,0):OFFSET(テストデータ!CO3,49,0)) -> 0 | AP51: =SUM(OFFSET(テストデータ!CP3,49,0):OFFSET(テストデータ!CR3,49,0)) -> 0 | AQ51: =SUM(OFFSET(テストデータ!CP3,49,0):OFFSET(テストデータ!CT3,49,0)) -> 0
N52: =SUM(OFFSET(テストデータ!$E3,50,9*成績表1!$B$4-9):OFFSET(テストデータ!$G3,50,9*成績表1!$B$4-9)) -> 0 | O52: =SUM(OFFSET(テストデータ!$E3,50,9*成績表1!$B$4-9):OFFSET(テストデータ!I3,50,9*成績表1!$B$4-9)) -> 0 | P52: =SUM(OFFSET(テストデータ!E3,50,0):OFFSET(テストデータ!G3,50,0)) -> 0 | Q52: =SUM(OFFSET(テストデータ!E3,50,0):OFFSET(テストデータ!I3,50,0)) -> 0 | R52: =SUM(OFFSET(テストデータ!N3,50,0):OFFSET(テストデータ!P3,50,0)) -> 0 | S52: =SUM(OFFSET(テストデータ!N3,50,0):OFFSET(テストデータ!R3,50,0)) -> 0 | T52: =SUM(OFFSET(テストデータ!W3,50,0):OFFSET(テストデータ!Y3,50,0)) -> 0 | U52: =SUM(OFFSET(テストデータ!W3,50,0):OFFSET(テストデータ!AA3,50,0)) -> 0 | V52: =SUM(OFFSET(テストデータ!AF3,50,0):OFFSET(テストデータ!AH3,50,0)) -> 0 | W52: =SUM(OFFSET(テストデータ!AF3,50,0):OFFSET(テストデータ!AJ3,50,0)) -> 0 | X52: =SUM(OFFSET(テストデータ!AO3,50,0):OFFSET(テストデータ!AQ3,50,0)) -> 0 | Y52: =SUM(OFFSET(テストデータ!AO3,50,0):OFFSET(テストデータ!AS3,50,0)) -> 0 | Z52: =SUM(OFFSET(テストデータ!AX3,50,0):OFFSET(テストデータ!AZ3,50,0)) -> 0 | AA52: =SUM(OFFSET(テストデータ!AX3,50,0):OFFSET(テストデータ!BB3,50,0)) -> 0 | AB52: =SUM(OFFSET(テストデータ!BG3,50,0):OFFSET(テストデータ!BI3,50,0)) -> 0 | AC52: =SUM(OFFSET(テストデータ!BG3,50,0):OFFSET(テストデータ!BK3,50,0)) -> 0 | AD52: =SUM(OFFSET(テストデータ!BL3,50,0):OFFSET(テストデータ!BN3,50,0)) -> 0 | AE52: =SUM(OFFSET(テストデータ!BL3,50,0):OFFSET(テストデータ!BP3,50,0)) -> 0 | AF52: =SUM(OFFSET(テストデータ!BQ3,50,0):OFFSET(テストデータ!BS3,50,0)) -> 0 | AG52: =SUM(OFFSET(テストデータ!BQ3,50,0):OFFSET(テストデータ!BU3,50,0)) -> 0 | AH52: =SUM(OFFSET(テストデータ!BV3,50,0):OFFSET(テストデータ!BX3,50,0)) -> 0 | AI52: =SUM(OFFSET(テストデータ!BV3,50,0):OFFSET(テストデータ!BZ3,50,0)) -> 0 | AJ52: =SUM(OFFSET(テストデータ!CA3,50,0):OFFSET(テストデータ!CC3,50,0)) -> 0 | AK52: =SUM(OFFSET(テストデータ!CA3,50,0):OFFSET(テストデータ!CE3,50,0)) -> 0 | AL52: =SUM(OFFSET(テストデータ!CF3,50,0):OFFSET(テストデータ!CH3,50,0)) -> 0 | AM52: =SUM(OFFSET(テストデータ!CF3,50,0):OFFSET(テストデータ!CJ3,50,0)) -> 0 | AN52: =SUM(OFFSET(テストデータ!CK3,50,0):OFFSET(テストデータ!CM3,50,0)) -> 0 | AO52: =SUM(OFFSET(テストデータ!CK3,50,0):OFFSET(テストデータ!CO3,50,0)) -> 0 | AP52: =SUM(OFFSET(テストデータ!CP3,50,0):OFFSET(テストデータ!CR3,50,0)) -> 0 | AQ52: =SUM(OFFSET(テストデータ!CP3,50,0):OFFSET(テストデータ!CT3,50,0)) -> 0
N53: =SUM(OFFSET(テストデータ!$E3,51,9*成績表1!$B$4-9):OFFSET(テストデータ!$G3,51,9*成績表1!$B$4-9)) -> 0 | O53: =SUM(OFFSET(テストデータ!$E3,51,9*成績表1!$B$4-9):OFFSET(テストデータ!I3,51,9*成績表1!$B$4-9)) -> 0 | P53: =SUM(OFFSET(テストデータ!E3,51,0):OFFSET(テストデータ!G3,51,0)) -> 0 | Q53: =SUM(OFFSET(テストデータ!E3,51,0):OFFSET(テストデータ!I3,51,0)) -> 0 | R53: =SUM(OFFSET(テストデータ!N3,51,0):OFFSET(テストデータ!P3,51,0)) -> 0 | S53: =SUM(OFFSET(テストデータ!N3,51,0):OFFSET(テストデータ!R3,51,0)) -> 0 | T53: =SUM(OFFSET(テストデータ!W3,51,0):OFFSET(テストデータ!Y3,51,0)) -> 0 | U53: =SUM(OFFSET(テストデータ!W3,51,0):OFFSET(テストデータ!AA3,51,0)) -> 0 | V53: =SUM(OFFSET(テストデータ!AF3,51,0):OFFSET(テストデータ!AH3,51,0)) -> 0 | W53: =SUM(OFFSET(テストデータ!AF3,51,0):OFFSET(テストデータ!AJ3,51,0)) -> 0 | X53: =SUM(OFFSET(テストデータ!AO3,51,0):OFFSET(テストデータ!AQ3,51,0)) -> 0 | Y53: =SUM(OFFSET(テストデータ!AO3,51,0):OFFSET(テストデータ!AS3,51,0)) -> 0 | Z53: =SUM(OFFSET(テストデータ!AX3,51,0):OFFSET(テストデータ!AZ3,51,0)) -> 0 | AA53: =SUM(OFFSET(テストデータ!AX3,51,0):OFFSET(テストデータ!BB3,51,0)) -> 0 | AB53: =SUM(OFFSET(テストデータ!BG3,51,0):OFFSET(テストデータ!BI3,51,0)) -> 0 | AC53: =SUM(OFFSET(テストデータ!BG3,51,0):OFFSET(テストデータ!BK3,51,0)) -> 0 | AD53: =SUM(OFFSET(テストデータ!BL3,51,0):OFFSET(テストデータ!BN3,51,0)) -> 0 | AE53: =SUM(OFFSET(テストデータ!BL3,51,0):OFFSET(テストデータ!BP3,51,0)) -> 0 | AF53: =SUM(OFFSET(テストデータ!BQ3,51,0):OFFSET(テストデータ!BS3,51,0)) -> 0 | AG53: =SUM(OFFSET(テストデータ!BQ3,51,0):OFFSET(テストデータ!BU3,51,0)) -> 0 | AH53: =SUM(OFFSET(テストデータ!BV3,51,0):OFFSET(テストデータ!BX3,51,0)) -> 0 | AI53: =SUM(OFFSET(テストデータ!BV3,51,0):OFFSET(テストデータ!BZ3,51,0)) -> 0 | AJ53: =SUM(OFFSET(テストデータ!CA3,51,0):OFFSET(テストデータ!CC3,51,0)) -> 0 | AK53: =SUM(OFFSET(テストデータ!CA3,51,0):OFFSET(テストデータ!CE3,51,0)) -> 0 | AL53: =SUM(OFFSET(テストデータ!CF3,51,0):OFFSET(テストデータ!CH3,51,0)) -> 0 | AM53: =SUM(OFFSET(テストデータ!CF3,51,0):OFFSET(テストデータ!CJ3,51,0)) -> 0 | AN53: =SUM(OFFSET(テストデータ!CK3,51,0):OFFSET(テストデータ!CM3,51,0)) -> 0 | AO53: =SUM(OFFSET(テストデータ!CK3,51,0):OFFSET(テストデータ!CO3,51,0)) -> 0 | AP53: =SUM(OFFSET(テストデータ!CP3,51,0):OFFSET(テストデータ!CR3,51,0)) -> 0 | AQ53: =SUM(OFFSET(テストデータ!CP3,51,0):OFFSET(テストデータ!CT3,51,0)) -> 0
N54: =SUM(OFFSET(テストデータ!$E3,52,9*成績表1!$B$4-9):OFFSET(テストデータ!$G3,52,9*成績表1!$B$4-9)) -> 0 | O54: =SUM(OFFSET(テストデータ!$E3,52,9*成績表1!$B$4-9):OFFSET(テストデータ!I3,52,9*成績表1!$B$4-9)) -> 0 | P54: =SUM(OFFSET(テストデータ!E3,52,0):OFFSET(テストデータ!G3,52,0)) -> 0 | Q54: =SUM(OFFSET(テストデータ!E3,52,0):OFFSET(テストデータ!I3,52,0)) -> 0 | R54: =SUM(OFFSET(テストデータ!N3,52,0):OFFSET(テストデータ!P3,52,0)) -> 0 | S54: =SUM(OFFSET(テストデータ!N3,52,0):OFFSET(テストデータ!R3,52,0)) -> 0 | T54: =SUM(OFFSET(テストデータ!W3,52,0):OFFSET(テストデータ!Y3,52,0)) -> 0 | U54: =SUM(OFFSET(テストデータ!W3,52,0):OFFSET(テストデータ!AA3,52,0)) -> 0 | V54: =SUM(OFFSET(テストデータ!AF3,52,0):OFFSET(テストデータ!AH3,52,0)) -> 0 | W54: =SUM(OFFSET(テストデータ!AF3,52,0):OFFSET(テストデータ!AJ3,52,0)) -> 0 | X54: =SUM(OFFSET(テストデータ!AO3,52,0):OFFSET(テストデータ!AQ3,52,0)) -> 0 | Y54: =SUM(OFFSET(テストデータ!AO3,52,0):OFFSET(テストデータ!AS3,52,0)) -> 0 | Z54: =SUM(OFFSET(テストデータ!AX3,52,0):OFFSET(テストデータ!AZ3,52,0)) -> 0 | AA54: =SUM(OFFSET(テストデータ!AX3,52,0):OFFSET(テストデータ!BB3,52,0)) -> 0 | AB54: =SUM(OFFSET(テストデータ!BG3,52,0):OFFSET(テストデータ!BI3,52,0)) -> 0 | AC54: =SUM(OFFSET(テストデータ!BG3,52,0):OFFSET(テストデータ!BK3,52,0)) -> 0 | AD54: =SUM(OFFSET(テストデータ!BL3,52,0):OFFSET(テストデータ!BN3,52,0)) -> 0 | AE54: =SUM(OFFSET(テストデータ!BL3,52,0):OFFSET(テストデータ!BP3,52,0)) -> 0 | AF54: =SUM(OFFSET(テストデータ!BQ3,52,0):OFFSET(テストデータ!BS3,52,0)) -> 0 | AG54: =SUM(OFFSET(テストデータ!BQ3,52,0):OFFSET(テストデータ!BU3,52,0)) -> 0 | AH54: =SUM(OFFSET(テストデータ!BV3,52,0):OFFSET(テストデータ!BX3,52,0)) -> 0 | AI54: =SUM(OFFSET(テストデータ!BV3,52,0):OFFSET(テストデータ!BZ3,52,0)) -> 0 | AJ54: =SUM(OFFSET(テストデータ!CA3,52,0):OFFSET(テストデータ!CC3,52,0)) -> 0 | AK54: =SUM(OFFSET(テストデータ!CA3,52,0):OFFSET(テストデータ!CE3,52,0)) -> 0 | AL54: =SUM(OFFSET(テストデータ!CF3,52,0):OFFSET(テストデータ!CH3,52,0)) -> 0 | AM54: =SUM(OFFSET(テストデータ!CF3,52,0):OFFSET(テストデータ!CJ3,52,0)) -> 0 | AN54: =SUM(OFFSET(テストデータ!CK3,52,0):OFFSET(テストデータ!CM3,52,0)) -> 0 | AO54: =SUM(OFFSET(テストデータ!CK3,52,0):OFFSET(テストデータ!CO3,52,0)) -> 0 | AP54: =SUM(OFFSET(テストデータ!CP3,52,0):OFFSET(テストデータ!CR3,52,0)) -> 0 | AQ54: =SUM(OFFSET(テストデータ!CP3,52,0):OFFSET(テストデータ!CT3,52,0)) -> 0
N55: =SUM(OFFSET(テストデータ!$E3,53,9*成績表1!$B$4-9):OFFSET(テストデータ!$G3,53,9*成績表1!$B$4-9)) -> 0 | O55: =SUM(OFFSET(テストデータ!$E3,53,9*成績表1!$B$4-9):OFFSET(テストデータ!I3,53,9*成績表1!$B$4-9)) -> 0 | P55: =SUM(OFFSET(テストデータ!E3,53,0):OFFSET(テストデータ!G3,53,0)) -> 0 | Q55: =SUM(OFFSET(テストデータ!E3,53,0):OFFSET(テストデータ!I3,53,0)) -> 0 | R55: =SUM(OFFSET(テストデータ!N3,53,0):OFFSET(テストデータ!P3,53,0)) -> 0 | S55: =SUM(OFFSET(テストデータ!N3,53,0):OFFSET(テストデータ!R3,53,0)) -> 0 | T55: =SUM(OFFSET(テストデータ!W3,53,0):OFFSET(テストデータ!Y3,53,0)) -> 0 | U55: =SUM(OFFSET(テストデータ!W3,53,0):OFFSET(テストデータ!AA3,53,0)) -> 0 | V55: =SUM(OFFSET(テストデータ!AF3,53,0):OFFSET(テストデータ!AH3,53,0)) -> 0 | W55: =SUM(OFFSET(テストデータ!AF3,53,0):OFFSET(テストデータ!AJ3,53,0)) -> 0 | X55: =SUM(OFFSET(テストデータ!AO3,53,0):OFFSET(テストデータ!AQ3,53,0)) -> 0 | Y55: =SUM(OFFSET(テストデータ!AO3,53,0):OFFSET(テストデータ!AS3,53,0)) -> 0 | Z55: =SUM(OFFSET(テストデータ!AX3,53,0):OFFSET(テストデータ!AZ3,53,0)) -> 0 | AA55: =SUM(OFFSET(テストデータ!AX3,53,0):OFFSET(テストデータ!BB3,53,0)) -> 0 | AB55: =SUM(OFFSET(テストデータ!BG3,53,0):OFFSET(テストデータ!BI3,53,0)) -> 0 | AC55: =SUM(OFFSET(テストデータ!BG3,53,0):OFFSET(テストデータ!BK3,53,0)) -> 0 | AD55: =SUM(OFFSET(テストデータ!BL3,53,0):OFFSET(テストデータ!BN3,53,0)) -> 0 | AE55: =SUM(OFFSET(テストデータ!BL3,53,0):OFFSET(テストデータ!BP3,53,0)) -> 0 | AF55: =SUM(OFFSET(テストデータ!BQ3,53,0):OFFSET(テストデータ!BS3,53,0)) -> 0 | AG55: =SUM(OFFSET(テストデータ!BQ3,53,0):OFFSET(テストデータ!BU3,53,0)) -> 0 | AH55: =SUM(OFFSET(テストデータ!BV3,53,0):OFFSET(テストデータ!BX3,53,0)) -> 0 | AI55: =SUM(OFFSET(テストデータ!BV3,53,0):OFFSET(テストデータ!BZ3,53,0)) -> 0 | AJ55: =SUM(OFFSET(テストデータ!CA3,53,0):OFFSET(テストデータ!CC3,53,0)) -> 0 | AK55: =SUM(OFFSET(テストデータ!CA3,53,0):OFFSET(テストデータ!CE3,53,0)) -> 0 | AL55: =SUM(OFFSET(テストデータ!CF3,53,0):OFFSET(テストデータ!CH3,53,0)) -> 0 | AM55: =SUM(OFFSET(テストデータ!CF3,53,0):OFFSET(テストデータ!CJ3,53,0)) -> 0 | AN55: =SUM(OFFSET(テストデータ!CK3,53,0):OFFSET(テストデータ!CM3,53,0)) -> 0 | AO55: =SUM(OFFSET(テストデータ!CK3,53,0):OFFSET(テストデータ!CO3,53,0)) -> 0 | AP55: =SUM(OFFSET(テストデータ!CP3,53,0):OFFSET(テストデータ!CR3,53,0)) -> 0 | AQ55: =SUM(OFFSET(テストデータ!CP3,53,0):OFFSET(テストデータ!CT3,53,0)) -> 0
G56: 実力テスト | N56: =SUM(OFFSET(テストデータ!$E3,54,9*成績表1!$B$4-9):OFFSET(テストデータ!$G3,54,9*成績表1!$B$4-9)) -> 0 | O56: =SUM(OFFSET(テストデータ!$E3,54,9*成績表1!$B$4-9):OFFSET(テストデータ!I3,54,9*成績表1!$B$4-9)) -> 0 | P56: =SUM(OFFSET(テストデータ!E3,54,0):OFFSET(テストデータ!G3,54,0)) -> 0 | Q56: =SUM(OFFSET(テストデータ!E3,54,0):OFFSET(テストデータ!I3,54,0)) -> 0 | R56: =SUM(OFFSET(テストデータ!N3,54,0):OFFSET(テストデータ!P3,54,0)) -> 0 | S56: =SUM(OFFSET(テストデータ!N3,54,0):OFFSET(テストデータ!R3,54,0)) -> 0 | T56: =SUM(OFFSET(テストデータ!W3,54,0):OFFSET(テストデータ!Y3,54,0)) -> 0 | U56: =SUM(OFFSET(テストデータ!W3,54,0):OFFSET(テストデータ!AA3,54,0)) -> 0 | V56: =SUM(OFFSET(テストデータ!AF3,54,0):OFFSET(テストデータ!AH3,54,0)) -> 0 | W56: =SUM(OFFSET(テストデータ!AF3,54,0):OFFSET(テストデータ!AJ3,54,0)) -> 0 | X56: =SUM(OFFSET(テストデータ!AO3,54,0):OFFSET(テストデータ!AQ3,54,0)) -> 0 | Y56: =SUM(OFFSET(テストデータ!AO3,54,0):OFFSET(テストデータ!AS3,54,0)) -> 0 | Z56: =SUM(OFFSET(テストデータ!AX3,54,0):OFFSET(テストデータ!AZ3,54,0)) -> 0 | AA56: =SUM(OFFSET(テストデータ!AX3,54,0):OFFSET(テストデータ!BB3,54,0)) -> 0 | AB56: =SUM(OFFSET(テストデータ!BG3,54,0):OFFSET(テストデータ!BI3,54,0)) -> 0 | AC56: =SUM(OFFSET(テストデータ!BG3,54,0):OFFSET(テストデータ!BK3,54,0)) -> 0 | AD56: =SUM(OFFSET(テストデータ!BL3,54,0):OFFSET(テストデータ!BN3,54,0)) -> 0 | AE56: =SUM(OFFSET(テストデータ!BL3,54,0):OFFSET(テストデータ!BP3,54,0)) -> 0 | AF56: =SUM(OFFSET(テストデータ!BQ3,54,0):OFFSET(テストデータ!BS3,54,0)) -> 0 | AG56: =SUM(OFFSET(テストデータ!BQ3,54,0):OFFSET(テストデータ!BU3,54,0)) -> 0 | AH56: =SUM(OFFSET(テストデータ!BV3,54,0):OFFSET(テストデータ!BX3,54,0)) -> 0 | AI56: =SUM(OFFSET(テストデータ!BV3,54,0):OFFSET(テストデータ!BZ3,54,0)) -> 0 | AJ56: =SUM(OFFSET(テストデータ!CA3,54,0):OFFSET(テストデータ!CC3,54,0)) -> 0 | AK56: =SUM(OFFSET(テストデータ!CA3,54,0):OFFSET(テストデータ!CE3,54,0)) -> 0 | AL56: =SUM(OFFSET(テストデータ!CF3,54,0):OFFSET(テストデータ!CH3,54,0)) -> 0 | AM56: =SUM(OFFSET(テストデータ!CF3,54,0):OFFSET(テストデータ!CJ3,54,0)) -> 0 | AN56: =SUM(OFFSET(テストデータ!CK3,54,0):OFFSET(テストデータ!CM3,54,0)) -> 0 | AO56: =SUM(OFFSET(テストデータ!CK3,54,0):OFFSET(テストデータ!CO3,54,0)) -> 0 | AP56: =SUM(OFFSET(テストデータ!CP3,54,0):OFFSET(テストデータ!CR3,54,0)) -> 0 | AQ56: =SUM(OFFSET(テストデータ!CP3,54,0):OFFSET(テストデータ!CT3,54,0)) -> 0
G57: 3科目順位 | H57: 5科目順位 | N57: =SUM(OFFSET(テストデータ!$E3,55,9*成績表1!$B$4-9):OFFSET(テストデータ!$G3,55,9*成績表1!$B$4-9)) -> 0 | O57: =SUM(OFFSET(テストデータ!$E3,55,9*成績表1!$B$4-9):OFFSET(テストデータ!I3,55,9*成績表1!$B$4-9)) -> 0 | P57: =SUM(OFFSET(テストデータ!E3,55,0):OFFSET(テストデータ!G3,55,0)) -> 0 | Q57: =SUM(OFFSET(テストデータ!E3,55,0):OFFSET(テストデータ!I3,55,0)) -> 0 | R57: =SUM(OFFSET(テストデータ!N3,55,0):OFFSET(テストデータ!P3,55,0)) -> 0 | S57: =SUM(OFFSET(テストデータ!N3,55,0):OFFSET(テストデータ!R3,55,0)) -> 0 | T57: =SUM(OFFSET(テストデータ!W3,55,0):OFFSET(テストデータ!Y3,55,0)) -> 0 | U57: =SUM(OFFSET(テストデータ!W3,55,0):OFFSET(テストデータ!AA3,55,0)) -> 0 | V57: =SUM(OFFSET(テストデータ!AF3,55,0):OFFSET(テストデータ!AH3,55,0)) -> 0 | W57: =SUM(OFFSET(テストデータ!AF3,55,0):OFFSET(テストデータ!AJ3,55,0)) -> 0 | X57: =SUM(OFFSET(テストデータ!AO3,55,0):OFFSET(テストデータ!AQ3,55,0)) -> 0 | Y57: =SUM(OFFSET(テストデータ!AO3,55,0):OFFSET(テストデータ!AS3,55,0)) -> 0 | Z57: =SUM(OFFSET(テストデータ!AX3,55,0):OFFSET(テストデータ!AZ3,55,0)) -> 0 | AA57: =SUM(OFFSET(テストデータ!AX3,55,0):OFFSET(テストデータ!BB3,55,0)) -> 0 | AB57: =SUM(OFFSET(テストデータ!BG3,55,0):OFFSET(テストデータ!BI3,55,0)) -> 0 | AC57: =SUM(OFFSET(テストデータ!BG3,55,0):OFFSET(テストデータ!BK3,55,0)) -> 0 | AD57: =SUM(OFFSET(テストデータ!BL3,55,0):OFFSET(テストデータ!BN3,55,0)) -> 0 | AE57: =SUM(OFFSET(テストデータ!BL3,55,0):OFFSET(テストデータ!BP3,55,0)) -> 0 | AF57: =SUM(OFFSET(テストデータ!BQ3,55,0):OFFSET(テストデータ!BS3,55,0)) -> 0 | AG57: =SUM(OFFSET(テストデータ!BQ3,55,0):OFFSET(テストデータ!BU3,55,0)) -> 0 | AH57: =SUM(OFFSET(テストデータ!BV3,55,0):OFFSET(テストデータ!BX3,55,0)) -> 0 | AI57: =SUM(OFFSET(テストデータ!BV3,55,0):OFFSET(テストデータ!BZ3,55,0)) -> 0 | AJ57: =SUM(OFFSET(テストデータ!CA3,55,0):OFFSET(テストデータ!CC3,55,0)) -> 0 | AK57: =SUM(OFFSET(テストデータ!CA3,55,0):OFFSET(テストデータ!CE3,55,0)) -> 0 | AL57: =SUM(OFFSET(テストデータ!CF3,55,0):OFFSET(テストデータ!CH3,55,0)) -> 0 | AM57: =SUM(OFFSET(テストデータ!CF3,55,0):OFFSET(テストデータ!CJ3,55,0)) -> 0 | AN57: =SUM(OFFSET(テストデータ!CK3,55,0):OFFSET(テストデータ!CM3,55,0)) -> 0 | AO57: =SUM(OFFSET(テストデータ!CK3,55,0):OFFSET(テストデータ!CO3,55,0)) -> 0 | AP57: =SUM(OFFSET(テストデータ!CP3,55,0):OFFSET(テストデータ!CR3,55,0)) -> 0 | AQ57: =SUM(OFFSET(テストデータ!CP3,55,0):OFFSET(テストデータ!CT3,55,0)) -> 0
E58: 定期テスト | G58: =RANK(成績表2!$L$13,$AB$3:$AB$502) ->  | H58: =RANK(成績表2!$M$13,$AC$3:$AC$502) ->  | N58: =SUM(OFFSET(テストデータ!$E3,56,9*成績表1!$B$4-9):OFFSET(テストデータ!$G3,56,9*成績表1!$B$4-9)) -> 0 | O58: =SUM(OFFSET(テストデータ!$E3,56,9*成績表1!$B$4-9):OFFSET(テストデータ!I3,56,9*成績表1!$B$4-9)) -> 0 | P58: =SUM(OFFSET(テストデータ!E3,56,0):OFFSET(テストデータ!G3,56,0)) -> 0 | Q58: =SUM(OFFSET(テストデータ!E3,56,0):OFFSET(テストデータ!I3,56,0)) -> 0 | R58: =SUM(OFFSET(テストデータ!N3,56,0):OFFSET(テストデータ!P3,56,0)) -> 0 | S58: =SUM(OFFSET(テストデータ!N3,56,0):OFFSET(テストデータ!R3,56,0)) -> 0 | T58: =SUM(OFFSET(テストデータ!W3,56,0):OFFSET(テストデータ!Y3,56,0)) -> 0 | U58: =SUM(OFFSET(テストデータ!W3,56,0):OFFSET(テストデータ!AA3,56,0)) -> 0 | V58: =SUM(OFFSET(テストデータ!AF3,56,0):OFFSET(テストデータ!AH3,56,0)) -> 0 | W58: =SUM(OFFSET(テストデータ!AF3,56,0):OFFSET(テストデータ!AJ3,56,0)) -> 0 | X58: =SUM(OFFSET(テストデータ!AO3,56,0):OFFSET(テストデータ!AQ3,56,0)) -> 0 | Y58: =SUM(OFFSET(テストデータ!AO3,56,0):OFFSET(テストデータ!AS3,56,0)) -> 0 | Z58: =SUM(OFFSET(テストデータ!AX3,56,0):OFFSET(テストデータ!AZ3,56,0)) -> 0 | AA58: =SUM(OFFSET(テストデータ!AX3,56,0):OFFSET(テストデータ!BB3,56,0)) -> 0 | AB58: =SUM(OFFSET(テストデータ!BG3,56,0):OFFSET(テストデータ!BI3,56,0)) -> 0 | AC58: =SUM(OFFSET(テストデータ!BG3,56,0):OFFSET(テストデータ!BK3,56,0)) -> 0 | AD58: =SUM(OFFSET(テストデータ!BL3,56,0):OFFSET(テストデータ!BN3,56,0)) -> 0 | AE58: =SUM(OFFSET(テストデータ!BL3,56,0):OFFSET(テストデータ!BP3,56,0)) -> 0 | AF58: =SUM(OFFSET(テストデータ!BQ3,56,0):OFFSET(テストデータ!BS3,56,0)) -> 0 | AG58: =SUM(OFFSET(テストデータ!BQ3,56,0):OFFSET(テストデータ!BU3,56,0)) -> 0 | AH58: =SUM(OFFSET(テストデータ!BV3,56,0):OFFSET(テストデータ!BX3,56,0)) -> 0 | AI58: =SUM(OFFSET(テストデータ!BV3,56,0):OFFSET(テストデータ!BZ3,56,0)) -> 0 | AJ58: =SUM(OFFSET(テストデータ!CA3,56,0):OFFSET(テストデータ!CC3,56,0)) -> 0 | AK58: =SUM(OFFSET(テストデータ!CA3,56,0):OFFSET(テストデータ!CE3,56,0)) -> 0 | AL58: =SUM(OFFSET(テストデータ!CF3,56,0):OFFSET(テストデータ!CH3,56,0)) -> 0 | AM58: =SUM(OFFSET(テストデータ!CF3,56,0):OFFSET(テストデータ!CJ3,56,0)) -> 0 | AN58: =SUM(OFFSET(テストデータ!CK3,56,0):OFFSET(テストデータ!CM3,56,0)) -> 0 | AO58: =SUM(OFFSET(テストデータ!CK3,56,0):OFFSET(テストデータ!CO3,56,0)) -> 0 | AP58: =SUM(OFFSET(テストデータ!CP3,56,0):OFFSET(テストデータ!CR3,56,0)) -> 0 | AQ58: =SUM(OFFSET(テストデータ!CP3,56,0):OFFSET(テストデータ!CT3,56,0)) -> 0
E59: 3科目順位 | F59: 5科目順位 | G59: =RANK(成績表2!$L$15,$AD$3:$AD$502) -> 17 | H59: =RANK(成績表2!$M$15,$AE$3:$AE$502) -> 17 | N59: =SUM(OFFSET(テストデータ!$E3,57,9*成績表1!$B$4-9):OFFSET(テストデータ!$G3,57,9*成績表1!$B$4-9)) -> 0 | O59: =SUM(OFFSET(テストデータ!$E3,57,9*成績表1!$B$4-9):OFFSET(テストデータ!I3,57,9*成績表1!$B$4-9)) -> 0 | P59: =SUM(OFFSET(テストデータ!E3,57,0):OFFSET(テストデータ!G3,57,0)) -> 0 | Q59: =SUM(OFFSET(テストデータ!E3,57,0):OFFSET(テストデータ!I3,57,0)) -> 0 | R59: =SUM(OFFSET(テストデータ!N3,57,0):OFFSET(テストデータ!P3,57,0)) -> 0 | S59: =SUM(OFFSET(テストデータ!N3,57,0):OFFSET(テストデータ!R3,57,0)) -> 0 | T59: =SUM(OFFSET(テストデータ!W3,57,0):OFFSET(テストデータ!Y3,57,0)) -> 0 | U59: =SUM(OFFSET(テストデータ!W3,57,0):OFFSET(テストデータ!AA3,57,0)) -> 0 | V59: =SUM(OFFSET(テストデータ!AF3,57,0):OFFSET(テストデータ!AH3,57,0)) -> 0 | W59: =SUM(OFFSET(テストデータ!AF3,57,0):OFFSET(テストデータ!AJ3,57,0)) -> 0 | X59: =SUM(OFFSET(テストデータ!AO3,57,0):OFFSET(テストデータ!AQ3,57,0)) -> 0 | Y59: =SUM(OFFSET(テストデータ!AO3,57,0):OFFSET(テストデータ!AS3,57,0)) -> 0 | Z59: =SUM(OFFSET(テストデータ!AX3,57,0):OFFSET(テストデータ!AZ3,57,0)) -> 0 | AA59: =SUM(OFFSET(テストデータ!AX3,57,0):OFFSET(テストデータ!BB3,57,0)) -> 0 | AB59: =SUM(OFFSET(テストデータ!BG3,57,0):OFFSET(テストデータ!BI3,57,0)) -> 0 | AC59: =SUM(OFFSET(テストデータ!BG3,57,0):OFFSET(テストデータ!BK3,57,0)) -> 0 | AD59: =SUM(OFFSET(テストデータ!BL3,57,0):OFFSET(テストデータ!BN3,57,0)) -> 0 | AE59: =SUM(OFFSET(テストデータ!BL3,57,0):OFFSET(テストデータ!BP3,57,0)) -> 0 | AF59: =SUM(OFFSET(テストデータ!BQ3,57,0):OFFSET(テストデータ!BS3,57,0)) -> 0 | AG59: =SUM(OFFSET(テストデータ!BQ3,57,0):OFFSET(テストデータ!BU3,57,0)) -> 0 | AH59: =SUM(OFFSET(テストデータ!BV3,57,0):OFFSET(テストデータ!BX3,57,0)) -> 0 | AI59: =SUM(OFFSET(テストデータ!BV3,57,0):OFFSET(テストデータ!BZ3,57,0)) -> 0 | AJ59: =SUM(OFFSET(テストデータ!CA3,57,0):OFFSET(テストデータ!CC3,57,0)) -> 0 | AK59: =SUM(OFFSET(テストデータ!CA3,57,0):OFFSET(テストデータ!CE3,57,0)) -> 0 | AL59: =SUM(OFFSET(テストデータ!CF3,57,0):OFFSET(テストデータ!CH3,57,0)) -> 0 | AM59: =SUM(OFFSET(テストデータ!CF3,57,0):OFFSET(テストデータ!CJ3,57,0)) -> 0 | AN59: =SUM(OFFSET(テストデータ!CK3,57,0):OFFSET(テストデータ!CM3,57,0)) -> 0 | AO59: =SUM(OFFSET(テストデータ!CK3,57,0):OFFSET(テストデータ!CO3,57,0)) -> 0 | AP59: =SUM(OFFSET(テストデータ!CP3,57,0):OFFSET(テストデータ!CR3,57,0)) -> 0 | AQ59: =SUM(OFFSET(テストデータ!CP3,57,0):OFFSET(テストデータ!CT3,57,0)) -> 0
E60: =RANK(成績表1!$L$19,$P$3:$P$502) ->  | F60: =RANK(成績表1!$M$19,$Q$3:$Q$502) ->  | G60: =RANK(成績表2!$L$17,$AF$3:$AF$502) -> 20 | H60: =RANK(成績表2!$M$17,$AG$3:$AG$502) -> 19 | N60: =SUM(OFFSET(テストデータ!$E3,58,9*成績表1!$B$4-9):OFFSET(テストデータ!$G3,58,9*成績表1!$B$4-9)) -> 0 | O60: =SUM(OFFSET(テストデータ!$E3,58,9*成績表1!$B$4-9):OFFSET(テストデータ!I3,58,9*成績表1!$B$4-9)) -> 0 | P60: =SUM(OFFSET(テストデータ!E3,58,0):OFFSET(テストデータ!G3,58,0)) -> 0 | Q60: =SUM(OFFSET(テストデータ!E3,58,0):OFFSET(テストデータ!I3,58,0)) -> 0 | R60: =SUM(OFFSET(テストデータ!N3,58,0):OFFSET(テストデータ!P3,58,0)) -> 0 | S60: =SUM(OFFSET(テストデータ!N3,58,0):OFFSET(テストデータ!R3,58,0)) -> 0 | T60: =SUM(OFFSET(テストデータ!W3,58,0):OFFSET(テストデータ!Y3,58,0)) -> 0 | U60: =SUM(OFFSET(テストデータ!W3,58,0):OFFSET(テストデータ!AA3,58,0)) -> 0 | V60: =SUM(OFFSET(テストデータ!AF3,58,0):OFFSET(テストデータ!AH3,58,0)) -> 0 | W60: =SUM(OFFSET(テストデータ!AF3,58,0):OFFSET(テストデータ!AJ3,58,0)) -> 0 | X60: =SUM(OFFSET(テストデータ!AO3,58,0):OFFSET(テストデータ!AQ3,58,0)) -> 0 | Y60: =SUM(OFFSET(テストデータ!AO3,58,0):OFFSET(テストデータ!AS3,58,0)) -> 0 | Z60: =SUM(OFFSET(テストデータ!AX3,58,0):OFFSET(テストデータ!AZ3,58,0)) -> 0 | AA60: =SUM(OFFSET(テストデータ!AX3,58,0):OFFSET(テストデータ!BB3,58,0)) -> 0 | AB60: =SUM(OFFSET(テストデータ!BG3,58,0):OFFSET(テストデータ!BI3,58,0)) -> 0 | AC60: =SUM(OFFSET(テストデータ!BG3,58,0):OFFSET(テストデータ!BK3,58,0)) -> 0 | AD60: =SUM(OFFSET(テストデータ!BL3,58,0):OFFSET(テストデータ!BN3,58,0)) -> 0 | AE60: =SUM(OFFSET(テストデータ!BL3,58,0):OFFSET(テストデータ!BP3,58,0)) -> 0 | AF60: =SUM(OFFSET(テストデータ!BQ3,58,0):OFFSET(テストデータ!BS3,58,0)) -> 0 | AG60: =SUM(OFFSET(テストデータ!BQ3,58,0):OFFSET(テストデータ!BU3,58,0)) -> 0 | AH60: =SUM(OFFSET(テストデータ!BV3,58,0):OFFSET(テストデータ!BX3,58,0)) -> 0 | AI60: =SUM(OFFSET(テストデータ!BV3,58,0):OFFSET(テストデータ!BZ3,58,0)) -> 0 | AJ60: =SUM(OFFSET(テストデータ!CA3,58,0):OFFSET(テストデータ!CC3,58,0)) -> 0 | AK60: =SUM(OFFSET(テストデータ!CA3,58,0):OFFSET(テストデータ!CE3,58,0)) -> 0 | AL60: =SUM(OFFSET(テストデータ!CF3,58,0):OFFSET(テストデータ!CH3,58,0)) -> 0 | AM60: =SUM(OFFSET(テストデータ!CF3,58,0):OFFSET(テストデータ!CJ3,58,0)) -> 0 | AN60: =SUM(OFFSET(テストデータ!CK3,58,0):OFFSET(テストデータ!CM3,58,0)) -> 0 | AO60: =SUM(OFFSET(テストデータ!CK3,58,0):OFFSET(テストデータ!CO3,58,0)) -> 0 | AP60: =SUM(OFFSET(テストデータ!CP3,58,0):OFFSET(テストデータ!CR3,58,0)) -> 0 | AQ60: =SUM(OFFSET(テストデータ!CP3,58,0):OFFSET(テストデータ!CT3,58,0)) -> 0
E61: =RANK(成績表1!$L$21,$R$3:$R$502) -> 14 | F61: =RANK(成績表1!$M$21,$S$3:$S$502) -> 16 | G61: =RANK(成績表2!$L$19,$AH$3:$AH$502) -> 15 | H61: =RANK(成績表2!$M$19,$AI$3:$AI$502) -> 17 | N61: =SUM(OFFSET(テストデータ!$E3,59,9*成績表1!$B$4-9):OFFSET(テストデータ!$G3,59,9*成績表1!$B$4-9)) -> 0 | O61: =SUM(OFFSET(テストデータ!$E3,59,9*成績表1!$B$4-9):OFFSET(テストデータ!I3,59,9*成績表1!$B$4-9)) -> 0 | P61: =SUM(OFFSET(テストデータ!E3,59,0):OFFSET(テストデータ!G3,59,0)) -> 0 | Q61: =SUM(OFFSET(テストデータ!E3,59,0):OFFSET(テストデータ!I3,59,0)) -> 0 | R61: =SUM(OFFSET(テストデータ!N3,59,0):OFFSET(テストデータ!P3,59,0)) -> 0 | S61: =SUM(OFFSET(テストデータ!N3,59,0):OFFSET(テストデータ!R3,59,0)) -> 0 | T61: =SUM(OFFSET(テストデータ!W3,59,0):OFFSET(テストデータ!Y3,59,0)) -> 0 | U61: =SUM(OFFSET(テストデータ!W3,59,0):OFFSET(テストデータ!AA3,59,0)) -> 0 | V61: =SUM(OFFSET(テストデータ!AF3,59,0):OFFSET(テストデータ!AH3,59,0)) -> 0 | W61: =SUM(OFFSET(テストデータ!AF3,59,0):OFFSET(テストデータ!AJ3,59,0)) -> 0 | X61: =SUM(OFFSET(テストデータ!AO3,59,0):OFFSET(テストデータ!AQ3,59,0)) -> 0 | Y61: =SUM(OFFSET(テストデータ!AO3,59,0):OFFSET(テストデータ!AS3,59,0)) -> 0 | Z61: =SUM(OFFSET(テストデータ!AX3,59,0):OFFSET(テストデータ!AZ3,59,0)) -> 0 | AA61: =SUM(OFFSET(テストデータ!AX3,59,0):OFFSET(テストデータ!BB3,59,0)) -> 0 | AB61: =SUM(OFFSET(テストデータ!BG3,59,0):OFFSET(テストデータ!BI3,59,0)) -> 0 | AC61: =SUM(OFFSET(テストデータ!BG3,59,0):OFFSET(テストデータ!BK3,59,0)) -> 0 | AD61: =SUM(OFFSET(テストデータ!BL3,59,0):OFFSET(テストデータ!BN3,59,0)) -> 0 | AE61: =SUM(OFFSET(テストデータ!BL3,59,0):OFFSET(テストデータ!BP3,59,0)) -> 0 | AF61: =SUM(OFFSET(テストデータ!BQ3,59,0):OFFSET(テストデータ!BS3,59,0)) -> 0 | AG61: =SUM(OFFSET(テストデータ!BQ3,59,0):OFFSET(テストデータ!BU3,59,0)) -> 0 | AH61: =SUM(OFFSET(テストデータ!BV3,59,0):OFFSET(テストデータ!BX3,59,0)) -> 0 | AI61: =SUM(OFFSET(テストデータ!BV3,59,0):OFFSET(テストデータ!BZ3,59,0)) -> 0 | AJ61: =SUM(OFFSET(テストデータ!CA3,59,0):OFFSET(テストデータ!CC3,59,0)) -> 0 | AK61: =SUM(OFFSET(テストデータ!CA3,59,0):OFFSET(テストデータ!CE3,59,0)) -> 0 | AL61: =SUM(OFFSET(テストデータ!CF3,59,0):OFFSET(テストデータ!CH3,59,0)) -> 0 | AM61: =SUM(OFFSET(テストデータ!CF3,59,0):OFFSET(テストデータ!CJ3,59,0)) -> 0 | AN61: =SUM(OFFSET(テストデータ!CK3,59,0):OFFSET(テストデータ!CM3,59,0)) -> 0 | AO61: =SUM(OFFSET(テストデータ!CK3,59,0):OFFSET(テストデータ!CO3,59,0)) -> 0 | AP61: =SUM(OFFSET(テストデータ!CP3,59,0):OFFSET(テストデータ!CR3,59,0)) -> 0 | AQ61: =SUM(OFFSET(テストデータ!CP3,59,0):OFFSET(テストデータ!CT3,59,0)) -> 0
E62: =RANK(成績表1!$L$23,$T$3:$T$502) -> 20 | F62: =RANK(成績表1!$M$23,$U$3:$U$502) -> 19 | G62: =RANK(成績表2!$L$21,$AJ$3:$AJ$502) -> 5 | H62: =RANK(成績表2!$M$21,$AK$3:$AK$502) -> 5 | N62: =SUM(OFFSET(テストデータ!$E3,60,9*成績表1!$B$4-9):OFFSET(テストデータ!$G3,60,9*成績表1!$B$4-9)) -> 0 | O62: =SUM(OFFSET(テストデータ!$E3,60,9*成績表1!$B$4-9):OFFSET(テストデータ!I3,60,9*成績表1!$B$4-9)) -> 0 | P62: =SUM(OFFSET(テストデータ!E3,60,0):OFFSET(テストデータ!G3,60,0)) -> 0 | Q62: =SUM(OFFSET(テストデータ!E3,60,0):OFFSET(テストデータ!I3,60,0)) -> 0 | R62: =SUM(OFFSET(テストデータ!N3,60,0):OFFSET(テストデータ!P3,60,0)) -> 0 | S62: =SUM(OFFSET(テストデータ!N3,60,0):OFFSET(テストデータ!R3,60,0)) -> 0 | T62: =SUM(OFFSET(テストデータ!W3,60,0):OFFSET(テストデータ!Y3,60,0)) -> 0 | U62: =SUM(OFFSET(テストデータ!W3,60,0):OFFSET(テストデータ!AA3,60,0)) -> 0 | V62: =SUM(OFFSET(テストデータ!AF3,60,0):OFFSET(テストデータ!AH3,60,0)) -> 0 | W62: =SUM(OFFSET(テストデータ!AF3,60,0):OFFSET(テストデータ!AJ3,60,0)) -> 0 | X62: =SUM(OFFSET(テストデータ!AO3,60,0):OFFSET(テストデータ!AQ3,60,0)) -> 0 | Y62: =SUM(OFFSET(テストデータ!AO3,60,0):OFFSET(テストデータ!AS3,60,0)) -> 0 | Z62: =SUM(OFFSET(テストデータ!AX3,60,0):OFFSET(テストデータ!AZ3,60,0)) -> 0 | AA62: =SUM(OFFSET(テストデータ!AX3,60,0):OFFSET(テストデータ!BB3,60,0)) -> 0 | AB62: =SUM(OFFSET(テストデータ!BG3,60,0):OFFSET(テストデータ!BI3,60,0)) -> 0 | AC62: =SUM(OFFSET(テストデータ!BG3,60,0):OFFSET(テストデータ!BK3,60,0)) -> 0 | AD62: =SUM(OFFSET(テストデータ!BL3,60,0):OFFSET(テストデータ!BN3,60,0)) -> 0 | AE62: =SUM(OFFSET(テストデータ!BL3,60,0):OFFSET(テストデータ!BP3,60,0)) -> 0 | AF62: =SUM(OFFSET(テストデータ!BQ3,60,0):OFFSET(テストデータ!BS3,60,0)) -> 0 | AG62: =SUM(OFFSET(テストデータ!BQ3,60,0):OFFSET(テストデータ!BU3,60,0)) -> 0 | AH62: =SUM(OFFSET(テストデータ!BV3,60,0):OFFSET(テストデータ!BX3,60,0)) -> 0 | AI62: =SUM(OFFSET(テストデータ!BV3,60,0):OFFSET(テストデータ!BZ3,60,0)) -> 0 | AJ62: =SUM(OFFSET(テストデータ!CA3,60,0):OFFSET(テストデータ!CC3,60,0)) -> 0 | AK62: =SUM(OFFSET(テストデータ!CA3,60,0):OFFSET(テストデータ!CE3,60,0)) -> 0 | AL62: =SUM(OFFSET(テストデータ!CF3,60,0):OFFSET(テストデータ!CH3,60,0)) -> 0 | AM62: =SUM(OFFSET(テストデータ!CF3,60,0):OFFSET(テストデータ!CJ3,60,0)) -> 0 | AN62: =SUM(OFFSET(テストデータ!CK3,60,0):OFFSET(テストデータ!CM3,60,0)) -> 0 | AO62: =SUM(OFFSET(テストデータ!CK3,60,0):OFFSET(テストデータ!CO3,60,0)) -> 0 | AP62: =SUM(OFFSET(テストデータ!CP3,60,0):OFFSET(テストデータ!CR3,60,0)) -> 0 | AQ62: =SUM(OFFSET(テストデータ!CP3,60,0):OFFSET(テストデータ!CT3,60,0)) -> 0
E63: =RANK(成績表1!$L$25,$V$3:$V$502) -> 18 | F63: =RANK(成績表1!$M$25,$W$3:$W$502) -> 18 | G63: =RANK(成績表2!$L$23,$AL$3:$AL$502) -> 5 | H63: =RANK(成績表2!$M$23,$AM$3:$AM$502) -> 13 | N63: =SUM(OFFSET(テストデータ!$E3,61,9*成績表1!$B$4-9):OFFSET(テストデータ!$G3,61,9*成績表1!$B$4-9)) -> 0 | O63: =SUM(OFFSET(テストデータ!$E3,61,9*成績表1!$B$4-9):OFFSET(テストデータ!I3,61,9*成績表1!$B$4-9)) -> 0 | P63: =SUM(OFFSET(テストデータ!E3,61,0):OFFSET(テストデータ!G3,61,0)) -> 0 | Q63: =SUM(OFFSET(テストデータ!E3,61,0):OFFSET(テストデータ!I3,61,0)) -> 0 | R63: =SUM(OFFSET(テストデータ!N3,61,0):OFFSET(テストデータ!P3,61,0)) -> 0 | S63: =SUM(OFFSET(テストデータ!N3,61,0):OFFSET(テストデータ!R3,61,0)) -> 0 | T63: =SUM(OFFSET(テストデータ!W3,61,0):OFFSET(テストデータ!Y3,61,0)) -> 0 | U63: =SUM(OFFSET(テストデータ!W3,61,0):OFFSET(テストデータ!AA3,61,0)) -> 0 | V63: =SUM(OFFSET(テストデータ!AF3,61,0):OFFSET(テストデータ!AH3,61,0)) -> 0 | W63: =SUM(OFFSET(テストデータ!AF3,61,0):OFFSET(テストデータ!AJ3,61,0)) -> 0 | X63: =SUM(OFFSET(テストデータ!AO3,61,0):OFFSET(テストデータ!AQ3,61,0)) -> 0 | Y63: =SUM(OFFSET(テストデータ!AO3,61,0):OFFSET(テストデータ!AS3,61,0)) -> 0 | Z63: =SUM(OFFSET(テストデータ!AX3,61,0):OFFSET(テストデータ!AZ3,61,0)) -> 0 | AA63: =SUM(OFFSET(テストデータ!AX3,61,0):OFFSET(テストデータ!BB3,61,0)) -> 0 | AB63: =SUM(OFFSET(テストデータ!BG3,61,0):OFFSET(テストデータ!BI3,61,0)) -> 0 | AC63: =SUM(OFFSET(テストデータ!BG3,61,0):OFFSET(テストデータ!BK3,61,0)) -> 0 | AD63: =SUM(OFFSET(テストデータ!BL3,61,0):OFFSET(テストデータ!BN3,61,0)) -> 0 | AE63: =SUM(OFFSET(テストデータ!BL3,61,0):OFFSET(テストデータ!BP3,61,0)) -> 0 | AF63: =SUM(OFFSET(テストデータ!BQ3,61,0):OFFSET(テストデータ!BS3,61,0)) -> 0 | AG63: =SUM(OFFSET(テストデータ!BQ3,61,0):OFFSET(テストデータ!BU3,61,0)) -> 0 | AH63: =SUM(OFFSET(テストデータ!BV3,61,0):OFFSET(テストデータ!BX3,61,0)) -> 0 | AI63: =SUM(OFFSET(テストデータ!BV3,61,0):OFFSET(テストデータ!BZ3,61,0)) -> 0 | AJ63: =SUM(OFFSET(テストデータ!CA3,61,0):OFFSET(テストデータ!CC3,61,0)) -> 0 | AK63: =SUM(OFFSET(テストデータ!CA3,61,0):OFFSET(テストデータ!CE3,61,0)) -> 0 | AL63: =SUM(OFFSET(テストデータ!CF3,61,0):OFFSET(テストデータ!CH3,61,0)) -> 0 | AM63: =SUM(OFFSET(テストデータ!CF3,61,0):OFFSET(テストデータ!CJ3,61,0)) -> 0 | AN63: =SUM(OFFSET(テストデータ!CK3,61,0):OFFSET(テストデータ!CM3,61,0)) -> 0 | AO63: =SUM(OFFSET(テストデータ!CK3,61,0):OFFSET(テストデータ!CO3,61,0)) -> 0 | AP63: =SUM(OFFSET(テストデータ!CP3,61,0):OFFSET(テストデータ!CR3,61,0)) -> 0 | AQ63: =SUM(OFFSET(テストデータ!CP3,61,0):OFFSET(テストデータ!CT3,61,0)) -> 0
E64: =RANK(成績表1!$L$27,$X$3:$X$502) ->  | F64: =RANK(成績表1!$M$27,$Y$3:$Y$502) ->  | G64: =RANK(成績表2!$L$25,$AN$3:$AN$502) -> 19 | H64: =RANK(成績表2!$M$25,$AO$3:$AO$502) -> 20 | N64: =SUM(OFFSET(テストデータ!$E3,62,9*成績表1!$B$4-9):OFFSET(テストデータ!$G3,62,9*成績表1!$B$4-9)) -> 0 | O64: =SUM(OFFSET(テストデータ!$E3,62,9*成績表1!$B$4-9):OFFSET(テストデータ!I3,62,9*成績表1!$B$4-9)) -> 0 | P64: =SUM(OFFSET(テストデータ!E3,62,0):OFFSET(テストデータ!G3,62,0)) -> 0 | Q64: =SUM(OFFSET(テストデータ!E3,62,0):OFFSET(テストデータ!I3,62,0)) -> 0 | R64: =SUM(OFFSET(テストデータ!N3,62,0):OFFSET(テストデータ!P3,62,0)) -> 0 | S64: =SUM(OFFSET(テストデータ!N3,62,0):OFFSET(テストデータ!R3,62,0)) -> 0 | T64: =SUM(OFFSET(テストデータ!W3,62,0):OFFSET(テストデータ!Y3,62,0)) -> 0 | U64: =SUM(OFFSET(テストデータ!W3,62,0):OFFSET(テストデータ!AA3,62,0)) -> 0 | V64: =SUM(OFFSET(テストデータ!AF3,62,0):OFFSET(テストデータ!AH3,62,0)) -> 0 | W64: =SUM(OFFSET(テストデータ!AF3,62,0):OFFSET(テストデータ!AJ3,62,0)) -> 0 | X64: =SUM(OFFSET(テストデータ!AO3,62,0):OFFSET(テストデータ!AQ3,62,0)) -> 0 | Y64: =SUM(OFFSET(テストデータ!AO3,62,0):OFFSET(テストデータ!AS3,62,0)) -> 0 | Z64: =SUM(OFFSET(テストデータ!AX3,62,0):OFFSET(テストデータ!AZ3,62,0)) -> 0 | AA64: =SUM(OFFSET(テストデータ!AX3,62,0):OFFSET(テストデータ!BB3,62,0)) -> 0 | AB64: =SUM(OFFSET(テストデータ!BG3,62,0):OFFSET(テストデータ!BI3,62,0)) -> 0 | AC64: =SUM(OFFSET(テストデータ!BG3,62,0):OFFSET(テストデータ!BK3,62,0)) -> 0 | AD64: =SUM(OFFSET(テストデータ!BL3,62,0):OFFSET(テストデータ!BN3,62,0)) -> 0 | AE64: =SUM(OFFSET(テストデータ!BL3,62,0):OFFSET(テストデータ!BP3,62,0)) -> 0 | AF64: =SUM(OFFSET(テストデータ!BQ3,62,0):OFFSET(テストデータ!BS3,62,0)) -> 0 | AG64: =SUM(OFFSET(テストデータ!BQ3,62,0):OFFSET(テストデータ!BU3,62,0)) -> 0 | AH64: =SUM(OFFSET(テストデータ!BV3,62,0):OFFSET(テストデータ!BX3,62,0)) -> 0 | AI64: =SUM(OFFSET(テストデータ!BV3,62,0):OFFSET(テストデータ!BZ3,62,0)) -> 0 | AJ64: =SUM(OFFSET(テストデータ!CA3,62,0):OFFSET(テストデータ!CC3,62,0)) -> 0 | AK64: =SUM(OFFSET(テストデータ!CA3,62,0):OFFSET(テストデータ!CE3,62,0)) -> 0 | AL64: =SUM(OFFSET(テストデータ!CF3,62,0):OFFSET(テストデータ!CH3,62,0)) -> 0 | AM64: =SUM(OFFSET(テストデータ!CF3,62,0):OFFSET(テストデータ!CJ3,62,0)) -> 0 | AN64: =SUM(OFFSET(テストデータ!CK3,62,0):OFFSET(テストデータ!CM3,62,0)) -> 0 | AO64: =SUM(OFFSET(テストデータ!CK3,62,0):OFFSET(テストデータ!CO3,62,0)) -> 0 | AP64: =SUM(OFFSET(テストデータ!CP3,62,0):OFFSET(テストデータ!CR3,62,0)) -> 0 | AQ64: =SUM(OFFSET(テストデータ!CP3,62,0):OFFSET(テストデータ!CT3,62,0)) -> 0
E65: =RANK(成績表1!$L$29,$Z$3:$Z$502) ->  | F65: =RANK(成績表1!$M$29,$AA$3:$AA$502) ->  | G65: =RANK(成績表2!$L$27,$AP$3:$AP$502) ->  | H65: =RANK(成績表2!$M$27,$AQ$3:$AQ$502) ->  | N65: =SUM(OFFSET(テストデータ!$E3,63,9*成績表1!$B$4-9):OFFSET(テストデータ!$G3,63,9*成績表1!$B$4-9)) -> 0 | O65: =SUM(OFFSET(テストデータ!$E3,63,9*成績表1!$B$4-9):OFFSET(テストデータ!I3,63,9*成績表1!$B$4-9)) -> 0 | P65: =SUM(OFFSET(テストデータ!E3,63,0):OFFSET(テストデータ!G3,63,0)) -> 0 | Q65: =SUM(OFFSET(テストデータ!E3,63,0):OFFSET(テストデータ!I3,63,0)) -> 0 | R65: =SUM(OFFSET(テストデータ!N3,63,0):OFFSET(テストデータ!P3,63,0)) -> 0 | S65: =SUM(OFFSET(テストデータ!N3,63,0):OFFSET(テストデータ!R3,63,0)) -> 0 | T65: =SUM(OFFSET(テストデータ!W3,63,0):OFFSET(テストデータ!Y3,63,0)) -> 0 | U65: =SUM(OFFSET(テストデータ!W3,63,0):OFFSET(テストデータ!AA3,63,0)) -> 0 | V65: =SUM(OFFSET(テストデータ!AF3,63,0):OFFSET(テストデータ!AH3,63,0)) -> 0 | W65: =SUM(OFFSET(テストデータ!AF3,63,0):OFFSET(テストデータ!AJ3,63,0)) -> 0 | X65: =SUM(OFFSET(テストデータ!AO3,63,0):OFFSET(テストデータ!AQ3,63,0)) -> 0 | Y65: =SUM(OFFSET(テストデータ!AO3,63,0):OFFSET(テストデータ!AS3,63,0)) -> 0 | Z65: =SUM(OFFSET(テストデータ!AX3,63,0):OFFSET(テストデータ!AZ3,63,0)) -> 0 | AA65: =SUM(OFFSET(テストデータ!AX3,63,0):OFFSET(テストデータ!BB3,63,0)) -> 0 | AB65: =SUM(OFFSET(テストデータ!BG3,63,0):OFFSET(テストデータ!BI3,63,0)) -> 0 | AC65: =SUM(OFFSET(テストデータ!BG3,63,0):OFFSET(テストデータ!BK3,63,0)) -> 0 | AD65: =SUM(OFFSET(テストデータ!BL3,63,0):OFFSET(テストデータ!BN3,63,0)) -> 0 | AE65: =SUM(OFFSET(テストデータ!BL3,63,0):OFFSET(テストデータ!BP3,63,0)) -> 0 | AF65: =SUM(OFFSET(テストデータ!BQ3,63,0):OFFSET(テストデータ!BS3,63,0)) -> 0 | AG65: =SUM(OFFSET(テストデータ!BQ3,63,0):OFFSET(テストデータ!BU3,63,0)) -> 0 | AH65: =SUM(OFFSET(テストデータ!BV3,63,0):OFFSET(テストデータ!BX3,63,0)) -> 0 | AI65: =SUM(OFFSET(テストデータ!BV3,63,0):OFFSET(テストデータ!BZ3,63,0)) -> 0 | AJ65: =SUM(OFFSET(テストデータ!CA3,63,0):OFFSET(テストデータ!CC3,63,0)) -> 0 | AK65: =SUM(OFFSET(テストデータ!CA3,63,0):OFFSET(テストデータ!CE3,63,0)) -> 0 | AL65: =SUM(OFFSET(テストデータ!CF3,63,0):OFFSET(テストデータ!CH3,63,0)) -> 0 | AM65: =SUM(OFFSET(テストデータ!CF3,63,0):OFFSET(テストデータ!CJ3,63,0)) -> 0 | AN65: =SUM(OFFSET(テストデータ!CK3,63,0):OFFSET(テストデータ!CM3,63,0)) -> 0 | AO65: =SUM(OFFSET(テストデータ!CK3,63,0):OFFSET(テストデータ!CO3,63,0)) -> 0 | AP65: =SUM(OFFSET(テストデータ!CP3,63,0):OFFSET(テストデータ!CR3,63,0)) -> 0 | AQ65: =SUM(OFFSET(テストデータ!CP3,63,0):OFFSET(テストデータ!CT3,63,0)) -> 0
N66: =SUM(OFFSET(テストデータ!$E3,64,9*成績表1!$B$4-9):OFFSET(テストデータ!$G3,64,9*成績表1!$B$4-9)) -> 0 | O66: =SUM(OFFSET(テストデータ!$E3,64,9*成績表1!$B$4-9):OFFSET(テストデータ!I3,64,9*成績表1!$B$4-9)) -> 0 | P66: =SUM(OFFSET(テストデータ!E3,64,0):OFFSET(テストデータ!G3,64,0)) -> 0 | Q66: =SUM(OFFSET(テストデータ!E3,64,0):OFFSET(テストデータ!I3,64,0)) -> 0 | R66: =SUM(OFFSET(テストデータ!N3,64,0):OFFSET(テストデータ!P3,64,0)) -> 0 | S66: =SUM(OFFSET(テストデータ!N3,64,0):OFFSET(テストデータ!R3,64,0)) -> 0 | T66: =SUM(OFFSET(テストデータ!W3,64,0):OFFSET(テストデータ!Y3,64,0)) -> 0 | U66: =SUM(OFFSET(テストデータ!W3,64,0):OFFSET(テストデータ!AA3,64,0)) -> 0 | V66: =SUM(OFFSET(テストデータ!AF3,64,0):OFFSET(テストデータ!AH3,64,0)) -> 0 | W66: =SUM(OFFSET(テストデータ!AF3,64,0):OFFSET(テストデータ!AJ3,64,0)) -> 0 | X66: =SUM(OFFSET(テストデータ!AO3,64,0):OFFSET(テストデータ!AQ3,64,0)) -> 0 | Y66: =SUM(OFFSET(テストデータ!AO3,64,0):OFFSET(テストデータ!AS3,64,0)) -> 0 | Z66: =SUM(OFFSET(テストデータ!AX3,64,0):OFFSET(テストデータ!AZ3,64,0)) -> 0 | AA66: =SUM(OFFSET(テストデータ!AX3,64,0):OFFSET(テストデータ!BB3,64,0)) -> 0 | AB66: =SUM(OFFSET(テストデータ!BG3,64,0):OFFSET(テストデータ!BI3,64,0)) -> 0 | AC66: =SUM(OFFSET(テストデータ!BG3,64,0):OFFSET(テストデータ!BK3,64,0)) -> 0 | AD66: =SUM(OFFSET(テストデータ!BL3,64,0):OFFSET(テストデータ!BN3,64,0)) -> 0 | AE66: =SUM(OFFSET(テストデータ!BL3,64,0):OFFSET(テストデータ!BP3,64,0)) -> 0 | AF66: =SUM(OFFSET(テストデータ!BQ3,64,0):OFFSET(テストデータ!BS3,64,0)) -> 0 | AG66: =SUM(OFFSET(テストデータ!BQ3,64,0):OFFSET(テストデータ!BU3,64,0)) -> 0 | AH66: =SUM(OFFSET(テストデータ!BV3,64,0):OFFSET(テストデータ!BX3,64,0)) -> 0 | AI66: =SUM(OFFSET(テストデータ!BV3,64,0):OFFSET(テストデータ!BZ3,64,0)) -> 0 | AJ66: =SUM(OFFSET(テストデータ!CA3,64,0):OFFSET(テストデータ!CC3,64,0)) -> 0 | AK66: =SUM(OFFSET(テストデータ!CA3,64,0):OFFSET(テストデータ!CE3,64,0)) -> 0 | AL66: =SUM(OFFSET(テストデータ!CF3,64,0):OFFSET(テストデータ!CH3,64,0)) -> 0 | AM66: =SUM(OFFSET(テストデータ!CF3,64,0):OFFSET(テストデータ!CJ3,64,0)) -> 0 | AN66: =SUM(OFFSET(テストデータ!CK3,64,0):OFFSET(テストデータ!CM3,64,0)) -> 0 | AO66: =SUM(OFFSET(テストデータ!CK3,64,0):OFFSET(テストデータ!CO3,64,0)) -> 0 | AP66: =SUM(OFFSET(テストデータ!CP3,64,0):OFFSET(テストデータ!CR3,64,0)) -> 0 | AQ66: =SUM(OFFSET(テストデータ!CP3,64,0):OFFSET(テストデータ!CT3,64,0)) -> 0
E67: ="第1回 "&$C$21 -> 第1回 校内実力テスト | G67: 1 | N67: =SUM(OFFSET(テストデータ!$E3,65,9*成績表1!$B$4-9):OFFSET(テストデータ!$G3,65,9*成績表1!$B$4-9)) -> 0 | O67: =SUM(OFFSET(テストデータ!$E3,65,9*成績表1!$B$4-9):OFFSET(テストデータ!I3,65,9*成績表1!$B$4-9)) -> 0 | P67: =SUM(OFFSET(テストデータ!E3,65,0):OFFSET(テストデータ!G3,65,0)) -> 0 | Q67: =SUM(OFFSET(テストデータ!E3,65,0):OFFSET(テストデータ!I3,65,0)) -> 0 | R67: =SUM(OFFSET(テストデータ!N3,65,0):OFFSET(テストデータ!P3,65,0)) -> 0 | S67: =SUM(OFFSET(テストデータ!N3,65,0):OFFSET(テストデータ!R3,65,0)) -> 0 | T67: =SUM(OFFSET(テストデータ!W3,65,0):OFFSET(テストデータ!Y3,65,0)) -> 0 | U67: =SUM(OFFSET(テストデータ!W3,65,0):OFFSET(テストデータ!AA3,65,0)) -> 0 | V67: =SUM(OFFSET(テストデータ!AF3,65,0):OFFSET(テストデータ!AH3,65,0)) -> 0 | W67: =SUM(OFFSET(テストデータ!AF3,65,0):OFFSET(テストデータ!AJ3,65,0)) -> 0 | X67: =SUM(OFFSET(テストデータ!AO3,65,0):OFFSET(テストデータ!AQ3,65,0)) -> 0 | Y67: =SUM(OFFSET(テストデータ!AO3,65,0):OFFSET(テストデータ!AS3,65,0)) -> 0 | Z67: =SUM(OFFSET(テストデータ!AX3,65,0):OFFSET(テストデータ!AZ3,65,0)) -> 0 | AA67: =SUM(OFFSET(テストデータ!AX3,65,0):OFFSET(テストデータ!BB3,65,0)) -> 0 | AB67: =SUM(OFFSET(テストデータ!BG3,65,0):OFFSET(テストデータ!BI3,65,0)) -> 0 | AC67: =SUM(OFFSET(テストデータ!BG3,65,0):OFFSET(テストデータ!BK3,65,0)) -> 0 | AD67: =SUM(OFFSET(テストデータ!BL3,65,0):OFFSET(テストデータ!BN3,65,0)) -> 0 | AE67: =SUM(OFFSET(テストデータ!BL3,65,0):OFFSET(テストデータ!BP3,65,0)) -> 0 | AF67: =SUM(OFFSET(テストデータ!BQ3,65,0):OFFSET(テストデータ!BS3,65,0)) -> 0 | AG67: =SUM(OFFSET(テストデータ!BQ3,65,0):OFFSET(テストデータ!BU3,65,0)) -> 0 | AH67: =SUM(OFFSET(テストデータ!BV3,65,0):OFFSET(テストデータ!BX3,65,0)) -> 0 | AI67: =SUM(OFFSET(テストデータ!BV3,65,0):OFFSET(テストデータ!BZ3,65,0)) -> 0 | AJ67: =SUM(OFFSET(テストデータ!CA3,65,0):OFFSET(テストデータ!CC3,65,0)) -> 0 | AK67: =SUM(OFFSET(テストデータ!CA3,65,0):OFFSET(テストデータ!CE3,65,0)) -> 0 | AL67: =SUM(OFFSET(テストデータ!CF3,65,0):OFFSET(テストデータ!CH3,65,0)) -> 0 | AM67: =SUM(OFFSET(テストデータ!CF3,65,0):OFFSET(テストデータ!CJ3,65,0)) -> 0 | AN67: =SUM(OFFSET(テストデータ!CK3,65,0):OFFSET(テストデータ!CM3,65,0)) -> 0 | AO67: =SUM(OFFSET(テストデータ!CK3,65,0):OFFSET(テストデータ!CO3,65,0)) -> 0 | AP67: =SUM(OFFSET(テストデータ!CP3,65,0):OFFSET(テストデータ!CR3,65,0)) -> 0 | AQ67: =SUM(OFFSET(テストデータ!CP3,65,0):OFFSET(テストデータ!CT3,65,0)) -> 0
E68: ="第2回 "&$C$21 -> 第2回 校内実力テスト | G68: 2 | N68: =SUM(OFFSET(テストデータ!$E3,66,9*成績表1!$B$4-9):OFFSET(テストデータ!$G3,66,9*成績表1!$B$4-9)) -> 0 | O68: =SUM(OFFSET(テストデータ!$E3,66,9*成績表1!$B$4-9):OFFSET(テストデータ!I3,66,9*成績表1!$B$4-9)) -> 0 | P68: =SUM(OFFSET(テストデータ!E3,66,0):OFFSET(テストデータ!G3,66,0)) -> 0 | Q68: =SUM(OFFSET(テストデータ!E3,66,0):OFFSET(テストデータ!I3,66,0)) -> 0 | R68: =SUM(OFFSET(テストデータ!N3,66,0):OFFSET(テストデータ!P3,66,0)) -> 0 | S68: =SUM(OFFSET(テストデータ!N3,66,0):OFFSET(テストデータ!R3,66,0)) -> 0 | T68: =SUM(OFFSET(テストデータ!W3,66,0):OFFSET(テストデータ!Y3,66,0)) -> 0 | U68: =SUM(OFFSET(テストデータ!W3,66,0):OFFSET(テストデータ!AA3,66,0)) -> 0 | V68: =SUM(OFFSET(テストデータ!AF3,66,0):OFFSET(テストデータ!AH3,66,0)) -> 0 | W68: =SUM(OFFSET(テストデータ!AF3,66,0):OFFSET(テストデータ!AJ3,66,0)) -> 0 | X68: =SUM(OFFSET(テストデータ!AO3,66,0):OFFSET(テストデータ!AQ3,66,0)) -> 0 | Y68: =SUM(OFFSET(テストデータ!AO3,66,0):OFFSET(テストデータ!AS3,66,0)) -> 0 | Z68: =SUM(OFFSET(テストデータ!AX3,66,0):OFFSET(テストデータ!AZ3,66,0)) -> 0 | AA68: =SUM(OFFSET(テストデータ!AX3,66,0):OFFSET(テストデータ!BB3,66,0)) -> 0 | AB68: =SUM(OFFSET(テストデータ!BG3,66,0):OFFSET(テストデータ!BI3,66,0)) -> 0 | AC68: =SUM(OFFSET(テストデータ!BG3,66,0):OFFSET(テストデータ!BK3,66,0)) -> 0 | AD68: =SUM(OFFSET(テストデータ!BL3,66,0):OFFSET(テストデータ!BN3,66,0)) -> 0 | AE68: =SUM(OFFSET(テストデータ!BL3,66,0):OFFSET(テストデータ!BP3,66,0)) -> 0 | AF68: =SUM(OFFSET(テストデータ!BQ3,66,0):OFFSET(テストデータ!BS3,66,0)) -> 0 | AG68: =SUM(OFFSET(テストデータ!BQ3,66,0):OFFSET(テストデータ!BU3,66,0)) -> 0 | AH68: =SUM(OFFSET(テストデータ!BV3,66,0):OFFSET(テストデータ!BX3,66,0)) -> 0 | AI68: =SUM(OFFSET(テストデータ!BV3,66,0):OFFSET(テストデータ!BZ3,66,0)) -> 0 | AJ68: =SUM(OFFSET(テストデータ!CA3,66,0):OFFSET(テストデータ!CC3,66,0)) -> 0 | AK68: =SUM(OFFSET(テストデータ!CA3,66,0):OFFSET(テストデータ!CE3,66,0)) -> 0 | AL68: =SUM(OFFSET(テストデータ!CF3,66,0):OFFSET(テストデータ!CH3,66,0)) -> 0 | AM68: =SUM(OFFSET(テストデータ!CF3,66,0):OFFSET(テストデータ!CJ3,66,0)) -> 0 | AN68: =SUM(OFFSET(テストデータ!CK3,66,0):OFFSET(テストデータ!CM3,66,0)) -> 0 | AO68: =SUM(OFFSET(テストデータ!CK3,66,0):OFFSET(テストデータ!CO3,66,0)) -> 0 | AP68: =SUM(OFFSET(テストデータ!CP3,66,0):OFFSET(テストデータ!CR3,66,0)) -> 0 | AQ68: =SUM(OFFSET(テストデータ!CP3,66,0):OFFSET(テストデータ!CT3,66,0)) -> 0
E69: ="第3回 "&$C$21 -> 第3回 校内実力テスト | G69: 3 | N69: =SUM(OFFSET(テストデータ!$E3,67,9*成績表1!$B$4-9):OFFSET(テストデータ!$G3,67,9*成績表1!$B$4-9)) -> 0 | O69: =SUM(OFFSET(テストデータ!$E3,67,9*成績表1!$B$4-9):OFFSET(テストデータ!I3,67,9*成績表1!$B$4-9)) -> 0 | P69: =SUM(OFFSET(テストデータ!E3,67,0):OFFSET(テストデータ!G3,67,0)) -> 0 | Q69: =SUM(OFFSET(テストデータ!E3,67,0):OFFSET(テストデータ!I3,67,0)) -> 0 | R69: =SUM(OFFSET(テストデータ!N3,67,0):OFFSET(テストデータ!P3,67,0)) -> 0 | S69: =SUM(OFFSET(テストデータ!N3,67,0):OFFSET(テストデータ!R3,67,0)) -> 0 | T69: =SUM(OFFSET(テストデータ!W3,67,0):OFFSET(テストデータ!Y3,67,0)) -> 0 | U69: =SUM(OFFSET(テストデータ!W3,67,0):OFFSET(テストデータ!AA3,67,0)) -> 0 | V69: =SUM(OFFSET(テストデータ!AF3,67,0):OFFSET(テストデータ!AH3,67,0)) -> 0 | W69: =SUM(OFFSET(テストデータ!AF3,67,0):OFFSET(テストデータ!AJ3,67,0)) -> 0 | X69: =SUM(OFFSET(テストデータ!AO3,67,0):OFFSET(テストデータ!AQ3,67,0)) -> 0 | Y69: =SUM(OFFSET(テストデータ!AO3,67,0):OFFSET(テストデータ!AS3,67,0)) -> 0 | Z69: =SUM(OFFSET(テストデータ!AX3,67,0):OFFSET(テストデータ!AZ3,67,0)) -> 0 | AA69: =SUM(OFFSET(テストデータ!AX3,67,0):OFFSET(テストデータ!BB3,67,0)) -> 0 | AB69: =SUM(OFFSET(テストデータ!BG3,67,0):OFFSET(テストデータ!BI3,67,0)) -> 0 | AC69: =SUM(OFFSET(テストデータ!BG3,67,0):OFFSET(テストデータ!BK3,67,0)) -> 0 | AD69: =SUM(OFFSET(テストデータ!BL3,67,0):OFFSET(テストデータ!BN3,67,0)) -> 0 | AE69: =SUM(OFFSET(テストデータ!BL3,67,0):OFFSET(テストデータ!BP3,67,0)) -> 0 | AF69: =SUM(OFFSET(テストデータ!BQ3,67,0):OFFSET(テストデータ!BS3,67,0)) -> 0 | AG69: =SUM(OFFSET(テストデータ!BQ3,67,0):OFFSET(テストデータ!BU3,67,0)) -> 0 | AH69: =SUM(OFFSET(テストデータ!BV3,67,0):OFFSET(テストデータ!BX3,67,0)) -> 0 | AI69: =SUM(OFFSET(テストデータ!BV3,67,0):OFFSET(テストデータ!BZ3,67,0)) -> 0 | AJ69: =SUM(OFFSET(テストデータ!CA3,67,0):OFFSET(テストデータ!CC3,67,0)) -> 0 | AK69: =SUM(OFFSET(テストデータ!CA3,67,0):OFFSET(テストデータ!CE3,67,0)) -> 0 | AL69: =SUM(OFFSET(テストデータ!CF3,67,0):OFFSET(テストデータ!CH3,67,0)) -> 0 | AM69: =SUM(OFFSET(テストデータ!CF3,67,0):OFFSET(テストデータ!CJ3,67,0)) -> 0 | AN69: =SUM(OFFSET(テストデータ!CK3,67,0):OFFSET(テストデータ!CM3,67,0)) -> 0 | AO69: =SUM(OFFSET(テストデータ!CK3,67,0):OFFSET(テストデータ!CO3,67,0)) -> 0 | AP69: =SUM(OFFSET(テストデータ!CP3,67,0):OFFSET(テストデータ!CR3,67,0)) -> 0 | AQ69: =SUM(OFFSET(テストデータ!CP3,67,0):OFFSET(テストデータ!CT3,67,0)) -> 0
E70: ="第4回 "&$C$21 -> 第4回 校内実力テスト | G70: 4 | N70: =SUM(OFFSET(テストデータ!$E3,68,9*成績表1!$B$4-9):OFFSET(テストデータ!$G3,68,9*成績表1!$B$4-9)) -> 0 | O70: =SUM(OFFSET(テストデータ!$E3,68,9*成績表1!$B$4-9):OFFSET(テストデータ!I3,68,9*成績表1!$B$4-9)) -> 0 | P70: =SUM(OFFSET(テストデータ!E3,68,0):OFFSET(テストデータ!G3,68,0)) -> 0 | Q70: =SUM(OFFSET(テストデータ!E3,68,0):OFFSET(テストデータ!I3,68,0)) -> 0 | R70: =SUM(OFFSET(テストデータ!N3,68,0):OFFSET(テストデータ!P3,68,0)) -> 0 | S70: =SUM(OFFSET(テストデータ!N3,68,0):OFFSET(テストデータ!R3,68,0)) -> 0 | T70: =SUM(OFFSET(テストデータ!W3,68,0):OFFSET(テストデータ!Y3,68,0)) -> 0 | U70: =SUM(OFFSET(テストデータ!W3,68,0):OFFSET(テストデータ!AA3,68,0)) -> 0 | V70: =SUM(OFFSET(テストデータ!AF3,68,0):OFFSET(テストデータ!AH3,68,0)) -> 0 | W70: =SUM(OFFSET(テストデータ!AF3,68,0):OFFSET(テストデータ!AJ3,68,0)) -> 0 | X70: =SUM(OFFSET(テストデータ!AO3,68,0):OFFSET(テストデータ!AQ3,68,0)) -> 0 | Y70: =SUM(OFFSET(テストデータ!AO3,68,0):OFFSET(テストデータ!AS3,68,0)) -> 0 | Z70: =SUM(OFFSET(テストデータ!AX3,68,0):OFFSET(テストデータ!AZ3,68,0)) -> 0 | AA70: =SUM(OFFSET(テストデータ!AX3,68,0):OFFSET(テストデータ!BB3,68,0)) -> 0 | AB70: =SUM(OFFSET(テストデータ!BG3,68,0):OFFSET(テストデータ!BI3,68,0)) -> 0 | AC70: =SUM(OFFSET(テストデータ!BG3,68,0):OFFSET(テストデータ!BK3,68,0)) -> 0 | AD70: =SUM(OFFSET(テストデータ!BL3,68,0):OFFSET(テストデータ!BN3,68,0)) -> 0 | AE70: =SUM(OFFSET(テストデータ!BL3,68,0):OFFSET(テストデータ!BP3,68,0)) -> 0 | AF70: =SUM(OFFSET(テストデータ!BQ3,68,0):OFFSET(テストデータ!BS3,68,0)) -> 0 | AG70: =SUM(OFFSET(テストデータ!BQ3,68,0):OFFSET(テストデータ!BU3,68,0)) -> 0 | AH70: =SUM(OFFSET(テストデータ!BV3,68,0):OFFSET(テストデータ!BX3,68,0)) -> 0 | AI70: =SUM(OFFSET(テストデータ!BV3,68,0):OFFSET(テストデータ!BZ3,68,0)) -> 0 | AJ70: =SUM(OFFSET(テストデータ!CA3,68,0):OFFSET(テストデータ!CC3,68,0)) -> 0 | AK70: =SUM(OFFSET(テストデータ!CA3,68,0):OFFSET(テストデータ!CE3,68,0)) -> 0 | AL70: =SUM(OFFSET(テストデータ!CF3,68,0):OFFSET(テストデータ!CH3,68,0)) -> 0 | AM70: =SUM(OFFSET(テストデータ!CF3,68,0):OFFSET(テストデータ!CJ3,68,0)) -> 0 | AN70: =SUM(OFFSET(テストデータ!CK3,68,0):OFFSET(テストデータ!CM3,68,0)) -> 0 | AO70: =SUM(OFFSET(テストデータ!CK3,68,0):OFFSET(テストデータ!CO3,68,0)) -> 0 | AP70: =SUM(OFFSET(テストデータ!CP3,68,0):OFFSET(テストデータ!CR3,68,0)) -> 0 | AQ70: =SUM(OFFSET(テストデータ!CP3,68,0):OFFSET(テストデータ!CT3,68,0)) -> 0
E71: ="第5回 "&$C$21 -> 第5回 校内実力テスト | G71: 5 | N71: =SUM(OFFSET(テストデータ!$E3,69,9*成績表1!$B$4-9):OFFSET(テストデータ!$G3,69,9*成績表1!$B$4-9)) -> 0 | O71: =SUM(OFFSET(テストデータ!$E3,69,9*成績表1!$B$4-9):OFFSET(テストデータ!I3,69,9*成績表1!$B$4-9)) -> 0 | P71: =SUM(OFFSET(テストデータ!E3,69,0):OFFSET(テストデータ!G3,69,0)) -> 0 | Q71: =SUM(OFFSET(テストデータ!E3,69,0):OFFSET(テストデータ!I3,69,0)) -> 0 | R71: =SUM(OFFSET(テストデータ!N3,69,0):OFFSET(テストデータ!P3,69,0)) -> 0 | S71: =SUM(OFFSET(テストデータ!N3,69,0):OFFSET(テストデータ!R3,69,0)) -> 0 | T71: =SUM(OFFSET(テストデータ!W3,69,0):OFFSET(テストデータ!Y3,69,0)) -> 0 | U71: =SUM(OFFSET(テストデータ!W3,69,0):OFFSET(テストデータ!AA3,69,0)) -> 0 | V71: =SUM(OFFSET(テストデータ!AF3,69,0):OFFSET(テストデータ!AH3,69,0)) -> 0 | W71: =SUM(OFFSET(テストデータ!AF3,69,0):OFFSET(テストデータ!AJ3,69,0)) -> 0 | X71: =SUM(OFFSET(テストデータ!AO3,69,0):OFFSET(テストデータ!AQ3,69,0)) -> 0 | Y71: =SUM(OFFSET(テストデータ!AO3,69,0):OFFSET(テストデータ!AS3,69,0)) -> 0 | Z71: =SUM(OFFSET(テストデータ!AX3,69,0):OFFSET(テストデータ!AZ3,69,0)) -> 0 | AA71: =SUM(OFFSET(テストデータ!AX3,69,0):OFFSET(テストデータ!BB3,69,0)) -> 0 | AB71: =SUM(OFFSET(テストデータ!BG3,69,0):OFFSET(テストデータ!BI3,69,0)) -> 0 | AC71: =SUM(OFFSET(テストデータ!BG3,69,0):OFFSET(テストデータ!BK3,69,0)) -> 0 | AD71: =SUM(OFFSET(テストデータ!BL3,69,0):OFFSET(テストデータ!BN3,69,0)) -> 0 | AE71: =SUM(OFFSET(テストデータ!BL3,69,0):OFFSET(テストデータ!BP3,69,0)) -> 0 | AF71: =SUM(OFFSET(テストデータ!BQ3,69,0):OFFSET(テストデータ!BS3,69,0)) -> 0 | AG71: =SUM(OFFSET(テストデータ!BQ3,69,0):OFFSET(テストデータ!BU3,69,0)) -> 0 | AH71: =SUM(OFFSET(テストデータ!BV3,69,0):OFFSET(テストデータ!BX3,69,0)) -> 0 | AI71: =SUM(OFFSET(テストデータ!BV3,69,0):OFFSET(テストデータ!BZ3,69,0)) -> 0 | AJ71: =SUM(OFFSET(テストデータ!CA3,69,0):OFFSET(テストデータ!CC3,69,0)) -> 0 | AK71: =SUM(OFFSET(テストデータ!CA3,69,0):OFFSET(テストデータ!CE3,69,0)) -> 0 | AL71: =SUM(OFFSET(テストデータ!CF3,69,0):OFFSET(テストデータ!CH3,69,0)) -> 0 | AM71: =SUM(OFFSET(テストデータ!CF3,69,0):OFFSET(テストデータ!CJ3,69,0)) -> 0 | AN71: =SUM(OFFSET(テストデータ!CK3,69,0):OFFSET(テストデータ!CM3,69,0)) -> 0 | AO71: =SUM(OFFSET(テストデータ!CK3,69,0):OFFSET(テストデータ!CO3,69,0)) -> 0 | AP71: =SUM(OFFSET(テストデータ!CP3,69,0):OFFSET(テストデータ!CR3,69,0)) -> 0 | AQ71: =SUM(OFFSET(テストデータ!CP3,69,0):OFFSET(テストデータ!CT3,69,0)) -> 0
E72: ="第6回 "&$C$21 -> 第6回 校内実力テスト | G72: 6 | N72: =SUM(OFFSET(テストデータ!$E3,70,9*成績表1!$B$4-9):OFFSET(テストデータ!$G3,70,9*成績表1!$B$4-9)) -> 0 | O72: =SUM(OFFSET(テストデータ!$E3,70,9*成績表1!$B$4-9):OFFSET(テストデータ!I3,70,9*成績表1!$B$4-9)) -> 0 | P72: =SUM(OFFSET(テストデータ!E3,70,0):OFFSET(テストデータ!G3,70,0)) -> 0 | Q72: =SUM(OFFSET(テストデータ!E3,70,0):OFFSET(テストデータ!I3,70,0)) -> 0 | R72: =SUM(OFFSET(テストデータ!N3,70,0):OFFSET(テストデータ!P3,70,0)) -> 0 | S72: =SUM(OFFSET(テストデータ!N3,70,0):OFFSET(テストデータ!R3,70,0)) -> 0 | T72: =SUM(OFFSET(テストデータ!W3,70,0):OFFSET(テストデータ!Y3,70,0)) -> 0 | U72: =SUM(OFFSET(テストデータ!W3,70,0):OFFSET(テストデータ!AA3,70,0)) -> 0 | V72: =SUM(OFFSET(テストデータ!AF3,70,0):OFFSET(テストデータ!AH3,70,0)) -> 0 | W72: =SUM(OFFSET(テストデータ!AF3,70,0):OFFSET(テストデータ!AJ3,70,0)) -> 0 | X72: =SUM(OFFSET(テストデータ!AO3,70,0):OFFSET(テストデータ!AQ3,70,0)) -> 0 | Y72: =SUM(OFFSET(テストデータ!AO3,70,0):OFFSET(テストデータ!AS3,70,0)) -> 0 | Z72: =SUM(OFFSET(テストデータ!AX3,70,0):OFFSET(テストデータ!AZ3,70,0)) -> 0 | AA72: =SUM(OFFSET(テストデータ!AX3,70,0):OFFSET(テストデータ!BB3,70,0)) -> 0 | AB72: =SUM(OFFSET(テストデータ!BG3,70,0):OFFSET(テストデータ!BI3,70,0)) -> 0 | AC72: =SUM(OFFSET(テストデータ!BG3,70,0):OFFSET(テストデータ!BK3,70,0)) -> 0 | AD72: =SUM(OFFSET(テストデータ!BL3,70,0):OFFSET(テストデータ!BN3,70,0)) -> 0 | AE72: =SUM(OFFSET(テストデータ!BL3,70,0):OFFSET(テストデータ!BP3,70,0)) -> 0 | AF72: =SUM(OFFSET(テストデータ!BQ3,70,0):OFFSET(テストデータ!BS3,70,0)) -> 0 | AG72: =SUM(OFFSET(テストデータ!BQ3,70,0):OFFSET(テストデータ!BU3,70,0)) -> 0 | AH72: =SUM(OFFSET(テストデータ!BV3,70,0):OFFSET(テストデータ!BX3,70,0)) -> 0 | AI72: =SUM(OFFSET(テストデータ!BV3,70,0):OFFSET(テストデータ!BZ3,70,0)) -> 0 | AJ72: =SUM(OFFSET(テストデータ!CA3,70,0):OFFSET(テストデータ!CC3,70,0)) -> 0 | AK72: =SUM(OFFSET(テストデータ!CA3,70,0):OFFSET(テストデータ!CE3,70,0)) -> 0 | AL72: =SUM(OFFSET(テストデータ!CF3,70,0):OFFSET(テストデータ!CH3,70,0)) -> 0 | AM72: =SUM(OFFSET(テストデータ!CF3,70,0):OFFSET(テストデータ!CJ3,70,0)) -> 0 | AN72: =SUM(OFFSET(テストデータ!CK3,70,0):OFFSET(テストデータ!CM3,70,0)) -> 0 | AO72: =SUM(OFFSET(テストデータ!CK3,70,0):OFFSET(テストデータ!CO3,70,0)) -> 0 | AP72: =SUM(OFFSET(テストデータ!CP3,70,0):OFFSET(テストデータ!CR3,70,0)) -> 0 | AQ72: =SUM(OFFSET(テストデータ!CP3,70,0):OFFSET(テストデータ!CT3,70,0)) -> 0
E73: ="第7回 "&$C$21 -> 第7回 校内実力テスト | G73: 7 | N73: =SUM(OFFSET(テストデータ!$E3,71,9*成績表1!$B$4-9):OFFSET(テストデータ!$G3,71,9*成績表1!$B$4-9)) -> 0 | O73: =SUM(OFFSET(テストデータ!$E3,71,9*成績表1!$B$4-9):OFFSET(テストデータ!I3,71,9*成績表1!$B$4-9)) -> 0 | P73: =SUM(OFFSET(テストデータ!E3,71,0):OFFSET(テストデータ!G3,71,0)) -> 0 | Q73: =SUM(OFFSET(テストデータ!E3,71,0):OFFSET(テストデータ!I3,71,0)) -> 0 | R73: =SUM(OFFSET(テストデータ!N3,71,0):OFFSET(テストデータ!P3,71,0)) -> 0 | S73: =SUM(OFFSET(テストデータ!N3,71,0):OFFSET(テストデータ!R3,71,0)) -> 0 | T73: =SUM(OFFSET(テストデータ!W3,71,0):OFFSET(テストデータ!Y3,71,0)) -> 0 | U73: =SUM(OFFSET(テストデータ!W3,71,0):OFFSET(テストデータ!AA3,71,0)) -> 0 | V73: =SUM(OFFSET(テストデータ!AF3,71,0):OFFSET(テストデータ!AH3,71,0)) -> 0 | W73: =SUM(OFFSET(テストデータ!AF3,71,0):OFFSET(テストデータ!AJ3,71,0)) -> 0 | X73: =SUM(OFFSET(テストデータ!AO3,71,0):OFFSET(テストデータ!AQ3,71,0)) -> 0 | Y73: =SUM(OFFSET(テストデータ!AO3,71,0):OFFSET(テストデータ!AS3,71,0)) -> 0 | Z73: =SUM(OFFSET(テストデータ!AX3,71,0):OFFSET(テストデータ!AZ3,71,0)) -> 0 | AA73: =SUM(OFFSET(テストデータ!AX3,71,0):OFFSET(テストデータ!BB3,71,0)) -> 0 | AB73: =SUM(OFFSET(テストデータ!BG3,71,0):OFFSET(テストデータ!BI3,71,0)) -> 0 | AC73: =SUM(OFFSET(テストデータ!BG3,71,0):OFFSET(テストデータ!BK3,71,0)) -> 0 | AD73: =SUM(OFFSET(テストデータ!BL3,71,0):OFFSET(テストデータ!BN3,71,0)) -> 0 | AE73: =SUM(OFFSET(テストデータ!BL3,71,0):OFFSET(テストデータ!BP3,71,0)) -> 0 | AF73: =SUM(OFFSET(テストデータ!BQ3,71,0):OFFSET(テストデータ!BS3,71,0)) -> 0 | AG73: =SUM(OFFSET(テストデータ!BQ3,71,0):OFFSET(テストデータ!BU3,71,0)) -> 0 | AH73: =SUM(OFFSET(テストデータ!BV3,71,0):OFFSET(テストデータ!BX3,71,0)) -> 0 | AI73: =SUM(OFFSET(テストデータ!BV3,71,0):OFFSET(テストデータ!BZ3,71,0)) -> 0 | AJ73: =SUM(OFFSET(テストデータ!CA3,71,0):OFFSET(テストデータ!CC3,71,0)) -> 0 | AK73: =SUM(OFFSET(テストデータ!CA3,71,0):OFFSET(テストデータ!CE3,71,0)) -> 0 | AL73: =SUM(OFFSET(テストデータ!CF3,71,0):OFFSET(テストデータ!CH3,71,0)) -> 0 | AM73: =SUM(OFFSET(テストデータ!CF3,71,0):OFFSET(テストデータ!CJ3,71,0)) -> 0 | AN73: =SUM(OFFSET(テストデータ!CK3,71,0):OFFSET(テストデータ!CM3,71,0)) -> 0 | AO73: =SUM(OFFSET(テストデータ!CK3,71,0):OFFSET(テストデータ!CO3,71,0)) -> 0 | AP73: =SUM(OFFSET(テストデータ!CP3,71,0):OFFSET(テストデータ!CR3,71,0)) -> 0 | AQ73: =SUM(OFFSET(テストデータ!CP3,71,0):OFFSET(テストデータ!CT3,71,0)) -> 0
E74: ="第8回 "&$C$21 -> 第8回 校内実力テスト | G74: 8 | N74: =SUM(OFFSET(テストデータ!$E3,72,9*成績表1!$B$4-9):OFFSET(テストデータ!$G3,72,9*成績表1!$B$4-9)) -> 0 | O74: =SUM(OFFSET(テストデータ!$E3,72,9*成績表1!$B$4-9):OFFSET(テストデータ!I3,72,9*成績表1!$B$4-9)) -> 0 | P74: =SUM(OFFSET(テストデータ!E3,72,0):OFFSET(テストデータ!G3,72,0)) -> 0 | Q74: =SUM(OFFSET(テストデータ!E3,72,0):OFFSET(テストデータ!I3,72,0)) -> 0 | R74: =SUM(OFFSET(テストデータ!N3,72,0):OFFSET(テストデータ!P3,72,0)) -> 0 | S74: =SUM(OFFSET(テストデータ!N3,72,0):OFFSET(テストデータ!R3,72,0)) -> 0 | T74: =SUM(OFFSET(テストデータ!W3,72,0):OFFSET(テストデータ!Y3,72,0)) -> 0 | U74: =SUM(OFFSET(テストデータ!W3,72,0):OFFSET(テストデータ!AA3,72,0)) -> 0 | V74: =SUM(OFFSET(テストデータ!AF3,72,0):OFFSET(テストデータ!AH3,72,0)) -> 0 | W74: =SUM(OFFSET(テストデータ!AF3,72,0):OFFSET(テストデータ!AJ3,72,0)) -> 0 | X74: =SUM(OFFSET(テストデータ!AO3,72,0):OFFSET(テストデータ!AQ3,72,0)) -> 0 | Y74: =SUM(OFFSET(テストデータ!AO3,72,0):OFFSET(テストデータ!AS3,72,0)) -> 0 | Z74: =SUM(OFFSET(テストデータ!AX3,72,0):OFFSET(テストデータ!AZ3,72,0)) -> 0 | AA74: =SUM(OFFSET(テストデータ!AX3,72,0):OFFSET(テストデータ!BB3,72,0)) -> 0 | AB74: =SUM(OFFSET(テストデータ!BG3,72,0):OFFSET(テストデータ!BI3,72,0)) -> 0 | AC74: =SUM(OFFSET(テストデータ!BG3,72,0):OFFSET(テストデータ!BK3,72,0)) -> 0 | AD74: =SUM(OFFSET(テストデータ!BL3,72,0):OFFSET(テストデータ!BN3,72,0)) -> 0 | AE74: =SUM(OFFSET(テストデータ!BL3,72,0):OFFSET(テストデータ!BP3,72,0)) -> 0 | AF74: =SUM(OFFSET(テストデータ!BQ3,72,0):OFFSET(テストデータ!BS3,72,0)) -> 0 | AG74: =SUM(OFFSET(テストデータ!BQ3,72,0):OFFSET(テストデータ!BU3,72,0)) -> 0 | AH74: =SUM(OFFSET(テストデータ!BV3,72,0):OFFSET(テストデータ!BX3,72,0)) -> 0 | AI74: =SUM(OFFSET(テストデータ!BV3,72,0):OFFSET(テストデータ!BZ3,72,0)) -> 0 | AJ74: =SUM(OFFSET(テストデータ!CA3,72,0):OFFSET(テストデータ!CC3,72,0)) -> 0 | AK74: =SUM(OFFSET(テストデータ!CA3,72,0):OFFSET(テストデータ!CE3,72,0)) -> 0 | AL74: =SUM(OFFSET(テストデータ!CF3,72,0):OFFSET(テストデータ!CH3,72,0)) -> 0 | AM74: =SUM(OFFSET(テストデータ!CF3,72,0):OFFSET(テストデータ!CJ3,72,0)) -> 0 | AN74: =SUM(OFFSET(テストデータ!CK3,72,0):OFFSET(テストデータ!CM3,72,0)) -> 0 | AO74: =SUM(OFFSET(テストデータ!CK3,72,0):OFFSET(テストデータ!CO3,72,0)) -> 0 | AP74: =SUM(OFFSET(テストデータ!CP3,72,0):OFFSET(テストデータ!CR3,72,0)) -> 0 | AQ74: =SUM(OFFSET(テストデータ!CP3,72,0):OFFSET(テストデータ!CT3,72,0)) -> 0
N75: =SUM(OFFSET(テストデータ!$E3,73,9*成績表1!$B$4-9):OFFSET(テストデータ!$G3,73,9*成績表1!$B$4-9)) -> 0 | O75: =SUM(OFFSET(テストデータ!$E3,73,9*成績表1!$B$4-9):OFFSET(テストデータ!I3,73,9*成績表1!$B$4-9)) -> 0 | P75: =SUM(OFFSET(テストデータ!E3,73,0):OFFSET(テストデータ!G3,73,0)) -> 0 | Q75: =SUM(OFFSET(テストデータ!E3,73,0):OFFSET(テストデータ!I3,73,0)) -> 0 | R75: =SUM(OFFSET(テストデータ!N3,73,0):OFFSET(テストデータ!P3,73,0)) -> 0 | S75: =SUM(OFFSET(テストデータ!N3,73,0):OFFSET(テストデータ!R3,73,0)) -> 0 | T75: =SUM(OFFSET(テストデータ!W3,73,0):OFFSET(テストデータ!Y3,73,0)) -> 0 | U75: =SUM(OFFSET(テストデータ!W3,73,0):OFFSET(テストデータ!AA3,73,0)) -> 0 | V75: =SUM(OFFSET(テストデータ!AF3,73,0):OFFSET(テストデータ!AH3,73,0)) -> 0 | W75: =SUM(OFFSET(テストデータ!AF3,73,0):OFFSET(テストデータ!AJ3,73,0)) -> 0 | X75: =SUM(OFFSET(テストデータ!AO3,73,0):OFFSET(テストデータ!AQ3,73,0)) -> 0 | Y75: =SUM(OFFSET(テストデータ!AO3,73,0):OFFSET(テストデータ!AS3,73,0)) -> 0 | Z75: =SUM(OFFSET(テストデータ!AX3,73,0):OFFSET(テストデータ!AZ3,73,0)) -> 0 | AA75: =SUM(OFFSET(テストデータ!AX3,73,0):OFFSET(テストデータ!BB3,73,0)) -> 0 | AB75: =SUM(OFFSET(テストデータ!BG3,73,0):OFFSET(テストデータ!BI3,73,0)) -> 0 | AC75: =SUM(OFFSET(テストデータ!BG3,73,0):OFFSET(テストデータ!BK3,73,0)) -> 0 | AD75: =SUM(OFFSET(テストデータ!BL3,73,0):OFFSET(テストデータ!BN3,73,0)) -> 0 | AE75: =SUM(OFFSET(テストデータ!BL3,73,0):OFFSET(テストデータ!BP3,73,0)) -> 0 | AF75: =SUM(OFFSET(テストデータ!BQ3,73,0):OFFSET(テストデータ!BS3,73,0)) -> 0 | AG75: =SUM(OFFSET(テストデータ!BQ3,73,0):OFFSET(テストデータ!BU3,73,0)) -> 0 | AH75: =SUM(OFFSET(テストデータ!BV3,73,0):OFFSET(テストデータ!BX3,73,0)) -> 0 | AI75: =SUM(OFFSET(テストデータ!BV3,73,0):OFFSET(テストデータ!BZ3,73,0)) -> 0 | AJ75: =SUM(OFFSET(テストデータ!CA3,73,0):OFFSET(テストデータ!CC3,73,0)) -> 0 | AK75: =SUM(OFFSET(テストデータ!CA3,73,0):OFFSET(テストデータ!CE3,73,0)) -> 0 | AL75: =SUM(OFFSET(テストデータ!CF3,73,0):OFFSET(テストデータ!CH3,73,0)) -> 0 | AM75: =SUM(OFFSET(テストデータ!CF3,73,0):OFFSET(テストデータ!CJ3,73,0)) -> 0 | AN75: =SUM(OFFSET(テストデータ!CK3,73,0):OFFSET(テストデータ!CM3,73,0)) -> 0 | AO75: =SUM(OFFSET(テストデータ!CK3,73,0):OFFSET(テストデータ!CO3,73,0)) -> 0 | AP75: =SUM(OFFSET(テストデータ!CP3,73,0):OFFSET(テストデータ!CR3,73,0)) -> 0 | AQ75: =SUM(OFFSET(テストデータ!CP3,73,0):OFFSET(テストデータ!CT3,73,0)) -> 0
N76: =SUM(OFFSET(テストデータ!$E3,74,9*成績表1!$B$4-9):OFFSET(テストデータ!$G3,74,9*成績表1!$B$4-9)) -> 0 | O76: =SUM(OFFSET(テストデータ!$E3,74,9*成績表1!$B$4-9):OFFSET(テストデータ!I3,74,9*成績表1!$B$4-9)) -> 0 | P76: =SUM(OFFSET(テストデータ!E3,74,0):OFFSET(テストデータ!G3,74,0)) -> 0 | Q76: =SUM(OFFSET(テストデータ!E3,74,0):OFFSET(テストデータ!I3,74,0)) -> 0 | R76: =SUM(OFFSET(テストデータ!N3,74,0):OFFSET(テストデータ!P3,74,0)) -> 0 | S76: =SUM(OFFSET(テストデータ!N3,74,0):OFFSET(テストデータ!R3,74,0)) -> 0 | T76: =SUM(OFFSET(テストデータ!W3,74,0):OFFSET(テストデータ!Y3,74,0)) -> 0 | U76: =SUM(OFFSET(テストデータ!W3,74,0):OFFSET(テストデータ!AA3,74,0)) -> 0 | V76: =SUM(OFFSET(テストデータ!AF3,74,0):OFFSET(テストデータ!AH3,74,0)) -> 0 | W76: =SUM(OFFSET(テストデータ!AF3,74,0):OFFSET(テストデータ!AJ3,74,0)) -> 0 | X76: =SUM(OFFSET(テストデータ!AO3,74,0):OFFSET(テストデータ!AQ3,74,0)) -> 0 | Y76: =SUM(OFFSET(テストデータ!AO3,74,0):OFFSET(テストデータ!AS3,74,0)) -> 0 | Z76: =SUM(OFFSET(テストデータ!AX3,74,0):OFFSET(テストデータ!AZ3,74,0)) -> 0 | AA76: =SUM(OFFSET(テストデータ!AX3,74,0):OFFSET(テストデータ!BB3,74,0)) -> 0 | AB76: =SUM(OFFSET(テストデータ!BG3,74,0):OFFSET(テストデータ!BI3,74,0)) -> 0 | AC76: =SUM(OFFSET(テストデータ!BG3,74,0):OFFSET(テストデータ!BK3,74,0)) -> 0 | AD76: =SUM(OFFSET(テストデータ!BL3,74,0):OFFSET(テストデータ!BN3,74,0)) -> 0 | AE76: =SUM(OFFSET(テストデータ!BL3,74,0):OFFSET(テストデータ!BP3,74,0)) -> 0 | AF76: =SUM(OFFSET(テストデータ!BQ3,74,0):OFFSET(テストデータ!BS3,74,0)) -> 0 | AG76: =SUM(OFFSET(テストデータ!BQ3,74,0):OFFSET(テストデータ!BU3,74,0)) -> 0 | AH76: =SUM(OFFSET(テストデータ!BV3,74,0):OFFSET(テストデータ!BX3,74,0)) -> 0 | AI76: =SUM(OFFSET(テストデータ!BV3,74,0):OFFSET(テストデータ!BZ3,74,0)) -> 0 | AJ76: =SUM(OFFSET(テストデータ!CA3,74,0):OFFSET(テストデータ!CC3,74,0)) -> 0 | AK76: =SUM(OFFSET(テストデータ!CA3,74,0):OFFSET(テストデータ!CE3,74,0)) -> 0 | AL76: =SUM(OFFSET(テストデータ!CF3,74,0):OFFSET(テストデータ!CH3,74,0)) -> 0 | AM76: =SUM(OFFSET(テストデータ!CF3,74,0):OFFSET(テストデータ!CJ3,74,0)) -> 0 | AN76: =SUM(OFFSET(テストデータ!CK3,74,0):OFFSET(テストデータ!CM3,74,0)) -> 0 | AO76: =SUM(OFFSET(テストデータ!CK3,74,0):OFFSET(テストデータ!CO3,74,0)) -> 0 | AP76: =SUM(OFFSET(テストデータ!CP3,74,0):OFFSET(テストデータ!CR3,74,0)) -> 0 | AQ76: =SUM(OFFSET(テストデータ!CP3,74,0):OFFSET(テストデータ!CT3,74,0)) -> 0
N77: =SUM(OFFSET(テストデータ!$E3,75,9*成績表1!$B$4-9):OFFSET(テストデータ!$G3,75,9*成績表1!$B$4-9)) -> 0 | O77: =SUM(OFFSET(テストデータ!$E3,75,9*成績表1!$B$4-9):OFFSET(テストデータ!I3,75,9*成績表1!$B$4-9)) -> 0 | P77: =SUM(OFFSET(テストデータ!E3,75,0):OFFSET(テストデータ!G3,75,0)) -> 0 | Q77: =SUM(OFFSET(テストデータ!E3,75,0):OFFSET(テストデータ!I3,75,0)) -> 0 | R77: =SUM(OFFSET(テストデータ!N3,75,0):OFFSET(テストデータ!P3,75,0)) -> 0 | S77: =SUM(OFFSET(テストデータ!N3,75,0):OFFSET(テストデータ!R3,75,0)) -> 0 | T77: =SUM(OFFSET(テストデータ!W3,75,0):OFFSET(テストデータ!Y3,75,0)) -> 0 | U77: =SUM(OFFSET(テストデータ!W3,75,0):OFFSET(テストデータ!AA3,75,0)) -> 0 | V77: =SUM(OFFSET(テストデータ!AF3,75,0):OFFSET(テストデータ!AH3,75,0)) -> 0 | W77: =SUM(OFFSET(テストデータ!AF3,75,0):OFFSET(テストデータ!AJ3,75,0)) -> 0 | X77: =SUM(OFFSET(テストデータ!AO3,75,0):OFFSET(テストデータ!AQ3,75,0)) -> 0 | Y77: =SUM(OFFSET(テストデータ!AO3,75,0):OFFSET(テストデータ!AS3,75,0)) -> 0 | Z77: =SUM(OFFSET(テストデータ!AX3,75,0):OFFSET(テストデータ!AZ3,75,0)) -> 0 | AA77: =SUM(OFFSET(テストデータ!AX3,75,0):OFFSET(テストデータ!BB3,75,0)) -> 0 | AB77: =SUM(OFFSET(テストデータ!BG3,75,0):OFFSET(テストデータ!BI3,75,0)) -> 0 | AC77: =SUM(OFFSET(テストデータ!BG3,75,0):OFFSET(テストデータ!BK3,75,0)) -> 0 | AD77: =SUM(OFFSET(テストデータ!BL3,75,0):OFFSET(テストデータ!BN3,75,0)) -> 0 | AE77: =SUM(OFFSET(テストデータ!BL3,75,0):OFFSET(テストデータ!BP3,75,0)) -> 0 | AF77: =SUM(OFFSET(テストデータ!BQ3,75,0):OFFSET(テストデータ!BS3,75,0)) -> 0 | AG77: =SUM(OFFSET(テストデータ!BQ3,75,0):OFFSET(テストデータ!BU3,75,0)) -> 0 | AH77: =SUM(OFFSET(テストデータ!BV3,75,0):OFFSET(テストデータ!BX3,75,0)) -> 0 | AI77: =SUM(OFFSET(テストデータ!BV3,75,0):OFFSET(テストデータ!BZ3,75,0)) -> 0 | AJ77: =SUM(OFFSET(テストデータ!CA3,75,0):OFFSET(テストデータ!CC3,75,0)) -> 0 | AK77: =SUM(OFFSET(テストデータ!CA3,75,0):OFFSET(テストデータ!CE3,75,0)) -> 0 | AL77: =SUM(OFFSET(テストデータ!CF3,75,0):OFFSET(テストデータ!CH3,75,0)) -> 0 | AM77: =SUM(OFFSET(テストデータ!CF3,75,0):OFFSET(テストデータ!CJ3,75,0)) -> 0 | AN77: =SUM(OFFSET(テストデータ!CK3,75,0):OFFSET(テストデータ!CM3,75,0)) -> 0 | AO77: =SUM(OFFSET(テストデータ!CK3,75,0):OFFSET(テストデータ!CO3,75,0)) -> 0 | AP77: =SUM(OFFSET(テストデータ!CP3,75,0):OFFSET(テストデータ!CR3,75,0)) -> 0 | AQ77: =SUM(OFFSET(テストデータ!CP3,75,0):OFFSET(テストデータ!CT3,75,0)) -> 0
N78: =SUM(OFFSET(テストデータ!$E3,76,9*成績表1!$B$4-9):OFFSET(テストデータ!$G3,76,9*成績表1!$B$4-9)) -> 0 | O78: =SUM(OFFSET(テストデータ!$E3,76,9*成績表1!$B$4-9):OFFSET(テストデータ!I3,76,9*成績表1!$B$4-9)) -> 0 | P78: =SUM(OFFSET(テストデータ!E3,76,0):OFFSET(テストデータ!G3,76,0)) -> 0 | Q78: =SUM(OFFSET(テストデータ!E3,76,0):OFFSET(テストデータ!I3,76,0)) -> 0 | R78: =SUM(OFFSET(テストデータ!N3,76,0):OFFSET(テストデータ!P3,76,0)) -> 0 | S78: =SUM(OFFSET(テストデータ!N3,76,0):OFFSET(テストデータ!R3,76,0)) -> 0 | T78: =SUM(OFFSET(テストデータ!W3,76,0):OFFSET(テストデータ!Y3,76,0)) -> 0 | U78: =SUM(OFFSET(テストデータ!W3,76,0):OFFSET(テストデータ!AA3,76,0)) -> 0 | V78: =SUM(OFFSET(テストデータ!AF3,76,0):OFFSET(テストデータ!AH3,76,0)) -> 0 | W78: =SUM(OFFSET(テストデータ!AF3,76,0):OFFSET(テストデータ!AJ3,76,0)) -> 0 | X78: =SUM(OFFSET(テストデータ!AO3,76,0):OFFSET(テストデータ!AQ3,76,0)) -> 0 | Y78: =SUM(OFFSET(テストデータ!AO3,76,0):OFFSET(テストデータ!AS3,76,0)) -> 0 | Z78: =SUM(OFFSET(テストデータ!AX3,76,0):OFFSET(テストデータ!AZ3,76,0)) -> 0 | AA78: =SUM(OFFSET(テストデータ!AX3,76,0):OFFSET(テストデータ!BB3,76,0)) -> 0 | AB78: =SUM(OFFSET(テストデータ!BG3,76,0):OFFSET(テストデータ!BI3,76,0)) -> 0 | AC78: =SUM(OFFSET(テストデータ!BG3,76,0):OFFSET(テストデータ!BK3,76,0)) -> 0 | AD78: =SUM(OFFSET(テストデータ!BL3,76,0):OFFSET(テストデータ!BN3,76,0)) -> 0 | AE78: =SUM(OFFSET(テストデータ!BL3,76,0):OFFSET(テストデータ!BP3,76,0)) -> 0 | AF78: =SUM(OFFSET(テストデータ!BQ3,76,0):OFFSET(テストデータ!BS3,76,0)) -> 0 | AG78: =SUM(OFFSET(テストデータ!BQ3,76,0):OFFSET(テストデータ!BU3,76,0)) -> 0 | AH78: =SUM(OFFSET(テストデータ!BV3,76,0):OFFSET(テストデータ!BX3,76,0)) -> 0 | AI78: =SUM(OFFSET(テストデータ!BV3,76,0):OFFSET(テストデータ!BZ3,76,0)) -> 0 | AJ78: =SUM(OFFSET(テストデータ!CA3,76,0):OFFSET(テストデータ!CC3,76,0)) -> 0 | AK78: =SUM(OFFSET(テストデータ!CA3,76,0):OFFSET(テストデータ!CE3,76,0)) -> 0 | AL78: =SUM(OFFSET(テストデータ!CF3,76,0):OFFSET(テストデータ!CH3,76,0)) -> 0 | AM78: =SUM(OFFSET(テストデータ!CF3,76,0):OFFSET(テストデータ!CJ3,76,0)) -> 0 | AN78: =SUM(OFFSET(テストデータ!CK3,76,0):OFFSET(テストデータ!CM3,76,0)) -> 0 | AO78: =SUM(OFFSET(テストデータ!CK3,76,0):OFFSET(テストデータ!CO3,76,0)) -> 0 | AP78: =SUM(OFFSET(テストデータ!CP3,76,0):OFFSET(テストデータ!CR3,76,0)) -> 0 | AQ78: =SUM(OFFSET(テストデータ!CP3,76,0):OFFSET(テストデータ!CT3,76,0)) -> 0
N79: =SUM(OFFSET(テストデータ!$E3,77,9*成績表1!$B$4-9):OFFSET(テストデータ!$G3,77,9*成績表1!$B$4-9)) -> 0 | O79: =SUM(OFFSET(テストデータ!$E3,77,9*成績表1!$B$4-9):OFFSET(テストデータ!I3,77,9*成績表1!$B$4-9)) -> 0 | P79: =SUM(OFFSET(テストデータ!E3,77,0):OFFSET(テストデータ!G3,77,0)) -> 0 | Q79: =SUM(OFFSET(テストデータ!E3,77,0):OFFSET(テストデータ!I3,77,0)) -> 0 | R79: =SUM(OFFSET(テストデータ!N3,77,0):OFFSET(テストデータ!P3,77,0)) -> 0 | S79: =SUM(OFFSET(テストデータ!N3,77,0):OFFSET(テストデータ!R3,77,0)) -> 0 | T79: =SUM(OFFSET(テストデータ!W3,77,0):OFFSET(テストデータ!Y3,77,0)) -> 0 | U79: =SUM(OFFSET(テストデータ!W3,77,0):OFFSET(テストデータ!AA3,77,0)) -> 0 | V79: =SUM(OFFSET(テストデータ!AF3,77,0):OFFSET(テストデータ!AH3,77,0)) -> 0 | W79: =SUM(OFFSET(テストデータ!AF3,77,0):OFFSET(テストデータ!AJ3,77,0)) -> 0 | X79: =SUM(OFFSET(テストデータ!AO3,77,0):OFFSET(テストデータ!AQ3,77,0)) -> 0 | Y79: =SUM(OFFSET(テストデータ!AO3,77,0):OFFSET(テストデータ!AS3,77,0)) -> 0 | Z79: =SUM(OFFSET(テストデータ!AX3,77,0):OFFSET(テストデータ!AZ3,77,0)) -> 0 | AA79: =SUM(OFFSET(テストデータ!AX3,77,0):OFFSET(テストデータ!BB3,77,0)) -> 0 | AB79: =SUM(OFFSET(テストデータ!BG3,77,0):OFFSET(テストデータ!BI3,77,0)) -> 0 | AC79: =SUM(OFFSET(テストデータ!BG3,77,0):OFFSET(テストデータ!BK3,77,0)) -> 0 | AD79: =SUM(OFFSET(テストデータ!BL3,77,0):OFFSET(テストデータ!BN3,77,0)) -> 0 | AE79: =SUM(OFFSET(テストデータ!BL3,77,0):OFFSET(テストデータ!BP3,77,0)) -> 0 | AF79: =SUM(OFFSET(テストデータ!BQ3,77,0):OFFSET(テストデータ!BS3,77,0)) -> 0 | AG79: =SUM(OFFSET(テストデータ!BQ3,77,0):OFFSET(テストデータ!BU3,77,0)) -> 0 | AH79: =SUM(OFFSET(テストデータ!BV3,77,0):OFFSET(テストデータ!BX3,77,0)) -> 0 | AI79: =SUM(OFFSET(テストデータ!BV3,77,0):OFFSET(テストデータ!BZ3,77,0)) -> 0 | AJ79: =SUM(OFFSET(テストデータ!CA3,77,0):OFFSET(テストデータ!CC3,77,0)) -> 0 | AK79: =SUM(OFFSET(テストデータ!CA3,77,0):OFFSET(テストデータ!CE3,77,0)) -> 0 | AL79: =SUM(OFFSET(テストデータ!CF3,77,0):OFFSET(テストデータ!CH3,77,0)) -> 0 | AM79: =SUM(OFFSET(テストデータ!CF3,77,0):OFFSET(テストデータ!CJ3,77,0)) -> 0 | AN79: =SUM(OFFSET(テストデータ!CK3,77,0):OFFSET(テストデータ!CM3,77,0)) -> 0 | AO79: =SUM(OFFSET(テストデータ!CK3,77,0):OFFSET(テストデータ!CO3,77,0)) -> 0 | AP79: =SUM(OFFSET(テストデータ!CP3,77,0):OFFSET(テストデータ!CR3,77,0)) -> 0 | AQ79: =SUM(OFFSET(テストデータ!CP3,77,0):OFFSET(テストデータ!CT3,77,0)) -> 0
N80: =SUM(OFFSET(テストデータ!$E3,78,9*成績表1!$B$4-9):OFFSET(テストデータ!$G3,78,9*成績表1!$B$4-9)) -> 0 | O80: =SUM(OFFSET(テストデータ!$E3,78,9*成績表1!$B$4-9):OFFSET(テストデータ!I3,78,9*成績表1!$B$4-9)) -> 0 | P80: =SUM(OFFSET(テストデータ!E3,78,0):OFFSET(テストデータ!G3,78,0)) -> 0 | Q80: =SUM(OFFSET(テストデータ!E3,78,0):OFFSET(テストデータ!I3,78,0)) -> 0 | R80: =SUM(OFFSET(テストデータ!N3,78,0):OFFSET(テストデータ!P3,78,0)) -> 0 | S80: =SUM(OFFSET(テストデータ!N3,78,0):OFFSET(テストデータ!R3,78,0)) -> 0 | T80: =SUM(OFFSET(テストデータ!W3,78,0):OFFSET(テストデータ!Y3,78,0)) -> 0 | U80: =SUM(OFFSET(テストデータ!W3,78,0):OFFSET(テストデータ!AA3,78,0)) -> 0 | V80: =SUM(OFFSET(テストデータ!AF3,78,0):OFFSET(テストデータ!AH3,78,0)) -> 0 | W80: =SUM(OFFSET(テストデータ!AF3,78,0):OFFSET(テストデータ!AJ3,78,0)) -> 0 | X80: =SUM(OFFSET(テストデータ!AO3,78,0):OFFSET(テストデータ!AQ3,78,0)) -> 0 | Y80: =SUM(OFFSET(テストデータ!AO3,78,0):OFFSET(テストデータ!AS3,78,0)) -> 0 | Z80: =SUM(OFFSET(テストデータ!AX3,78,0):OFFSET(テストデータ!AZ3,78,0)) -> 0 | AA80: =SUM(OFFSET(テストデータ!AX3,78,0):OFFSET(テストデータ!BB3,78,0)) -> 0 | AB80: =SUM(OFFSET(テストデータ!BG3,78,0):OFFSET(テストデータ!BI3,78,0)) -> 0 | AC80: =SUM(OFFSET(テストデータ!BG3,78,0):OFFSET(テストデータ!BK3,78,0)) -> 0 | AD80: =SUM(OFFSET(テストデータ!BL3,78,0):OFFSET(テストデータ!BN3,78,0)) -> 0 | AE80: =SUM(OFFSET(テストデータ!BL3,78,0):OFFSET(テストデータ!BP3,78,0)) -> 0 | AF80: =SUM(OFFSET(テストデータ!BQ3,78,0):OFFSET(テストデータ!BS3,78,0)) -> 0 | AG80: =SUM(OFFSET(テストデータ!BQ3,78,0):OFFSET(テストデータ!BU3,78,0)) -> 0 | AH80: =SUM(OFFSET(テストデータ!BV3,78,0):OFFSET(テストデータ!BX3,78,0)) -> 0 | AI80: =SUM(OFFSET(テストデータ!BV3,78,0):OFFSET(テストデータ!BZ3,78,0)) -> 0 | AJ80: =SUM(OFFSET(テストデータ!CA3,78,0):OFFSET(テストデータ!CC3,78,0)) -> 0 | AK80: =SUM(OFFSET(テストデータ!CA3,78,0):OFFSET(テストデータ!CE3,78,0)) -> 0 | AL80: =SUM(OFFSET(テストデータ!CF3,78,0):OFFSET(テストデータ!CH3,78,0)) -> 0 | AM80: =SUM(OFFSET(テストデータ!CF3,78,0):OFFSET(テストデータ!CJ3,78,0)) -> 0 | AN80: =SUM(OFFSET(テストデータ!CK3,78,0):OFFSET(テストデータ!CM3,78,0)) -> 0 | AO80: =SUM(OFFSET(テストデータ!CK3,78,0):OFFSET(テストデータ!CO3,78,0)) -> 0 | AP80: =SUM(OFFSET(テストデータ!CP3,78,0):OFFSET(テストデータ!CR3,78,0)) -> 0 | AQ80: =SUM(OFFSET(テストデータ!CP3,78,0):OFFSET(テストデータ!CT3,78,0)) -> 0
N81: =SUM(OFFSET(テストデータ!$E3,79,9*成績表1!$B$4-9):OFFSET(テストデータ!$G3,79,9*成績表1!$B$4-9)) -> 0 | O81: =SUM(OFFSET(テストデータ!$E3,79,9*成績表1!$B$4-9):OFFSET(テストデータ!I3,79,9*成績表1!$B$4-9)) -> 0 | P81: =SUM(OFFSET(テストデータ!E3,79,0):OFFSET(テストデータ!G3,79,0)) -> 0 | Q81: =SUM(OFFSET(テストデータ!E3,79,0):OFFSET(テストデータ!I3,79,0)) -> 0 | R81: =SUM(OFFSET(テストデータ!N3,79,0):OFFSET(テストデータ!P3,79,0)) -> 0 | S81: =SUM(OFFSET(テストデータ!N3,79,0):OFFSET(テストデータ!R3,79,0)) -> 0 | T81: =SUM(OFFSET(テストデータ!W3,79,0):OFFSET(テストデータ!Y3,79,0)) -> 0 | U81: =SUM(OFFSET(テストデータ!W3,79,0):OFFSET(テストデータ!AA3,79,0)) -> 0 | V81: =SUM(OFFSET(テストデータ!AF3,79,0):OFFSET(テストデータ!AH3,79,0)) -> 0 | W81: =SUM(OFFSET(テストデータ!AF3,79,0):OFFSET(テストデータ!AJ3,79,0)) -> 0 | X81: =SUM(OFFSET(テストデータ!AO3,79,0):OFFSET(テストデータ!AQ3,79,0)) -> 0 | Y81: =SUM(OFFSET(テストデータ!AO3,79,0):OFFSET(テストデータ!AS3,79,0)) -> 0 | Z81: =SUM(OFFSET(テストデータ!AX3,79,0):OFFSET(テストデータ!AZ3,79,0)) -> 0 | AA81: =SUM(OFFSET(テストデータ!AX3,79,0):OFFSET(テストデータ!BB3,79,0)) -> 0 | AB81: =SUM(OFFSET(テストデータ!BG3,79,0):OFFSET(テストデータ!BI3,79,0)) -> 0 | AC81: =SUM(OFFSET(テストデータ!BG3,79,0):OFFSET(テストデータ!BK3,79,0)) -> 0 | AD81: =SUM(OFFSET(テストデータ!BL3,79,0):OFFSET(テストデータ!BN3,79,0)) -> 0 | AE81: =SUM(OFFSET(テストデータ!BL3,79,0):OFFSET(テストデータ!BP3,79,0)) -> 0 | AF81: =SUM(OFFSET(テストデータ!BQ3,79,0):OFFSET(テストデータ!BS3,79,0)) -> 0 | AG81: =SUM(OFFSET(テストデータ!BQ3,79,0):OFFSET(テストデータ!BU3,79,0)) -> 0 | AH81: =SUM(OFFSET(テストデータ!BV3,79,0):OFFSET(テストデータ!BX3,79,0)) -> 0 | AI81: =SUM(OFFSET(テストデータ!BV3,79,0):OFFSET(テストデータ!BZ3,79,0)) -> 0 | AJ81: =SUM(OFFSET(テストデータ!CA3,79,0):OFFSET(テストデータ!CC3,79,0)) -> 0 | AK81: =SUM(OFFSET(テストデータ!CA3,79,0):OFFSET(テストデータ!CE3,79,0)) -> 0 | AL81: =SUM(OFFSET(テストデータ!CF3,79,0):OFFSET(テストデータ!CH3,79,0)) -> 0 | AM81: =SUM(OFFSET(テストデータ!CF3,79,0):OFFSET(テストデータ!CJ3,79,0)) -> 0 | AN81: =SUM(OFFSET(テストデータ!CK3,79,0):OFFSET(テストデータ!CM3,79,0)) -> 0 | AO81: =SUM(OFFSET(テストデータ!CK3,79,0):OFFSET(テストデータ!CO3,79,0)) -> 0 | AP81: =SUM(OFFSET(テストデータ!CP3,79,0):OFFSET(テストデータ!CR3,79,0)) -> 0 | AQ81: =SUM(OFFSET(テストデータ!CP3,79,0):OFFSET(テストデータ!CT3,79,0)) -> 0
N82: =SUM(OFFSET(テストデータ!$E3,80,9*成績表1!$B$4-9):OFFSET(テストデータ!$G3,80,9*成績表1!$B$4-9)) -> 0 | O82: =SUM(OFFSET(テストデータ!$E3,80,9*成績表1!$B$4-9):OFFSET(テストデータ!I3,80,9*成績表1!$B$4-9)) -> 0 | P82: =SUM(OFFSET(テストデータ!E3,80,0):OFFSET(テストデータ!G3,80,0)) -> 0 | Q82: =SUM(OFFSET(テストデータ!E3,80,0):OFFSET(テストデータ!I3,80,0)) -> 0 | R82: =SUM(OFFSET(テストデータ!N3,80,0):OFFSET(テストデータ!P3,80,0)) -> 0 | S82: =SUM(OFFSET(テストデータ!N3,80,0):OFFSET(テストデータ!R3,80,0)) -> 0 | T82: =SUM(OFFSET(テストデータ!W3,80,0):OFFSET(テストデータ!Y3,80,0)) -> 0 | U82: =SUM(OFFSET(テストデータ!W3,80,0):OFFSET(テストデータ!AA3,80,0)) -> 0 | V82: =SUM(OFFSET(テストデータ!AF3,80,0):OFFSET(テストデータ!AH3,80,0)) -> 0 | W82: =SUM(OFFSET(テストデータ!AF3,80,0):OFFSET(テストデータ!AJ3,80,0)) -> 0 | X82: =SUM(OFFSET(テストデータ!AO3,80,0):OFFSET(テストデータ!AQ3,80,0)) -> 0 | Y82: =SUM(OFFSET(テストデータ!AO3,80,0):OFFSET(テストデータ!AS3,80,0)) -> 0 | Z82: =SUM(OFFSET(テストデータ!AX3,80,0):OFFSET(テストデータ!AZ3,80,0)) -> 0 | AA82: =SUM(OFFSET(テストデータ!AX3,80,0):OFFSET(テストデータ!BB3,80,0)) -> 0 | AB82: =SUM(OFFSET(テストデータ!BG3,80,0):OFFSET(テストデータ!BI3,80,0)) -> 0 | AC82: =SUM(OFFSET(テストデータ!BG3,80,0):OFFSET(テストデータ!BK3,80,0)) -> 0 | AD82: =SUM(OFFSET(テストデータ!BL3,80,0):OFFSET(テストデータ!BN3,80,0)) -> 0 | AE82: =SUM(OFFSET(テストデータ!BL3,80,0):OFFSET(テストデータ!BP3,80,0)) -> 0 | AF82: =SUM(OFFSET(テストデータ!BQ3,80,0):OFFSET(テストデータ!BS3,80,0)) -> 0 | AG82: =SUM(OFFSET(テストデータ!BQ3,80,0):OFFSET(テストデータ!BU3,80,0)) -> 0 | AH82: =SUM(OFFSET(テストデータ!BV3,80,0):OFFSET(テストデータ!BX3,80,0)) -> 0 | AI82: =SUM(OFFSET(テストデータ!BV3,80,0):OFFSET(テストデータ!BZ3,80,0)) -> 0 | AJ82: =SUM(OFFSET(テストデータ!CA3,80,0):OFFSET(テストデータ!CC3,80,0)) -> 0 | AK82: =SUM(OFFSET(テストデータ!CA3,80,0):OFFSET(テストデータ!CE3,80,0)) -> 0 | AL82: =SUM(OFFSET(テストデータ!CF3,80,0):OFFSET(テストデータ!CH3,80,0)) -> 0 | AM82: =SUM(OFFSET(テストデータ!CF3,80,0):OFFSET(テストデータ!CJ3,80,0)) -> 0 | AN82: =SUM(OFFSET(テストデータ!CK3,80,0):OFFSET(テストデータ!CM3,80,0)) -> 0 | AO82: =SUM(OFFSET(テストデータ!CK3,80,0):OFFSET(テストデータ!CO3,80,0)) -> 0 | AP82: =SUM(OFFSET(テストデータ!CP3,80,0):OFFSET(テストデータ!CR3,80,0)) -> 0 | AQ82: =SUM(OFFSET(テストデータ!CP3,80,0):OFFSET(テストデータ!CT3,80,0)) -> 0
N83: =SUM(OFFSET(テストデータ!$E3,81,9*成績表1!$B$4-9):OFFSET(テストデータ!$G3,81,9*成績表1!$B$4-9)) -> 0 | O83: =SUM(OFFSET(テストデータ!$E3,81,9*成績表1!$B$4-9):OFFSET(テストデータ!I3,81,9*成績表1!$B$4-9)) -> 0 | P83: =SUM(OFFSET(テストデータ!E3,81,0):OFFSET(テストデータ!G3,81,0)) -> 0 | Q83: =SUM(OFFSET(テストデータ!E3,81,0):OFFSET(テストデータ!I3,81,0)) -> 0 | R83: =SUM(OFFSET(テストデータ!N3,81,0):OFFSET(テストデータ!P3,81,0)) -> 0 | S83: =SUM(OFFSET(テストデータ!N3,81,0):OFFSET(テストデータ!R3,81,0)) -> 0 | T83: =SUM(OFFSET(テストデータ!W3,81,0):OFFSET(テストデータ!Y3,81,0)) -> 0 | U83: =SUM(OFFSET(テストデータ!W3,81,0):OFFSET(テストデータ!AA3,81,0)) -> 0 | V83: =SUM(OFFSET(テストデータ!AF3,81,0):OFFSET(テストデータ!AH3,81,0)) -> 0 | W83: =SUM(OFFSET(テストデータ!AF3,81,0):OFFSET(テストデータ!AJ3,81,0)) -> 0 | X83: =SUM(OFFSET(テストデータ!AO3,81,0):OFFSET(テストデータ!AQ3,81,0)) -> 0 | Y83: =SUM(OFFSET(テストデータ!AO3,81,0):OFFSET(テストデータ!AS3,81,0)) -> 0 | Z83: =SUM(OFFSET(テストデータ!AX3,81,0):OFFSET(テストデータ!AZ3,81,0)) -> 0 | AA83: =SUM(OFFSET(テストデータ!AX3,81,0):OFFSET(テストデータ!BB3,81,0)) -> 0 | AB83: =SUM(OFFSET(テストデータ!BG3,81,0):OFFSET(テストデータ!BI3,81,0)) -> 0 | AC83: =SUM(OFFSET(テストデータ!BG3,81,0):OFFSET(テストデータ!BK3,81,0)) -> 0 | AD83: =SUM(OFFSET(テストデータ!BL3,81,0):OFFSET(テストデータ!BN3,81,0)) -> 0 | AE83: =SUM(OFFSET(テストデータ!BL3,81,0):OFFSET(テストデータ!BP3,81,0)) -> 0 | AF83: =SUM(OFFSET(テストデータ!BQ3,81,0):OFFSET(テストデータ!BS3,81,0)) -> 0 | AG83: =SUM(OFFSET(テストデータ!BQ3,81,0):OFFSET(テストデータ!BU3,81,0)) -> 0 | AH83: =SUM(OFFSET(テストデータ!BV3,81,0):OFFSET(テストデータ!BX3,81,0)) -> 0 | AI83: =SUM(OFFSET(テストデータ!BV3,81,0):OFFSET(テストデータ!BZ3,81,0)) -> 0 | AJ83: =SUM(OFFSET(テストデータ!CA3,81,0):OFFSET(テストデータ!CC3,81,0)) -> 0 | AK83: =SUM(OFFSET(テストデータ!CA3,81,0):OFFSET(テストデータ!CE3,81,0)) -> 0 | AL83: =SUM(OFFSET(テストデータ!CF3,81,0):OFFSET(テストデータ!CH3,81,0)) -> 0 | AM83: =SUM(OFFSET(テストデータ!CF3,81,0):OFFSET(テストデータ!CJ3,81,0)) -> 0 | AN83: =SUM(OFFSET(テストデータ!CK3,81,0):OFFSET(テストデータ!CM3,81,0)) -> 0 | AO83: =SUM(OFFSET(テストデータ!CK3,81,0):OFFSET(テストデータ!CO3,81,0)) -> 0 | AP83: =SUM(OFFSET(テストデータ!CP3,81,0):OFFSET(テストデータ!CR3,81,0)) -> 0 | AQ83: =SUM(OFFSET(テストデータ!CP3,81,0):OFFSET(テストデータ!CT3,81,0)) -> 0
N84: =SUM(OFFSET(テストデータ!$E3,82,9*成績表1!$B$4-9):OFFSET(テストデータ!$G3,82,9*成績表1!$B$4-9)) -> 0 | O84: =SUM(OFFSET(テストデータ!$E3,82,9*成績表1!$B$4-9):OFFSET(テストデータ!I3,82,9*成績表1!$B$4-9)) -> 0 | P84: =SUM(OFFSET(テストデータ!E3,82,0):OFFSET(テストデータ!G3,82,0)) -> 0 | Q84: =SUM(OFFSET(テストデータ!E3,82,0):OFFSET(テストデータ!I3,82,0)) -> 0 | R84: =SUM(OFFSET(テストデータ!N3,82,0):OFFSET(テストデータ!P3,82,0)) -> 0 | S84: =SUM(OFFSET(テストデータ!N3,82,0):OFFSET(テストデータ!R3,82,0)) -> 0 | T84: =SUM(OFFSET(テストデータ!W3,82,0):OFFSET(テストデータ!Y3,82,0)) -> 0 | U84: =SUM(OFFSET(テストデータ!W3,82,0):OFFSET(テストデータ!AA3,82,0)) -> 0 | V84: =SUM(OFFSET(テストデータ!AF3,82,0):OFFSET(テストデータ!AH3,82,0)) -> 0 | W84: =SUM(OFFSET(テストデータ!AF3,82,0):OFFSET(テストデータ!AJ3,82,0)) -> 0 | X84: =SUM(OFFSET(テストデータ!AO3,82,0):OFFSET(テストデータ!AQ3,82,0)) -> 0 | Y84: =SUM(OFFSET(テストデータ!AO3,82,0):OFFSET(テストデータ!AS3,82,0)) -> 0 | Z84: =SUM(OFFSET(テストデータ!AX3,82,0):OFFSET(テストデータ!AZ3,82,0)) -> 0 | AA84: =SUM(OFFSET(テストデータ!AX3,82,0):OFFSET(テストデータ!BB3,82,0)) -> 0 | AB84: =SUM(OFFSET(テストデータ!BG3,82,0):OFFSET(テストデータ!BI3,82,0)) -> 0 | AC84: =SUM(OFFSET(テストデータ!BG3,82,0):OFFSET(テストデータ!BK3,82,0)) -> 0 | AD84: =SUM(OFFSET(テストデータ!BL3,82,0):OFFSET(テストデータ!BN3,82,0)) -> 0 | AE84: =SUM(OFFSET(テストデータ!BL3,82,0):OFFSET(テストデータ!BP3,82,0)) -> 0 | AF84: =SUM(OFFSET(テストデータ!BQ3,82,0):OFFSET(テストデータ!BS3,82,0)) -> 0 | AG84: =SUM(OFFSET(テストデータ!BQ3,82,0):OFFSET(テストデータ!BU3,82,0)) -> 0 | AH84: =SUM(OFFSET(テストデータ!BV3,82,0):OFFSET(テストデータ!BX3,82,0)) -> 0 | AI84: =SUM(OFFSET(テストデータ!BV3,82,0):OFFSET(テストデータ!BZ3,82,0)) -> 0 | AJ84: =SUM(OFFSET(テストデータ!CA3,82,0):OFFSET(テストデータ!CC3,82,0)) -> 0 | AK84: =SUM(OFFSET(テストデータ!CA3,82,0):OFFSET(テストデータ!CE3,82,0)) -> 0 | AL84: =SUM(OFFSET(テストデータ!CF3,82,0):OFFSET(テストデータ!CH3,82,0)) -> 0 | AM84: =SUM(OFFSET(テストデータ!CF3,82,0):OFFSET(テストデータ!CJ3,82,0)) -> 0 | AN84: =SUM(OFFSET(テストデータ!CK3,82,0):OFFSET(テストデータ!CM3,82,0)) -> 0 | AO84: =SUM(OFFSET(テストデータ!CK3,82,0):OFFSET(テストデータ!CO3,82,0)) -> 0 | AP84: =SUM(OFFSET(テストデータ!CP3,82,0):OFFSET(テストデータ!CR3,82,0)) -> 0 | AQ84: =SUM(OFFSET(テストデータ!CP3,82,0):OFFSET(テストデータ!CT3,82,0)) -> 0
N85: =SUM(OFFSET(テストデータ!$E3,83,9*成績表1!$B$4-9):OFFSET(テストデータ!$G3,83,9*成績表1!$B$4-9)) -> 0 | O85: =SUM(OFFSET(テストデータ!$E3,83,9*成績表1!$B$4-9):OFFSET(テストデータ!I3,83,9*成績表1!$B$4-9)) -> 0 | P85: =SUM(OFFSET(テストデータ!E3,83,0):OFFSET(テストデータ!G3,83,0)) -> 0 | Q85: =SUM(OFFSET(テストデータ!E3,83,0):OFFSET(テストデータ!I3,83,0)) -> 0 | R85: =SUM(OFFSET(テストデータ!N3,83,0):OFFSET(テストデータ!P3,83,0)) -> 0 | S85: =SUM(OFFSET(テストデータ!N3,83,0):OFFSET(テストデータ!R3,83,0)) -> 0 | T85: =SUM(OFFSET(テストデータ!W3,83,0):OFFSET(テストデータ!Y3,83,0)) -> 0 | U85: =SUM(OFFSET(テストデータ!W3,83,0):OFFSET(テストデータ!AA3,83,0)) -> 0 | V85: =SUM(OFFSET(テストデータ!AF3,83,0):OFFSET(テストデータ!AH3,83,0)) -> 0 | W85: =SUM(OFFSET(テストデータ!AF3,83,0):OFFSET(テストデータ!AJ3,83,0)) -> 0 | X85: =SUM(OFFSET(テストデータ!AO3,83,0):OFFSET(テストデータ!AQ3,83,0)) -> 0 | Y85: =SUM(OFFSET(テストデータ!AO3,83,0):OFFSET(テストデータ!AS3,83,0)) -> 0 | Z85: =SUM(OFFSET(テストデータ!AX3,83,0):OFFSET(テストデータ!AZ3,83,0)) -> 0 | AA85: =SUM(OFFSET(テストデータ!AX3,83,0):OFFSET(テストデータ!BB3,83,0)) -> 0 | AB85: =SUM(OFFSET(テストデータ!BG3,83,0):OFFSET(テストデータ!BI3,83,0)) -> 0 | AC85: =SUM(OFFSET(テストデータ!BG3,83,0):OFFSET(テストデータ!BK3,83,0)) -> 0 | AD85: =SUM(OFFSET(テストデータ!BL3,83,0):OFFSET(テストデータ!BN3,83,0)) -> 0 | AE85: =SUM(OFFSET(テストデータ!BL3,83,0):OFFSET(テストデータ!BP3,83,0)) -> 0 | AF85: =SUM(OFFSET(テストデータ!BQ3,83,0):OFFSET(テストデータ!BS3,83,0)) -> 0 | AG85: =SUM(OFFSET(テストデータ!BQ3,83,0):OFFSET(テストデータ!BU3,83,0)) -> 0 | AH85: =SUM(OFFSET(テストデータ!BV3,83,0):OFFSET(テストデータ!BX3,83,0)) -> 0 | AI85: =SUM(OFFSET(テストデータ!BV3,83,0):OFFSET(テストデータ!BZ3,83,0)) -> 0 | AJ85: =SUM(OFFSET(テストデータ!CA3,83,0):OFFSET(テストデータ!CC3,83,0)) -> 0 | AK85: =SUM(OFFSET(テストデータ!CA3,83,0):OFFSET(テストデータ!CE3,83,0)) -> 0 | AL85: =SUM(OFFSET(テストデータ!CF3,83,0):OFFSET(テストデータ!CH3,83,0)) -> 0 | AM85: =SUM(OFFSET(テストデータ!CF3,83,0):OFFSET(テストデータ!CJ3,83,0)) -> 0 | AN85: =SUM(OFFSET(テストデータ!CK3,83,0):OFFSET(テストデータ!CM3,83,0)) -> 0 | AO85: =SUM(OFFSET(テストデータ!CK3,83,0):OFFSET(テストデータ!CO3,83,0)) -> 0 | AP85: =SUM(OFFSET(テストデータ!CP3,83,0):OFFSET(テストデータ!CR3,83,0)) -> 0 | AQ85: =SUM(OFFSET(テストデータ!CP3,83,0):OFFSET(テストデータ!CT3,83,0)) -> 0
N86: =SUM(OFFSET(テストデータ!$E3,84,9*成績表1!$B$4-9):OFFSET(テストデータ!$G3,84,9*成績表1!$B$4-9)) -> 0 | O86: =SUM(OFFSET(テストデータ!$E3,84,9*成績表1!$B$4-9):OFFSET(テストデータ!I3,84,9*成績表1!$B$4-9)) -> 0 | P86: =SUM(OFFSET(テストデータ!E3,84,0):OFFSET(テストデータ!G3,84,0)) -> 0 | Q86: =SUM(OFFSET(テストデータ!E3,84,0):OFFSET(テストデータ!I3,84,0)) -> 0 | R86: =SUM(OFFSET(テストデータ!N3,84,0):OFFSET(テストデータ!P3,84,0)) -> 0 | S86: =SUM(OFFSET(テストデータ!N3,84,0):OFFSET(テストデータ!R3,84,0)) -> 0 | T86: =SUM(OFFSET(テストデータ!W3,84,0):OFFSET(テストデータ!Y3,84,0)) -> 0 | U86: =SUM(OFFSET(テストデータ!W3,84,0):OFFSET(テストデータ!AA3,84,0)) -> 0 | V86: =SUM(OFFSET(テストデータ!AF3,84,0):OFFSET(テストデータ!AH3,84,0)) -> 0 | W86: =SUM(OFFSET(テストデータ!AF3,84,0):OFFSET(テストデータ!AJ3,84,0)) -> 0 | X86: =SUM(OFFSET(テストデータ!AO3,84,0):OFFSET(テストデータ!AQ3,84,0)) -> 0 | Y86: =SUM(OFFSET(テストデータ!AO3,84,0):OFFSET(テストデータ!AS3,84,0)) -> 0 | Z86: =SUM(OFFSET(テストデータ!AX3,84,0):OFFSET(テストデータ!AZ3,84,0)) -> 0 | AA86: =SUM(OFFSET(テストデータ!AX3,84,0):OFFSET(テストデータ!BB3,84,0)) -> 0 | AB86: =SUM(OFFSET(テストデータ!BG3,84,0):OFFSET(テストデータ!BI3,84,0)) -> 0 | AC86: =SUM(OFFSET(テストデータ!BG3,84,0):OFFSET(テストデータ!BK3,84,0)) -> 0 | AD86: =SUM(OFFSET(テストデータ!BL3,84,0):OFFSET(テストデータ!BN3,84,0)) -> 0 | AE86: =SUM(OFFSET(テストデータ!BL3,84,0):OFFSET(テストデータ!BP3,84,0)) -> 0 | AF86: =SUM(OFFSET(テストデータ!BQ3,84,0):OFFSET(テストデータ!BS3,84,0)) -> 0 | AG86: =SUM(OFFSET(テストデータ!BQ3,84,0):OFFSET(テストデータ!BU3,84,0)) -> 0 | AH86: =SUM(OFFSET(テストデータ!BV3,84,0):OFFSET(テストデータ!BX3,84,0)) -> 0 | AI86: =SUM(OFFSET(テストデータ!BV3,84,0):OFFSET(テストデータ!BZ3,84,0)) -> 0 | AJ86: =SUM(OFFSET(テストデータ!CA3,84,0):OFFSET(テストデータ!CC3,84,0)) -> 0 | AK86: =SUM(OFFSET(テストデータ!CA3,84,0):OFFSET(テストデータ!CE3,84,0)) -> 0 | AL86: =SUM(OFFSET(テストデータ!CF3,84,0):OFFSET(テストデータ!CH3,84,0)) -> 0 | AM86: =SUM(OFFSET(テストデータ!CF3,84,0):OFFSET(テストデータ!CJ3,84,0)) -> 0 | AN86: =SUM(OFFSET(テストデータ!CK3,84,0):OFFSET(テストデータ!CM3,84,0)) -> 0 | AO86: =SUM(OFFSET(テストデータ!CK3,84,0):OFFSET(テストデータ!CO3,84,0)) -> 0 | AP86: =SUM(OFFSET(テストデータ!CP3,84,0):OFFSET(テストデータ!CR3,84,0)) -> 0 | AQ86: =SUM(OFFSET(テストデータ!CP3,84,0):OFFSET(テストデータ!CT3,84,0)) -> 0
N87: =SUM(OFFSET(テストデータ!$E3,85,9*成績表1!$B$4-9):OFFSET(テストデータ!$G3,85,9*成績表1!$B$4-9)) -> 0 | O87: =SUM(OFFSET(テストデータ!$E3,85,9*成績表1!$B$4-9):OFFSET(テストデータ!I3,85,9*成績表1!$B$4-9)) -> 0 | P87: =SUM(OFFSET(テストデータ!E3,85,0):OFFSET(テストデータ!G3,85,0)) -> 0 | Q87: =SUM(OFFSET(テストデータ!E3,85,0):OFFSET(テストデータ!I3,85,0)) -> 0 | R87: =SUM(OFFSET(テストデータ!N3,85,0):OFFSET(テストデータ!P3,85,0)) -> 0 | S87: =SUM(OFFSET(テストデータ!N3,85,0):OFFSET(テストデータ!R3,85,0)) -> 0 | T87: =SUM(OFFSET(テストデータ!W3,85,0):OFFSET(テストデータ!Y3,85,0)) -> 0 | U87: =SUM(OFFSET(テストデータ!W3,85,0):OFFSET(テストデータ!AA3,85,0)) -> 0 | V87: =SUM(OFFSET(テストデータ!AF3,85,0):OFFSET(テストデータ!AH3,85,0)) -> 0 | W87: =SUM(OFFSET(テストデータ!AF3,85,0):OFFSET(テストデータ!AJ3,85,0)) -> 0 | X87: =SUM(OFFSET(テストデータ!AO3,85,0):OFFSET(テストデータ!AQ3,85,0)) -> 0 | Y87: =SUM(OFFSET(テストデータ!AO3,85,0):OFFSET(テストデータ!AS3,85,0)) -> 0 | Z87: =SUM(OFFSET(テストデータ!AX3,85,0):OFFSET(テストデータ!AZ3,85,0)) -> 0 | AA87: =SUM(OFFSET(テストデータ!AX3,85,0):OFFSET(テストデータ!BB3,85,0)) -> 0 | AB87: =SUM(OFFSET(テストデータ!BG3,85,0):OFFSET(テストデータ!BI3,85,0)) -> 0 | AC87: =SUM(OFFSET(テストデータ!BG3,85,0):OFFSET(テストデータ!BK3,85,0)) -> 0 | AD87: =SUM(OFFSET(テストデータ!BL3,85,0):OFFSET(テストデータ!BN3,85,0)) -> 0 | AE87: =SUM(OFFSET(テストデータ!BL3,85,0):OFFSET(テストデータ!BP3,85,0)) -> 0 | AF87: =SUM(OFFSET(テストデータ!BQ3,85,0):OFFSET(テストデータ!BS3,85,0)) -> 0 | AG87: =SUM(OFFSET(テストデータ!BQ3,85,0):OFFSET(テストデータ!BU3,85,0)) -> 0 | AH87: =SUM(OFFSET(テストデータ!BV3,85,0):OFFSET(テストデータ!BX3,85,0)) -> 0 | AI87: =SUM(OFFSET(テストデータ!BV3,85,0):OFFSET(テストデータ!BZ3,85,0)) -> 0 | AJ87: =SUM(OFFSET(テストデータ!CA3,85,0):OFFSET(テストデータ!CC3,85,0)) -> 0 | AK87: =SUM(OFFSET(テストデータ!CA3,85,0):OFFSET(テストデータ!CE3,85,0)) -> 0 | AL87: =SUM(OFFSET(テストデータ!CF3,85,0):OFFSET(テストデータ!CH3,85,0)) -> 0 | AM87: =SUM(OFFSET(テストデータ!CF3,85,0):OFFSET(テストデータ!CJ3,85,0)) -> 0 | AN87: =SUM(OFFSET(テストデータ!CK3,85,0):OFFSET(テストデータ!CM3,85,0)) -> 0 | AO87: =SUM(OFFSET(テストデータ!CK3,85,0):OFFSET(テストデータ!CO3,85,0)) -> 0 | AP87: =SUM(OFFSET(テストデータ!CP3,85,0):OFFSET(テストデータ!CR3,85,0)) -> 0 | AQ87: =SUM(OFFSET(テストデータ!CP3,85,0):OFFSET(テストデータ!CT3,85,0)) -> 0
N88: =SUM(OFFSET(テストデータ!$E3,86,9*成績表1!$B$4-9):OFFSET(テストデータ!$G3,86,9*成績表1!$B$4-9)) -> 0 | O88: =SUM(OFFSET(テストデータ!$E3,86,9*成績表1!$B$4-9):OFFSET(テストデータ!I3,86,9*成績表1!$B$4-9)) -> 0 | P88: =SUM(OFFSET(テストデータ!E3,86,0):OFFSET(テストデータ!G3,86,0)) -> 0 | Q88: =SUM(OFFSET(テストデータ!E3,86,0):OFFSET(テストデータ!I3,86,0)) -> 0 | R88: =SUM(OFFSET(テストデータ!N3,86,0):OFFSET(テストデータ!P3,86,0)) -> 0 | S88: =SUM(OFFSET(テストデータ!N3,86,0):OFFSET(テストデータ!R3,86,0)) -> 0 | T88: =SUM(OFFSET(テストデータ!W3,86,0):OFFSET(テストデータ!Y3,86,0)) -> 0 | U88: =SUM(OFFSET(テストデータ!W3,86,0):OFFSET(テストデータ!AA3,86,0)) -> 0 | V88: =SUM(OFFSET(テストデータ!AF3,86,0):OFFSET(テストデータ!AH3,86,0)) -> 0 | W88: =SUM(OFFSET(テストデータ!AF3,86,0):OFFSET(テストデータ!AJ3,86,0)) -> 0 | X88: =SUM(OFFSET(テストデータ!AO3,86,0):OFFSET(テストデータ!AQ3,86,0)) -> 0 | Y88: =SUM(OFFSET(テストデータ!AO3,86,0):OFFSET(テストデータ!AS3,86,0)) -> 0 | Z88: =SUM(OFFSET(テストデータ!AX3,86,0):OFFSET(テストデータ!AZ3,86,0)) -> 0 | AA88: =SUM(OFFSET(テストデータ!AX3,86,0):OFFSET(テストデータ!BB3,86,0)) -> 0 | AB88: =SUM(OFFSET(テストデータ!BG3,86,0):OFFSET(テストデータ!BI3,86,0)) -> 0 | AC88: =SUM(OFFSET(テストデータ!BG3,86,0):OFFSET(テストデータ!BK3,86,0)) -> 0 | AD88: =SUM(OFFSET(テストデータ!BL3,86,0):OFFSET(テストデータ!BN3,86,0)) -> 0 | AE88: =SUM(OFFSET(テストデータ!BL3,86,0):OFFSET(テストデータ!BP3,86,0)) -> 0 | AF88: =SUM(OFFSET(テストデータ!BQ3,86,0):OFFSET(テストデータ!BS3,86,0)) -> 0 | AG88: =SUM(OFFSET(テストデータ!BQ3,86,0):OFFSET(テストデータ!BU3,86,0)) -> 0 | AH88: =SUM(OFFSET(テストデータ!BV3,86,0):OFFSET(テストデータ!BX3,86,0)) -> 0 | AI88: =SUM(OFFSET(テストデータ!BV3,86,0):OFFSET(テストデータ!BZ3,86,0)) -> 0 | AJ88: =SUM(OFFSET(テストデータ!CA3,86,0):OFFSET(テストデータ!CC3,86,0)) -> 0 | AK88: =SUM(OFFSET(テストデータ!CA3,86,0):OFFSET(テストデータ!CE3,86,0)) -> 0 | AL88: =SUM(OFFSET(テストデータ!CF3,86,0):OFFSET(テストデータ!CH3,86,0)) -> 0 | AM88: =SUM(OFFSET(テストデータ!CF3,86,0):OFFSET(テストデータ!CJ3,86,0)) -> 0 | AN88: =SUM(OFFSET(テストデータ!CK3,86,0):OFFSET(テストデータ!CM3,86,0)) -> 0 | AO88: =SUM(OFFSET(テストデータ!CK3,86,0):OFFSET(テストデータ!CO3,86,0)) -> 0 | AP88: =SUM(OFFSET(テストデータ!CP3,86,0):OFFSET(テストデータ!CR3,86,0)) -> 0 | AQ88: =SUM(OFFSET(テストデータ!CP3,86,0):OFFSET(テストデータ!CT3,86,0)) -> 0
N89: =SUM(OFFSET(テストデータ!$E3,87,9*成績表1!$B$4-9):OFFSET(テストデータ!$G3,87,9*成績表1!$B$4-9)) -> 0 | O89: =SUM(OFFSET(テストデータ!$E3,87,9*成績表1!$B$4-9):OFFSET(テストデータ!I3,87,9*成績表1!$B$4-9)) -> 0 | P89: =SUM(OFFSET(テストデータ!E3,87,0):OFFSET(テストデータ!G3,87,0)) -> 0 | Q89: =SUM(OFFSET(テストデータ!E3,87,0):OFFSET(テストデータ!I3,87,0)) -> 0 | R89: =SUM(OFFSET(テストデータ!N3,87,0):OFFSET(テストデータ!P3,87,0)) -> 0 | S89: =SUM(OFFSET(テストデータ!N3,87,0):OFFSET(テストデータ!R3,87,0)) -> 0 | T89: =SUM(OFFSET(テストデータ!W3,87,0):OFFSET(テストデータ!Y3,87,0)) -> 0 | U89: =SUM(OFFSET(テストデータ!W3,87,0):OFFSET(テストデータ!AA3,87,0)) -> 0 | V89: =SUM(OFFSET(テストデータ!AF3,87,0):OFFSET(テストデータ!AH3,87,0)) -> 0 | W89: =SUM(OFFSET(テストデータ!AF3,87,0):OFFSET(テストデータ!AJ3,87,0)) -> 0 | X89: =SUM(OFFSET(テストデータ!AO3,87,0):OFFSET(テストデータ!AQ3,87,0)) -> 0 | Y89: =SUM(OFFSET(テストデータ!AO3,87,0):OFFSET(テストデータ!AS3,87,0)) -> 0 | Z89: =SUM(OFFSET(テストデータ!AX3,87,0):OFFSET(テストデータ!AZ3,87,0)) -> 0 | AA89: =SUM(OFFSET(テストデータ!AX3,87,0):OFFSET(テストデータ!BB3,87,0)) -> 0 | AB89: =SUM(OFFSET(テストデータ!BG3,87,0):OFFSET(テストデータ!BI3,87,0)) -> 0 | AC89: =SUM(OFFSET(テストデータ!BG3,87,0):OFFSET(テストデータ!BK3,87,0)) -> 0 | AD89: =SUM(OFFSET(テストデータ!BL3,87,0):OFFSET(テストデータ!BN3,87,0)) -> 0 | AE89: =SUM(OFFSET(テストデータ!BL3,87,0):OFFSET(テストデータ!BP3,87,0)) -> 0 | AF89: =SUM(OFFSET(テストデータ!BQ3,87,0):OFFSET(テストデータ!BS3,87,0)) -> 0 | AG89: =SUM(OFFSET(テストデータ!BQ3,87,0):OFFSET(テストデータ!BU3,87,0)) -> 0 | AH89: =SUM(OFFSET(テストデータ!BV3,87,0):OFFSET(テストデータ!BX3,87,0)) -> 0 | AI89: =SUM(OFFSET(テストデータ!BV3,87,0):OFFSET(テストデータ!BZ3,87,0)) -> 0 | AJ89: =SUM(OFFSET(テストデータ!CA3,87,0):OFFSET(テストデータ!CC3,87,0)) -> 0 | AK89: =SUM(OFFSET(テストデータ!CA3,87,0):OFFSET(テストデータ!CE3,87,0)) -> 0 | AL89: =SUM(OFFSET(テストデータ!CF3,87,0):OFFSET(テストデータ!CH3,87,0)) -> 0 | AM89: =SUM(OFFSET(テストデータ!CF3,87,0):OFFSET(テストデータ!CJ3,87,0)) -> 0 | AN89: =SUM(OFFSET(テストデータ!CK3,87,0):OFFSET(テストデータ!CM3,87,0)) -> 0 | AO89: =SUM(OFFSET(テストデータ!CK3,87,0):OFFSET(テストデータ!CO3,87,0)) -> 0 | AP89: =SUM(OFFSET(テストデータ!CP3,87,0):OFFSET(テストデータ!CR3,87,0)) -> 0 | AQ89: =SUM(OFFSET(テストデータ!CP3,87,0):OFFSET(テストデータ!CT3,87,0)) -> 0
N90: =SUM(OFFSET(テストデータ!$E3,88,9*成績表1!$B$4-9):OFFSET(テストデータ!$G3,88,9*成績表1!$B$4-9)) -> 0 | O90: =SUM(OFFSET(テストデータ!$E3,88,9*成績表1!$B$4-9):OFFSET(テストデータ!I3,88,9*成績表1!$B$4-9)) -> 0 | P90: =SUM(OFFSET(テストデータ!E3,88,0):OFFSET(テストデータ!G3,88,0)) -> 0 | Q90: =SUM(OFFSET(テストデータ!E3,88,0):OFFSET(テストデータ!I3,88,0)) -> 0 | R90: =SUM(OFFSET(テストデータ!N3,88,0):OFFSET(テストデータ!P3,88,0)) -> 0 | S90: =SUM(OFFSET(テストデータ!N3,88,0):OFFSET(テストデータ!R3,88,0)) -> 0 | T90: =SUM(OFFSET(テストデータ!W3,88,0):OFFSET(テストデータ!Y3,88,0)) -> 0 | U90: =SUM(OFFSET(テストデータ!W3,88,0):OFFSET(テストデータ!AA3,88,0)) -> 0 | V90: =SUM(OFFSET(テストデータ!AF3,88,0):OFFSET(テストデータ!AH3,88,0)) -> 0 | W90: =SUM(OFFSET(テストデータ!AF3,88,0):OFFSET(テストデータ!AJ3,88,0)) -> 0 | X90: =SUM(OFFSET(テストデータ!AO3,88,0):OFFSET(テストデータ!AQ3,88,0)) -> 0 | Y90: =SUM(OFFSET(テストデータ!AO3,88,0):OFFSET(テストデータ!AS3,88,0)) -> 0 | Z90: =SUM(OFFSET(テストデータ!AX3,88,0):OFFSET(テストデータ!AZ3,88,0)) -> 0 | AA90: =SUM(OFFSET(テストデータ!AX3,88,0):OFFSET(テストデータ!BB3,88,0)) -> 0 | AB90: =SUM(OFFSET(テストデータ!BG3,88,0):OFFSET(テストデータ!BI3,88,0)) -> 0 | AC90: =SUM(OFFSET(テストデータ!BG3,88,0):OFFSET(テストデータ!BK3,88,0)) -> 0 | AD90: =SUM(OFFSET(テストデータ!BL3,88,0):OFFSET(テストデータ!BN3,88,0)) -> 0 | AE90: =SUM(OFFSET(テストデータ!BL3,88,0):OFFSET(テストデータ!BP3,88,0)) -> 0 | AF90: =SUM(OFFSET(テストデータ!BQ3,88,0):OFFSET(テストデータ!BS3,88,0)) -> 0 | AG90: =SUM(OFFSET(テストデータ!BQ3,88,0):OFFSET(テストデータ!BU3,88,0)) -> 0 | AH90: =SUM(OFFSET(テストデータ!BV3,88,0):OFFSET(テストデータ!BX3,88,0)) -> 0 | AI90: =SUM(OFFSET(テストデータ!BV3,88,0):OFFSET(テストデータ!BZ3,88,0)) -> 0 | AJ90: =SUM(OFFSET(テストデータ!CA3,88,0):OFFSET(テストデータ!CC3,88,0)) -> 0 | AK90: =SUM(OFFSET(テストデータ!CA3,88,0):OFFSET(テストデータ!CE3,88,0)) -> 0 | AL90: =SUM(OFFSET(テストデータ!CF3,88,0):OFFSET(テストデータ!CH3,88,0)) -> 0 | AM90: =SUM(OFFSET(テストデータ!CF3,88,0):OFFSET(テストデータ!CJ3,88,0)) -> 0 | AN90: =SUM(OFFSET(テストデータ!CK3,88,0):OFFSET(テストデータ!CM3,88,0)) -> 0 | AO90: =SUM(OFFSET(テストデータ!CK3,88,0):OFFSET(テストデータ!CO3,88,0)) -> 0 | AP90: =SUM(OFFSET(テストデータ!CP3,88,0):OFFSET(テストデータ!CR3,88,0)) -> 0 | AQ90: =SUM(OFFSET(テストデータ!CP3,88,0):OFFSET(テストデータ!CT3,88,0)) -> 0
N91: =SUM(OFFSET(テストデータ!$E3,89,9*成績表1!$B$4-9):OFFSET(テストデータ!$G3,89,9*成績表1!$B$4-9)) -> 0 | O91: =SUM(OFFSET(テストデータ!$E3,89,9*成績表1!$B$4-9):OFFSET(テストデータ!I3,89,9*成績表1!$B$4-9)) -> 0 | P91: =SUM(OFFSET(テストデータ!E3,89,0):OFFSET(テストデータ!G3,89,0)) -> 0 | Q91: =SUM(OFFSET(テストデータ!E3,89,0):OFFSET(テストデータ!I3,89,0)) -> 0 | R91: =SUM(OFFSET(テストデータ!N3,89,0):OFFSET(テストデータ!P3,89,0)) -> 0 | S91: =SUM(OFFSET(テストデータ!N3,89,0):OFFSET(テストデータ!R3,89,0)) -> 0 | T91: =SUM(OFFSET(テストデータ!W3,89,0):OFFSET(テストデータ!Y3,89,0)) -> 0 | U91: =SUM(OFFSET(テストデータ!W3,89,0):OFFSET(テストデータ!AA3,89,0)) -> 0 | V91: =SUM(OFFSET(テストデータ!AF3,89,0):OFFSET(テストデータ!AH3,89,0)) -> 0 | W91: =SUM(OFFSET(テストデータ!AF3,89,0):OFFSET(テストデータ!AJ3,89,0)) -> 0 | X91: =SUM(OFFSET(テストデータ!AO3,89,0):OFFSET(テストデータ!AQ3,89,0)) -> 0 | Y91: =SUM(OFFSET(テストデータ!AO3,89,0):OFFSET(テストデータ!AS3,89,0)) -> 0 | Z91: =SUM(OFFSET(テストデータ!AX3,89,0):OFFSET(テストデータ!AZ3,89,0)) -> 0 | AA91: =SUM(OFFSET(テストデータ!AX3,89,0):OFFSET(テストデータ!BB3,89,0)) -> 0 | AB91: =SUM(OFFSET(テストデータ!BG3,89,0):OFFSET(テストデータ!BI3,89,0)) -> 0 | AC91: =SUM(OFFSET(テストデータ!BG3,89,0):OFFSET(テストデータ!BK3,89,0)) -> 0 | AD91: =SUM(OFFSET(テストデータ!BL3,89,0):OFFSET(テストデータ!BN3,89,0)) -> 0 | AE91: =SUM(OFFSET(テストデータ!BL3,89,0):OFFSET(テストデータ!BP3,89,0)) -> 0 | AF91: =SUM(OFFSET(テストデータ!BQ3,89,0):OFFSET(テストデータ!BS3,89,0)) -> 0 | AG91: =SUM(OFFSET(テストデータ!BQ3,89,0):OFFSET(テストデータ!BU3,89,0)) -> 0 | AH91: =SUM(OFFSET(テストデータ!BV3,89,0):OFFSET(テストデータ!BX3,89,0)) -> 0 | AI91: =SUM(OFFSET(テストデータ!BV3,89,0):OFFSET(テストデータ!BZ3,89,0)) -> 0 | AJ91: =SUM(OFFSET(テストデータ!CA3,89,0):OFFSET(テストデータ!CC3,89,0)) -> 0 | AK91: =SUM(OFFSET(テストデータ!CA3,89,0):OFFSET(テストデータ!CE3,89,0)) -> 0 | AL91: =SUM(OFFSET(テストデータ!CF3,89,0):OFFSET(テストデータ!CH3,89,0)) -> 0 | AM91: =SUM(OFFSET(テストデータ!CF3,89,0):OFFSET(テストデータ!CJ3,89,0)) -> 0 | AN91: =SUM(OFFSET(テストデータ!CK3,89,0):OFFSET(テストデータ!CM3,89,0)) -> 0 | AO91: =SUM(OFFSET(テストデータ!CK3,89,0):OFFSET(テストデータ!CO3,89,0)) -> 0 | AP91: =SUM(OFFSET(テストデータ!CP3,89,0):OFFSET(テストデータ!CR3,89,0)) -> 0 | AQ91: =SUM(OFFSET(テストデータ!CP3,89,0):OFFSET(テストデータ!CT3,89,0)) -> 0
N92: =SUM(OFFSET(テストデータ!$E3,90,9*成績表1!$B$4-9):OFFSET(テストデータ!$G3,90,9*成績表1!$B$4-9)) -> 0 | O92: =SUM(OFFSET(テストデータ!$E3,90,9*成績表1!$B$4-9):OFFSET(テストデータ!I3,90,9*成績表1!$B$4-9)) -> 0 | P92: =SUM(OFFSET(テストデータ!E3,90,0):OFFSET(テストデータ!G3,90,0)) -> 0 | Q92: =SUM(OFFSET(テストデータ!E3,90,0):OFFSET(テストデータ!I3,90,0)) -> 0 | R92: =SUM(OFFSET(テストデータ!N3,90,0):OFFSET(テストデータ!P3,90,0)) -> 0 | S92: =SUM(OFFSET(テストデータ!N3,90,0):OFFSET(テストデータ!R3,90,0)) -> 0 | T92: =SUM(OFFSET(テストデータ!W3,90,0):OFFSET(テストデータ!Y3,90,0)) -> 0 | U92: =SUM(OFFSET(テストデータ!W3,90,0):OFFSET(テストデータ!AA3,90,0)) -> 0 | V92: =SUM(OFFSET(テストデータ!AF3,90,0):OFFSET(テストデータ!AH3,90,0)) -> 0 | W92: =SUM(OFFSET(テストデータ!AF3,90,0):OFFSET(テストデータ!AJ3,90,0)) -> 0 | X92: =SUM(OFFSET(テストデータ!AO3,90,0):OFFSET(テストデータ!AQ3,90,0)) -> 0 | Y92: =SUM(OFFSET(テストデータ!AO3,90,0):OFFSET(テストデータ!AS3,90,0)) -> 0 | Z92: =SUM(OFFSET(テストデータ!AX3,90,0):OFFSET(テストデータ!AZ3,90,0)) -> 0 | AA92: =SUM(OFFSET(テストデータ!AX3,90,0):OFFSET(テストデータ!BB3,90,0)) -> 0 | AB92: =SUM(OFFSET(テストデータ!BG3,90,0):OFFSET(テストデータ!BI3,90,0)) -> 0 | AC92: =SUM(OFFSET(テストデータ!BG3,90,0):OFFSET(テストデータ!BK3,90,0)) -> 0 | AD92: =SUM(OFFSET(テストデータ!BL3,90,0):OFFSET(テストデータ!BN3,90,0)) -> 0 | AE92: =SUM(OFFSET(テストデータ!BL3,90,0):OFFSET(テストデータ!BP3,90,0)) -> 0 | AF92: =SUM(OFFSET(テストデータ!BQ3,90,0):OFFSET(テストデータ!BS3,90,0)) -> 0 | AG92: =SUM(OFFSET(テストデータ!BQ3,90,0):OFFSET(テストデータ!BU3,90,0)) -> 0 | AH92: =SUM(OFFSET(テストデータ!BV3,90,0):OFFSET(テストデータ!BX3,90,0)) -> 0 | AI92: =SUM(OFFSET(テストデータ!BV3,90,0):OFFSET(テストデータ!BZ3,90,0)) -> 0 | AJ92: =SUM(OFFSET(テストデータ!CA3,90,0):OFFSET(テストデータ!CC3,90,0)) -> 0 | AK92: =SUM(OFFSET(テストデータ!CA3,90,0):OFFSET(テストデータ!CE3,90,0)) -> 0 | AL92: =SUM(OFFSET(テストデータ!CF3,90,0):OFFSET(テストデータ!CH3,90,0)) -> 0 | AM92: =SUM(OFFSET(テストデータ!CF3,90,0):OFFSET(テストデータ!CJ3,90,0)) -> 0 | AN92: =SUM(OFFSET(テストデータ!CK3,90,0):OFFSET(テストデータ!CM3,90,0)) -> 0 | AO92: =SUM(OFFSET(テストデータ!CK3,90,0):OFFSET(テストデータ!CO3,90,0)) -> 0 | AP92: =SUM(OFFSET(テストデータ!CP3,90,0):OFFSET(テストデータ!CR3,90,0)) -> 0 | AQ92: =SUM(OFFSET(テストデータ!CP3,90,0):OFFSET(テストデータ!CT3,90,0)) -> 0
N93: =SUM(OFFSET(テストデータ!$E3,91,9*成績表1!$B$4-9):OFFSET(テストデータ!$G3,91,9*成績表1!$B$4-9)) -> 0 | O93: =SUM(OFFSET(テストデータ!$E3,91,9*成績表1!$B$4-9):OFFSET(テストデータ!I3,91,9*成績表1!$B$4-9)) -> 0 | P93: =SUM(OFFSET(テストデータ!E3,91,0):OFFSET(テストデータ!G3,91,0)) -> 0 | Q93: =SUM(OFFSET(テストデータ!E3,91,0):OFFSET(テストデータ!I3,91,0)) -> 0 | R93: =SUM(OFFSET(テストデータ!N3,91,0):OFFSET(テストデータ!P3,91,0)) -> 0 | S93: =SUM(OFFSET(テストデータ!N3,91,0):OFFSET(テストデータ!R3,91,0)) -> 0 | T93: =SUM(OFFSET(テストデータ!W3,91,0):OFFSET(テストデータ!Y3,91,0)) -> 0 | U93: =SUM(OFFSET(テストデータ!W3,91,0):OFFSET(テストデータ!AA3,91,0)) -> 0 | V93: =SUM(OFFSET(テストデータ!AF3,91,0):OFFSET(テストデータ!AH3,91,0)) -> 0 | W93: =SUM(OFFSET(テストデータ!AF3,91,0):OFFSET(テストデータ!AJ3,91,0)) -> 0 | X93: =SUM(OFFSET(テストデータ!AO3,91,0):OFFSET(テストデータ!AQ3,91,0)) -> 0 | Y93: =SUM(OFFSET(テストデータ!AO3,91,0):OFFSET(テストデータ!AS3,91,0)) -> 0 | Z93: =SUM(OFFSET(テストデータ!AX3,91,0):OFFSET(テストデータ!AZ3,91,0)) -> 0 | AA93: =SUM(OFFSET(テストデータ!AX3,91,0):OFFSET(テストデータ!BB3,91,0)) -> 0 | AB93: =SUM(OFFSET(テストデータ!BG3,91,0):OFFSET(テストデータ!BI3,91,0)) -> 0 | AC93: =SUM(OFFSET(テストデータ!BG3,91,0):OFFSET(テストデータ!BK3,91,0)) -> 0 | AD93: =SUM(OFFSET(テストデータ!BL3,91,0):OFFSET(テストデータ!BN3,91,0)) -> 0 | AE93: =SUM(OFFSET(テストデータ!BL3,91,0):OFFSET(テストデータ!BP3,91,0)) -> 0 | AF93: =SUM(OFFSET(テストデータ!BQ3,91,0):OFFSET(テストデータ!BS3,91,0)) -> 0 | AG93: =SUM(OFFSET(テストデータ!BQ3,91,0):OFFSET(テストデータ!BU3,91,0)) -> 0 | AH93: =SUM(OFFSET(テストデータ!BV3,91,0):OFFSET(テストデータ!BX3,91,0)) -> 0 | AI93: =SUM(OFFSET(テストデータ!BV3,91,0):OFFSET(テストデータ!BZ3,91,0)) -> 0 | AJ93: =SUM(OFFSET(テストデータ!CA3,91,0):OFFSET(テストデータ!CC3,91,0)) -> 0 | AK93: =SUM(OFFSET(テストデータ!CA3,91,0):OFFSET(テストデータ!CE3,91,0)) -> 0 | AL93: =SUM(OFFSET(テストデータ!CF3,91,0):OFFSET(テストデータ!CH3,91,0)) -> 0 | AM93: =SUM(OFFSET(テストデータ!CF3,91,0):OFFSET(テストデータ!CJ3,91,0)) -> 0 | AN93: =SUM(OFFSET(テストデータ!CK3,91,0):OFFSET(テストデータ!CM3,91,0)) -> 0 | AO93: =SUM(OFFSET(テストデータ!CK3,91,0):OFFSET(テストデータ!CO3,91,0)) -> 0 | AP93: =SUM(OFFSET(テストデータ!CP3,91,0):OFFSET(テストデータ!CR3,91,0)) -> 0 | AQ93: =SUM(OFFSET(テストデータ!CP3,91,0):OFFSET(テストデータ!CT3,91,0)) -> 0
N94: =SUM(OFFSET(テストデータ!$E3,92,9*成績表1!$B$4-9):OFFSET(テストデータ!$G3,92,9*成績表1!$B$4-9)) -> 0 | O94: =SUM(OFFSET(テストデータ!$E3,92,9*成績表1!$B$4-9):OFFSET(テストデータ!I3,92,9*成績表1!$B$4-9)) -> 0 | P94: =SUM(OFFSET(テストデータ!E3,92,0):OFFSET(テストデータ!G3,92,0)) -> 0 | Q94: =SUM(OFFSET(テストデータ!E3,92,0):OFFSET(テストデータ!I3,92,0)) -> 0 | R94: =SUM(OFFSET(テストデータ!N3,92,0):OFFSET(テストデータ!P3,92,0)) -> 0 | S94: =SUM(OFFSET(テストデータ!N3,92,0):OFFSET(テストデータ!R3,92,0)) -> 0 | T94: =SUM(OFFSET(テストデータ!W3,92,0):OFFSET(テストデータ!Y3,92,0)) -> 0 | U94: =SUM(OFFSET(テストデータ!W3,92,0):OFFSET(テストデータ!AA3,92,0)) -> 0 | V94: =SUM(OFFSET(テストデータ!AF3,92,0):OFFSET(テストデータ!AH3,92,0)) -> 0 | W94: =SUM(OFFSET(テストデータ!AF3,92,0):OFFSET(テストデータ!AJ3,92,0)) -> 0 | X94: =SUM(OFFSET(テストデータ!AO3,92,0):OFFSET(テストデータ!AQ3,92,0)) -> 0 | Y94: =SUM(OFFSET(テストデータ!AO3,92,0):OFFSET(テストデータ!AS3,92,0)) -> 0 | Z94: =SUM(OFFSET(テストデータ!AX3,92,0):OFFSET(テストデータ!AZ3,92,0)) -> 0 | AA94: =SUM(OFFSET(テストデータ!AX3,92,0):OFFSET(テストデータ!BB3,92,0)) -> 0 | AB94: =SUM(OFFSET(テストデータ!BG3,92,0):OFFSET(テストデータ!BI3,92,0)) -> 0 | AC94: =SUM(OFFSET(テストデータ!BG3,92,0):OFFSET(テストデータ!BK3,92,0)) -> 0 | AD94: =SUM(OFFSET(テストデータ!BL3,92,0):OFFSET(テストデータ!BN3,92,0)) -> 0 | AE94: =SUM(OFFSET(テストデータ!BL3,92,0):OFFSET(テストデータ!BP3,92,0)) -> 0 | AF94: =SUM(OFFSET(テストデータ!BQ3,92,0):OFFSET(テストデータ!BS3,92,0)) -> 0 | AG94: =SUM(OFFSET(テストデータ!BQ3,92,0):OFFSET(テストデータ!BU3,92,0)) -> 0 | AH94: =SUM(OFFSET(テストデータ!BV3,92,0):OFFSET(テストデータ!BX3,92,0)) -> 0 | AI94: =SUM(OFFSET(テストデータ!BV3,92,0):OFFSET(テストデータ!BZ3,92,0)) -> 0 | AJ94: =SUM(OFFSET(テストデータ!CA3,92,0):OFFSET(テストデータ!CC3,92,0)) -> 0 | AK94: =SUM(OFFSET(テストデータ!CA3,92,0):OFFSET(テストデータ!CE3,92,0)) -> 0 | AL94: =SUM(OFFSET(テストデータ!CF3,92,0):OFFSET(テストデータ!CH3,92,0)) -> 0 | AM94: =SUM(OFFSET(テストデータ!CF3,92,0):OFFSET(テストデータ!CJ3,92,0)) -> 0 | AN94: =SUM(OFFSET(テストデータ!CK3,92,0):OFFSET(テストデータ!CM3,92,0)) -> 0 | AO94: =SUM(OFFSET(テストデータ!CK3,92,0):OFFSET(テストデータ!CO3,92,0)) -> 0 | AP94: =SUM(OFFSET(テストデータ!CP3,92,0):OFFSET(テストデータ!CR3,92,0)) -> 0 | AQ94: =SUM(OFFSET(テストデータ!CP3,92,0):OFFSET(テストデータ!CT3,92,0)) -> 0
N95: =SUM(OFFSET(テストデータ!$E3,93,9*成績表1!$B$4-9):OFFSET(テストデータ!$G3,93,9*成績表1!$B$4-9)) -> 0 | O95: =SUM(OFFSET(テストデータ!$E3,93,9*成績表1!$B$4-9):OFFSET(テストデータ!I3,93,9*成績表1!$B$4-9)) -> 0 | P95: =SUM(OFFSET(テストデータ!E3,93,0):OFFSET(テストデータ!G3,93,0)) -> 0 | Q95: =SUM(OFFSET(テストデータ!E3,93,0):OFFSET(テストデータ!I3,93,0)) -> 0 | R95: =SUM(OFFSET(テストデータ!N3,93,0):OFFSET(テストデータ!P3,93,0)) -> 0 | S95: =SUM(OFFSET(テストデータ!N3,93,0):OFFSET(テストデータ!R3,93,0)) -> 0 | T95: =SUM(OFFSET(テストデータ!W3,93,0):OFFSET(テストデータ!Y3,93,0)) -> 0 | U95: =SUM(OFFSET(テストデータ!W3,93,0):OFFSET(テストデータ!AA3,93,0)) -> 0 | V95: =SUM(OFFSET(テストデータ!AF3,93,0):OFFSET(テストデータ!AH3,93,0)) -> 0 | W95: =SUM(OFFSET(テストデータ!AF3,93,0):OFFSET(テストデータ!AJ3,93,0)) -> 0 | X95: =SUM(OFFSET(テストデータ!AO3,93,0):OFFSET(テストデータ!AQ3,93,0)) -> 0 | Y95: =SUM(OFFSET(テストデータ!AO3,93,0):OFFSET(テストデータ!AS3,93,0)) -> 0 | Z95: =SUM(OFFSET(テストデータ!AX3,93,0):OFFSET(テストデータ!AZ3,93,0)) -> 0 | AA95: =SUM(OFFSET(テストデータ!AX3,93,0):OFFSET(テストデータ!BB3,93,0)) -> 0 | AB95: =SUM(OFFSET(テストデータ!BG3,93,0):OFFSET(テストデータ!BI3,93,0)) -> 0 | AC95: =SUM(OFFSET(テストデータ!BG3,93,0):OFFSET(テストデータ!BK3,93,0)) -> 0 | AD95: =SUM(OFFSET(テストデータ!BL3,93,0):OFFSET(テストデータ!BN3,93,0)) -> 0 | AE95: =SUM(OFFSET(テストデータ!BL3,93,0):OFFSET(テストデータ!BP3,93,0)) -> 0 | AF95: =SUM(OFFSET(テストデータ!BQ3,93,0):OFFSET(テストデータ!BS3,93,0)) -> 0 | AG95: =SUM(OFFSET(テストデータ!BQ3,93,0):OFFSET(テストデータ!BU3,93,0)) -> 0 | AH95: =SUM(OFFSET(テストデータ!BV3,93,0):OFFSET(テストデータ!BX3,93,0)) -> 0 | AI95: =SUM(OFFSET(テストデータ!BV3,93,0):OFFSET(テストデータ!BZ3,93,0)) -> 0 | AJ95: =SUM(OFFSET(テストデータ!CA3,93,0):OFFSET(テストデータ!CC3,93,0)) -> 0 | AK95: =SUM(OFFSET(テストデータ!CA3,93,0):OFFSET(テストデータ!CE3,93,0)) -> 0 | AL95: =SUM(OFFSET(テストデータ!CF3,93,0):OFFSET(テストデータ!CH3,93,0)) -> 0 | AM95: =SUM(OFFSET(テストデータ!CF3,93,0):OFFSET(テストデータ!CJ3,93,0)) -> 0 | AN95: =SUM(OFFSET(テストデータ!CK3,93,0):OFFSET(テストデータ!CM3,93,0)) -> 0 | AO95: =SUM(OFFSET(テストデータ!CK3,93,0):OFFSET(テストデータ!CO3,93,0)) -> 0 | AP95: =SUM(OFFSET(テストデータ!CP3,93,0):OFFSET(テストデータ!CR3,93,0)) -> 0 | AQ95: =SUM(OFFSET(テストデータ!CP3,93,0):OFFSET(テストデータ!CT3,93,0)) -> 0
N96: =SUM(OFFSET(テストデータ!$E3,94,9*成績表1!$B$4-9):OFFSET(テストデータ!$G3,94,9*成績表1!$B$4-9)) -> 0 | O96: =SUM(OFFSET(テストデータ!$E3,94,9*成績表1!$B$4-9):OFFSET(テストデータ!I3,94,9*成績表1!$B$4-9)) -> 0 | P96: =SUM(OFFSET(テストデータ!E3,94,0):OFFSET(テストデータ!G3,94,0)) -> 0 | Q96: =SUM(OFFSET(テストデータ!E3,94,0):OFFSET(テストデータ!I3,94,0)) -> 0 | R96: =SUM(OFFSET(テストデータ!N3,94,0):OFFSET(テストデータ!P3,94,0)) -> 0 | S96: =SUM(OFFSET(テストデータ!N3,94,0):OFFSET(テストデータ!R3,94,0)) -> 0 | T96: =SUM(OFFSET(テストデータ!W3,94,0):OFFSET(テストデータ!Y3,94,0)) -> 0 | U96: =SUM(OFFSET(テストデータ!W3,94,0):OFFSET(テストデータ!AA3,94,0)) -> 0 | V96: =SUM(OFFSET(テストデータ!AF3,94,0):OFFSET(テストデータ!AH3,94,0)) -> 0 | W96: =SUM(OFFSET(テストデータ!AF3,94,0):OFFSET(テストデータ!AJ3,94,0)) -> 0 | X96: =SUM(OFFSET(テストデータ!AO3,94,0):OFFSET(テストデータ!AQ3,94,0)) -> 0 | Y96: =SUM(OFFSET(テストデータ!AO3,94,0):OFFSET(テストデータ!AS3,94,0)) -> 0 | Z96: =SUM(OFFSET(テストデータ!AX3,94,0):OFFSET(テストデータ!AZ3,94,0)) -> 0 | AA96: =SUM(OFFSET(テストデータ!AX3,94,0):OFFSET(テストデータ!BB3,94,0)) -> 0 | AB96: =SUM(OFFSET(テストデータ!BG3,94,0):OFFSET(テストデータ!BI3,94,0)) -> 0 | AC96: =SUM(OFFSET(テストデータ!BG3,94,0):OFFSET(テストデータ!BK3,94,0)) -> 0 | AD96: =SUM(OFFSET(テストデータ!BL3,94,0):OFFSET(テストデータ!BN3,94,0)) -> 0 | AE96: =SUM(OFFSET(テストデータ!BL3,94,0):OFFSET(テストデータ!BP3,94,0)) -> 0 | AF96: =SUM(OFFSET(テストデータ!BQ3,94,0):OFFSET(テストデータ!BS3,94,0)) -> 0 | AG96: =SUM(OFFSET(テストデータ!BQ3,94,0):OFFSET(テストデータ!BU3,94,0)) -> 0 | AH96: =SUM(OFFSET(テストデータ!BV3,94,0):OFFSET(テストデータ!BX3,94,0)) -> 0 | AI96: =SUM(OFFSET(テストデータ!BV3,94,0):OFFSET(テストデータ!BZ3,94,0)) -> 0 | AJ96: =SUM(OFFSET(テストデータ!CA3,94,0):OFFSET(テストデータ!CC3,94,0)) -> 0 | AK96: =SUM(OFFSET(テストデータ!CA3,94,0):OFFSET(テストデータ!CE3,94,0)) -> 0 | AL96: =SUM(OFFSET(テストデータ!CF3,94,0):OFFSET(テストデータ!CH3,94,0)) -> 0 | AM96: =SUM(OFFSET(テストデータ!CF3,94,0):OFFSET(テストデータ!CJ3,94,0)) -> 0 | AN96: =SUM(OFFSET(テストデータ!CK3,94,0):OFFSET(テストデータ!CM3,94,0)) -> 0 | AO96: =SUM(OFFSET(テストデータ!CK3,94,0):OFFSET(テストデータ!CO3,94,0)) -> 0 | AP96: =SUM(OFFSET(テストデータ!CP3,94,0):OFFSET(テストデータ!CR3,94,0)) -> 0 | AQ96: =SUM(OFFSET(テストデータ!CP3,94,0):OFFSET(テストデータ!CT3,94,0)) -> 0
N97: =SUM(OFFSET(テストデータ!$E3,95,9*成績表1!$B$4-9):OFFSET(テストデータ!$G3,95,9*成績表1!$B$4-9)) -> 0 | O97: =SUM(OFFSET(テストデータ!$E3,95,9*成績表1!$B$4-9):OFFSET(テストデータ!I3,95,9*成績表1!$B$4-9)) -> 0 | P97: =SUM(OFFSET(テストデータ!E3,95,0):OFFSET(テストデータ!G3,95,0)) -> 0 | Q97: =SUM(OFFSET(テストデータ!E3,95,0):OFFSET(テストデータ!I3,95,0)) -> 0 | R97: =SUM(OFFSET(テストデータ!N3,95,0):OFFSET(テストデータ!P3,95,0)) -> 0 | S97: =SUM(OFFSET(テストデータ!N3,95,0):OFFSET(テストデータ!R3,95,0)) -> 0 | T97: =SUM(OFFSET(テストデータ!W3,95,0):OFFSET(テストデータ!Y3,95,0)) -> 0 | U97: =SUM(OFFSET(テストデータ!W3,95,0):OFFSET(テストデータ!AA3,95,0)) -> 0 | V97: =SUM(OFFSET(テストデータ!AF3,95,0):OFFSET(テストデータ!AH3,95,0)) -> 0 | W97: =SUM(OFFSET(テストデータ!AF3,95,0):OFFSET(テストデータ!AJ3,95,0)) -> 0 | X97: =SUM(OFFSET(テストデータ!AO3,95,0):OFFSET(テストデータ!AQ3,95,0)) -> 0 | Y97: =SUM(OFFSET(テストデータ!AO3,95,0):OFFSET(テストデータ!AS3,95,0)) -> 0 | Z97: =SUM(OFFSET(テストデータ!AX3,95,0):OFFSET(テストデータ!AZ3,95,0)) -> 0 | AA97: =SUM(OFFSET(テストデータ!AX3,95,0):OFFSET(テストデータ!BB3,95,0)) -> 0 | AB97: =SUM(OFFSET(テストデータ!BG3,95,0):OFFSET(テストデータ!BI3,95,0)) -> 0 | AC97: =SUM(OFFSET(テストデータ!BG3,95,0):OFFSET(テストデータ!BK3,95,0)) -> 0 | AD97: =SUM(OFFSET(テストデータ!BL3,95,0):OFFSET(テストデータ!BN3,95,0)) -> 0 | AE97: =SUM(OFFSET(テストデータ!BL3,95,0):OFFSET(テストデータ!BP3,95,0)) -> 0 | AF97: =SUM(OFFSET(テストデータ!BQ3,95,0):OFFSET(テストデータ!BS3,95,0)) -> 0 | AG97: =SUM(OFFSET(テストデータ!BQ3,95,0):OFFSET(テストデータ!BU3,95,0)) -> 0 | AH97: =SUM(OFFSET(テストデータ!BV3,95,0):OFFSET(テストデータ!BX3,95,0)) -> 0 | AI97: =SUM(OFFSET(テストデータ!BV3,95,0):OFFSET(テストデータ!BZ3,95,0)) -> 0 | AJ97: =SUM(OFFSET(テストデータ!CA3,95,0):OFFSET(テストデータ!CC3,95,0)) -> 0 | AK97: =SUM(OFFSET(テストデータ!CA3,95,0):OFFSET(テストデータ!CE3,95,0)) -> 0 | AL97: =SUM(OFFSET(テストデータ!CF3,95,0):OFFSET(テストデータ!CH3,95,0)) -> 0 | AM97: =SUM(OFFSET(テストデータ!CF3,95,0):OFFSET(テストデータ!CJ3,95,0)) -> 0 | AN97: =SUM(OFFSET(テストデータ!CK3,95,0):OFFSET(テストデータ!CM3,95,0)) -> 0 | AO97: =SUM(OFFSET(テストデータ!CK3,95,0):OFFSET(テストデータ!CO3,95,0)) -> 0 | AP97: =SUM(OFFSET(テストデータ!CP3,95,0):OFFSET(テストデータ!CR3,95,0)) -> 0 | AQ97: =SUM(OFFSET(テストデータ!CP3,95,0):OFFSET(テストデータ!CT3,95,0)) -> 0
N98: =SUM(OFFSET(テストデータ!$E3,96,9*成績表1!$B$4-9):OFFSET(テストデータ!$G3,96,9*成績表1!$B$4-9)) -> 0 | O98: =SUM(OFFSET(テストデータ!$E3,96,9*成績表1!$B$4-9):OFFSET(テストデータ!I3,96,9*成績表1!$B$4-9)) -> 0 | P98: =SUM(OFFSET(テストデータ!E3,96,0):OFFSET(テストデータ!G3,96,0)) -> 0 | Q98: =SUM(OFFSET(テストデータ!E3,96,0):OFFSET(テストデータ!I3,96,0)) -> 0 | R98: =SUM(OFFSET(テストデータ!N3,96,0):OFFSET(テストデータ!P3,96,0)) -> 0 | S98: =SUM(OFFSET(テストデータ!N3,96,0):OFFSET(テストデータ!R3,96,0)) -> 0 | T98: =SUM(OFFSET(テストデータ!W3,96,0):OFFSET(テストデータ!Y3,96,0)) -> 0 | U98: =SUM(OFFSET(テストデータ!W3,96,0):OFFSET(テストデータ!AA3,96,0)) -> 0 | V98: =SUM(OFFSET(テストデータ!AF3,96,0):OFFSET(テストデータ!AH3,96,0)) -> 0 | W98: =SUM(OFFSET(テストデータ!AF3,96,0):OFFSET(テストデータ!AJ3,96,0)) -> 0 | X98: =SUM(OFFSET(テストデータ!AO3,96,0):OFFSET(テストデータ!AQ3,96,0)) -> 0 | Y98: =SUM(OFFSET(テストデータ!AO3,96,0):OFFSET(テストデータ!AS3,96,0)) -> 0 | Z98: =SUM(OFFSET(テストデータ!AX3,96,0):OFFSET(テストデータ!AZ3,96,0)) -> 0 | AA98: =SUM(OFFSET(テストデータ!AX3,96,0):OFFSET(テストデータ!BB3,96,0)) -> 0 | AB98: =SUM(OFFSET(テストデータ!BG3,96,0):OFFSET(テストデータ!BI3,96,0)) -> 0 | AC98: =SUM(OFFSET(テストデータ!BG3,96,0):OFFSET(テストデータ!BK3,96,0)) -> 0 | AD98: =SUM(OFFSET(テストデータ!BL3,96,0):OFFSET(テストデータ!BN3,96,0)) -> 0 | AE98: =SUM(OFFSET(テストデータ!BL3,96,0):OFFSET(テストデータ!BP3,96,0)) -> 0 | AF98: =SUM(OFFSET(テストデータ!BQ3,96,0):OFFSET(テストデータ!BS3,96,0)) -> 0 | AG98: =SUM(OFFSET(テストデータ!BQ3,96,0):OFFSET(テストデータ!BU3,96,0)) -> 0 | AH98: =SUM(OFFSET(テストデータ!BV3,96,0):OFFSET(テストデータ!BX3,96,0)) -> 0 | AI98: =SUM(OFFSET(テストデータ!BV3,96,0):OFFSET(テストデータ!BZ3,96,0)) -> 0 | AJ98: =SUM(OFFSET(テストデータ!CA3,96,0):OFFSET(テストデータ!CC3,96,0)) -> 0 | AK98: =SUM(OFFSET(テストデータ!CA3,96,0):OFFSET(テストデータ!CE3,96,0)) -> 0 | AL98: =SUM(OFFSET(テストデータ!CF3,96,0):OFFSET(テストデータ!CH3,96,0)) -> 0 | AM98: =SUM(OFFSET(テストデータ!CF3,96,0):OFFSET(テストデータ!CJ3,96,0)) -> 0 | AN98: =SUM(OFFSET(テストデータ!CK3,96,0):OFFSET(テストデータ!CM3,96,0)) -> 0 | AO98: =SUM(OFFSET(テストデータ!CK3,96,0):OFFSET(テストデータ!CO3,96,0)) -> 0 | AP98: =SUM(OFFSET(テストデータ!CP3,96,0):OFFSET(テストデータ!CR3,96,0)) -> 0 | AQ98: =SUM(OFFSET(テストデータ!CP3,96,0):OFFSET(テストデータ!CT3,96,0)) -> 0
N99: =SUM(OFFSET(テストデータ!$E3,97,9*成績表1!$B$4-9):OFFSET(テストデータ!$G3,97,9*成績表1!$B$4-9)) -> 0 | O99: =SUM(OFFSET(テストデータ!$E3,97,9*成績表1!$B$4-9):OFFSET(テストデータ!I3,97,9*成績表1!$B$4-9)) -> 0 | P99: =SUM(OFFSET(テストデータ!E3,97,0):OFFSET(テストデータ!G3,97,0)) -> 0 | Q99: =SUM(OFFSET(テストデータ!E3,97,0):OFFSET(テストデータ!I3,97,0)) -> 0 | R99: =SUM(OFFSET(テストデータ!N3,97,0):OFFSET(テストデータ!P3,97,0)) -> 0 | S99: =SUM(OFFSET(テストデータ!N3,97,0):OFFSET(テストデータ!R3,97,0)) -> 0 | T99: =SUM(OFFSET(テストデータ!W3,97,0):OFFSET(テストデータ!Y3,97,0)) -> 0 | U99: =SUM(OFFSET(テストデータ!W3,97,0):OFFSET(テストデータ!AA3,97,0)) -> 0 | V99: =SUM(OFFSET(テストデータ!AF3,97,0):OFFSET(テストデータ!AH3,97,0)) -> 0 | W99: =SUM(OFFSET(テストデータ!AF3,97,0):OFFSET(テストデータ!AJ3,97,0)) -> 0 | X99: =SUM(OFFSET(テストデータ!AO3,97,0):OFFSET(テストデータ!AQ3,97,0)) -> 0 | Y99: =SUM(OFFSET(テストデータ!AO3,97,0):OFFSET(テストデータ!AS3,97,0)) -> 0 | Z99: =SUM(OFFSET(テストデータ!AX3,97,0):OFFSET(テストデータ!AZ3,97,0)) -> 0 | AA99: =SUM(OFFSET(テストデータ!AX3,97,0):OFFSET(テストデータ!BB3,97,0)) -> 0 | AB99: =SUM(OFFSET(テストデータ!BG3,97,0):OFFSET(テストデータ!BI3,97,0)) -> 0 | AC99: =SUM(OFFSET(テストデータ!BG3,97,0):OFFSET(テストデータ!BK3,97,0)) -> 0 | AD99: =SUM(OFFSET(テストデータ!BL3,97,0):OFFSET(テストデータ!BN3,97,0)) -> 0 | AE99: =SUM(OFFSET(テストデータ!BL3,97,0):OFFSET(テストデータ!BP3,97,0)) -> 0 | AF99: =SUM(OFFSET(テストデータ!BQ3,97,0):OFFSET(テストデータ!BS3,97,0)) -> 0 | AG99: =SUM(OFFSET(テストデータ!BQ3,97,0):OFFSET(テストデータ!BU3,97,0)) -> 0 | AH99: =SUM(OFFSET(テストデータ!BV3,97,0):OFFSET(テストデータ!BX3,97,0)) -> 0 | AI99: =SUM(OFFSET(テストデータ!BV3,97,0):OFFSET(テストデータ!BZ3,97,0)) -> 0 | AJ99: =SUM(OFFSET(テストデータ!CA3,97,0):OFFSET(テストデータ!CC3,97,0)) -> 0 | AK99: =SUM(OFFSET(テストデータ!CA3,97,0):OFFSET(テストデータ!CE3,97,0)) -> 0 | AL99: =SUM(OFFSET(テストデータ!CF3,97,0):OFFSET(テストデータ!CH3,97,0)) -> 0 | AM99: =SUM(OFFSET(テストデータ!CF3,97,0):OFFSET(テストデータ!CJ3,97,0)) -> 0 | AN99: =SUM(OFFSET(テストデータ!CK3,97,0):OFFSET(テストデータ!CM3,97,0)) -> 0 | AO99: =SUM(OFFSET(テストデータ!CK3,97,0):OFFSET(テストデータ!CO3,97,0)) -> 0 | AP99: =SUM(OFFSET(テストデータ!CP3,97,0):OFFSET(テストデータ!CR3,97,0)) -> 0 | AQ99: =SUM(OFFSET(テストデータ!CP3,97,0):OFFSET(テストデータ!CT3,97,0)) -> 0
N100: =SUM(OFFSET(テストデータ!$E3,98,9*成績表1!$B$4-9):OFFSET(テストデータ!$G3,98,9*成績表1!$B$4-9)) -> 0 | O100: =SUM(OFFSET(テストデータ!$E3,98,9*成績表1!$B$4-9):OFFSET(テストデータ!I3,98,9*成績表1!$B$4-9)) -> 0 | P100: =SUM(OFFSET(テストデータ!E3,98,0):OFFSET(テストデータ!G3,98,0)) -> 0 | Q100: =SUM(OFFSET(テストデータ!E3,98,0):OFFSET(テストデータ!I3,98,0)) -> 0 | R100: =SUM(OFFSET(テストデータ!N3,98,0):OFFSET(テストデータ!P3,98,0)) -> 0 | S100: =SUM(OFFSET(テストデータ!N3,98,0):OFFSET(テストデータ!R3,98,0)) -> 0 | T100: =SUM(OFFSET(テストデータ!W3,98,0):OFFSET(テストデータ!Y3,98,0)) -> 0 | U100: =SUM(OFFSET(テストデータ!W3,98,0):OFFSET(テストデータ!AA3,98,0)) -> 0 | V100: =SUM(OFFSET(テストデータ!AF3,98,0):OFFSET(テストデータ!AH3,98,0)) -> 0 | W100: =SUM(OFFSET(テストデータ!AF3,98,0):OFFSET(テストデータ!AJ3,98,0)) -> 0 | X100: =SUM(OFFSET(テストデータ!AO3,98,0):OFFSET(テストデータ!AQ3,98,0)) -> 0 | Y100: =SUM(OFFSET(テストデータ!AO3,98,0):OFFSET(テストデータ!AS3,98,0)) -> 0 | Z100: =SUM(OFFSET(テストデータ!AX3,98,0):OFFSET(テストデータ!AZ3,98,0)) -> 0 | AA100: =SUM(OFFSET(テストデータ!AX3,98,0):OFFSET(テストデータ!BB3,98,0)) -> 0 | AB100: =SUM(OFFSET(テストデータ!BG3,98,0):OFFSET(テストデータ!BI3,98,0)) -> 0 | AC100: =SUM(OFFSET(テストデータ!BG3,98,0):OFFSET(テストデータ!BK3,98,0)) -> 0 | AD100: =SUM(OFFSET(テストデータ!BL3,98,0):OFFSET(テストデータ!BN3,98,0)) -> 0 | AE100: =SUM(OFFSET(テストデータ!BL3,98,0):OFFSET(テストデータ!BP3,98,0)) -> 0 | AF100: =SUM(OFFSET(テストデータ!BQ3,98,0):OFFSET(テストデータ!BS3,98,0)) -> 0 | AG100: =SUM(OFFSET(テストデータ!BQ3,98,0):OFFSET(テストデータ!BU3,98,0)) -> 0 | AH100: =SUM(OFFSET(テストデータ!BV3,98,0):OFFSET(テストデータ!BX3,98,0)) -> 0 | AI100: =SUM(OFFSET(テストデータ!BV3,98,0):OFFSET(テストデータ!BZ3,98,0)) -> 0 | AJ100: =SUM(OFFSET(テストデータ!CA3,98,0):OFFSET(テストデータ!CC3,98,0)) -> 0 | AK100: =SUM(OFFSET(テストデータ!CA3,98,0):OFFSET(テストデータ!CE3,98,0)) -> 0 | AL100: =SUM(OFFSET(テストデータ!CF3,98,0):OFFSET(テストデータ!CH3,98,0)) -> 0 | AM100: =SUM(OFFSET(テストデータ!CF3,98,0):OFFSET(テストデータ!CJ3,98,0)) -> 0 | AN100: =SUM(OFFSET(テストデータ!CK3,98,0):OFFSET(テストデータ!CM3,98,0)) -> 0 | AO100: =SUM(OFFSET(テストデータ!CK3,98,0):OFFSET(テストデータ!CO3,98,0)) -> 0 | AP100: =SUM(OFFSET(テストデータ!CP3,98,0):OFFSET(テストデータ!CR3,98,0)) -> 0 | AQ100: =SUM(OFFSET(テストデータ!CP3,98,0):OFFSET(テストデータ!CT3,98,0)) -> 0
N101: =SUM(OFFSET(テストデータ!$E3,99,9*成績表1!$B$4-9):OFFSET(テストデータ!$G3,99,9*成績表1!$B$4-9)) -> 0 | O101: =SUM(OFFSET(テストデータ!$E3,99,9*成績表1!$B$4-9):OFFSET(テストデータ!I3,99,9*成績表1!$B$4-9)) -> 0 | P101: =SUM(OFFSET(テストデータ!E3,99,0):OFFSET(テストデータ!G3,99,0)) -> 0 | Q101: =SUM(OFFSET(テストデータ!E3,99,0):OFFSET(テストデータ!I3,99,0)) -> 0 | R101: =SUM(OFFSET(テストデータ!N3,99,0):OFFSET(テストデータ!P3,99,0)) -> 0 | S101: =SUM(OFFSET(テストデータ!N3,99,0):OFFSET(テストデータ!R3,99,0)) -> 0 | T101: =SUM(OFFSET(テストデータ!W3,99,0):OFFSET(テストデータ!Y3,99,0)) -> 0 | U101: =SUM(OFFSET(テストデータ!W3,99,0):OFFSET(テストデータ!AA3,99,0)) -> 0 | V101: =SUM(OFFSET(テストデータ!AF3,99,0):OFFSET(テストデータ!AH3,99,0)) -> 0 | W101: =SUM(OFFSET(テストデータ!AF3,99,0):OFFSET(テストデータ!AJ3,99,0)) -> 0 | X101: =SUM(OFFSET(テストデータ!AO3,99,0):OFFSET(テストデータ!AQ3,99,0)) -> 0 | Y101: =SUM(OFFSET(テストデータ!AO3,99,0):OFFSET(テストデータ!AS3,99,0)) -> 0 | Z101: =SUM(OFFSET(テストデータ!AX3,99,0):OFFSET(テストデータ!AZ3,99,0)) -> 0 | AA101: =SUM(OFFSET(テストデータ!AX3,99,0):OFFSET(テストデータ!BB3,99,0)) -> 0 | AB101: =SUM(OFFSET(テストデータ!BG3,99,0):OFFSET(テストデータ!BI3,99,0)) -> 0 | AC101: =SUM(OFFSET(テストデータ!BG3,99,0):OFFSET(テストデータ!BK3,99,0)) -> 0 | AD101: =SUM(OFFSET(テストデータ!BL3,99,0):OFFSET(テストデータ!BN3,99,0)) -> 0 | AE101: =SUM(OFFSET(テストデータ!BL3,99,0):OFFSET(テストデータ!BP3,99,0)) -> 0 | AF101: =SUM(OFFSET(テストデータ!BQ3,99,0):OFFSET(テストデータ!BS3,99,0)) -> 0 | AG101: =SUM(OFFSET(テストデータ!BQ3,99,0):OFFSET(テストデータ!BU3,99,0)) -> 0 | AH101: =SUM(OFFSET(テストデータ!BV3,99,0):OFFSET(テストデータ!BX3,99,0)) -> 0 | AI101: =SUM(OFFSET(テストデータ!BV3,99,0):OFFSET(テストデータ!BZ3,99,0)) -> 0 | AJ101: =SUM(OFFSET(テストデータ!CA3,99,0):OFFSET(テストデータ!CC3,99,0)) -> 0 | AK101: =SUM(OFFSET(テストデータ!CA3,99,0):OFFSET(テストデータ!CE3,99,0)) -> 0 | AL101: =SUM(OFFSET(テストデータ!CF3,99,0):OFFSET(テストデータ!CH3,99,0)) -> 0 | AM101: =SUM(OFFSET(テストデータ!CF3,99,0):OFFSET(テストデータ!CJ3,99,0)) -> 0 | AN101: =SUM(OFFSET(テストデータ!CK3,99,0):OFFSET(テストデータ!CM3,99,0)) -> 0 | AO101: =SUM(OFFSET(テストデータ!CK3,99,0):OFFSET(テストデータ!CO3,99,0)) -> 0 | AP101: =SUM(OFFSET(テストデータ!CP3,99,0):OFFSET(テストデータ!CR3,99,0)) -> 0 | AQ101: =SUM(OFFSET(テストデータ!CP3,99,0):OFFSET(テストデータ!CT3,99,0)) -> 0
N102: =SUM(OFFSET(テストデータ!$E3,100,9*成績表1!$B$4-9):OFFSET(テストデータ!$G3,100,9*成績表1!$B$4-9)) -> 0 | O102: =SUM(OFFSET(テストデータ!$E3,100,9*成績表1!$B$4-9):OFFSET(テストデータ!I3,100,9*成績表1!$B$4-9)) -> 0 | P102: =SUM(OFFSET(テストデータ!E3,100,0):OFFSET(テストデータ!G3,100,0)) -> 0 | Q102: =SUM(OFFSET(テストデータ!E3,100,0):OFFSET(テストデータ!I3,100,0)) -> 0 | R102: =SUM(OFFSET(テストデータ!N3,100,0):OFFSET(テストデータ!P3,100,0)) -> 0 | S102: =SUM(OFFSET(テストデータ!N3,100,0):OFFSET(テストデータ!R3,100,0)) -> 0 | T102: =SUM(OFFSET(テストデータ!W3,100,0):OFFSET(テストデータ!Y3,100,0)) -> 0 | U102: =SUM(OFFSET(テストデータ!W3,100,0):OFFSET(テストデータ!AA3,100,0)) -> 0 | V102: =SUM(OFFSET(テストデータ!AF3,100,0):OFFSET(テストデータ!AH3,100,0)) -> 0 | W102: =SUM(OFFSET(テストデータ!AF3,100,0):OFFSET(テストデータ!AJ3,100,0)) -> 0 | X102: =SUM(OFFSET(テストデータ!AO3,100,0):OFFSET(テストデータ!AQ3,100,0)) -> 0 | Y102: =SUM(OFFSET(テストデータ!AO3,100,0):OFFSET(テストデータ!AS3,100,0)) -> 0 | Z102: =SUM(OFFSET(テストデータ!AX3,100,0):OFFSET(テストデータ!AZ3,100,0)) -> 0 | AA102: =SUM(OFFSET(テストデータ!AX3,100,0):OFFSET(テストデータ!BB3,100,0)) -> 0 | AB102: =SUM(OFFSET(テストデータ!BG3,100,0):OFFSET(テストデータ!BI3,100,0)) -> 0 | AC102: =SUM(OFFSET(テストデータ!BG3,100,0):OFFSET(テストデータ!BK3,100,0)) -> 0 | AD102: =SUM(OFFSET(テストデータ!BL3,100,0):OFFSET(テストデータ!BN3,100,0)) -> 0 | AE102: =SUM(OFFSET(テストデータ!BL3,100,0):OFFSET(テストデータ!BP3,100,0)) -> 0 | AF102: =SUM(OFFSET(テストデータ!BQ3,100,0):OFFSET(テストデータ!BS3,100,0)) -> 0 | AG102: =SUM(OFFSET(テストデータ!BQ3,100,0):OFFSET(テストデータ!BU3,100,0)) -> 0 | AH102: =SUM(OFFSET(テストデータ!BV3,100,0):OFFSET(テストデータ!BX3,100,0)) -> 0 | AI102: =SUM(OFFSET(テストデータ!BV3,100,0):OFFSET(テストデータ!BZ3,100,0)) -> 0 | AJ102: =SUM(OFFSET(テストデータ!CA3,100,0):OFFSET(テストデータ!CC3,100,0)) -> 0 | AK102: =SUM(OFFSET(テストデータ!CA3,100,0):OFFSET(テストデータ!CE3,100,0)) -> 0 | AL102: =SUM(OFFSET(テストデータ!CF3,100,0):OFFSET(テストデータ!CH3,100,0)) -> 0 | AM102: =SUM(OFFSET(テストデータ!CF3,100,0):OFFSET(テストデータ!CJ3,100,0)) -> 0 | AN102: =SUM(OFFSET(テストデータ!CK3,100,0):OFFSET(テストデータ!CM3,100,0)) -> 0 | AO102: =SUM(OFFSET(テストデータ!CK3,100,0):OFFSET(テストデータ!CO3,100,0)) -> 0 | AP102: =SUM(OFFSET(テストデータ!CP3,100,0):OFFSET(テストデータ!CR3,100,0)) -> 0 | AQ102: =SUM(OFFSET(テストデータ!CP3,100,0):OFFSET(テストデータ!CT3,100,0)) -> 0
N103: =SUM(OFFSET(テストデータ!$E3,101,9*成績表1!$B$4-9):OFFSET(テストデータ!$G3,101,9*成績表1!$B$4-9)) -> 0 | O103: =SUM(OFFSET(テストデータ!$E3,101,9*成績表1!$B$4-9):OFFSET(テストデータ!I3,101,9*成績表1!$B$4-9)) -> 0 | P103: =SUM(OFFSET(テストデータ!E3,101,0):OFFSET(テストデータ!G3,101,0)) -> 0 | Q103: =SUM(OFFSET(テストデータ!E3,101,0):OFFSET(テストデータ!I3,101,0)) -> 0 | R103: =SUM(OFFSET(テストデータ!N3,101,0):OFFSET(テストデータ!P3,101,0)) -> 0 | S103: =SUM(OFFSET(テストデータ!N3,101,0):OFFSET(テストデータ!R3,101,0)) -> 0 | T103: =SUM(OFFSET(テストデータ!W3,101,0):OFFSET(テストデータ!Y3,101,0)) -> 0 | U103: =SUM(OFFSET(テストデータ!W3,101,0):OFFSET(テストデータ!AA3,101,0)) -> 0 | V103: =SUM(OFFSET(テストデータ!AF3,101,0):OFFSET(テストデータ!AH3,101,0)) -> 0 | W103: =SUM(OFFSET(テストデータ!AF3,101,0):OFFSET(テストデータ!AJ3,101,0)) -> 0 | X103: =SUM(OFFSET(テストデータ!AO3,101,0):OFFSET(テストデータ!AQ3,101,0)) -> 0 | Y103: =SUM(OFFSET(テストデータ!AO3,101,0):OFFSET(テストデータ!AS3,101,0)) -> 0 | Z103: =SUM(OFFSET(テストデータ!AX3,101,0):OFFSET(テストデータ!AZ3,101,0)) -> 0 | AA103: =SUM(OFFSET(テストデータ!AX3,101,0):OFFSET(テストデータ!BB3,101,0)) -> 0 | AB103: =SUM(OFFSET(テストデータ!BG3,101,0):OFFSET(テストデータ!BI3,101,0)) -> 0 | AC103: =SUM(OFFSET(テストデータ!BG3,101,0):OFFSET(テストデータ!BK3,101,0)) -> 0 | AD103: =SUM(OFFSET(テストデータ!BL3,101,0):OFFSET(テストデータ!BN3,101,0)) -> 0 | AE103: =SUM(OFFSET(テストデータ!BL3,101,0):OFFSET(テストデータ!BP3,101,0)) -> 0 | AF103: =SUM(OFFSET(テストデータ!BQ3,101,0):OFFSET(テストデータ!BS3,101,0)) -> 0 | AG103: =SUM(OFFSET(テストデータ!BQ3,101,0):OFFSET(テストデータ!BU3,101,0)) -> 0 | AH103: =SUM(OFFSET(テストデータ!BV3,101,0):OFFSET(テストデータ!BX3,101,0)) -> 0 | AI103: =SUM(OFFSET(テストデータ!BV3,101,0):OFFSET(テストデータ!BZ3,101,0)) -> 0 | AJ103: =SUM(OFFSET(テストデータ!CA3,101,0):OFFSET(テストデータ!CC3,101,0)) -> 0 | AK103: =SUM(OFFSET(テストデータ!CA3,101,0):OFFSET(テストデータ!CE3,101,0)) -> 0 | AL103: =SUM(OFFSET(テストデータ!CF3,101,0):OFFSET(テストデータ!CH3,101,0)) -> 0 | AM103: =SUM(OFFSET(テストデータ!CF3,101,0):OFFSET(テストデータ!CJ3,101,0)) -> 0 | AN103: =SUM(OFFSET(テストデータ!CK3,101,0):OFFSET(テストデータ!CM3,101,0)) -> 0 | AO103: =SUM(OFFSET(テストデータ!CK3,101,0):OFFSET(テストデータ!CO3,101,0)) -> 0 | AP103: =SUM(OFFSET(テストデータ!CP3,101,0):OFFSET(テストデータ!CR3,101,0)) -> 0 | AQ103: =SUM(OFFSET(テストデータ!CP3,101,0):OFFSET(テストデータ!CT3,101,0)) -> 0
N104: =SUM(OFFSET(テストデータ!$E3,102,9*成績表1!$B$4-9):OFFSET(テストデータ!$G3,102,9*成績表1!$B$4-9)) -> 0 | O104: =SUM(OFFSET(テストデータ!$E3,102,9*成績表1!$B$4-9):OFFSET(テストデータ!I3,102,9*成績表1!$B$4-9)) -> 0 | P104: =SUM(OFFSET(テストデータ!E3,102,0):OFFSET(テストデータ!G3,102,0)) -> 0 | Q104: =SUM(OFFSET(テストデータ!E3,102,0):OFFSET(テストデータ!I3,102,0)) -> 0 | R104: =SUM(OFFSET(テストデータ!N3,102,0):OFFSET(テストデータ!P3,102,0)) -> 0 | S104: =SUM(OFFSET(テストデータ!N3,102,0):OFFSET(テストデータ!R3,102,0)) -> 0 | T104: =SUM(OFFSET(テストデータ!W3,102,0):OFFSET(テストデータ!Y3,102,0)) -> 0 | U104: =SUM(OFFSET(テストデータ!W3,102,0):OFFSET(テストデータ!AA3,102,0)) -> 0 | V104: =SUM(OFFSET(テストデータ!AF3,102,0):OFFSET(テストデータ!AH3,102,0)) -> 0 | W104: =SUM(OFFSET(テストデータ!AF3,102,0):OFFSET(テストデータ!AJ3,102,0)) -> 0 | X104: =SUM(OFFSET(テストデータ!AO3,102,0):OFFSET(テストデータ!AQ3,102,0)) -> 0 | Y104: =SUM(OFFSET(テストデータ!AO3,102,0):OFFSET(テストデータ!AS3,102,0)) -> 0 | Z104: =SUM(OFFSET(テストデータ!AX3,102,0):OFFSET(テストデータ!AZ3,102,0)) -> 0 | AA104: =SUM(OFFSET(テストデータ!AX3,102,0):OFFSET(テストデータ!BB3,102,0)) -> 0 | AB104: =SUM(OFFSET(テストデータ!BG3,102,0):OFFSET(テストデータ!BI3,102,0)) -> 0 | AC104: =SUM(OFFSET(テストデータ!BG3,102,0):OFFSET(テストデータ!BK3,102,0)) -> 0 | AD104: =SUM(OFFSET(テストデータ!BL3,102,0):OFFSET(テストデータ!BN3,102,0)) -> 0 | AE104: =SUM(OFFSET(テストデータ!BL3,102,0):OFFSET(テストデータ!BP3,102,0)) -> 0 | AF104: =SUM(OFFSET(テストデータ!BQ3,102,0):OFFSET(テストデータ!BS3,102,0)) -> 0 | AG104: =SUM(OFFSET(テストデータ!BQ3,102,0):OFFSET(テストデータ!BU3,102,0)) -> 0 | AH104: =SUM(OFFSET(テストデータ!BV3,102,0):OFFSET(テストデータ!BX3,102,0)) -> 0 | AI104: =SUM(OFFSET(テストデータ!BV3,102,0):OFFSET(テストデータ!BZ3,102,0)) -> 0 | AJ104: =SUM(OFFSET(テストデータ!CA3,102,0):OFFSET(テストデータ!CC3,102,0)) -> 0 | AK104: =SUM(OFFSET(テストデータ!CA3,102,0):OFFSET(テストデータ!CE3,102,0)) -> 0 | AL104: =SUM(OFFSET(テストデータ!CF3,102,0):OFFSET(テストデータ!CH3,102,0)) -> 0 | AM104: =SUM(OFFSET(テストデータ!CF3,102,0):OFFSET(テストデータ!CJ3,102,0)) -> 0 | AN104: =SUM(OFFSET(テストデータ!CK3,102,0):OFFSET(テストデータ!CM3,102,0)) -> 0 | AO104: =SUM(OFFSET(テストデータ!CK3,102,0):OFFSET(テストデータ!CO3,102,0)) -> 0 | AP104: =SUM(OFFSET(テストデータ!CP3,102,0):OFFSET(テストデータ!CR3,102,0)) -> 0 | AQ104: =SUM(OFFSET(テストデータ!CP3,102,0):OFFSET(テストデータ!CT3,102,0)) -> 0
N105: =SUM(OFFSET(テストデータ!$E3,103,9*成績表1!$B$4-9):OFFSET(テストデータ!$G3,103,9*成績表1!$B$4-9)) -> 0 | O105: =SUM(OFFSET(テストデータ!$E3,103,9*成績表1!$B$4-9):OFFSET(テストデータ!I3,103,9*成績表1!$B$4-9)) -> 0 | P105: =SUM(OFFSET(テストデータ!E3,103,0):OFFSET(テストデータ!G3,103,0)) -> 0 | Q105: =SUM(OFFSET(テストデータ!E3,103,0):OFFSET(テストデータ!I3,103,0)) -> 0 | R105: =SUM(OFFSET(テストデータ!N3,103,0):OFFSET(テストデータ!P3,103,0)) -> 0 | S105: =SUM(OFFSET(テストデータ!N3,103,0):OFFSET(テストデータ!R3,103,0)) -> 0 | T105: =SUM(OFFSET(テストデータ!W3,103,0):OFFSET(テストデータ!Y3,103,0)) -> 0 | U105: =SUM(OFFSET(テストデータ!W3,103,0):OFFSET(テストデータ!AA3,103,0)) -> 0 | V105: =SUM(OFFSET(テストデータ!AF3,103,0):OFFSET(テストデータ!AH3,103,0)) -> 0 | W105: =SUM(OFFSET(テストデータ!AF3,103,0):OFFSET(テストデータ!AJ3,103,0)) -> 0 | X105: =SUM(OFFSET(テストデータ!AO3,103,0):OFFSET(テストデータ!AQ3,103,0)) -> 0 | Y105: =SUM(OFFSET(テストデータ!AO3,103,0):OFFSET(テストデータ!AS3,103,0)) -> 0 | Z105: =SUM(OFFSET(テストデータ!AX3,103,0):OFFSET(テストデータ!AZ3,103,0)) -> 0 | AA105: =SUM(OFFSET(テストデータ!AX3,103,0):OFFSET(テストデータ!BB3,103,0)) -> 0 | AB105: =SUM(OFFSET(テストデータ!BG3,103,0):OFFSET(テストデータ!BI3,103,0)) -> 0 | AC105: =SUM(OFFSET(テストデータ!BG3,103,0):OFFSET(テストデータ!BK3,103,0)) -> 0 | AD105: =SUM(OFFSET(テストデータ!BL3,103,0):OFFSET(テストデータ!BN3,103,0)) -> 0 | AE105: =SUM(OFFSET(テストデータ!BL3,103,0):OFFSET(テストデータ!BP3,103,0)) -> 0 | AF105: =SUM(OFFSET(テストデータ!BQ3,103,0):OFFSET(テストデータ!BS3,103,0)) -> 0 | AG105: =SUM(OFFSET(テストデータ!BQ3,103,0):OFFSET(テストデータ!BU3,103,0)) -> 0 | AH105: =SUM(OFFSET(テストデータ!BV3,103,0):OFFSET(テストデータ!BX3,103,0)) -> 0 | AI105: =SUM(OFFSET(テストデータ!BV3,103,0):OFFSET(テストデータ!BZ3,103,0)) -> 0 | AJ105: =SUM(OFFSET(テストデータ!CA3,103,0):OFFSET(テストデータ!CC3,103,0)) -> 0 | AK105: =SUM(OFFSET(テストデータ!CA3,103,0):OFFSET(テストデータ!CE3,103,0)) -> 0 | AL105: =SUM(OFFSET(テストデータ!CF3,103,0):OFFSET(テストデータ!CH3,103,0)) -> 0 | AM105: =SUM(OFFSET(テストデータ!CF3,103,0):OFFSET(テストデータ!CJ3,103,0)) -> 0 | AN105: =SUM(OFFSET(テストデータ!CK3,103,0):OFFSET(テストデータ!CM3,103,0)) -> 0 | AO105: =SUM(OFFSET(テストデータ!CK3,103,0):OFFSET(テストデータ!CO3,103,0)) -> 0 | AP105: =SUM(OFFSET(テストデータ!CP3,103,0):OFFSET(テストデータ!CR3,103,0)) -> 0 | AQ105: =SUM(OFFSET(テストデータ!CP3,103,0):OFFSET(テストデータ!CT3,103,0)) -> 0
N106: =SUM(OFFSET(テストデータ!$E3,104,9*成績表1!$B$4-9):OFFSET(テストデータ!$G3,104,9*成績表1!$B$4-9)) -> 0 | O106: =SUM(OFFSET(テストデータ!$E3,104,9*成績表1!$B$4-9):OFFSET(テストデータ!I3,104,9*成績表1!$B$4-9)) -> 0 | P106: =SUM(OFFSET(テストデータ!E3,104,0):OFFSET(テストデータ!G3,104,0)) -> 0 | Q106: =SUM(OFFSET(テストデータ!E3,104,0):OFFSET(テストデータ!I3,104,0)) -> 0 | R106: =SUM(OFFSET(テストデータ!N3,104,0):OFFSET(テストデータ!P3,104,0)) -> 0 | S106: =SUM(OFFSET(テストデータ!N3,104,0):OFFSET(テストデータ!R3,104,0)) -> 0 | T106: =SUM(OFFSET(テストデータ!W3,104,0):OFFSET(テストデータ!Y3,104,0)) -> 0 | U106: =SUM(OFFSET(テストデータ!W3,104,0):OFFSET(テストデータ!AA3,104,0)) -> 0 | V106: =SUM(OFFSET(テストデータ!AF3,104,0):OFFSET(テストデータ!AH3,104,0)) -> 0 | W106: =SUM(OFFSET(テストデータ!AF3,104,0):OFFSET(テストデータ!AJ3,104,0)) -> 0 | X106: =SUM(OFFSET(テストデータ!AO3,104,0):OFFSET(テストデータ!AQ3,104,0)) -> 0 | Y106: =SUM(OFFSET(テストデータ!AO3,104,0):OFFSET(テストデータ!AS3,104,0)) -> 0 | Z106: =SUM(OFFSET(テストデータ!AX3,104,0):OFFSET(テストデータ!AZ3,104,0)) -> 0 | AA106: =SUM(OFFSET(テストデータ!AX3,104,0):OFFSET(テストデータ!BB3,104,0)) -> 0 | AB106: =SUM(OFFSET(テストデータ!BG3,104,0):OFFSET(テストデータ!BI3,104,0)) -> 0 | AC106: =SUM(OFFSET(テストデータ!BG3,104,0):OFFSET(テストデータ!BK3,104,0)) -> 0 | AD106: =SUM(OFFSET(テストデータ!BL3,104,0):OFFSET(テストデータ!BN3,104,0)) -> 0 | AE106: =SUM(OFFSET(テストデータ!BL3,104,0):OFFSET(テストデータ!BP3,104,0)) -> 0 | AF106: =SUM(OFFSET(テストデータ!BQ3,104,0):OFFSET(テストデータ!BS3,104,0)) -> 0 | AG106: =SUM(OFFSET(テストデータ!BQ3,104,0):OFFSET(テストデータ!BU3,104,0)) -> 0 | AH106: =SUM(OFFSET(テストデータ!BV3,104,0):OFFSET(テストデータ!BX3,104,0)) -> 0 | AI106: =SUM(OFFSET(テストデータ!BV3,104,0):OFFSET(テストデータ!BZ3,104,0)) -> 0 | AJ106: =SUM(OFFSET(テストデータ!CA3,104,0):OFFSET(テストデータ!CC3,104,0)) -> 0 | AK106: =SUM(OFFSET(テストデータ!CA3,104,0):OFFSET(テストデータ!CE3,104,0)) -> 0 | AL106: =SUM(OFFSET(テストデータ!CF3,104,0):OFFSET(テストデータ!CH3,104,0)) -> 0 | AM106: =SUM(OFFSET(テストデータ!CF3,104,0):OFFSET(テストデータ!CJ3,104,0)) -> 0 | AN106: =SUM(OFFSET(テストデータ!CK3,104,0):OFFSET(テストデータ!CM3,104,0)) -> 0 | AO106: =SUM(OFFSET(テストデータ!CK3,104,0):OFFSET(テストデータ!CO3,104,0)) -> 0 | AP106: =SUM(OFFSET(テストデータ!CP3,104,0):OFFSET(テストデータ!CR3,104,0)) -> 0 | AQ106: =SUM(OFFSET(テストデータ!CP3,104,0):OFFSET(テストデータ!CT3,104,0)) -> 0
N107: =SUM(OFFSET(テストデータ!$E3,105,9*成績表1!$B$4-9):OFFSET(テストデータ!$G3,105,9*成績表1!$B$4-9)) -> 0 | O107: =SUM(OFFSET(テストデータ!$E3,105,9*成績表1!$B$4-9):OFFSET(テストデータ!I3,105,9*成績表1!$B$4-9)) -> 0 | P107: =SUM(OFFSET(テストデータ!E3,105,0):OFFSET(テストデータ!G3,105,0)) -> 0 | Q107: =SUM(OFFSET(テストデータ!E3,105,0):OFFSET(テストデータ!I3,105,0)) -> 0 | R107: =SUM(OFFSET(テストデータ!N3,105,0):OFFSET(テストデータ!P3,105,0)) -> 0 | S107: =SUM(OFFSET(テストデータ!N3,105,0):OFFSET(テストデータ!R3,105,0)) -> 0 | T107: =SUM(OFFSET(テストデータ!W3,105,0):OFFSET(テストデータ!Y3,105,0)) -> 0 | U107: =SUM(OFFSET(テストデータ!W3,105,0):OFFSET(テストデータ!AA3,105,0)) -> 0 | V107: =SUM(OFFSET(テストデータ!AF3,105,0):OFFSET(テストデータ!AH3,105,0)) -> 0 | W107: =SUM(OFFSET(テストデータ!AF3,105,0):OFFSET(テストデータ!AJ3,105,0)) -> 0 | X107: =SUM(OFFSET(テストデータ!AO3,105,0):OFFSET(テストデータ!AQ3,105,0)) -> 0 | Y107: =SUM(OFFSET(テストデータ!AO3,105,0):OFFSET(テストデータ!AS3,105,0)) -> 0 | Z107: =SUM(OFFSET(テストデータ!AX3,105,0):OFFSET(テストデータ!AZ3,105,0)) -> 0 | AA107: =SUM(OFFSET(テストデータ!AX3,105,0):OFFSET(テストデータ!BB3,105,0)) -> 0 | AB107: =SUM(OFFSET(テストデータ!BG3,105,0):OFFSET(テストデータ!BI3,105,0)) -> 0 | AC107: =SUM(OFFSET(テストデータ!BG3,105,0):OFFSET(テストデータ!BK3,105,0)) -> 0 | AD107: =SUM(OFFSET(テストデータ!BL3,105,0):OFFSET(テストデータ!BN3,105,0)) -> 0 | AE107: =SUM(OFFSET(テストデータ!BL3,105,0):OFFSET(テストデータ!BP3,105,0)) -> 0 | AF107: =SUM(OFFSET(テストデータ!BQ3,105,0):OFFSET(テストデータ!BS3,105,0)) -> 0 | AG107: =SUM(OFFSET(テストデータ!BQ3,105,0):OFFSET(テストデータ!BU3,105,0)) -> 0 | AH107: =SUM(OFFSET(テストデータ!BV3,105,0):OFFSET(テストデータ!BX3,105,0)) -> 0 | AI107: =SUM(OFFSET(テストデータ!BV3,105,0):OFFSET(テストデータ!BZ3,105,0)) -> 0 | AJ107: =SUM(OFFSET(テストデータ!CA3,105,0):OFFSET(テストデータ!CC3,105,0)) -> 0 | AK107: =SUM(OFFSET(テストデータ!CA3,105,0):OFFSET(テストデータ!CE3,105,0)) -> 0 | AL107: =SUM(OFFSET(テストデータ!CF3,105,0):OFFSET(テストデータ!CH3,105,0)) -> 0 | AM107: =SUM(OFFSET(テストデータ!CF3,105,0):OFFSET(テストデータ!CJ3,105,0)) -> 0 | AN107: =SUM(OFFSET(テストデータ!CK3,105,0):OFFSET(テストデータ!CM3,105,0)) -> 0 | AO107: =SUM(OFFSET(テストデータ!CK3,105,0):OFFSET(テストデータ!CO3,105,0)) -> 0 | AP107: =SUM(OFFSET(テストデータ!CP3,105,0):OFFSET(テストデータ!CR3,105,0)) -> 0 | AQ107: =SUM(OFFSET(テストデータ!CP3,105,0):OFFSET(テストデータ!CT3,105,0)) -> 0
N108: =SUM(OFFSET(テストデータ!$E3,106,9*成績表1!$B$4-9):OFFSET(テストデータ!$G3,106,9*成績表1!$B$4-9)) -> 0 | O108: =SUM(OFFSET(テストデータ!$E3,106,9*成績表1!$B$4-9):OFFSET(テストデータ!I3,106,9*成績表1!$B$4-9)) -> 0 | P108: =SUM(OFFSET(テストデータ!E3,106,0):OFFSET(テストデータ!G3,106,0)) -> 0 | Q108: =SUM(OFFSET(テストデータ!E3,106,0):OFFSET(テストデータ!I3,106,0)) -> 0 | R108: =SUM(OFFSET(テストデータ!N3,106,0):OFFSET(テストデータ!P3,106,0)) -> 0 | S108: =SUM(OFFSET(テストデータ!N3,106,0):OFFSET(テストデータ!R3,106,0)) -> 0 | T108: =SUM(OFFSET(テストデータ!W3,106,0):OFFSET(テストデータ!Y3,106,0)) -> 0 | U108: =SUM(OFFSET(テストデータ!W3,106,0):OFFSET(テストデータ!AA3,106,0)) -> 0 | V108: =SUM(OFFSET(テストデータ!AF3,106,0):OFFSET(テストデータ!AH3,106,0)) -> 0 | W108: =SUM(OFFSET(テストデータ!AF3,106,0):OFFSET(テストデータ!AJ3,106,0)) -> 0 | X108: =SUM(OFFSET(テストデータ!AO3,106,0):OFFSET(テストデータ!AQ3,106,0)) -> 0 | Y108: =SUM(OFFSET(テストデータ!AO3,106,0):OFFSET(テストデータ!AS3,106,0)) -> 0 | Z108: =SUM(OFFSET(テストデータ!AX3,106,0):OFFSET(テストデータ!AZ3,106,0)) -> 0 | AA108: =SUM(OFFSET(テストデータ!AX3,106,0):OFFSET(テストデータ!BB3,106,0)) -> 0 | AB108: =SUM(OFFSET(テストデータ!BG3,106,0):OFFSET(テストデータ!BI3,106,0)) -> 0 | AC108: =SUM(OFFSET(テストデータ!BG3,106,0):OFFSET(テストデータ!BK3,106,0)) -> 0 | AD108: =SUM(OFFSET(テストデータ!BL3,106,0):OFFSET(テストデータ!BN3,106,0)) -> 0 | AE108: =SUM(OFFSET(テストデータ!BL3,106,0):OFFSET(テストデータ!BP3,106,0)) -> 0 | AF108: =SUM(OFFSET(テストデータ!BQ3,106,0):OFFSET(テストデータ!BS3,106,0)) -> 0 | AG108: =SUM(OFFSET(テストデータ!BQ3,106,0):OFFSET(テストデータ!BU3,106,0)) -> 0 | AH108: =SUM(OFFSET(テストデータ!BV3,106,0):OFFSET(テストデータ!BX3,106,0)) -> 0 | AI108: =SUM(OFFSET(テストデータ!BV3,106,0):OFFSET(テストデータ!BZ3,106,0)) -> 0 | AJ108: =SUM(OFFSET(テストデータ!CA3,106,0):OFFSET(テストデータ!CC3,106,0)) -> 0 | AK108: =SUM(OFFSET(テストデータ!CA3,106,0):OFFSET(テストデータ!CE3,106,0)) -> 0 | AL108: =SUM(OFFSET(テストデータ!CF3,106,0):OFFSET(テストデータ!CH3,106,0)) -> 0 | AM108: =SUM(OFFSET(テストデータ!CF3,106,0):OFFSET(テストデータ!CJ3,106,0)) -> 0 | AN108: =SUM(OFFSET(テストデータ!CK3,106,0):OFFSET(テストデータ!CM3,106,0)) -> 0 | AO108: =SUM(OFFSET(テストデータ!CK3,106,0):OFFSET(テストデータ!CO3,106,0)) -> 0 | AP108: =SUM(OFFSET(テストデータ!CP3,106,0):OFFSET(テストデータ!CR3,106,0)) -> 0 | AQ108: =SUM(OFFSET(テストデータ!CP3,106,0):OFFSET(テストデータ!CT3,106,0)) -> 0
N109: =SUM(OFFSET(テストデータ!$E3,107,9*成績表1!$B$4-9):OFFSET(テストデータ!$G3,107,9*成績表1!$B$4-9)) -> 0 | O109: =SUM(OFFSET(テストデータ!$E3,107,9*成績表1!$B$4-9):OFFSET(テストデータ!I3,107,9*成績表1!$B$4-9)) -> 0 | P109: =SUM(OFFSET(テストデータ!E3,107,0):OFFSET(テストデータ!G3,107,0)) -> 0 | Q109: =SUM(OFFSET(テストデータ!E3,107,0):OFFSET(テストデータ!I3,107,0)) -> 0 | R109: =SUM(OFFSET(テストデータ!N3,107,0):OFFSET(テストデータ!P3,107,0)) -> 0 | S109: =SUM(OFFSET(テストデータ!N3,107,0):OFFSET(テストデータ!R3,107,0)) -> 0 | T109: =SUM(OFFSET(テストデータ!W3,107,0):OFFSET(テストデータ!Y3,107,0)) -> 0 | U109: =SUM(OFFSET(テストデータ!W3,107,0):OFFSET(テストデータ!AA3,107,0)) -> 0 | V109: =SUM(OFFSET(テストデータ!AF3,107,0):OFFSET(テストデータ!AH3,107,0)) -> 0 | W109: =SUM(OFFSET(テストデータ!AF3,107,0):OFFSET(テストデータ!AJ3,107,0)) -> 0 | X109: =SUM(OFFSET(テストデータ!AO3,107,0):OFFSET(テストデータ!AQ3,107,0)) -> 0 | Y109: =SUM(OFFSET(テストデータ!AO3,107,0):OFFSET(テストデータ!AS3,107,0)) -> 0 | Z109: =SUM(OFFSET(テストデータ!AX3,107,0):OFFSET(テストデータ!AZ3,107,0)) -> 0 | AA109: =SUM(OFFSET(テストデータ!AX3,107,0):OFFSET(テストデータ!BB3,107,0)) -> 0 | AB109: =SUM(OFFSET(テストデータ!BG3,107,0):OFFSET(テストデータ!BI3,107,0)) -> 0 | AC109: =SUM(OFFSET(テストデータ!BG3,107,0):OFFSET(テストデータ!BK3,107,0)) -> 0 | AD109: =SUM(OFFSET(テストデータ!BL3,107,0):OFFSET(テストデータ!BN3,107,0)) -> 0 | AE109: =SUM(OFFSET(テストデータ!BL3,107,0):OFFSET(テストデータ!BP3,107,0)) -> 0 | AF109: =SUM(OFFSET(テストデータ!BQ3,107,0):OFFSET(テストデータ!BS3,107,0)) -> 0 | AG109: =SUM(OFFSET(テストデータ!BQ3,107,0):OFFSET(テストデータ!BU3,107,0)) -> 0 | AH109: =SUM(OFFSET(テストデータ!BV3,107,0):OFFSET(テストデータ!BX3,107,0)) -> 0 | AI109: =SUM(OFFSET(テストデータ!BV3,107,0):OFFSET(テストデータ!BZ3,107,0)) -> 0 | AJ109: =SUM(OFFSET(テストデータ!CA3,107,0):OFFSET(テストデータ!CC3,107,0)) -> 0 | AK109: =SUM(OFFSET(テストデータ!CA3,107,0):OFFSET(テストデータ!CE3,107,0)) -> 0 | AL109: =SUM(OFFSET(テストデータ!CF3,107,0):OFFSET(テストデータ!CH3,107,0)) -> 0 | AM109: =SUM(OFFSET(テストデータ!CF3,107,0):OFFSET(テストデータ!CJ3,107,0)) -> 0 | AN109: =SUM(OFFSET(テストデータ!CK3,107,0):OFFSET(テストデータ!CM3,107,0)) -> 0 | AO109: =SUM(OFFSET(テストデータ!CK3,107,0):OFFSET(テストデータ!CO3,107,0)) -> 0 | AP109: =SUM(OFFSET(テストデータ!CP3,107,0):OFFSET(テストデータ!CR3,107,0)) -> 0 | AQ109: =SUM(OFFSET(テストデータ!CP3,107,0):OFFSET(テストデータ!CT3,107,0)) -> 0
N110: =SUM(OFFSET(テストデータ!$E3,108,9*成績表1!$B$4-9):OFFSET(テストデータ!$G3,108,9*成績表1!$B$4-9)) -> 0 | O110: =SUM(OFFSET(テストデータ!$E3,108,9*成績表1!$B$4-9):OFFSET(テストデータ!I3,108,9*成績表1!$B$4-9)) -> 0 | P110: =SUM(OFFSET(テストデータ!E3,108,0):OFFSET(テストデータ!G3,108,0)) -> 0 | Q110: =SUM(OFFSET(テストデータ!E3,108,0):OFFSET(テストデータ!I3,108,0)) -> 0 | R110: =SUM(OFFSET(テストデータ!N3,108,0):OFFSET(テストデータ!P3,108,0)) -> 0 | S110: =SUM(OFFSET(テストデータ!N3,108,0):OFFSET(テストデータ!R3,108,0)) -> 0 | T110: =SUM(OFFSET(テストデータ!W3,108,0):OFFSET(テストデータ!Y3,108,0)) -> 0 | U110: =SUM(OFFSET(テストデータ!W3,108,0):OFFSET(テストデータ!AA3,108,0)) -> 0 | V110: =SUM(OFFSET(テストデータ!AF3,108,0):OFFSET(テストデータ!AH3,108,0)) -> 0 | W110: =SUM(OFFSET(テストデータ!AF3,108,0):OFFSET(テストデータ!AJ3,108,0)) -> 0 | X110: =SUM(OFFSET(テストデータ!AO3,108,0):OFFSET(テストデータ!AQ3,108,0)) -> 0 | Y110: =SUM(OFFSET(テストデータ!AO3,108,0):OFFSET(テストデータ!AS3,108,0)) -> 0 | Z110: =SUM(OFFSET(テストデータ!AX3,108,0):OFFSET(テストデータ!AZ3,108,0)) -> 0 | AA110: =SUM(OFFSET(テストデータ!AX3,108,0):OFFSET(テストデータ!BB3,108,0)) -> 0 | AB110: =SUM(OFFSET(テストデータ!BG3,108,0):OFFSET(テストデータ!BI3,108,0)) -> 0 | AC110: =SUM(OFFSET(テストデータ!BG3,108,0):OFFSET(テストデータ!BK3,108,0)) -> 0 | AD110: =SUM(OFFSET(テストデータ!BL3,108,0):OFFSET(テストデータ!BN3,108,0)) -> 0 | AE110: =SUM(OFFSET(テストデータ!BL3,108,0):OFFSET(テストデータ!BP3,108,0)) -> 0 | AF110: =SUM(OFFSET(テストデータ!BQ3,108,0):OFFSET(テストデータ!BS3,108,0)) -> 0 | AG110: =SUM(OFFSET(テストデータ!BQ3,108,0):OFFSET(テストデータ!BU3,108,0)) -> 0 | AH110: =SUM(OFFSET(テストデータ!BV3,108,0):OFFSET(テストデータ!BX3,108,0)) -> 0 | AI110: =SUM(OFFSET(テストデータ!BV3,108,0):OFFSET(テストデータ!BZ3,108,0)) -> 0 | AJ110: =SUM(OFFSET(テストデータ!CA3,108,0):OFFSET(テストデータ!CC3,108,0)) -> 0 | AK110: =SUM(OFFSET(テストデータ!CA3,108,0):OFFSET(テストデータ!CE3,108,0)) -> 0 | AL110: =SUM(OFFSET(テストデータ!CF3,108,0):OFFSET(テストデータ!CH3,108,0)) -> 0 | AM110: =SUM(OFFSET(テストデータ!CF3,108,0):OFFSET(テストデータ!CJ3,108,0)) -> 0 | AN110: =SUM(OFFSET(テストデータ!CK3,108,0):OFFSET(テストデータ!CM3,108,0)) -> 0 | AO110: =SUM(OFFSET(テストデータ!CK3,108,0):OFFSET(テストデータ!CO3,108,0)) -> 0 | AP110: =SUM(OFFSET(テストデータ!CP3,108,0):OFFSET(テストデータ!CR3,108,0)) -> 0 | AQ110: =SUM(OFFSET(テストデータ!CP3,108,0):OFFSET(テストデータ!CT3,108,0)) -> 0
N111: =SUM(OFFSET(テストデータ!$E3,109,9*成績表1!$B$4-9):OFFSET(テストデータ!$G3,109,9*成績表1!$B$4-9)) -> 0 | O111: =SUM(OFFSET(テストデータ!$E3,109,9*成績表1!$B$4-9):OFFSET(テストデータ!I3,109,9*成績表1!$B$4-9)) -> 0 | P111: =SUM(OFFSET(テストデータ!E3,109,0):OFFSET(テストデータ!G3,109,0)) -> 0 | Q111: =SUM(OFFSET(テストデータ!E3,109,0):OFFSET(テストデータ!I3,109,0)) -> 0 | R111: =SUM(OFFSET(テストデータ!N3,109,0):OFFSET(テストデータ!P3,109,0)) -> 0 | S111: =SUM(OFFSET(テストデータ!N3,109,0):OFFSET(テストデータ!R3,109,0)) -> 0 | T111: =SUM(OFFSET(テストデータ!W3,109,0):OFFSET(テストデータ!Y3,109,0)) -> 0 | U111: =SUM(OFFSET(テストデータ!W3,109,0):OFFSET(テストデータ!AA3,109,0)) -> 0 | V111: =SUM(OFFSET(テストデータ!AF3,109,0):OFFSET(テストデータ!AH3,109,0)) -> 0 | W111: =SUM(OFFSET(テストデータ!AF3,109,0):OFFSET(テストデータ!AJ3,109,0)) -> 0 | X111: =SUM(OFFSET(テストデータ!AO3,109,0):OFFSET(テストデータ!AQ3,109,0)) -> 0 | Y111: =SUM(OFFSET(テストデータ!AO3,109,0):OFFSET(テストデータ!AS3,109,0)) -> 0 | Z111: =SUM(OFFSET(テストデータ!AX3,109,0):OFFSET(テストデータ!AZ3,109,0)) -> 0 | AA111: =SUM(OFFSET(テストデータ!AX3,109,0):OFFSET(テストデータ!BB3,109,0)) -> 0 | AB111: =SUM(OFFSET(テストデータ!BG3,109,0):OFFSET(テストデータ!BI3,109,0)) -> 0 | AC111: =SUM(OFFSET(テストデータ!BG3,109,0):OFFSET(テストデータ!BK3,109,0)) -> 0 | AD111: =SUM(OFFSET(テストデータ!BL3,109,0):OFFSET(テストデータ!BN3,109,0)) -> 0 | AE111: =SUM(OFFSET(テストデータ!BL3,109,0):OFFSET(テストデータ!BP3,109,0)) -> 0 | AF111: =SUM(OFFSET(テストデータ!BQ3,109,0):OFFSET(テストデータ!BS3,109,0)) -> 0 | AG111: =SUM(OFFSET(テストデータ!BQ3,109,0):OFFSET(テストデータ!BU3,109,0)) -> 0 | AH111: =SUM(OFFSET(テストデータ!BV3,109,0):OFFSET(テストデータ!BX3,109,0)) -> 0 | AI111: =SUM(OFFSET(テストデータ!BV3,109,0):OFFSET(テストデータ!BZ3,109,0)) -> 0 | AJ111: =SUM(OFFSET(テストデータ!CA3,109,0):OFFSET(テストデータ!CC3,109,0)) -> 0 | AK111: =SUM(OFFSET(テストデータ!CA3,109,0):OFFSET(テストデータ!CE3,109,0)) -> 0 | AL111: =SUM(OFFSET(テストデータ!CF3,109,0):OFFSET(テストデータ!CH3,109,0)) -> 0 | AM111: =SUM(OFFSET(テストデータ!CF3,109,0):OFFSET(テストデータ!CJ3,109,0)) -> 0 | AN111: =SUM(OFFSET(テストデータ!CK3,109,0):OFFSET(テストデータ!CM3,109,0)) -> 0 | AO111: =SUM(OFFSET(テストデータ!CK3,109,0):OFFSET(テストデータ!CO3,109,0)) -> 0 | AP111: =SUM(OFFSET(テストデータ!CP3,109,0):OFFSET(テストデータ!CR3,109,0)) -> 0 | AQ111: =SUM(OFFSET(テストデータ!CP3,109,0):OFFSET(テストデータ!CT3,109,0)) -> 0
N112: =SUM(OFFSET(テストデータ!$E3,110,9*成績表1!$B$4-9):OFFSET(テストデータ!$G3,110,9*成績表1!$B$4-9)) -> 0 | O112: =SUM(OFFSET(テストデータ!$E3,110,9*成績表1!$B$4-9):OFFSET(テストデータ!I3,110,9*成績表1!$B$4-9)) -> 0 | P112: =SUM(OFFSET(テストデータ!E3,110,0):OFFSET(テストデータ!G3,110,0)) -> 0 | Q112: =SUM(OFFSET(テストデータ!E3,110,0):OFFSET(テストデータ!I3,110,0)) -> 0 | R112: =SUM(OFFSET(テストデータ!N3,110,0):OFFSET(テストデータ!P3,110,0)) -> 0 | S112: =SUM(OFFSET(テストデータ!N3,110,0):OFFSET(テストデータ!R3,110,0)) -> 0 | T112: =SUM(OFFSET(テストデータ!W3,110,0):OFFSET(テストデータ!Y3,110,0)) -> 0 | U112: =SUM(OFFSET(テストデータ!W3,110,0):OFFSET(テストデータ!AA3,110,0)) -> 0 | V112: =SUM(OFFSET(テストデータ!AF3,110,0):OFFSET(テストデータ!AH3,110,0)) -> 0 | W112: =SUM(OFFSET(テストデータ!AF3,110,0):OFFSET(テストデータ!AJ3,110,0)) -> 0 | X112: =SUM(OFFSET(テストデータ!AO3,110,0):OFFSET(テストデータ!AQ3,110,0)) -> 0 | Y112: =SUM(OFFSET(テストデータ!AO3,110,0):OFFSET(テストデータ!AS3,110,0)) -> 0 | Z112: =SUM(OFFSET(テストデータ!AX3,110,0):OFFSET(テストデータ!AZ3,110,0)) -> 0 | AA112: =SUM(OFFSET(テストデータ!AX3,110,0):OFFSET(テストデータ!BB3,110,0)) -> 0 | AB112: =SUM(OFFSET(テストデータ!BG3,110,0):OFFSET(テストデータ!BI3,110,0)) -> 0 | AC112: =SUM(OFFSET(テストデータ!BG3,110,0):OFFSET(テストデータ!BK3,110,0)) -> 0 | AD112: =SUM(OFFSET(テストデータ!BL3,110,0):OFFSET(テストデータ!BN3,110,0)) -> 0 | AE112: =SUM(OFFSET(テストデータ!BL3,110,0):OFFSET(テストデータ!BP3,110,0)) -> 0 | AF112: =SUM(OFFSET(テストデータ!BQ3,110,0):OFFSET(テストデータ!BS3,110,0)) -> 0 | AG112: =SUM(OFFSET(テストデータ!BQ3,110,0):OFFSET(テストデータ!BU3,110,0)) -> 0 | AH112: =SUM(OFFSET(テストデータ!BV3,110,0):OFFSET(テストデータ!BX3,110,0)) -> 0 | AI112: =SUM(OFFSET(テストデータ!BV3,110,0):OFFSET(テストデータ!BZ3,110,0)) -> 0 | AJ112: =SUM(OFFSET(テストデータ!CA3,110,0):OFFSET(テストデータ!CC3,110,0)) -> 0 | AK112: =SUM(OFFSET(テストデータ!CA3,110,0):OFFSET(テストデータ!CE3,110,0)) -> 0 | AL112: =SUM(OFFSET(テストデータ!CF3,110,0):OFFSET(テストデータ!CH3,110,0)) -> 0 | AM112: =SUM(OFFSET(テストデータ!CF3,110,0):OFFSET(テストデータ!CJ3,110,0)) -> 0 | AN112: =SUM(OFFSET(テストデータ!CK3,110,0):OFFSET(テストデータ!CM3,110,0)) -> 0 | AO112: =SUM(OFFSET(テストデータ!CK3,110,0):OFFSET(テストデータ!CO3,110,0)) -> 0 | AP112: =SUM(OFFSET(テストデータ!CP3,110,0):OFFSET(テストデータ!CR3,110,0)) -> 0 | AQ112: =SUM(OFFSET(テストデータ!CP3,110,0):OFFSET(テストデータ!CT3,110,0)) -> 0
N113: =SUM(OFFSET(テストデータ!$E3,111,9*成績表1!$B$4-9):OFFSET(テストデータ!$G3,111,9*成績表1!$B$4-9)) -> 0 | O113: =SUM(OFFSET(テストデータ!$E3,111,9*成績表1!$B$4-9):OFFSET(テストデータ!I3,111,9*成績表1!$B$4-9)) -> 0 | P113: =SUM(OFFSET(テストデータ!E3,111,0):OFFSET(テストデータ!G3,111,0)) -> 0 | Q113: =SUM(OFFSET(テストデータ!E3,111,0):OFFSET(テストデータ!I3,111,0)) -> 0 | R113: =SUM(OFFSET(テストデータ!N3,111,0):OFFSET(テストデータ!P3,111,0)) -> 0 | S113: =SUM(OFFSET(テストデータ!N3,111,0):OFFSET(テストデータ!R3,111,0)) -> 0 | T113: =SUM(OFFSET(テストデータ!W3,111,0):OFFSET(テストデータ!Y3,111,0)) -> 0 | U113: =SUM(OFFSET(テストデータ!W3,111,0):OFFSET(テストデータ!AA3,111,0)) -> 0 | V113: =SUM(OFFSET(テストデータ!AF3,111,0):OFFSET(テストデータ!AH3,111,0)) -> 0 | W113: =SUM(OFFSET(テストデータ!AF3,111,0):OFFSET(テストデータ!AJ3,111,0)) -> 0 | X113: =SUM(OFFSET(テストデータ!AO3,111,0):OFFSET(テストデータ!AQ3,111,0)) -> 0 | Y113: =SUM(OFFSET(テストデータ!AO3,111,0):OFFSET(テストデータ!AS3,111,0)) -> 0 | Z113: =SUM(OFFSET(テストデータ!AX3,111,0):OFFSET(テストデータ!AZ3,111,0)) -> 0 | AA113: =SUM(OFFSET(テストデータ!AX3,111,0):OFFSET(テストデータ!BB3,111,0)) -> 0 | AB113: =SUM(OFFSET(テストデータ!BG3,111,0):OFFSET(テストデータ!BI3,111,0)) -> 0 | AC113: =SUM(OFFSET(テストデータ!BG3,111,0):OFFSET(テストデータ!BK3,111,0)) -> 0 | AD113: =SUM(OFFSET(テストデータ!BL3,111,0):OFFSET(テストデータ!BN3,111,0)) -> 0 | AE113: =SUM(OFFSET(テストデータ!BL3,111,0):OFFSET(テストデータ!BP3,111,0)) -> 0 | AF113: =SUM(OFFSET(テストデータ!BQ3,111,0):OFFSET(テストデータ!BS3,111,0)) -> 0 | AG113: =SUM(OFFSET(テストデータ!BQ3,111,0):OFFSET(テストデータ!BU3,111,0)) -> 0 | AH113: =SUM(OFFSET(テストデータ!BV3,111,0):OFFSET(テストデータ!BX3,111,0)) -> 0 | AI113: =SUM(OFFSET(テストデータ!BV3,111,0):OFFSET(テストデータ!BZ3,111,0)) -> 0 | AJ113: =SUM(OFFSET(テストデータ!CA3,111,0):OFFSET(テストデータ!CC3,111,0)) -> 0 | AK113: =SUM(OFFSET(テストデータ!CA3,111,0):OFFSET(テストデータ!CE3,111,0)) -> 0 | AL113: =SUM(OFFSET(テストデータ!CF3,111,0):OFFSET(テストデータ!CH3,111,0)) -> 0 | AM113: =SUM(OFFSET(テストデータ!CF3,111,0):OFFSET(テストデータ!CJ3,111,0)) -> 0 | AN113: =SUM(OFFSET(テストデータ!CK3,111,0):OFFSET(テストデータ!CM3,111,0)) -> 0 | AO113: =SUM(OFFSET(テストデータ!CK3,111,0):OFFSET(テストデータ!CO3,111,0)) -> 0 | AP113: =SUM(OFFSET(テストデータ!CP3,111,0):OFFSET(テストデータ!CR3,111,0)) -> 0 | AQ113: =SUM(OFFSET(テストデータ!CP3,111,0):OFFSET(テストデータ!CT3,111,0)) -> 0
N114: =SUM(OFFSET(テストデータ!$E3,112,9*成績表1!$B$4-9):OFFSET(テストデータ!$G3,112,9*成績表1!$B$4-9)) -> 0 | O114: =SUM(OFFSET(テストデータ!$E3,112,9*成績表1!$B$4-9):OFFSET(テストデータ!I3,112,9*成績表1!$B$4-9)) -> 0 | P114: =SUM(OFFSET(テストデータ!E3,112,0):OFFSET(テストデータ!G3,112,0)) -> 0 | Q114: =SUM(OFFSET(テストデータ!E3,112,0):OFFSET(テストデータ!I3,112,0)) -> 0 | R114: =SUM(OFFSET(テストデータ!N3,112,0):OFFSET(テストデータ!P3,112,0)) -> 0 | S114: =SUM(OFFSET(テストデータ!N3,112,0):OFFSET(テストデータ!R3,112,0)) -> 0 | T114: =SUM(OFFSET(テストデータ!W3,112,0):OFFSET(テストデータ!Y3,112,0)) -> 0 | U114: =SUM(OFFSET(テストデータ!W3,112,0):OFFSET(テストデータ!AA3,112,0)) -> 0 | V114: =SUM(OFFSET(テストデータ!AF3,112,0):OFFSET(テストデータ!AH3,112,0)) -> 0 | W114: =SUM(OFFSET(テストデータ!AF3,112,0):OFFSET(テストデータ!AJ3,112,0)) -> 0 | X114: =SUM(OFFSET(テストデータ!AO3,112,0):OFFSET(テストデータ!AQ3,112,0)) -> 0 | Y114: =SUM(OFFSET(テストデータ!AO3,112,0):OFFSET(テストデータ!AS3,112,0)) -> 0 | Z114: =SUM(OFFSET(テストデータ!AX3,112,0):OFFSET(テストデータ!AZ3,112,0)) -> 0 | AA114: =SUM(OFFSET(テストデータ!AX3,112,0):OFFSET(テストデータ!BB3,112,0)) -> 0 | AB114: =SUM(OFFSET(テストデータ!BG3,112,0):OFFSET(テストデータ!BI3,112,0)) -> 0 | AC114: =SUM(OFFSET(テストデータ!BG3,112,0):OFFSET(テストデータ!BK3,112,0)) -> 0 | AD114: =SUM(OFFSET(テストデータ!BL3,112,0):OFFSET(テストデータ!BN3,112,0)) -> 0 | AE114: =SUM(OFFSET(テストデータ!BL3,112,0):OFFSET(テストデータ!BP3,112,0)) -> 0 | AF114: =SUM(OFFSET(テストデータ!BQ3,112,0):OFFSET(テストデータ!BS3,112,0)) -> 0 | AG114: =SUM(OFFSET(テストデータ!BQ3,112,0):OFFSET(テストデータ!BU3,112,0)) -> 0 | AH114: =SUM(OFFSET(テストデータ!BV3,112,0):OFFSET(テストデータ!BX3,112,0)) -> 0 | AI114: =SUM(OFFSET(テストデータ!BV3,112,0):OFFSET(テストデータ!BZ3,112,0)) -> 0 | AJ114: =SUM(OFFSET(テストデータ!CA3,112,0):OFFSET(テストデータ!CC3,112,0)) -> 0 | AK114: =SUM(OFFSET(テストデータ!CA3,112,0):OFFSET(テストデータ!CE3,112,0)) -> 0 | AL114: =SUM(OFFSET(テストデータ!CF3,112,0):OFFSET(テストデータ!CH3,112,0)) -> 0 | AM114: =SUM(OFFSET(テストデータ!CF3,112,0):OFFSET(テストデータ!CJ3,112,0)) -> 0 | AN114: =SUM(OFFSET(テストデータ!CK3,112,0):OFFSET(テストデータ!CM3,112,0)) -> 0 | AO114: =SUM(OFFSET(テストデータ!CK3,112,0):OFFSET(テストデータ!CO3,112,0)) -> 0 | AP114: =SUM(OFFSET(テストデータ!CP3,112,0):OFFSET(テストデータ!CR3,112,0)) -> 0 | AQ114: =SUM(OFFSET(テストデータ!CP3,112,0):OFFSET(テストデータ!CT3,112,0)) -> 0
N115: =SUM(OFFSET(テストデータ!$E3,113,9*成績表1!$B$4-9):OFFSET(テストデータ!$G3,113,9*成績表1!$B$4-9)) -> 0 | O115: =SUM(OFFSET(テストデータ!$E3,113,9*成績表1!$B$4-9):OFFSET(テストデータ!I3,113,9*成績表1!$B$4-9)) -> 0 | P115: =SUM(OFFSET(テストデータ!E3,113,0):OFFSET(テストデータ!G3,113,0)) -> 0 | Q115: =SUM(OFFSET(テストデータ!E3,113,0):OFFSET(テストデータ!I3,113,0)) -> 0 | R115: =SUM(OFFSET(テストデータ!N3,113,0):OFFSET(テストデータ!P3,113,0)) -> 0 | S115: =SUM(OFFSET(テストデータ!N3,113,0):OFFSET(テストデータ!R3,113,0)) -> 0 | T115: =SUM(OFFSET(テストデータ!W3,113,0):OFFSET(テストデータ!Y3,113,0)) -> 0 | U115: =SUM(OFFSET(テストデータ!W3,113,0):OFFSET(テストデータ!AA3,113,0)) -> 0 | V115: =SUM(OFFSET(テストデータ!AF3,113,0):OFFSET(テストデータ!AH3,113,0)) -> 0 | W115: =SUM(OFFSET(テストデータ!AF3,113,0):OFFSET(テストデータ!AJ3,113,0)) -> 0 | X115: =SUM(OFFSET(テストデータ!AO3,113,0):OFFSET(テストデータ!AQ3,113,0)) -> 0 | Y115: =SUM(OFFSET(テストデータ!AO3,113,0):OFFSET(テストデータ!AS3,113,0)) -> 0 | Z115: =SUM(OFFSET(テストデータ!AX3,113,0):OFFSET(テストデータ!AZ3,113,0)) -> 0 | AA115: =SUM(OFFSET(テストデータ!AX3,113,0):OFFSET(テストデータ!BB3,113,0)) -> 0 | AB115: =SUM(OFFSET(テストデータ!BG3,113,0):OFFSET(テストデータ!BI3,113,0)) -> 0 | AC115: =SUM(OFFSET(テストデータ!BG3,113,0):OFFSET(テストデータ!BK3,113,0)) -> 0 | AD115: =SUM(OFFSET(テストデータ!BL3,113,0):OFFSET(テストデータ!BN3,113,0)) -> 0 | AE115: =SUM(OFFSET(テストデータ!BL3,113,0):OFFSET(テストデータ!BP3,113,0)) -> 0 | AF115: =SUM(OFFSET(テストデータ!BQ3,113,0):OFFSET(テストデータ!BS3,113,0)) -> 0 | AG115: =SUM(OFFSET(テストデータ!BQ3,113,0):OFFSET(テストデータ!BU3,113,0)) -> 0 | AH115: =SUM(OFFSET(テストデータ!BV3,113,0):OFFSET(テストデータ!BX3,113,0)) -> 0 | AI115: =SUM(OFFSET(テストデータ!BV3,113,0):OFFSET(テストデータ!BZ3,113,0)) -> 0 | AJ115: =SUM(OFFSET(テストデータ!CA3,113,0):OFFSET(テストデータ!CC3,113,0)) -> 0 | AK115: =SUM(OFFSET(テストデータ!CA3,113,0):OFFSET(テストデータ!CE3,113,0)) -> 0 | AL115: =SUM(OFFSET(テストデータ!CF3,113,0):OFFSET(テストデータ!CH3,113,0)) -> 0 | AM115: =SUM(OFFSET(テストデータ!CF3,113,0):OFFSET(テストデータ!CJ3,113,0)) -> 0 | AN115: =SUM(OFFSET(テストデータ!CK3,113,0):OFFSET(テストデータ!CM3,113,0)) -> 0 | AO115: =SUM(OFFSET(テストデータ!CK3,113,0):OFFSET(テストデータ!CO3,113,0)) -> 0 | AP115: =SUM(OFFSET(テストデータ!CP3,113,0):OFFSET(テストデータ!CR3,113,0)) -> 0 | AQ115: =SUM(OFFSET(テストデータ!CP3,113,0):OFFSET(テストデータ!CT3,113,0)) -> 0
N116: =SUM(OFFSET(テストデータ!$E3,114,9*成績表1!$B$4-9):OFFSET(テストデータ!$G3,114,9*成績表1!$B$4-9)) -> 0 | O116: =SUM(OFFSET(テストデータ!$E3,114,9*成績表1!$B$4-9):OFFSET(テストデータ!I3,114,9*成績表1!$B$4-9)) -> 0 | P116: =SUM(OFFSET(テストデータ!E3,114,0):OFFSET(テストデータ!G3,114,0)) -> 0 | Q116: =SUM(OFFSET(テストデータ!E3,114,0):OFFSET(テストデータ!I3,114,0)) -> 0 | R116: =SUM(OFFSET(テストデータ!N3,114,0):OFFSET(テストデータ!P3,114,0)) -> 0 | S116: =SUM(OFFSET(テストデータ!N3,114,0):OFFSET(テストデータ!R3,114,0)) -> 0 | T116: =SUM(OFFSET(テストデータ!W3,114,0):OFFSET(テストデータ!Y3,114,0)) -> 0 | U116: =SUM(OFFSET(テストデータ!W3,114,0):OFFSET(テストデータ!AA3,114,0)) -> 0 | V116: =SUM(OFFSET(テストデータ!AF3,114,0):OFFSET(テストデータ!AH3,114,0)) -> 0 | W116: =SUM(OFFSET(テストデータ!AF3,114,0):OFFSET(テストデータ!AJ3,114,0)) -> 0 | X116: =SUM(OFFSET(テストデータ!AO3,114,0):OFFSET(テストデータ!AQ3,114,0)) -> 0 | Y116: =SUM(OFFSET(テストデータ!AO3,114,0):OFFSET(テストデータ!AS3,114,0)) -> 0 | Z116: =SUM(OFFSET(テストデータ!AX3,114,0):OFFSET(テストデータ!AZ3,114,0)) -> 0 | AA116: =SUM(OFFSET(テストデータ!AX3,114,0):OFFSET(テストデータ!BB3,114,0)) -> 0 | AB116: =SUM(OFFSET(テストデータ!BG3,114,0):OFFSET(テストデータ!BI3,114,0)) -> 0 | AC116: =SUM(OFFSET(テストデータ!BG3,114,0):OFFSET(テストデータ!BK3,114,0)) -> 0 | AD116: =SUM(OFFSET(テストデータ!BL3,114,0):OFFSET(テストデータ!BN3,114,0)) -> 0 | AE116: =SUM(OFFSET(テストデータ!BL3,114,0):OFFSET(テストデータ!BP3,114,0)) -> 0 | AF116: =SUM(OFFSET(テストデータ!BQ3,114,0):OFFSET(テストデータ!BS3,114,0)) -> 0 | AG116: =SUM(OFFSET(テストデータ!BQ3,114,0):OFFSET(テストデータ!BU3,114,0)) -> 0 | AH116: =SUM(OFFSET(テストデータ!BV3,114,0):OFFSET(テストデータ!BX3,114,0)) -> 0 | AI116: =SUM(OFFSET(テストデータ!BV3,114,0):OFFSET(テストデータ!BZ3,114,0)) -> 0 | AJ116: =SUM(OFFSET(テストデータ!CA3,114,0):OFFSET(テストデータ!CC3,114,0)) -> 0 | AK116: =SUM(OFFSET(テストデータ!CA3,114,0):OFFSET(テストデータ!CE3,114,0)) -> 0 | AL116: =SUM(OFFSET(テストデータ!CF3,114,0):OFFSET(テストデータ!CH3,114,0)) -> 0 | AM116: =SUM(OFFSET(テストデータ!CF3,114,0):OFFSET(テストデータ!CJ3,114,0)) -> 0 | AN116: =SUM(OFFSET(テストデータ!CK3,114,0):OFFSET(テストデータ!CM3,114,0)) -> 0 | AO116: =SUM(OFFSET(テストデータ!CK3,114,0):OFFSET(テストデータ!CO3,114,0)) -> 0 | AP116: =SUM(OFFSET(テストデータ!CP3,114,0):OFFSET(テストデータ!CR3,114,0)) -> 0 | AQ116: =SUM(OFFSET(テストデータ!CP3,114,0):OFFSET(テストデータ!CT3,114,0)) -> 0
N117: =SUM(OFFSET(テストデータ!$E3,115,9*成績表1!$B$4-9):OFFSET(テストデータ!$G3,115,9*成績表1!$B$4-9)) -> 0 | O117: =SUM(OFFSET(テストデータ!$E3,115,9*成績表1!$B$4-9):OFFSET(テストデータ!I3,115,9*成績表1!$B$4-9)) -> 0 | P117: =SUM(OFFSET(テストデータ!E3,115,0):OFFSET(テストデータ!G3,115,0)) -> 0 | Q117: =SUM(OFFSET(テストデータ!E3,115,0):OFFSET(テストデータ!I3,115,0)) -> 0 | R117: =SUM(OFFSET(テストデータ!N3,115,0):OFFSET(テストデータ!P3,115,0)) -> 0 | S117: =SUM(OFFSET(テストデータ!N3,115,0):OFFSET(テストデータ!R3,115,0)) -> 0 | T117: =SUM(OFFSET(テストデータ!W3,115,0):OFFSET(テストデータ!Y3,115,0)) -> 0 | U117: =SUM(OFFSET(テストデータ!W3,115,0):OFFSET(テストデータ!AA3,115,0)) -> 0 | V117: =SUM(OFFSET(テストデータ!AF3,115,0):OFFSET(テストデータ!AH3,115,0)) -> 0 | W117: =SUM(OFFSET(テストデータ!AF3,115,0):OFFSET(テストデータ!AJ3,115,0)) -> 0 | X117: =SUM(OFFSET(テストデータ!AO3,115,0):OFFSET(テストデータ!AQ3,115,0)) -> 0 | Y117: =SUM(OFFSET(テストデータ!AO3,115,0):OFFSET(テストデータ!AS3,115,0)) -> 0 | Z117: =SUM(OFFSET(テストデータ!AX3,115,0):OFFSET(テストデータ!AZ3,115,0)) -> 0 | AA117: =SUM(OFFSET(テストデータ!AX3,115,0):OFFSET(テストデータ!BB3,115,0)) -> 0 | AB117: =SUM(OFFSET(テストデータ!BG3,115,0):OFFSET(テストデータ!BI3,115,0)) -> 0 | AC117: =SUM(OFFSET(テストデータ!BG3,115,0):OFFSET(テストデータ!BK3,115,0)) -> 0 | AD117: =SUM(OFFSET(テストデータ!BL3,115,0):OFFSET(テストデータ!BN3,115,0)) -> 0 | AE117: =SUM(OFFSET(テストデータ!BL3,115,0):OFFSET(テストデータ!BP3,115,0)) -> 0 | AF117: =SUM(OFFSET(テストデータ!BQ3,115,0):OFFSET(テストデータ!BS3,115,0)) -> 0 | AG117: =SUM(OFFSET(テストデータ!BQ3,115,0):OFFSET(テストデータ!BU3,115,0)) -> 0 | AH117: =SUM(OFFSET(テストデータ!BV3,115,0):OFFSET(テストデータ!BX3,115,0)) -> 0 | AI117: =SUM(OFFSET(テストデータ!BV3,115,0):OFFSET(テストデータ!BZ3,115,0)) -> 0 | AJ117: =SUM(OFFSET(テストデータ!CA3,115,0):OFFSET(テストデータ!CC3,115,0)) -> 0 | AK117: =SUM(OFFSET(テストデータ!CA3,115,0):OFFSET(テストデータ!CE3,115,0)) -> 0 | AL117: =SUM(OFFSET(テストデータ!CF3,115,0):OFFSET(テストデータ!CH3,115,0)) -> 0 | AM117: =SUM(OFFSET(テストデータ!CF3,115,0):OFFSET(テストデータ!CJ3,115,0)) -> 0 | AN117: =SUM(OFFSET(テストデータ!CK3,115,0):OFFSET(テストデータ!CM3,115,0)) -> 0 | AO117: =SUM(OFFSET(テストデータ!CK3,115,0):OFFSET(テストデータ!CO3,115,0)) -> 0 | AP117: =SUM(OFFSET(テストデータ!CP3,115,0):OFFSET(テストデータ!CR3,115,0)) -> 0 | AQ117: =SUM(OFFSET(テストデータ!CP3,115,0):OFFSET(テストデータ!CT3,115,0)) -> 0
N118: =SUM(OFFSET(テストデータ!$E3,116,9*成績表1!$B$4-9):OFFSET(テストデータ!$G3,116,9*成績表1!$B$4-9)) -> 0 | O118: =SUM(OFFSET(テストデータ!$E3,116,9*成績表1!$B$4-9):OFFSET(テストデータ!I3,116,9*成績表1!$B$4-9)) -> 0 | P118: =SUM(OFFSET(テストデータ!E3,116,0):OFFSET(テストデータ!G3,116,0)) -> 0 | Q118: =SUM(OFFSET(テストデータ!E3,116,0):OFFSET(テストデータ!I3,116,0)) -> 0 | R118: =SUM(OFFSET(テストデータ!N3,116,0):OFFSET(テストデータ!P3,116,0)) -> 0 | S118: =SUM(OFFSET(テストデータ!N3,116,0):OFFSET(テストデータ!R3,116,0)) -> 0 | T118: =SUM(OFFSET(テストデータ!W3,116,0):OFFSET(テストデータ!Y3,116,0)) -> 0 | U118: =SUM(OFFSET(テストデータ!W3,116,0):OFFSET(テストデータ!AA3,116,0)) -> 0 | V118: =SUM(OFFSET(テストデータ!AF3,116,0):OFFSET(テストデータ!AH3,116,0)) -> 0 | W118: =SUM(OFFSET(テストデータ!AF3,116,0):OFFSET(テストデータ!AJ3,116,0)) -> 0 | X118: =SUM(OFFSET(テストデータ!AO3,116,0):OFFSET(テストデータ!AQ3,116,0)) -> 0 | Y118: =SUM(OFFSET(テストデータ!AO3,116,0):OFFSET(テストデータ!AS3,116,0)) -> 0 | Z118: =SUM(OFFSET(テストデータ!AX3,116,0):OFFSET(テストデータ!AZ3,116,0)) -> 0 | AA118: =SUM(OFFSET(テストデータ!AX3,116,0):OFFSET(テストデータ!BB3,116,0)) -> 0 | AB118: =SUM(OFFSET(テストデータ!BG3,116,0):OFFSET(テストデータ!BI3,116,0)) -> 0 | AC118: =SUM(OFFSET(テストデータ!BG3,116,0):OFFSET(テストデータ!BK3,116,0)) -> 0 | AD118: =SUM(OFFSET(テストデータ!BL3,116,0):OFFSET(テストデータ!BN3,116,0)) -> 0 | AE118: =SUM(OFFSET(テストデータ!BL3,116,0):OFFSET(テストデータ!BP3,116,0)) -> 0 | AF118: =SUM(OFFSET(テストデータ!BQ3,116,0):OFFSET(テストデータ!BS3,116,0)) -> 0 | AG118: =SUM(OFFSET(テストデータ!BQ3,116,0):OFFSET(テストデータ!BU3,116,0)) -> 0 | AH118: =SUM(OFFSET(テストデータ!BV3,116,0):OFFSET(テストデータ!BX3,116,0)) -> 0 | AI118: =SUM(OFFSET(テストデータ!BV3,116,0):OFFSET(テストデータ!BZ3,116,0)) -> 0 | AJ118: =SUM(OFFSET(テストデータ!CA3,116,0):OFFSET(テストデータ!CC3,116,0)) -> 0 | AK118: =SUM(OFFSET(テストデータ!CA3,116,0):OFFSET(テストデータ!CE3,116,0)) -> 0 | AL118: =SUM(OFFSET(テストデータ!CF3,116,0):OFFSET(テストデータ!CH3,116,0)) -> 0 | AM118: =SUM(OFFSET(テストデータ!CF3,116,0):OFFSET(テストデータ!CJ3,116,0)) -> 0 | AN118: =SUM(OFFSET(テストデータ!CK3,116,0):OFFSET(テストデータ!CM3,116,0)) -> 0 | AO118: =SUM(OFFSET(テストデータ!CK3,116,0):OFFSET(テストデータ!CO3,116,0)) -> 0 | AP118: =SUM(OFFSET(テストデータ!CP3,116,0):OFFSET(テストデータ!CR3,116,0)) -> 0 | AQ118: =SUM(OFFSET(テストデータ!CP3,116,0):OFFSET(テストデータ!CT3,116,0)) -> 0
N119: =SUM(OFFSET(テストデータ!$E3,117,9*成績表1!$B$4-9):OFFSET(テストデータ!$G3,117,9*成績表1!$B$4-9)) -> 0 | O119: =SUM(OFFSET(テストデータ!$E3,117,9*成績表1!$B$4-9):OFFSET(テストデータ!I3,117,9*成績表1!$B$4-9)) -> 0 | P119: =SUM(OFFSET(テストデータ!E3,117,0):OFFSET(テストデータ!G3,117,0)) -> 0 | Q119: =SUM(OFFSET(テストデータ!E3,117,0):OFFSET(テストデータ!I3,117,0)) -> 0 | R119: =SUM(OFFSET(テストデータ!N3,117,0):OFFSET(テストデータ!P3,117,0)) -> 0 | S119: =SUM(OFFSET(テストデータ!N3,117,0):OFFSET(テストデータ!R3,117,0)) -> 0 | T119: =SUM(OFFSET(テストデータ!W3,117,0):OFFSET(テストデータ!Y3,117,0)) -> 0 | U119: =SUM(OFFSET(テストデータ!W3,117,0):OFFSET(テストデータ!AA3,117,0)) -> 0 | V119: =SUM(OFFSET(テストデータ!AF3,117,0):OFFSET(テストデータ!AH3,117,0)) -> 0 | W119: =SUM(OFFSET(テストデータ!AF3,117,0):OFFSET(テストデータ!AJ3,117,0)) -> 0 | X119: =SUM(OFFSET(テストデータ!AO3,117,0):OFFSET(テストデータ!AQ3,117,0)) -> 0 | Y119: =SUM(OFFSET(テストデータ!AO3,117,0):OFFSET(テストデータ!AS3,117,0)) -> 0 | Z119: =SUM(OFFSET(テストデータ!AX3,117,0):OFFSET(テストデータ!AZ3,117,0)) -> 0 | AA119: =SUM(OFFSET(テストデータ!AX3,117,0):OFFSET(テストデータ!BB3,117,0)) -> 0 | AB119: =SUM(OFFSET(テストデータ!BG3,117,0):OFFSET(テストデータ!BI3,117,0)) -> 0 | AC119: =SUM(OFFSET(テストデータ!BG3,117,0):OFFSET(テストデータ!BK3,117,0)) -> 0 | AD119: =SUM(OFFSET(テストデータ!BL3,117,0):OFFSET(テストデータ!BN3,117,0)) -> 0 | AE119: =SUM(OFFSET(テストデータ!BL3,117,0):OFFSET(テストデータ!BP3,117,0)) -> 0 | AF119: =SUM(OFFSET(テストデータ!BQ3,117,0):OFFSET(テストデータ!BS3,117,0)) -> 0 | AG119: =SUM(OFFSET(テストデータ!BQ3,117,0):OFFSET(テストデータ!BU3,117,0)) -> 0 | AH119: =SUM(OFFSET(テストデータ!BV3,117,0):OFFSET(テストデータ!BX3,117,0)) -> 0 | AI119: =SUM(OFFSET(テストデータ!BV3,117,0):OFFSET(テストデータ!BZ3,117,0)) -> 0 | AJ119: =SUM(OFFSET(テストデータ!CA3,117,0):OFFSET(テストデータ!CC3,117,0)) -> 0 | AK119: =SUM(OFFSET(テストデータ!CA3,117,0):OFFSET(テストデータ!CE3,117,0)) -> 0 | AL119: =SUM(OFFSET(テストデータ!CF3,117,0):OFFSET(テストデータ!CH3,117,0)) -> 0 | AM119: =SUM(OFFSET(テストデータ!CF3,117,0):OFFSET(テストデータ!CJ3,117,0)) -> 0 | AN119: =SUM(OFFSET(テストデータ!CK3,117,0):OFFSET(テストデータ!CM3,117,0)) -> 0 | AO119: =SUM(OFFSET(テストデータ!CK3,117,0):OFFSET(テストデータ!CO3,117,0)) -> 0 | AP119: =SUM(OFFSET(テストデータ!CP3,117,0):OFFSET(テストデータ!CR3,117,0)) -> 0 | AQ119: =SUM(OFFSET(テストデータ!CP3,117,0):OFFSET(テストデータ!CT3,117,0)) -> 0
N120: =SUM(OFFSET(テストデータ!$E3,118,9*成績表1!$B$4-9):OFFSET(テストデータ!$G3,118,9*成績表1!$B$4-9)) -> 0 | O120: =SUM(OFFSET(テストデータ!$E3,118,9*成績表1!$B$4-9):OFFSET(テストデータ!I3,118,9*成績表1!$B$4-9)) -> 0 | P120: =SUM(OFFSET(テストデータ!E3,118,0):OFFSET(テストデータ!G3,118,0)) -> 0 | Q120: =SUM(OFFSET(テストデータ!E3,118,0):OFFSET(テストデータ!I3,118,0)) -> 0 | R120: =SUM(OFFSET(テストデータ!N3,118,0):OFFSET(テストデータ!P3,118,0)) -> 0 | S120: =SUM(OFFSET(テストデータ!N3,118,0):OFFSET(テストデータ!R3,118,0)) -> 0 | T120: =SUM(OFFSET(テストデータ!W3,118,0):OFFSET(テストデータ!Y3,118,0)) -> 0 | U120: =SUM(OFFSET(テストデータ!W3,118,0):OFFSET(テストデータ!AA3,118,0)) -> 0 | V120: =SUM(OFFSET(テストデータ!AF3,118,0):OFFSET(テストデータ!AH3,118,0)) -> 0 | W120: =SUM(OFFSET(テストデータ!AF3,118,0):OFFSET(テストデータ!AJ3,118,0)) -> 0 | X120: =SUM(OFFSET(テストデータ!AO3,118,0):OFFSET(テストデータ!AQ3,118,0)) -> 0 | Y120: =SUM(OFFSET(テストデータ!AO3,118,0):OFFSET(テストデータ!AS3,118,0)) -> 0 | Z120: =SUM(OFFSET(テストデータ!AX3,118,0):OFFSET(テストデータ!AZ3,118,0)) -> 0 | AA120: =SUM(OFFSET(テストデータ!AX3,118,0):OFFSET(テストデータ!BB3,118,0)) -> 0 | AB120: =SUM(OFFSET(テストデータ!BG3,118,0):OFFSET(テストデータ!BI3,118,0)) -> 0 | AC120: =SUM(OFFSET(テストデータ!BG3,118,0):OFFSET(テストデータ!BK3,118,0)) -> 0 | AD120: =SUM(OFFSET(テストデータ!BL3,118,0):OFFSET(テストデータ!BN3,118,0)) -> 0 | AE120: =SUM(OFFSET(テストデータ!BL3,118,0):OFFSET(テストデータ!BP3,118,0)) -> 0 | AF120: =SUM(OFFSET(テストデータ!BQ3,118,0):OFFSET(テストデータ!BS3,118,0)) -> 0 | AG120: =SUM(OFFSET(テストデータ!BQ3,118,0):OFFSET(テストデータ!BU3,118,0)) -> 0 | AH120: =SUM(OFFSET(テストデータ!BV3,118,0):OFFSET(テストデータ!BX3,118,0)) -> 0 | AI120: =SUM(OFFSET(テストデータ!BV3,118,0):OFFSET(テストデータ!BZ3,118,0)) -> 0 | AJ120: =SUM(OFFSET(テストデータ!CA3,118,0):OFFSET(テストデータ!CC3,118,0)) -> 0 | AK120: =SUM(OFFSET(テストデータ!CA3,118,0):OFFSET(テストデータ!CE3,118,0)) -> 0 | AL120: =SUM(OFFSET(テストデータ!CF3,118,0):OFFSET(テストデータ!CH3,118,0)) -> 0 | AM120: =SUM(OFFSET(テストデータ!CF3,118,0):OFFSET(テストデータ!CJ3,118,0)) -> 0 | AN120: =SUM(OFFSET(テストデータ!CK3,118,0):OFFSET(テストデータ!CM3,118,0)) -> 0 | AO120: =SUM(OFFSET(テストデータ!CK3,118,0):OFFSET(テストデータ!CO3,118,0)) -> 0 | AP120: =SUM(OFFSET(テストデータ!CP3,118,0):OFFSET(テストデータ!CR3,118,0)) -> 0 | AQ120: =SUM(OFFSET(テストデータ!CP3,118,0):OFFSET(テストデータ!CT3,118,0)) -> 0
N121: =SUM(OFFSET(テストデータ!$E3,119,9*成績表1!$B$4-9):OFFSET(テストデータ!$G3,119,9*成績表1!$B$4-9)) -> 0 | O121: =SUM(OFFSET(テストデータ!$E3,119,9*成績表1!$B$4-9):OFFSET(テストデータ!I3,119,9*成績表1!$B$4-9)) -> 0 | P121: =SUM(OFFSET(テストデータ!E3,119,0):OFFSET(テストデータ!G3,119,0)) -> 0 | Q121: =SUM(OFFSET(テストデータ!E3,119,0):OFFSET(テストデータ!I3,119,0)) -> 0 | R121: =SUM(OFFSET(テストデータ!N3,119,0):OFFSET(テストデータ!P3,119,0)) -> 0 | S121: =SUM(OFFSET(テストデータ!N3,119,0):OFFSET(テストデータ!R3,119,0)) -> 0 | T121: =SUM(OFFSET(テストデータ!W3,119,0):OFFSET(テストデータ!Y3,119,0)) -> 0 | U121: =SUM(OFFSET(テストデータ!W3,119,0):OFFSET(テストデータ!AA3,119,0)) -> 0 | V121: =SUM(OFFSET(テストデータ!AF3,119,0):OFFSET(テストデータ!AH3,119,0)) -> 0 | W121: =SUM(OFFSET(テストデータ!AF3,119,0):OFFSET(テストデータ!AJ3,119,0)) -> 0 | X121: =SUM(OFFSET(テストデータ!AO3,119,0):OFFSET(テストデータ!AQ3,119,0)) -> 0 | Y121: =SUM(OFFSET(テストデータ!AO3,119,0):OFFSET(テストデータ!AS3,119,0)) -> 0 | Z121: =SUM(OFFSET(テストデータ!AX3,119,0):OFFSET(テストデータ!AZ3,119,0)) -> 0 | AA121: =SUM(OFFSET(テストデータ!AX3,119,0):OFFSET(テストデータ!BB3,119,0)) -> 0 | AB121: =SUM(OFFSET(テストデータ!BG3,119,0):OFFSET(テストデータ!BI3,119,0)) -> 0 | AC121: =SUM(OFFSET(テストデータ!BG3,119,0):OFFSET(テストデータ!BK3,119,0)) -> 0 | AD121: =SUM(OFFSET(テストデータ!BL3,119,0):OFFSET(テストデータ!BN3,119,0)) -> 0 | AE121: =SUM(OFFSET(テストデータ!BL3,119,0):OFFSET(テストデータ!BP3,119,0)) -> 0 | AF121: =SUM(OFFSET(テストデータ!BQ3,119,0):OFFSET(テストデータ!BS3,119,0)) -> 0 | AG121: =SUM(OFFSET(テストデータ!BQ3,119,0):OFFSET(テストデータ!BU3,119,0)) -> 0 | AH121: =SUM(OFFSET(テストデータ!BV3,119,0):OFFSET(テストデータ!BX3,119,0)) -> 0 | AI121: =SUM(OFFSET(テストデータ!BV3,119,0):OFFSET(テストデータ!BZ3,119,0)) -> 0 | AJ121: =SUM(OFFSET(テストデータ!CA3,119,0):OFFSET(テストデータ!CC3,119,0)) -> 0 | AK121: =SUM(OFFSET(テストデータ!CA3,119,0):OFFSET(テストデータ!CE3,119,0)) -> 0 | AL121: =SUM(OFFSET(テストデータ!CF3,119,0):OFFSET(テストデータ!CH3,119,0)) -> 0 | AM121: =SUM(OFFSET(テストデータ!CF3,119,0):OFFSET(テストデータ!CJ3,119,0)) -> 0 | AN121: =SUM(OFFSET(テストデータ!CK3,119,0):OFFSET(テストデータ!CM3,119,0)) -> 0 | AO121: =SUM(OFFSET(テストデータ!CK3,119,0):OFFSET(テストデータ!CO3,119,0)) -> 0 | AP121: =SUM(OFFSET(テストデータ!CP3,119,0):OFFSET(テストデータ!CR3,119,0)) -> 0 | AQ121: =SUM(OFFSET(テストデータ!CP3,119,0):OFFSET(テストデータ!CT3,119,0)) -> 0
